Workbook

Sheet 公路旅客6月报
A1: 所属地区 | B1: 企业代码 | C1: 企业名称 | D1: 客运车辆_总计 | E1: 核定载客位_总计 | F1: 车辆数_客运班车（含定线旅游客运客车） | G1: 核定载客位_客运班车（含定线旅游客运客车） | H1: 车辆数_客运包车（含非定线旅游客运客车） | I1: 核定载客位_客运包车（含非定线旅游客运客车） | J1: 客运量_总计 | K1: 旅客周转量_总计 | L1: 客运量_一类客运班线（含定线旅游） | M1: 旅客周转量_一类客运班线（含定线旅游） | N1: 客运量_二类客运班线（含定线旅游） | O1: 旅客周转量_二类客运班线（含定线旅游） | P1: 客运量_三类客运班线（含定线旅游） | Q1: 旅客周转量_三类客运班线（含定线旅游） | R1: 客运量_四类客运班线（含定线旅游） | S1: 旅客周转量_四类客运班线（含定线旅游） | T1: 客运量_客运包车（含非定线旅游） | U1: 旅客周转量_客运包车（含非定线旅游） | V1: 客运平均运距 | W1: 一类客运班线平均运距 | X1: 二类客运班线平均运距 | Y1: 三类客运班线平均运距 | Z1: 四类客运班线平均运距 | AA1: 旅游、包车平均运距
A2: 420200 | B2: 42020000016 | C2: 黄石市城市公交集团有限公司 | D2: 21 | E2: 877 | F2: 0 | G2: 0 | H2: 21 | I2: 877 | J2: 3338 | K2: 1068160 | L2: 0 | M2: 0 | N2: 0 | O2: 0 | P2: 0 | Q2: 0 | R2: 0 | S2: 0 | T2: 3338 | U2: 1068160 | V2: 320 | W2: 0 | X2: 0 | Y2: 0 | Z2: 0 | AA2: 320
A3: 420302 | B3: 42030000002 | C3: 十堰市交通经济开发有限公司 | D3: 44 | E3: 1227 | F3: 44 | G3: 1227 | H3: 0 | I3: 0 | J3: 35081 | K3: 3217396 | L3: 0 | M3: 0 | N3: 377 | O3: 67860 | P3: 34704 | Q3: 3149536 | R3: 0 | S3: 0 | T3: 0 | U3: 0 | V3: 92 | W3: 0 | X3: 180 | Y3: 91 | Z3: 0 | AA3: 0
A4: 420302 | B4: 42030300002 | C4: 十堰市城市公交集团有限公司 | D4: 32 | E4: 1483 | F4: 0 | G4: 0 | H4: 32 | I4: 1483 | J4: 3590 | K4: 1148086 | L4: 0 | M4: 0 | N4: 0 | O4: 0 | P4: 0 | Q4: 0 | R4: 0 | S4: 0 | T4: 3590 | U4: 1148086 | V4: 320 | W4: 0 | X4: 0 | Y4: 0 | Z4: 0 | AA4: 320
A5: 420304 | B5: 42030400001 | C5: 郧县天鸿汽车运输有限公司 | D5: 56 | E5: 1677 | F5: 37 | G5: 911 | H5: 19 | I5: 766 | J5: 19791 | K5: 1733234 | L5: 752 | M5: 340295 | N5: 0 | O5: 0 | P5: 3708 | Q5: 239788 | R5: 13021 | S5: 694568 | T5: 2310 | U5: 458583 | V5: 88 | W5: 453 | X5: 0 | Y5: 65 | Z5: 53 | AA5: 199
A6: 420323 | B6: 42032300005 | C6: 湖北省十堰亨运集团竹山有限责任公司 | D6: 36 | E6: 1319 | F6: 36 | G6: 1319 | H6: 0 | I6: 0 | J6: 30165 | K6: 4363643 | L6: 1557 | M6: 784731 | N6: 2055 | O6: 662052 | P6: 18503 | Q6: 2377110 | R6: 8050 | S6: 539750 | T6: 0 | U6: 0 | V6: 145 | W6: 504 | X6: 322 | Y6: 128 | Z6: 67 | AA6: 0
A7: 420325 | B7: 42032500004 | C7: 房县恒通发展有限责任公司 | D7: 130 | E7: 3351 | F7: 126 | G7: 3197 | H7: 4 | I7: 154 | J7: 54098 | K7: 3879872 | L7: 172 | M7: 111456 | N7: 4474 | O7: 1145344 | P7: 13560 | Q7: 1572960 | R7: 35644 | S7: 998032 | T7: 248 | U7: 52080 | V7: 72 | W7: 648 | X7: 256 | Y7: 116 | Z7: 28 | AA7: 210
A8: 420381 | B8: 42038100002 | C8: 湖北省十堰亨运集团武当山旅游运输有限公司 | D8: 27 | E8: 1058 | F8: 8 | G8: 199 | H8: 19 | I8: 859 | J8: 7971 | K8: 1450769 | L8: 0 | M8: 0 | N8: 0 | O8: 0 | P8: 2507 | Q8: 131052 | R8: 80 | S8: 4750 | T8: 5384 | U8: 1314967 | V8: 182 | W8: 0 | X8: 0 | Y8: 52 | Z8: 59 | AA8: 244
A9: 420381 | B9: 42038100003 | C9: 丹江口市公共汽车公司 | D9: 22 | E9: 963 | F9: 0 | G9: 0 | H9: 22 | I9: 963 | J9: 2024 | K9: 246928 | L9: 0 | M9: 0 | N9: 0 | O9: 0 | P9: 0 | Q9: 0 | R9: 0 | S9: 0 | T9: 2024 | U9: 246928 | V9: 122 | W9: 0 | X9: 0 | Y9: 0 | Z9: 0 | AA9: 122
A10: 420506 | B10: 42050600001 | C10: 宜昌恒升客运联营有限公司 | D10: 2 | E10: 64 | F10: 2 | G10: 64 | H10: 0 | I10: 0 | J10: 1510 | K10: 38065 | L10: 0 | M10: 0 | N10: 0 | O10: 0 | P10: 0 | Q10: 0 | R10: 1510 | S10: 38065 | T10: 0 | U10: 0 | V10: 25 | W10: 0 | X10: 0 | Y10: 0 | Z10: 25 | AA10: 0
A11: 420525 | B11: 42052500002 | C11: 宜昌三峡运输集团远安县畅通汽车客运有限公司 | D11: 44 | E11: 1227 | F11: 41 | G11: 1116 | H11: 3 | I11: 111 | J11: 166595 | K11: 5216731 | L11: 0 | M11: 0 | N11: 2219 | O11: 589874 | P11: 13520 | Q11: 1124188 | R11: 149676 | S11: 3403632 | T11: 1180 | U11: 99037 | V11: 31 | W11: 0 | X11: 266 | Y11: 83 | Z11: 23 | AA11: 84
A12: 420525 | B12: 42052500003 | C12: 远安县全运公共交通运输有限公司 | D12: 12 | E12: 246 | F12: 12 | G12: 246 | H12: 0 | I12: 0 | J12: 14926 | K12: 409718 | L12: 0 | M12: 0 | N12: 0 | O12: 0 | P12: 0 | Q12: 0 | R12: 14926 | S12: 409718 | T12: 0 | U12: 0 | V12: 27 | W12: 0 | X12: 0 | Y12: 0 | Z12: 27 | AA12: 0
A13: 420526 | B13: 42052600004 | C13: 宜昌交运集团兴山客运有限公司 | D13: 33 | E13: 1095 | F13: 33 | G13: 1095 | H13: 0 | I13: 0 | J13: 70293 | K13: 3796408 | L13: 0 | M13: 0 | N13: 550 | O13: 67100 | P13: 14527 | Q13: 1597970 | R13: 55216 | S13: 2131338 | T13: 0 | U13: 0 | V13: 54 | W13: 0 | X13: 122 | Y13: 110 | Z13: 39 | AA13: 0
A14: 420527 | B14: 42052700017 | C14: 宜昌交运集团秭归客运有限公司 | D14: 15 | E14: 550 | F14: 15 | G14: 550 | H14: 0 | I14: 0 | J14: 29768 | K14: 2530280 | L14: 0 | M14: 0 | N14: 0 | O14: 0 | P14: 29768 | Q14: 2530280 | R14: 0 | S14: 0 | T14: 0 | U14: 0 | V14: 85 | W14: 0 | X14: 0 | Y14: 85 | Z14: 0 | AA14: 0
A15: 420529 | B15: 42052900001 | C15: 宜昌交运集团五峰客运有限公司 | D15: 21 | E15: 499 | F15: 21 | G15: 499 | H15: 0 | I15: 0 | J15: 36845 | K15: 3868725 | L15: 0 | M15: 0 | N15: 0 | O15: 0 | P15: 0 | Q15: 0 | R15: 36845 | S15: 3868725 | T15: 0 | U15: 0 | V15: 105 | W15: 0 | X15: 0 | Y15: 0 | Z15: 105 | AA15: 0
A16: 420581 | B16: 42058100006 | C16: 宜昌交运集团宜都客运有限公司 | D16: 26 | E16: 728 | F16: 26 | G16: 728 | H16: 0 | I16: 0 | J16: 19475 | K16: 1191300 | L16: 0 | M16: 0 | N16: 1325 | O16: 174900 | P16: 18150 | Q16: 1016400 | R16: 0 | S16: 0 | T16: 0 | U16: 0 | V16: 61 | W16: 0 | X16: 132 | Y16: 56 | Z16: 0 | AA16: 0
A17: 420582 | B17: 42058200007 | C17: 当阳市永生汽车运输有限公司 | D17: 61 | E17: 1661 | F17: 61 | G17: 1661 | H17: 0 | I17: 0 | J17: 284068 | K17: 19507536 | L17: 0 | M17: 0 | N17: 9697 | O17: 3054555 | P17: 159792 | Q17: 11984400 | R17: 114579 | S17: 4468581 | T17: 0 | U17: 0 | V17: 69 | W17: 0 | X17: 315 | Y17: 75 | Z17: 39 | AA17: 0
A18: 420583 | B18: 42058300005 | C18: 枝江市安捷交通运输有限责任公司 | D18: 22 | E18: 476 | F18: 14 | G18: 373 | H18: 8 | I18: 103 | J18: 16728 | K18: 2916792 | L18: 0 | M18: 0 | N18: 2550 | O18: 300900 | P18: 4896 | Q18: 254592 | R18: 3060 | S18: 183600 | T18: 6222 | U18: 2177700 | V18: 174 | W18: 0 | X18: 118 | Y18: 52 | Z18: 60 | AA18: 350
A19: 420607 | B19: 42060000024 | C19: 襄阳四海联托运有限责任公司 | D19: 40 | E19: 1263 | F19: 15 | G19: 301 | H19: 25 | I19: 962 | J19: 13929 | K19: 3587169 | L19: 0 | M19: 0 | N19: 0 | O19: 0 | P19: 0 | Q19: 0 | R19: 10539 | S19: 443427 | T19: 3390 | U19: 3143742 | V19: 258 | W19: 0 | X19: 0 | Y19: 0 | Z19: 42 | AA19: 927
A20: 420625 | B20: 42062500003 | C20: 谷城县公共交通运输集团有限公司 | D20: 53 | E20: 1867 | F20: 31 | G20: 975 | H20: 22 | I20: 892 | J20: 43622 | K20: 6317495 | L20: 2078 | M20: 426064 | N20: 5123 | O20: 902300 | P20: 28476 | Q20: 1817018 | R20: 0 | S20: 0 | T20: 7945 | U20: 3172113 | V20: 145 | W20: 205 | X20: 176 | Y20: 64 | Z20: 0 | AA20: 399
A21: 420682 | B21: 42068200005 | C21: 老河口市顺通运业有限责任公司 | D21: 154 | E21: 5257 | F21: 152 | G21: 5187 | H21: 2 | I21: 70 | J21: 174195 | K21: 8747245 | L21: 625 | M21: 45395 | N21: 1070 | O21: 297512 | P21: 63350 | Q21: 4941378 | R21: 107328 | S21: 3219840 | T21: 1822 | U21: 243120 | V21: 50 | W21: 73 | X21: 278 | Y21: 78 | Z21: 30 | AA21: 133
A22: 420683 | B22: 42068300005 | C22: 枣阳市四达汽车运输有限公司 | D22: 27 | E22: 1363 | F22: 3 | G22: 54 | H22: 24 | I22: 1309 | J22: 7362 | K22: 553048 | L22: 0 | M22: 0 | N22: 526 | O22: 156748 | P22: 1020 | Q22: 76500 | R22: 0 | S22: 0 | T22: 5816 | U22: 319800 | V22: 75 | W22: 0 | X22: 298 | Y22: 75 | Z22: 0 | AA22: 55
A23: 420700 | B23: 42070000006 | C23: 鄂州市华松汽车客运有限公司 | D23: 18 | E23: 794 | F23: 0 | G23: 0 | H23: 18 | I23: 794 | J23: 16622 | K23: 1246650 | L23: 0 | M23: 0 | N23: 0 | O23: 0 | P23: 0 | Q23: 0 | R23: 0 | S23: 0 | T23: 16622 | U23: 1246650 | V23: 75 | W23: 0 | X23: 0 | Y23: 0 | Z23: 0 | AA23: 75
A24: 420700 | B24: 42070000007 | C24: 鄂州市交通发展有限公司 | D24: 101 | E24: 2620 | F24: 101 | G24: 2620 | H24: 0 | I24: 0 | J24: 57500 | K24: 2970000 | L24: 0 | M24: 0 | N24: 31500 | O24: 1620000 | P24: 26000 | Q24: 1350000 | R24: 0 | S24: 0 | T24: 0 | U24: 0 | V24: 52 | W24: 0 | X24: 51 | Y24: 52 | Z24: 0 | AA24: 0
A25: 420700 | B25: 42070000009 | C25: 鄂州市大鹏客运有限公司 | D25: 78 | E25: 2043 | F25: 65 | G25: 1474 | H25: 13 | I25: 569 | J25: 93166 | K25: 6028466 | L25: 0 | M25: 0 | N25: 10812 | O25: 1120355 | P25: 49619 | Q25: 2522895 | R25: 19868 | S25: 1236100 | T25: 12867 | U25: 1149116 | V25: 65 | W25: 0 | X25: 104 | Y25: 51 | Z25: 62 | AA25: 89
A26: 420800 | B26: 42080000002 | C26: 荆门市五三易达汽车运输有限公司 | D26: 16 | E26: 436 | F26: 16 | G26: 436 | H26: 0 | I26: 0 | J26: 3161 | K26: 257198 | L26: 28 | M26: 10485 | N26: 1946 | O26: 182919 | P26: 715 | Q26: 46296 | R26: 472 | S26: 17498 | T26: 0 | U26: 0 | V26: 81 | W26: 374 | X26: 94 | Y26: 65 | Z26: 37 | AA26: 0
A27: 420800 | B27: 42080400001 | C27: 荆门万里交通建设有限公司 | D27: 52 | E27: 1606 | F27: 26 | G27: 726 | H27: 26 | I27: 880 | J27: 24345 | K27: 5671523 | L27: 6257 | M27: 4148485 | N27: 5008 | O27: 580856 | P27: 3205 | Q27: 211598 | R27: 0 | S27: 0 | T27: 9875 | U27: 730584 | V27: 233 | W27: 663 | X27: 116 | Y27: 66 | Z27: 0 | AA27: 74
A28: 420881 | B28: 42088100009 | C28: 湖北省钟祥宇风运业有限公司 | D28: 2 | E28: 64 | F28: 2 | G28: 64 | H28: 0 | I28: 0 | J28: 0 | K28: 0 | L28: 0 | M28: 0 | N28: 0 | O28: 0 | P28: 0 | Q28: 0 | R28: 0 | S28: 0 | T28: 0 | U28: 0 | V28: 0 | W28: 0 | X28: 0 | Y28: 0 | Z28: 0 | AA28: 0
A29: 420901 | B29: 42090100001 | C29: 孝感汽车客运集团有限公司 | D29: 53 | E29: 1253 | F29: 53 | G29: 1253 | H29: 0 | I29: 0 | J29: 18692 | K29: 891784 | L29: 0 | M29: 0 | N29: 9856 | O29: 591360 | P29: 8836 | Q29: 300424 | R29: 0 | S29: 0 | T29: 0 | U29: 0 | V29: 48 | W29: 0 | X29: 60 | Y29: 34 | Z29: 0 | AA29: 0
A30: 420921 | B30: 42092100004 | C30: 孝昌县裕通汽车运输有限责任公司 | D30: 27 | E30: 927 | F30: 15 | G30: 421 | H30: 12 | I30: 506 | J30: 24910 | K30: 1181238 | L30: 0 | M30: 0 | N30: 12316 | O30: 566538 | P30: 6138 | Q30: 283245 | R30: 2146 | S30: 98719 | T30: 4310 | U30: 232736 | V30: 47 | W30: 0 | X30: 46 | Y30: 46 | Z30: 46 | AA30: 54
A31: 420922 | B31: 42092200002 | C31: 大悟交运汽车运输有限公司 | D31: 41 | E31: 1220 | F31: 41 | G31: 1220 | H31: 0 | I31: 0 | J31: 24114 | K31: 2099405 | L31: 0 | M31: 0 | N31: 11755 | O31: 1234275 | P31: 12359 | Q31: 865130 | R31: 0 | S31: 0 | T31: 0 | U31: 0 | V31: 87 | W31: 0 | X31: 105 | Y31: 70 | Z31: 0 | AA31: 0
A32: 420923 | B32: 42092300003 | C32: 云梦县永泰汽车客运有限公司 | D32: 94 | E32: 2051 | F32: 94 | G32: 2051 | H32: 0 | I32: 0 | J32: 63996 | K32: 2647017 | L32: 0 | M32: 0 | N32: 29385 | O32: 1707269 | P32: 14519 | Q32: 399273 | R32: 20092 | S32: 540475 | T32: 0 | U32: 0 | V32: 41 | W32: 0 | X32: 58 | Y32: 28 | Z32: 27 | AA32: 0
A33: 420981 | B33: 42098100003 | C33: 应城市众达公共交通有限公司 | D33: 7 | E33: 119 | F33: 7 | G33: 119 | H33: 0 | I33: 0 | J33: 13789 | K33: 234866 | L33: 0 | M33: 0 | N33: 0 | O33: 0 | P33: 0 | Q33: 0 | R33: 13789 | S33: 234866 | T33: 0 | U33: 0 | V33: 17 | W33: 0 | X33: 0 | Y33: 0 | Z33: 17 | AA33: 0
A34: 420981 | B34: 42098100005 | C34: 应城八达运输有限公司 | D34: 59 | E34: 1233 | F34: 59 | G34: 1233 | H34: 0 | I34: 0 | J34: 47702 | K34: 4674796 | L34: 0 | M34: 0 | N34: 47702 | O34: 4674796 | P34: 0 | Q34: 0 | R34: 0 | S34: 0 | T34: 0 | U34: 0 | V34: 98 | W34: 0 | X34: 98 | Y34: 0 | Z34: 0 | AA34: 0
A35: 420984 | B35: 42098400003 | C35: 汉川盛达客运有限公司 | D35: 43 | E35: 1674 | F35: 32 | G35: 1189 | H35: 11 | I35: 485 | J35: 41526 | K35: 3466863 | L35: 0 | M35: 0 | N35: 18957 | O35: 1408040 | P35: 16097 | Q35: 881146 | R35: 0 | S35: 0 | T35: 6472 | U35: 1177677 | V35: 83 | W35: 0 | X35: 74 | Y35: 55 | Z35: 0 | AA35: 182
A36: 421000 | B36: 42100000002 | C36: 荆州先行运输集团有限公司 | D36: 188 | E36: 6176 | F36: 188 | G36: 6176 | H36: 0 | I36: 0 | J36: 53299 | K36: 4085279 | L36: 3208 | M36: 888771 | N36: 12631 | O36: 1394549 | P36: 33572 | Q36: 1755766 | R36: 3888 | S36: 46193 | T36: 0 | U36: 0 | V36: 77 | W36: 277 | X36: 110 | Y36: 52 | Z36: 12 | AA36: 0
A37: 421023 | B37: 42102300030 | C37: 监利市汽车运输总公司 | D37: 113 | E37: 2417 | F37: 113 | G37: 2417 | H37: 0 | I37: 0 | J37: 55076 | K37: 7386153 | L37: 14251 | M37: 3463178 | N37: 13965 | O37: 2024925 | P37: 13855 | Q37: 1260805 | R37: 13005 | S37: 637245 | T37: 0 | U37: 0 | V37: 134 | W37: 243 | X37: 145 | Y37: 91 | Z37: 49 | AA37: 0
A38: 421081 | B38: 42108100015 | C38: 石首市幸福汽车客运有限公司 | D38: 51 | E38: 988 | F38: 51 | G38: 988 | H38: 0 | I38: 0 | J38: 60660 | K38: 1125650 | L38: 0 | M38: 0 | N38: 0 | O38: 0 | P38: 0 | Q38: 0 | R38: 60660 | S38: 1125650 | T38: 0 | U38: 0 | V38: 19 | W38: 0 | X38: 0 | Y38: 0 | Z38: 19 | AA38: 0
A39: 421083 | B39: 42108300037 | C39: 洪湖市运通汽车运输有限责任公司 | D39: 36 | E39: 835 | F39: 36 | G39: 835 | H39: 0 | I39: 0 | J39: 17109 | K39: 961432 | L39: 0 | M39: 0 | N39: 224 | O39: 18556 | P39: 16885 | Q39: 942876 | R39: 0 | S39: 0 | T39: 0 | U39: 0 | V39: 56 | W39: 0 | X39: 83 | Y39: 56 | Z39: 0 | AA39: 0
A40: 421124 | B40: 42112400004 | C40: 黄冈市东方运输集团英山全顺有限公司 | D40: 45 | E40: 1441 | F40: 45 | G40: 1441 | H40: 0 | I40: 0 | J40: 12679 | K40: 3519747 | L40: 2067 | M40: 952703 | N40: 3578 | O40: 910318 | P40: 2895 | Q40: 276934 | R40: 0 | S40: 0 | T40: 4139 | U40: 1379792 | V40: 278 | W40: 461 | X40: 254 | Y40: 96 | Z40: 0 | AA40: 333
A41: 421126 | B41: 42112600021 | C41: 蕲春县东昌汽车运输有限公司 | D41: 6 | E41: 170 | F41: 6 | G41: 170 | H41: 0 | I41: 0 | J41: 9918 | K41: 546581 | L41: 0 | M41: 0 | N41: 0 | O41: 0 | P41: 0 | Q41: 0 | R41: 9918 | S41: 546581 | T41: 0 | U41: 0 | V41: 55 | W41: 0 | X41: 0 | Y41: 0 | Z41: 55 | AA41: 0
A42: 421182 | B42: 42118200012 | C42: 武穴市公共汽车公司 | D42: 5 | E42: 92 | F42: 5 | G42: 92 | H42: 0 | I42: 0 | J42: 9594 | K42: 212411 | L42: 0 | M42: 0 | N42: 0 | O42: 0 | P42: 0 | Q42: 0 | R42: 9594 | S42: 212411 | T42: 0 | U42: 0 | V42: 22 | W42: 0 | X42: 0 | Y42: 0 | Z42: 22 | AA42: 0
A43: 421221 | B43: 42122100005 | C43: 嘉鱼交通建设集团鸿昌客运有限公司 | D43: 57 | E43: 1749 | F43: 57 | G43: 1749 | H43: 0 | I43: 0 | J43: 114520 | K43: 8328513 | L43: 0 | M43: 0 | N43: 89560 | O43: 7053607 | P43: 24960 | Q43: 1274906 | R43: 0 | S43: 0 | T43: 0 | U43: 0 | V43: 73 | W43: 0 | X43: 79 | Y43: 51 | Z43: 0 | AA43: 0
A44: 421222 | B44: 42122200003 | C44: 湖北咸宁咸运集团通城恒通运输有限公司 | D44: 94 | E44: 1753 | F44: 94 | G44: 1753 | H44: 0 | I44: 0 | J44: 8168 | K44: 2564579 | L44: 1652 | M44: 1325824 | N44: 5528 | O44: 1158241 | P44: 988 | Q44: 80514 | R44: 0 | S44: 0 | T44: 0 | U44: 0 | V44: 314 | W44: 803 | X44: 210 | Y44: 81 | Z44: 0 | AA44: 0
A45: 421223 | B45: 42122300003 | C45: 湖北咸宁咸运集团崇阳天成运输有限公司 | D45: 42 | E45: 1490 | F45: 42 | G45: 1490 | H45: 0 | I45: 0 | J45: 25753 | K45: 3605504 | L45: 1868 | M45: 1329274 | N45: 18565 | O45: 2042150 | P45: 5320 | Q45: 234080 | R45: 0 | S45: 0 | T45: 0 | U45: 0 | V45: 140 | W45: 712 | X45: 110 | Y45: 44 | Z45: 0 | AA45: 0
A46: 421224 | B46: 42122400002 | C46: 通山县宏发出租车有限公司 | D46: 0 | E46: 0 | F46: 0 | G46: 0 | H46: 0 | I46: 0 | J46: 0 | K46: 0 | L46: 0 | M46: 0 | N46: 0 | O46: 0 | P46: 0 | Q46: 0 | R46: 0 | S46: 0 | T46: 0 | U46: 0 | V46: 0 | W46: 0 | X46: 0 | Y46: 0 | Z46: 0 | AA46: 0
A47: 421224 | B47: 42122400003 | C47: 湖北咸宁咸运集团通山奔阳运输有限公司 | D47: 66 | E47: 2010 | F47: 54 | G47: 1625 | H47: 12 | I47: 385 | J47: 163323 | K47: 11122608 | L47: 497 | M47: 35492 | N47: 50094 | O47: 5993885 | P47: 50833 | Q47: 2455030 | R47: 60271 | S47: 2334131 | T47: 1628 | U47: 304070 | V47: 68 | W47: 71 | X47: 120 | Y47: 48 | Z47: 39 | AA47: 187
A48: 421303 | B48: 42130300005 | C48: 随州市公共交通有限责任公司 | D48: 7 | E48: 276 | F48: 0 | G48: 0 | H48: 7 | I48: 276 | J48: 2057 | K48: 412824 | L48: 0 | M48: 0 | N48: 0 | O48: 0 | P48: 0 | Q48: 0 | R48: 0 | S48: 0 | T48: 2057 | U48: 412824 | V48: 201 | W48: 0 | X48: 0 | Y48: 0 | Z48: 0 | AA48: 201
A49: 421381 | B49: 42138100008 | C49: 广水市恒泰汽车运输有限责任公司 | D49: 133 | E49: 3456 | F49: 133 | G49: 3456 | H49: 0 | I49: 0 | J49: 128989 | K49: 11388507 | L49: 4553 | M49: 4336190 | N49: 27987 | O49: 4254055 | P49: 13421 | Q49: 953196 | R49: 83028 | S49: 1845066 | T49: 0 | U49: 0 | V49: 88 | W49: 952 | X49: 152 | Y49: 71 | Z49: 22 | AA49: 0
A50: 422801 | B50: 42280100005 | C50: 恩施市双龙客运有限公司 | D50: 37 | E50: 455 | F50: 37 | G50: 455 | H50: 0 | I50: 0 | J50: 34851 | K50: 2465187 | L50: 0 | M50: 0 | N50: 0 | O50: 0 | P50: 0 | Q50: 0 | R50: 34851 | S50: 2465187 | T50: 0 | U50: 0 | V50: 71 | W50: 0 | X50: 0 | Y50: 0 | Z50: 71 | AA50: 0
A51: 422801 | B51: 42280100010 | C51: 恩施市公共汽车有限责任公司 | D51: 29 | E51: 627 | F51: 0 | G51: 0 | H51: 29 | I51: 627 | J51: 5575 | K51: 836250 | L51: 0 | M51: 0 | N51: 0 | O51: 0 | P51: 0 | Q51: 0 | R51: 0 | S51: 0 | T51: 5575 | U51: 836250 | V51: 150 | W51: 0 | X51: 0 | Y51: 0 | Z51: 0 | AA51: 150
A52: 422802 | B52: 42280200001 | C52: 利川市联吉客运联营有限责任公司 | D52: 22 | E52: 272 | F52: 22 | G52: 272 | H52: 0 | I52: 0 | J52: 19128 | K52: 493503 | L52: 0 | M52: 0 | N52: 0 | O52: 0 | P52: 0 | Q52: 0 | R52: 19128 | S52: 493503 | T52: 0 | U52: 0 | V52: 26 | W52: 0 | X52: 0 | Y52: 0 | Z52: 26 | AA52: 0
A53: 422802 | B53: 42280200007 | C53: 利川市时代出租汽车有限责任公司 | D53: 64 | E53: 1718 | F53: 64 | G53: 1718 | H53: 0 | I53: 0 | J53: 72116 | K53: 2479514 | L53: 0 | M53: 0 | N53: 0 | O53: 0 | P53: 0 | Q53: 0 | R53: 72116 | S53: 2479514 | T53: 0 | U53: 0 | V53: 34 | W53: 0 | X53: 0 | Y53: 0 | Z53: 34 | AA53: 0
A54: 422823 | B54: 42282300005 | C54: 巴东县东顺伟业出租车有限责任公司 | D54: 6 | E54: 60 | F54: 6 | G54: 60 | H54: 0 | I54: 0 | J54: 785 | K54: 9323 | L54: 0 | M54: 0 | N54: 0 | O54: 0 | P54: 0 | Q54: 0 | R54: 785 | S54: 9323 | T54: 0 | U54: 0 | V54: 12 | W54: 0 | X54: 0 | Y54: 0 | Z54: 12 | AA54: 0
A55: 422825 | B55: 42282500001 | C55: 宣恩县长兴客运有限公司 | D55: 88 | E55: 2057 | F55: 87 | G55: 2023 | H55: 1 | I55: 34 | J55: 43546 | K55: 5569997 | L55: 443 | M55: 325417 | N55: 0 | O55: 0 | P55: 0 | Q55: 0 | R55: 42946 | S55: 5153520 | T55: 157 | U55: 91060 | V55: 128 | W55: 735 | X55: 0 | Y55: 0 | Z55: 120 | AA55: 580
A56: 429005 | B56: 42900500013 | C56: 湖北潜江驰宇运输有限公司 | D56: 32 | E56: 860 | F56: 29 | G56: 715 | H56: 3 | I56: 145 | J56: 4670 | K56: 184698 | L56: 930 | M56: 56506 | N56: 2620 | O56: 79595 | P56: 0 | Q56: 0 | R56: 800 | S56: 24304 | T56: 320 | U56: 24293 | V56: 40 | W56: 61 | X56: 30 | Y56: 0 | Z56: 30 | AA56: 76
A57: 429006 | B57: 42900600011 | C57: 湖北公路客运（集团）天门汉羽运输有限公司 | D57: 40 | E57: 908 | F57: 37 | G57: 763 | H57: 3 | I57: 145 | J57: 4340 | K57: 654350 | L57: 390 | M57: 146440 | N57: 2764 | O57: 396905 | P57: 0 | Q57: 0 | R57: 0 | S57: 0 | T57: 1186 | U57: 111005 | V57: 151 | W57: 375 | X57: 144 | Y57: 0 | Z57: 0 | AA57: 94
A58: 420100 | B58: 91420112725772163N | C58: 武汉永兴交通运输有限公司 | D58: 24 | E58: 612 | F58: 24 | G58: 612 | H58: 0 | I58: 0 | J58: 6583 | K58: 1024886 | L58: 0 | M58: 0 | N58: 6583 | O58: 1024886 | P58: 0 | Q58: 0 | R58: 0 | S58: 0 | T58: 0 | U58: 0 | V58: 156 | W58: 0 | X58: 156 | Y58: 0 | Z58: 0 | AA58: 0
A59: 420100 | B59: 9142011255500489XP | C59: 武汉东兴达客运有限公司 | D59: 51 | E59: 1151 | F59: 51 | G59: 1151 | H59: 0 | I59: 0 | J59: 6185 | K59: 759886 | L59: 0 | M59: 0 | N59: 6185 | O59: 759886 | P59: 0 | Q59: 0 | R59: 0 | S59: 0 | T59: 0 | U59: 0 | V59: 123 | W59: 0 | X59: 123 | Y59: 0 | Z59: 0 | AA59: 0
A60: 420100 | B60: 91420102737535579H | C60: 武汉市江滩旅游车服务集团有限公司 | D60: 107 | E60: 4353 | F60: 36 | G60: 1613 | H60: 71 | I60: 2740 | J60: 48937 | K60: 7340114 | L60: 0 | M60: 0 | N60: 40577 | O60: 3327314 | P60: 0 | Q60: 0 | R60: 0 | S60: 0 | T60: 8360 | U60: 4012800 | V60: 150 | W60: 0 | X60: 82 | Y60: 0 | Z60: 0 | AA60: 480
A61: 420100 | B61: 91420105737515543P | C61: 武汉市伟业旅游汽车有限公司 | D61: 21 | E61: 823 | F61: 0 | G61: 0 | H61: 21 | I61: 823 | J61: 15741 | K61: 3201644 | L61: 0 | M61: 0 | N61: 0 | O61: 0 | P61: 0 | Q61: 0 | R61: 0 | S61: 0 | T61: 15741 | U61: 3201644 | V61: 203 | W61: 0 | X61: 0 | Y61: 0 | Z61: 0 | AA61: 203
A62: 420100 | B62: 914201037924343671 | C62: 武汉市天运旅游客运有限公司 | D62: 23 | E62: 1023 | F62: 0 | G62: 0 | H62: 23 | I62: 1023 | J62: 2267 | K62: 1740400 | L62: 0 | M62: 0 | N62: 0 | O62: 0 | P62: 0 | Q62: 0 | R62: 0 | S62: 0 | T62: 2267 | U62: 1740400 | V62: 768 | W62: 0 | X62: 0 | Y62: 0 | Z62: 0 | AA62: 768
A63: 420100 | B63: 9142010274476162XY | C63: 武汉高氏旅游客运有限公司 | D63: 55 | E63: 2192 | F63: 0 | G63: 0 | H63: 55 | I63: 2192 | J63: 76720 | K63: 27619200 | L63: 0 | M63: 0 | N63: 0 | O63: 0 | P63: 0 | Q63: 0 | R63: 0 | S63: 0 | T63: 76720 | U63: 27619200 | V63: 360 | W63: 0 | X63: 0 | Y63: 0 | Z63: 0 | AA63: 360
A64: 420100 | B64: 914201047414075023 | C64: 武汉富华旅游汽车服务有限公司 | D64: 56 | E64: 2255 | F64: 0 | G64: 0 | H64: 56 | I64: 2255 | J64: 5865 | K64: 2569132 | L64: 0 | M64: 0 | N64: 0 | O64: 0 | P64: 0 | Q64: 0 | R64: 0 | S64: 0 | T64: 5865 | U64: 2569132 | V64: 438 | W64: 0 | X64: 0 | Y64: 0 | Z64: 0 | AA64: 438
A65: 420100 | B65: 9142010373354649XG | C65: 武汉市三缘旅游客运有限责任公司 | D65: 70 | E65: 3044 | F65: 34 | G65: 1522 | H65: 36 | I65: 1522 | J65: 21290 | K65: 4427065 | L65: 0 | M65: 0 | N65: 17005 | O65: 1810005 | P65: 0 | Q65: 0 | R65: 0 | S65: 0 | T65: 4285 | U65: 2617060 | V65: 208 | W65: 0 | X65: 106 | Y65: 0 | Z65: 0 | AA65: 611
A66: 420100 | B66: 91420102722706849K | C66: 武汉市一日游旅业有限责任公司 | D66: 41 | E66: 1693 | F66: 0 | G66: 0 | H66: 41 | I66: 1693 | J66: 1960 | K66: 42140 | L66: 0 | M66: 0 | N66: 0 | O66: 0 | P66: 0 | Q66: 0 | R66: 0 | S66: 0 | T66: 1960 | U66: 42140 | V66: 22 | W66: 0 | X66: 0 | Y66: 0 | Z66: 0 | AA66: 22
A67: 420100 | B67: 91420102675816278D | C67: 武汉市欣洪祥旅游客运服务有限公司 | D67: 21 | E67: 914 | F67: 0 | G67: 0 | H67: 21 | I67: 914 | J67: 2889 | K67: 1276550 | L67: 0 | M67: 0 | N67: 0 | O67: 0 | P67: 0 | Q67: 0 | R67: 0 | S67: 0 | T67: 2889 | U67: 1276550 | V67: 442 | W67: 0 | X67: 0 | Y67: 0 | Z67: 0 | AA67: 442
A68: 420100 | B68: 914201067963388316 | C68: 武汉宏兴泰旅游客运有限公司 | D68: 45 | E68: 1908 | F68: 0 | G68: 0 | H68: 45 | I68: 1908 | J68: 6045 | K68: 453375 | L68: 0 | M68: 0 | N68: 0 | O68: 0 | P68: 0 | Q68: 0 | R68: 0 | S68: 0 | T68: 6045 | U68: 453375 | V68: 75 | W68: 0 | X68: 0 | Y68: 0 | Z68: 0 | AA68: 75
A69: 420100 | B69: 91420106555010413D | C69: 武汉零加壹旅游客运有限公司 | D69: 44 | E69: 1716 | F69: 0 | G69: 0 | H69: 44 | I69: 1716 | J69: 11565 | K69: 3012683 | L69: 0 | M69: 0 | N69: 0 | O69: 0 | P69: 0 | Q69: 0 | R69: 0 | S69: 0 | T69: 11565 | U69: 3012683 | V69: 261 | W69: 0 | X69: 0 | Y69: 0 | Z69: 0 | AA69: 261
A70: 420100 | B70: 91420104741438552N | C70: 武汉市创业旅游汽车服务有限责任公司 | D70: 40 | E70: 1584 | F70: 0 | G70: 0 | H70: 40 | I70: 1584 | J70: 4760 | K70: 1476160 | L70: 0 | M70: 0 | N70: 0 | O70: 0 | P70: 0 | Q70: 0 | R70: 0 | S70: 0 | T70: 4760 | U70: 1476160 | V70: 310 | W70: 0 | X70: 0 | Y70: 0 | Z70: 0 | AA70: 310
A71: 420100 | B71: 91420103792431043U | C71: 武汉市国运旅游客运有限公司 | D71: 55 | E71: 2181 | F71: 0 | G71: 0 | H71: 55 | I71: 2181 | J71: 5240 | K71: 4014638 | L71: 0 | M71: 0 | N71: 0 | O71: 0 | P71: 0 | Q71: 0 | R71: 0 | S71: 0 | T71: 5240 | U71: 4014638 | V71: 766 | W71: 0 | X71: 0 | Y71: 0 | Z71: 0 | AA71: 766
A72: 420100 | B72: 91420102778172882B | C72: 武汉市宏干线公路客运有限公司 | D72: 22 | E72: 841 | F72: 22 | G72: 841 | H72: 0 | I72: 0 | J72: 27803 | K72: 5195928 | L72: 1701 | M72: 1203195 | N72: 26102 | O72: 3992733 | P72: 0 | Q72: 0 | R72: 0 | S72: 0 | T72: 0 | U72: 0 | V72: 187 | W72: 707 | X72: 153 | Y72: 0 | Z72: 0 | AA72: 0
A73: 420100 | B73: 914201007414249949 | C73: 武汉荣达汽车旅游服务有限公司 | D73: 59 | E73: 2171 | F73: 0 | G73: 0 | H73: 59 | I73: 2171 | J73: 5664 | K73: 4958000 | L73: 0 | M73: 0 | N73: 0 | O73: 0 | P73: 0 | Q73: 0 | R73: 0 | S73: 0 | T73: 5664 | U73: 4958000 | V73: 875 | W73: 0 | X73: 0 | Y73: 0 | Z73: 0 | AA73: 875
A74: 420100 | B74: 914201006953003751 | C74: 武汉乐游旅游客运有限公司 | D74: 39 | E74: 1512 | F74: 0 | G74: 0 | H74: 39 | I74: 1512 | J74: 17748 | K74: 2423315 | L74: 0 | M74: 0 | N74: 0 | O74: 0 | P74: 0 | Q74: 0 | R74: 0 | S74: 0 | T74: 17748 | U74: 2423315 | V74: 137 | W74: 0 | X74: 0 | Y74: 0 | Z74: 0 | AA74: 137
A75: 420107 | B75: 91420100751827703K | C75: 武汉石化交通运输有限公司 | D75: 0 | E75: 0 | F75: 0 | G75: 0 | H75: 0 | I75: 0 | J75: 0 | K75: 0 | L75: 0 | M75: 0 | N75: 0 | O75: 0 | P75: 0 | Q75: 0 | R75: 0 | S75: 0 | T75: 0 | U75: 0 | V75: 0 | W75: 0 | X75: 0 | Y75: 0 | Z75: 0 | AA75: 0
A76: 420100 | B76: 9142010467582186X0 | C76: 武汉全直通旅游客运有限公司 | D76: 51 | E76: 2090 | F76: 0 | G76: 0 | H76: 51 | I76: 2090 | J76: 23853 | K76: 6771530 | L76: 0 | M76: 0 | N76: 0 | O76: 0 | P76: 0 | Q76: 0 | R76: 0 | S76: 0 | T76: 23853 | U76: 6771530 | V76: 284 | W76: 0 | X76: 0 | Y76: 0 | Z76: 0 | AA76: 284
A77: 420100 | B77: 91420104333509454N | C77: 武汉稳通公路客运有限公司 | D77: 48 | E77: 1152 | F77: 48 | G77: 1152 | H77: 0 | I77: 0 | J77: 16370 | K77: 2287493 | L77: 1798 | M77: 601800 | N77: 14572 | O77: 1685693 | P77: 0 | Q77: 0 | R77: 0 | S77: 0 | T77: 0 | U77: 0 | V77: 140 | W77: 335 | X77: 116 | Y77: 0 | Z77: 0 | AA77: 0
A78: 420100 | B78: 914201007335585112 | C78: 武汉外滩旅游车服务有限公司 | D78: 58 | E78: 2215 | F78: 0 | G78: 0 | H78: 58 | I78: 2215 | J78: 7939 | K78: 1997608 | L78: 0 | M78: 0 | N78: 0 | O78: 0 | P78: 0 | Q78: 0 | R78: 0 | S78: 0 | T78: 7939 | U78: 1997608 | V78: 252 | W78: 0 | X78: 0 | Y78: 0 | Z78: 0 | AA78: 252
A79: 420100 | B79: 914201057997971791 | C79: 武汉新力量旅游客运有限公司 | D79: 63 | E79: 2788 | F79: 0 | G79: 0 | H79: 63 | I79: 2788 | J79: 11408 | K79: 2320210 | L79: 0 | M79: 0 | N79: 0 | O79: 0 | P79: 0 | Q79: 0 | R79: 0 | S79: 0 | T79: 11408 | U79: 2320210 | V79: 203 | W79: 0 | X79: 0 | Y79: 0 | Z79: 0 | AA79: 203
A80: 420100 | B80: 91420100789328088M | C80: 湖北东方国际旅行社有限公司 | D80: 39 | E80: 1652 | F80: 0 | G80: 0 | H80: 39 | I80: 1652 | J80: 28947 | K80: 3643559 | L80: 0 | M80: 0 | N80: 0 | O80: 0 | P80: 0 | Q80: 0 | R80: 0 | S80: 0 | T80: 28947 | U80: 3643559 | V80: 126 | W80: 0 | X80: 0 | Y80: 0 | Z80: 0 | AA80: 126
A81: 420103 | B81: 914200001776095247 | C81: 湖北捷龙交通运业有限公司 | D81: 72 | E81: 3456 | F81: 0 | G81: 0 | H81: 72 | I81: 3456 | J81: 71953 | K81: 5054869 | L81: 0 | M81: 0 | N81: 0 | O81: 0 | P81: 0 | Q81: 0 | R81: 0 | S81: 0 | T81: 71953 | U81: 5054869 | V81: 70 | W81: 0 | X81: 0 | Y81: 0 | Z81: 0 | AA81: 70
A82: 420100 | B82: 91420106063006477G | C82: 湖北省全日通旅游客运有限公司 | D82: 30 | E82: 1191 | F82: 0 | G82: 0 | H82: 30 | I82: 1191 | J82: 3800 | K82: 890000 | L82: 0 | M82: 0 | N82: 0 | O82: 0 | P82: 0 | Q82: 0 | R82: 0 | S82: 0 | T82: 3800 | U82: 890000 | V82: 234 | W82: 0 | X82: 0 | Y82: 0 | Z82: 0 | AA82: 234
A83: 420115 | B83: 91420115303578424A | C83: 武汉尧康公交有限公司 | D83: 0 | E83: 0 | F83: 0 | G83: 0 | H83: 0 | I83: 0 | J83: 0 | K83: 0 | L83: 0 | M83: 0 | N83: 0 | O83: 0 | P83: 0 | Q83: 0 | R83: 0 | S83: 0 | T83: 0 | U83: 0 | V83: 0 | W83: 0 | X83: 0 | Y83: 0 | Z83: 0 | AA83: 0
A84: 420200 | B84: 91420200MA48YPET1D | C84: 黄石国顺客运有限公司 | D84: 20 | E84: 867 | F84: 0 | G84: 0 | H84: 20 | I84: 867 | J84: 12382 | K84: 1727275 | L84: 0 | M84: 0 | N84: 0 | O84: 0 | P84: 0 | Q84: 0 | R84: 0 | S84: 0 | T84: 12382 | U84: 1727275 | V84: 139 | W84: 0 | X84: 0 | Y84: 0 | Z84: 0 | AA84: 139
A85: 420200 | B85: 914202005715444907 | C85: 黄石雄钢旅游客运有限公司 | D85: 21 | E85: 954 | F85: 0 | G85: 0 | H85: 21 | I85: 954 | J85: 1823 | K85: 95631 | L85: 0 | M85: 0 | N85: 0 | O85: 0 | P85: 0 | Q85: 0 | R85: 0 | S85: 0 | T85: 1823 | U85: 95631 | V85: 52 | W85: 0 | X85: 0 | Y85: 0 | Z85: 0 | AA85: 52
A86: 420200 | B86: 914202001784379633 | C86: 黄石市交通运输集团有限责任公司 | D86: 43 | E86: 1013 | F86: 42 | G86: 965 | H86: 1 | I86: 48 | J86: 10088 | K86: 1118798 | L86: 795 | M86: 450960 | N86: 4855 | O86: 383785 | P86: 4356 | Q86: 256688 | R86: 0 | S86: 0 | T86: 82 | U86: 27365 | V86: 111 | W86: 567 | X86: 79 | Y86: 59 | Z86: 0 | AA86: 334
A87: 420200 | B87: 91420200670358079Y | C87: 黄石市瑞捷贸易发展有限公司 | D87: 20 | E87: 935 | F87: 0 | G87: 0 | H87: 20 | I87: 935 | J87: 11325 | K87: 2362386 | L87: 0 | M87: 0 | N87: 0 | O87: 0 | P87: 0 | Q87: 0 | R87: 0 | S87: 0 | T87: 11325 | U87: 2362386 | V87: 209 | W87: 0 | X87: 0 | Y87: 0 | Z87: 0 | AA87: 209
A88: 420200 | B88: 91420200722096008T | C88: 黄石市华龙客运有限公司 | D88: 24 | E88: 964 | F88: 0 | G88: 0 | H88: 24 | I88: 964 | J88: 2627 | K88: 465297 | L88: 0 | M88: 0 | N88: 0 | O88: 0 | P88: 0 | Q88: 0 | R88: 0 | S88: 0 | T88: 2627 | U88: 465297 | V88: 177 | W88: 0 | X88: 0 | Y88: 0 | Z88: 0 | AA88: 177
A89: 420200 | B89: 914202005539036648 | C89: 黄石佳美汽车服务有限公司 | D89: 10 | E89: 478 | F89: 0 | G89: 0 | H89: 10 | I89: 478 | J89: 24913 | K89: 319370 | L89: 0 | M89: 0 | N89: 0 | O89: 0 | P89: 0 | Q89: 0 | R89: 0 | S89: 0 | T89: 24913 | U89: 319370 | V89: 13 | W89: 0 | X89: 0 | Y89: 0 | Z89: 0 | AA89: 13
A90: 420222 | B90: 914202227641460856 | C90: 阳新县龙港客运联合有限公司 | D90: 109 | E90: 2398 | F90: 109 | G90: 2398 | H90: 0 | I90: 0 | J90: 32100 | K90: 1460100 | L90: 0 | M90: 0 | N90: 600 | O90: 105600 | P90: 0 | Q90: 0 | R90: 31500 | S90: 1354500 | T90: 0 | U90: 0 | V90: 45 | W90: 0 | X90: 176 | Y90: 0 | Z90: 43 | AA90: 0
A91: 420222 | B91: 91420222MA48B6TE7M | C91: 阳新大地旅游客运有限公司 | D91: 20 | E91: 769 | F91: 0 | G91: 0 | H91: 20 | I91: 769 | J91: 13049 | K91: 371470 | L91: 0 | M91: 0 | N91: 0 | O91: 0 | P91: 0 | Q91: 0 | R91: 0 | S91: 0 | T91: 13049 | U91: 371470 | V91: 28 | W91: 0 | X91: 0 | Y91: 0 | Z91: 0 | AA91: 28
A92: 420222 | B92: 91420222331758094K | C92: 阳新县村村通客运有限公司 | D92: 9 | E92: 69 | F92: 9 | G92: 69 | H92: 0 | I92: 0 | J92: 4568 | K92: 68520 | L92: 0 | M92: 0 | N92: 0 | O92: 0 | P92: 0 | Q92: 0 | R92: 4568 | S92: 68520 | T92: 0 | U92: 0 | V92: 15 | W92: 0 | X92: 0 | Y92: 0 | Z92: 15 | AA92: 0
A93: 420222 | B93: 91420200MA488GLQ5W | C93: 黄石市安鑫汽车运输有限公司 | D93: 11 | E93: 298 | F93: 11 | G93: 298 | H93: 0 | I93: 0 | J93: 14725 | K93: 859790 | L93: 0 | M93: 0 | N93: 0 | O93: 0 | P93: 0 | Q93: 0 | R93: 14725 | S93: 859790 | T93: 0 | U93: 0 | V93: 58 | W93: 0 | X93: 0 | Y93: 0 | Z93: 58 | AA93: 0
A94: 420222 | B94: 91420222753424166E | C94: 阳新县隆发汽车运输有限公司 | D94: 62 | E94: 1295 | F94: 62 | G94: 1295 | H94: 0 | I94: 0 | J94: 28112 | K94: 573550 | L94: 0 | M94: 0 | N94: 0 | O94: 0 | P94: 0 | Q94: 0 | R94: 28112 | S94: 573550 | T94: 0 | U94: 0 | V94: 20 | W94: 0 | X94: 0 | Y94: 0 | Z94: 20 | AA94: 0
A95: 420222 | B95: 914202220920277446 | C95: 阳新县惠同汽车运输有限公司 | D95: 38 | E95: 855 | F95: 38 | G95: 855 | H95: 0 | I95: 0 | J95: 5782 | K95: 440068 | L95: 0 | M95: 0 | N95: 0 | O95: 0 | P95: 0 | Q95: 0 | R95: 5782 | S95: 440068 | T95: 0 | U95: 0 | V95: 76 | W95: 0 | X95: 0 | Y95: 0 | Z95: 76 | AA95: 0
A96: 420222 | B96: 9142022288156098XY | C96: 阳新县汽车运输公司 | D96: 30 | E96: 727 | F96: 30 | G96: 727 | H96: 0 | I96: 0 | J96: 25415 | K96: 685640 | L96: 0 | M96: 0 | N96: 5450 | O96: 365885 | P96: 19965 | Q96: 319755 | R96: 0 | S96: 0 | T96: 0 | U96: 0 | V96: 27 | W96: 0 | X96: 67 | Y96: 16 | Z96: 0 | AA96: 0
A97: 420222 | B97: 914202227446116138 | C97: 阳新县兴运工贸有限责任公司 | D97: 75 | E97: 1839 | F97: 75 | G97: 1839 | H97: 0 | I97: 0 | J97: 46628 | K97: 734963 | L97: 0 | M97: 0 | N97: 0 | O97: 0 | P97: 12199 | Q97: 152095 | R97: 34429 | S97: 582868 | T97: 0 | U97: 0 | V97: 16 | W97: 0 | X97: 0 | Y97: 12 | Z97: 17 | AA97: 0
A98: 420222 | B98: 91420222331831220U | C98: 阳新县百强运输有限公司 | D98: 1 | E98: 7 | F98: 1 | G98: 7 | H98: 0 | I98: 0 | J98: 24 | K98: 135 | L98: 0 | M98: 0 | N98: 0 | O98: 0 | P98: 0 | Q98: 0 | R98: 24 | S98: 135 | T98: 0 | U98: 0 | V98: 6 | W98: 0 | X98: 0 | Y98: 0 | Z98: 6 | AA98: 0
A99: 420281 | B99: 91420281582497319H | C99: 大冶市佳泰客运有限公司 | D99: 55 | E99: 1190 | F99: 55 | G99: 1190 | H99: 0 | I99: 0 | J99: 173087 | K99: 1947823 | L99: 0 | M99: 0 | N99: 0 | O99: 0 | P99: 0 | Q99: 0 | R99: 173087 | S99: 1947823 | T99: 0 | U99: 0 | V99: 11 | W99: 0 | X99: 0 | Y99: 0 | Z99: 11 | AA99: 0
A100: 420281 | B100: 91420281744649566G | C100: 大冶市安发客运有限公司 | D100: 34 | E100: 563 | F100: 34 | G100: 563 | H100: 0 | I100: 0 | J100: 7823 | K100: 134878 | L100: 0 | M100: 0 | N100: 0 | O100: 0 | P100: 403 | Q100: 7254 | R100: 7420 | S100: 127624 | T100: 0 | U100: 0 | V100: 17 | W100: 0 | X100: 0 | Y100: 18 | Z100: 17 | AA100: 0
A101: 420281 | B101: 9142028169177694XW | C101: 大冶市通达城乡运输有限公司 | D101: 16 | E101: 118 | F101: 16 | G101: 118 | H101: 0 | I101: 0 | J101: 4578 | K101: 45860 | L101: 0 | M101: 0 | N101: 0 | O101: 0 | P101: 0 | Q101: 0 | R101: 4578 | S101: 45860 | T101: 0 | U101: 0 | V101: 10 | W101: 0 | X101: 0 | Y101: 0 | Z101: 10 | AA101: 0
A102: 420281 | B102: 914202817446489181 | C102: 大冶市曙光客运有限责任公司 | D102: 19 | E102: 383 | F102: 19 | G102: 383 | H102: 0 | I102: 0 | J102: 40956 | K102: 943952 | L102: 0 | M102: 0 | N102: 0 | O102: 0 | P102: 0 | Q102: 0 | R102: 40956 | S102: 943952 | T102: 0 | U102: 0 | V102: 23 | W102: 0 | X102: 0 | Y102: 0 | Z102: 23 | AA102: 0
A103: 420281 | B103: 91420281667679111P | C103: 大冶鸿星旅游客运有限公司 | D103: 27 | E103: 1206 | F103: 0 | G103: 0 | H103: 27 | I103: 1206 | J103: 19945 | K103: 190055 | L103: 0 | M103: 0 | N103: 0 | O103: 0 | P103: 0 | Q103: 0 | R103: 0 | S103: 0 | T103: 19945 | U103: 190055 | V103: 10 | W103: 0 | X103: 0 | Y103: 0 | Z103: 0 | AA103: 10
A104: 420281 | B104: 91420281739147967U | C104: 大冶市利通客运有限公司 | D104: 44 | E104: 1176 | F104: 44 | G104: 1176 | H104: 0 | I104: 0 | J104: 119035 | K104: 1087247 | L104: 0 | M104: 0 | N104: 0 | O104: 0 | P104: 0 | Q104: 0 | R104: 119035 | S104: 1087247 | T104: 0 | U104: 0 | V104: 9 | W104: 0 | X104: 0 | Y104: 0 | Z104: 9 | AA104: 0
A105: 420281 | B105: 91420281309805392E | C105: 大冶市正大旅游客运有限公司 | D105: 33 | E105: 1302 | F105: 0 | G105: 0 | H105: 33 | I105: 1302 | J105: 7471 | K105: 301556 | L105: 0 | M105: 0 | N105: 0 | O105: 0 | P105: 0 | Q105: 0 | R105: 0 | S105: 0 | T105: 7471 | U105: 301556 | V105: 40 | W105: 0 | X105: 0 | Y105: 0 | Z105: 0 | AA105: 40
A106: 420281 | B106: 91420281751027298T | C106: 大冶市通顺汽车客运有限责任公司 | D106: 87 | E106: 2114 | F106: 87 | G106: 2114 | H106: 0 | I106: 0 | J106: 82792 | K106: 3433532 | L106: 276 | M106: 91273 | N106: 9149 | O106: 1004682 | P106: 27625 | Q106: 778817 | R106: 45742 | S106: 1558760 | T106: 0 | U106: 0 | V106: 41 | W106: 331 | X106: 110 | Y106: 28 | Z106: 34 | AA106: 0
A107: 420302 | B107: 91420300MA4873MR9F | C107: 湖北省十堰亨运集团旅游运输有限公司 | D107: 60 | E107: 2270 | F107: 16 | G107: 557 | H107: 44 | I107: 1713 | J107: 16565 | K107: 1572877 | L107: 0 | M107: 0 | N107: 0 | O107: 0 | P107: 5386 | Q107: 667705 | R107: 804 | S107: 42710 | T107: 10375 | U107: 862462 | V107: 95 | W107: 0 | X107: 0 | Y107: 124 | Z107: 53 | AA107: 83
A108: 420302 | B108: 914203007327141647 | C108: 湖北省十堰亨运集团客运有限公司十堰公司 | D108: 75 | E108: 2533 | F108: 74 | G108: 2494 | H108: 1 | I108: 39 | J108: 29239 | K108: 5465807 | L108: 2411 | M108: 736217 | N108: 2632 | O108: 888219 | P108: 24102 | Q108: 3776671 | R108: 0 | S108: 0 | T108: 94 | U108: 64700 | V108: 187 | W108: 305 | X108: 337 | Y108: 157 | Z108: 0 | AA108: 688
A109: 420322 | B109: 91420322757009365Y | C109: 郧西县杰锐达客运出租有限公司 | D109: 38 | E109: 573 | F109: 38 | G109: 573 | H109: 0 | I109: 0 | J109: 22035 | K109: 1560721 | L109: 0 | M109: 0 | N109: 0 | O109: 0 | P109: 0 | Q109: 0 | R109: 22035 | S109: 1560721 | T109: 0 | U109: 0 | V109: 71 | W109: 0 | X109: 0 | Y109: 0 | Z109: 71 | AA109: 0
A110: 420322 | B110: 91420322730880601F | C110: 湖北省十堰亨运集团客运有限责任公司郧西公司 | D110: 51 | E110: 1334 | F110: 47 | G110: 1142 | H110: 4 | I110: 192 | J110: 25272 | K110: 3857017 | L110: 1742 | M110: 1689740 | N110: 789 | O110: 260370 | P110: 16764 | Q110: 1475232 | R110: 2657 | S110: 199275 | T110: 3320 | U110: 232400 | V110: 153 | W110: 970 | X110: 330 | Y110: 88 | Z110: 75 | AA110: 70
A111: 420323 | B111: 914203237641338318 | C111: 竹山县城乡运输有限责任公司 | D111: 87 | E111: 696 | F111: 87 | G111: 696 | H111: 0 | I111: 0 | J111: 51335 | K111: 3231374 | L111: 0 | M111: 0 | N111: 0 | O111: 0 | P111: 0 | Q111: 0 | R111: 51335 | S111: 3231374 | T111: 0 | U111: 0 | V111: 63 | W111: 0 | X111: 0 | Y111: 0 | Z111: 63 | AA111: 0
A112: 420324 | B112: 91420324MA498E8B5D | C112: 湖北竹溪合众运输有限责任公司 | D112: 45 | E112: 1492 | F112: 45 | G112: 1492 | H112: 0 | I112: 0 | J112: 14594 | K112: 4630561 | L112: 2678 | M112: 2142720 | N112: 2584 | O112: 1162800 | P112: 6248 | Q112: 1124550 | R112: 3084 | S112: 200491 | T112: 0 | U112: 0 | V112: 317 | W112: 800 | X112: 450 | Y112: 180 | Z112: 65 | AA112: 0
A113: 420381 | B113: 91420381747693773N | C113: 丹江口市金轮运输有限公司 | D113: 101 | E113: 3374 | F113: 47 | G113: 1138 | H113: 54 | I113: 2236 | J113: 19576 | K113: 1844600 | L113: 258 | M113: 18445 | N113: 1310 | O113: 24156 | P113: 3551 | Q113: 239787 | R113: 7712 | S113: 431002 | T113: 6745 | U113: 1131210 | V113: 94 | W113: 71 | X113: 18 | Y113: 68 | Z113: 56 | AA113: 168
A114: 420381 | B114: 91420300MA48BQ2EXW | C114: 十堰市武当山特区金伟旅游服务有限公司 | D114: 10 | E114: 79 | F114: 0 | G114: 0 | H114: 10 | I114: 79 | J114: 680 | K114: 6920 | L114: 0 | M114: 0 | N114: 0 | O114: 0 | P114: 0 | Q114: 0 | R114: 0 | S114: 0 | T114: 680 | U114: 6920 | V114: 10 | W114: 0 | X114: 0 | Y114: 0 | Z114: 0 | AA114: 10
A115: 420381 | B115: 91420300744628239R | C115: 湖北武当山旅游股份有限公司 | D115: 137 | E115: 5262 | F115: 111 | G115: 4372 | H115: 26 | I115: 890 | J115: 98853 | K115: 4736002 | L115: 0 | M115: 0 | N115: 0 | O115: 0 | P115: 0 | Q115: 0 | R115: 98569 | S115: 4731312 | T115: 284 | U115: 4690 | V115: 48 | W115: 0 | X115: 0 | Y115: 0 | Z115: 48 | AA115: 17
A116: 420503 | B116: 91420500MA48BP5449 | C116: 宜昌捷运汽车运输有限公司 | D116: 32 | E116: 1180 | F116: 0 | G116: 0 | H116: 32 | I116: 1180 | J116: 10858 | K116: 2095594 | L116: 0 | M116: 0 | N116: 0 | O116: 0 | P116: 0 | Q116: 0 | R116: 0 | S116: 0 | T116: 10858 | U116: 2095594 | V116: 193 | W116: 0 | X116: 0 | Y116: 0 | Z116: 0 | AA116: 193
A117: 420503 | B117: 91420500550686895J | C117: 宜昌大通旅游客运有限公司 | D117: 24 | E117: 1074 | F117: 0 | G117: 0 | H117: 24 | I117: 1074 | J117: 6990 | K117: 525008 | L117: 0 | M117: 0 | N117: 0 | O117: 0 | P117: 0 | Q117: 0 | R117: 0 | S117: 0 | T117: 6990 | U117: 525008 | V117: 75 | W117: 0 | X117: 0 | Y117: 0 | Z117: 0 | AA117: 75
A118: 420502 | B118: 91420500744646410J | C118: 宜昌市希望旅游汽车服务有限公司 | D118: 23 | E118: 889 | F118: 0 | G118: 0 | H118: 23 | I118: 889 | J118: 3563 | K118: 396985 | L118: 0 | M118: 0 | N118: 0 | O118: 0 | P118: 0 | Q118: 0 | R118: 0 | S118: 0 | T118: 3563 | U118: 396985 | V118: 111 | W118: 0 | X118: 0 | Y118: 0 | Z118: 0 | AA118: 111
A119: 420504 | B119: 9142050055971264XK | C119: 宜昌市顺通旅游客运有限公司 | D119: 96 | E119: 4300 | F119: 0 | G119: 0 | H119: 96 | I119: 4300 | J119: 187932 | K119: 24611451 | L119: 0 | M119: 0 | N119: 0 | O119: 0 | P119: 0 | Q119: 0 | R119: 0 | S119: 0 | T119: 187932 | U119: 24611451 | V119: 131 | W119: 0 | X119: 0 | Y119: 0 | Z119: 0 | AA119: 131
A120: 420502 | B120: 91420500565493594C | C120: 宜昌市鑫辉旅游汽车服务有限公司 | D120: 33 | E120: 1603 | F120: 0 | G120: 0 | H120: 33 | I120: 1603 | J120: 6623 | K120: 906652 | L120: 0 | M120: 0 | N120: 0 | O120: 0 | P120: 0 | Q120: 0 | R120: 0 | S120: 0 | T120: 6623 | U120: 906652 | V120: 137 | W120: 0 | X120: 0 | Y120: 0 | Z120: 0 | AA120: 137
A121: 420502 | B121: 91420500MA48YR7C3B | C121: 宜昌乐游旅游客运有限公司 | D121: 27 | E121: 1027 | F121: 0 | G121: 0 | H121: 27 | I121: 1027 | J121: 4277 | K121: 299341 | L121: 0 | M121: 0 | N121: 0 | O121: 0 | P121: 0 | Q121: 0 | R121: 0 | S121: 0 | T121: 4277 | U121: 299341 | V121: 70 | W121: 0 | X121: 0 | Y121: 0 | Z121: 0 | AA121: 70
A122: 420502 | B122: 91420500730845929Y | C122: 宜昌市葛洲坝鹏程运输有限责任公司 | D122: 31 | E122: 1317 | F122: 21 | G122: 997 | H122: 10 | I122: 320 | J122: 12063 | K122: 496220 | L122: 0 | M122: 0 | N122: 0 | O122: 0 | P122: 0 | Q122: 0 | R122: 7625 | S122: 238590 | T122: 4438 | U122: 257630 | V122: 41 | W122: 0 | X122: 0 | Y122: 0 | Z122: 31 | AA122: 58
A123: 420502 | B123: 914205007809176017 | C123: 宜昌新世纪旅游客运有限公司 | D123: 17 | E123: 699 | F123: 0 | G123: 0 | H123: 17 | I123: 699 | J123: 2506 | K123: 507465 | L123: 0 | M123: 0 | N123: 0 | O123: 0 | P123: 0 | Q123: 0 | R123: 0 | S123: 0 | T123: 2506 | U123: 507465 | V123: 203 | W123: 0 | X123: 0 | Y123: 0 | Z123: 0 | AA123: 203
A124: 420502 | B124: 91420500591457028G | C124: 宜昌鹏程旅游客运有限公司 | D124: 22 | E124: 988 | F124: 0 | G124: 0 | H124: 22 | I124: 988 | J124: 13280 | K124: 1049470 | L124: 0 | M124: 0 | N124: 0 | O124: 0 | P124: 0 | Q124: 0 | R124: 0 | S124: 0 | T124: 13280 | U124: 1049470 | V124: 79 | W124: 0 | X124: 0 | Y124: 0 | Z124: 0 | AA124: 79
A125: 420503 | B125: 91420500568314248U | C125: 宜昌佳途旅游客运有限公司 | D125: 43 | E125: 1633 | F125: 0 | G125: 0 | H125: 43 | I125: 1633 | J125: 13556 | K125: 3143198 | L125: 0 | M125: 0 | N125: 0 | O125: 0 | P125: 0 | Q125: 0 | R125: 0 | S125: 0 | T125: 13556 | U125: 3143198 | V125: 232 | W125: 0 | X125: 0 | Y125: 0 | Z125: 0 | AA125: 232
A126: 420502 | B126: 914205007959186665 | C126: 长江三峡旅游发展有限责任公司运输分公司 | D126: 133 | E126: 6166 | F126: 0 | G126: 0 | H126: 133 | I126: 6166 | J126: 527250 | K126: 16281800 | L126: 0 | M126: 0 | N126: 0 | O126: 0 | P126: 0 | Q126: 0 | R126: 0 | S126: 0 | T126: 527250 | U126: 16281800 | V126: 31 | W126: 0 | X126: 0 | Y126: 0 | Z126: 0 | AA126: 31
A127: 420503 | B127: 9142050059715428XT | C127: 宜昌昭旅旅游运输有限公司 | D127: 23 | E127: 623 | F127: 0 | G127: 0 | H127: 23 | I127: 623 | J127: 718 | K127: 191235 | L127: 0 | M127: 0 | N127: 0 | O127: 0 | P127: 0 | Q127: 0 | R127: 0 | S127: 0 | T127: 718 | U127: 191235 | V127: 266 | W127: 0 | X127: 0 | Y127: 0 | Z127: 0 | AA127: 266
A128: 420506 | B128: 914205067570065004 | C128: 宜昌市龙兴客运有限公司 | D128: 5 | E128: 150 | F128: 5 | G128: 150 | H128: 0 | I128: 0 | J128: 7214 | K128: 72140 | L128: 0 | M128: 0 | N128: 0 | O128: 0 | P128: 0 | Q128: 0 | R128: 7214 | S128: 72140 | T128: 0 | U128: 0 | V128: 10 | W128: 0 | X128: 0 | Y128: 0 | Z128: 10 | AA128: 0
A129: 420506 | B129: 914205065942358183 | C129: 宜昌市鑫鹏旅游运输有限公司 | D129: 37 | E129: 1635 | F129: 0 | G129: 0 | H129: 37 | I129: 1635 | J129: 17665 | K129: 3497670 | L129: 0 | M129: 0 | N129: 0 | O129: 0 | P129: 0 | Q129: 0 | R129: 0 | S129: 0 | T129: 17665 | U129: 3497670 | V129: 198 | W129: 0 | X129: 0 | Y129: 0 | Z129: 0 | AA129: 198
A130: 420506 | B130: 91420506737134046M | C130: 宜昌星通客运有限责任公司 | D130: 28 | E130: 772 | F130: 28 | G130: 772 | H130: 0 | I130: 0 | J130: 23590 | K130: 825650 | L130: 0 | M130: 0 | N130: 0 | O130: 0 | P130: 0 | Q130: 0 | R130: 23590 | S130: 825650 | T130: 0 | U130: 0 | V130: 35 | W130: 0 | X130: 0 | Y130: 0 | Z130: 35 | AA130: 0
A131: 420506 | B131: 914205066951417578 | C131: 宜昌樟村坪客运服务有限公司 | D131: 5 | E131: 112 | F131: 5 | G131: 112 | H131: 0 | I131: 0 | J131: 738 | K131: 25685 | L131: 0 | M131: 0 | N131: 0 | O131: 0 | P131: 0 | Q131: 0 | R131: 738 | S131: 25685 | T131: 0 | U131: 0 | V131: 35 | W131: 0 | X131: 0 | Y131: 0 | Z131: 35 | AA131: 0
A132: 420506 | B132: 91420506741779509N | C132: 宜昌三峡运输集团有限责任公司 | D132: 2 | E132: 116 | F132: 2 | G132: 116 | H132: 0 | I132: 0 | J132: 2088 | K132: 93596 | L132: 0 | M132: 0 | N132: 0 | O132: 0 | P132: 691 | Q132: 32541 | R132: 1397 | S132: 61055 | T132: 0 | U132: 0 | V132: 45 | W132: 0 | X132: 0 | Y132: 47 | Z132: 44 | AA132: 0
A133: 420506 | B133: 91420506055446173B | C133: 宜昌运泰旅游客运有限公司 | D133: 34 | E133: 1582 | F133: 0 | G133: 0 | H133: 34 | I133: 1582 | J133: 45126 | K133: 814927 | L133: 0 | M133: 0 | N133: 0 | O133: 0 | P133: 0 | Q133: 0 | R133: 0 | S133: 0 | T133: 45126 | U133: 814927 | V133: 18 | W133: 0 | X133: 0 | Y133: 0 | Z133: 0 | AA133: 18
A134: 420506 | B134: 91420506739144336R | C134: 宜昌宝通客运有限责任公司 | D134: 9 | E134: 241 | F134: 9 | G134: 241 | H134: 0 | I134: 0 | J134: 3600 | K134: 199375 | L134: 0 | M134: 0 | N134: 0 | O134: 0 | P134: 0 | Q134: 0 | R134: 3600 | S134: 199375 | T134: 0 | U134: 0 | V134: 55 | W134: 0 | X134: 0 | Y134: 0 | Z134: 55 | AA134: 0
A135: 420506 | B135: 914205067417530343 | C135: 宜昌茶乡客运有限责任公司 | D135: 15 | E135: 430 | F135: 14 | G135: 403 | H135: 1 | I135: 27 | J135: 2780 | K135: 123868 | L135: 0 | M135: 0 | N135: 0 | O135: 0 | P135: 0 | Q135: 0 | R135: 2752 | S135: 123542 | T135: 28 | U135: 326 | V135: 45 | W135: 0 | X135: 0 | Y135: 0 | Z135: 45 | AA135: 12
A136: 420506 | B136: 91420506780930814G | C136: 宜昌恒兴客运有限责任公司 | D136: 20 | E136: 560 | F136: 20 | G136: 560 | H136: 0 | I136: 0 | J136: 11352 | K136: 511438 | L136: 0 | M136: 0 | N136: 0 | O136: 0 | P136: 0 | Q136: 0 | R136: 11352 | S136: 511438 | T136: 0 | U136: 0 | V136: 45 | W136: 0 | X136: 0 | Y136: 0 | Z136: 45 | AA136: 0
A137: 420506 | B137: 91420506182629175U | C137: 宜昌金通运输有限责任公司 | D137: 9 | E137: 209 | F137: 9 | G137: 209 | H137: 0 | I137: 0 | J137: 3956 | K137: 76324 | L137: 0 | M137: 0 | N137: 0 | O137: 0 | P137: 0 | Q137: 0 | R137: 3956 | S137: 76324 | T137: 0 | U137: 0 | V137: 19 | W137: 0 | X137: 0 | Y137: 0 | Z137: 19 | AA137: 0
A138: 420527 | B138: 91420527MA4922XJ49 | C138: 秭归县搏奕客运有限公司 | D138: 42 | E138: 1233 | F138: 32 | G138: 868 | H138: 10 | I138: 365 | J138: 8335 | K138: 536887 | L138: 0 | M138: 0 | N138: 0 | O138: 0 | P138: 1590 | Q138: 165169 | R138: 4198 | S138: 193522 | T138: 2547 | U138: 178196 | V138: 64 | W138: 0 | X138: 0 | Y138: 104 | Z138: 46 | AA138: 70
A139: 420527 | B139: 91420527MA489BU1XE | C139: 秭归县金龙客运有限责任公司旅游客运分公司 | D139: 18 | E139: 722 | F139: 0 | G139: 0 | H139: 18 | I139: 722 | J139: 2267 | K139: 27204 | L139: 0 | M139: 0 | N139: 0 | O139: 0 | P139: 0 | Q139: 0 | R139: 0 | S139: 0 | T139: 2267 | U139: 27204 | V139: 12 | W139: 0 | X139: 0 | Y139: 0 | Z139: 0 | AA139: 12
A140: 420527 | B140: 91420527082334708X | C140: 秭归县诚运客运服务有限公司 | D140: 4 | E140: 30 | F140: 4 | G140: 30 | H140: 0 | I140: 0 | J140: 8039 | K140: 182144 | L140: 0 | M140: 0 | N140: 0 | O140: 0 | P140: 0 | Q140: 0 | R140: 8039 | S140: 182144 | T140: 0 | U140: 0 | V140: 23 | W140: 0 | X140: 0 | Y140: 0 | Z140: 23 | AA140: 0
A141: 420527 | B141: 91420527066119987J | C141: 秭归县泄滩乡安通客运有限责任公司 | D141: 7 | E141: 62 | F141: 7 | G141: 62 | H141: 0 | I141: 0 | J141: 4062 | K141: 182790 | L141: 0 | M141: 0 | N141: 0 | O141: 0 | P141: 0 | Q141: 0 | R141: 4062 | S141: 182790 | T141: 0 | U141: 0 | V141: 45 | W141: 0 | X141: 0 | Y141: 0 | Z141: 45 | AA141: 0
A142: 420527 | B142: 91420527082318695M | C142: 秭归县志达客运有限责任公司 | D142: 4 | E142: 31 | F142: 4 | G142: 31 | H142: 0 | I142: 0 | J142: 1355 | K142: 73500 | L142: 0 | M142: 0 | N142: 0 | O142: 0 | P142: 0 | Q142: 0 | R142: 1355 | S142: 73500 | T142: 0 | U142: 0 | V142: 54 | W142: 0 | X142: 0 | Y142: 0 | Z142: 54 | AA142: 0
A143: 420527 | B143: 914205273260737444 | C143: 秭归县京通客运有限责任公司 | D143: 7 | E143: 57 | F143: 7 | G143: 57 | H143: 0 | I143: 0 | J143: 2125 | K143: 61843 | L143: 0 | M143: 0 | N143: 0 | O143: 0 | P143: 0 | Q143: 0 | R143: 2125 | S143: 61843 | T143: 0 | U143: 0 | V143: 29 | W143: 0 | X143: 0 | Y143: 0 | Z143: 29 | AA143: 0
A144: 420527 | B144: 9142052706066161X3 | C144: 秭归县成平客运有限责任公司 | D144: 4 | E144: 30 | F144: 4 | G144: 30 | H144: 0 | I144: 0 | J144: 2005 | K144: 67144 | L144: 0 | M144: 0 | N144: 0 | O144: 0 | P144: 0 | Q144: 0 | R144: 2005 | S144: 67144 | T144: 0 | U144: 0 | V144: 33 | W144: 0 | X144: 0 | Y144: 0 | Z144: 33 | AA144: 0
A145: 420527 | B145: 91420527726124897Q | C145: 秭归县金龙客运有限责任公司 | D145: 53 | E145: 1528 | F145: 53 | G145: 1528 | H145: 0 | I145: 0 | J145: 12414 | K145: 1058002 | L145: 0 | M145: 0 | N145: 118 | O145: 13947 | P145: 489 | Q145: 52301 | R145: 11807 | S145: 991754 | T145: 0 | U145: 0 | V145: 85 | W145: 0 | X145: 118 | Y145: 107 | Z145: 84 | AA145: 0
A146: 420527 | B146: 9142052706065150XL | C146: 秭归县金路达客运有限公司 | D146: 10 | E146: 77 | F146: 10 | G146: 77 | H146: 0 | I146: 0 | J146: 20739 | K146: 456715 | L146: 0 | M146: 0 | N146: 0 | O146: 0 | P146: 0 | Q146: 0 | R146: 20739 | S146: 456715 | T146: 0 | U146: 0 | V146: 22 | W146: 0 | X146: 0 | Y146: 0 | Z146: 22 | AA146: 0
A147: 420527 | B147: 91420527060693507X | C147: 秭归县水田坝乡吉顺客运有限公司 | D147: 1 | E147: 7 | F147: 1 | G147: 7 | H147: 0 | I147: 0 | J147: 986 | K147: 39461 | L147: 0 | M147: 0 | N147: 0 | O147: 0 | P147: 0 | Q147: 0 | R147: 986 | S147: 39461 | T147: 0 | U147: 0 | V147: 40 | W147: 0 | X147: 0 | Y147: 0 | Z147: 40 | AA147: 0
A148: 420527 | B148: 914205270606762565 | C148: 秭归县路通客运服务有限公司 | D148: 7 | E148: 51 | F148: 7 | G148: 51 | H148: 0 | I148: 0 | J148: 4124 | K148: 206200 | L148: 0 | M148: 0 | N148: 0 | O148: 0 | P148: 0 | Q148: 0 | R148: 4124 | S148: 206200 | T148: 0 | U148: 0 | V148: 50 | W148: 0 | X148: 0 | Y148: 0 | Z148: 50 | AA148: 0
A149: 420527 | B149: 914205270684171528 | C149: 秭归县九通客运有限公司 | D149: 2 | E149: 16 | F149: 2 | G149: 16 | H149: 0 | I149: 0 | J149: 1670 | K149: 62830 | L149: 0 | M149: 0 | N149: 0 | O149: 0 | P149: 0 | Q149: 0 | R149: 1670 | S149: 62830 | T149: 0 | U149: 0 | V149: 38 | W149: 0 | X149: 0 | Y149: 0 | Z149: 38 | AA149: 0
A150: 420527 | B150: 91420527MA487CDH4R | C150: 秭归县志尚客运有限公司 | D150: 5 | E150: 35 | F150: 5 | G150: 35 | H150: 0 | I150: 0 | J150: 3283 | K150: 137833 | L150: 0 | M150: 0 | N150: 0 | O150: 0 | P150: 0 | Q150: 0 | R150: 3283 | S150: 137833 | T150: 0 | U150: 0 | V150: 42 | W150: 0 | X150: 0 | Y150: 0 | Z150: 42 | AA150: 0
A151: 420528 | B151: 914205287417723902 | C151: 长阳畅通客运有限公司 | D151: 59 | E151: 1241 | F151: 59 | G151: 1241 | H151: 0 | I151: 0 | J151: 16680 | K151: 1601707 | L151: 0 | M151: 0 | N151: 49 | O151: 13524 | P151: 8238 | Q151: 790848 | R151: 8393 | S151: 797335 | T151: 0 | U151: 0 | V151: 96 | W151: 0 | X151: 276 | Y151: 96 | Z151: 95 | AA151: 0
A152: 420528 | B152: 914205287417510128 | C152: 长阳利民客运有限责任公司 | D152: 57 | E152: 1038 | F152: 57 | G152: 1038 | H152: 0 | I152: 0 | J152: 4213 | K152: 271325 | L152: 0 | M152: 0 | N152: 0 | O152: 0 | P152: 428 | Q152: 18310 | R152: 3785 | S152: 253015 | T152: 0 | U152: 0 | V152: 64 | W152: 0 | X152: 0 | Y152: 43 | Z152: 67 | AA152: 0
A153: 420529 | B153: 91420529744620691F | C153: 五峰纵横运输经营部 | D153: 8 | E153: 87 | F153: 8 | G153: 87 | H153: 0 | I153: 0 | J153: 13724 | K153: 441913 | L153: 0 | M153: 0 | N153: 0 | O153: 0 | P153: 0 | Q153: 0 | R153: 13724 | S153: 441913 | T153: 0 | U153: 0 | V153: 32 | W153: 0 | X153: 0 | Y153: 0 | Z153: 32 | AA153: 0
A154: 420529 | B154: 91420529667665828P | C154: 五峰三农客运有限公司 | D154: 37 | E154: 581 | F154: 37 | G154: 581 | H154: 0 | I154: 0 | J154: 30007 | K154: 3066715 | L154: 0 | M154: 0 | N154: 0 | O154: 0 | P154: 0 | Q154: 0 | R154: 30007 | S154: 3066715 | T154: 0 | U154: 0 | V154: 102 | W154: 0 | X154: 0 | Y154: 0 | Z154: 102 | AA154: 0
A155: 420582 | B155: 914205827371340708 | C155: 当阳市金轮运输有限责任公司 | D155: 41 | E155: 742 | F155: 41 | G155: 742 | H155: 0 | I155: 0 | J155: 74493 | K155: 3792438 | L155: 0 | M155: 0 | N155: 0 | O155: 0 | P155: 0 | Q155: 0 | R155: 74493 | S155: 3792438 | T155: 0 | U155: 0 | V155: 51 | W155: 0 | X155: 0 | Y155: 0 | Z155: 51 | AA155: 0
A156: 420582 | B156: 91420582682667944E | C156: 当阳市金埠汽车运输有限公司 | D156: 13 | E156: 304 | F156: 13 | G156: 304 | H156: 0 | I156: 0 | J156: 11627 | K156: 836849 | L156: 0 | M156: 0 | N156: 0 | O156: 0 | P156: 4679 | Q156: 538085 | R156: 6948 | S156: 298764 | T156: 0 | U156: 0 | V156: 72 | W156: 0 | X156: 0 | Y156: 115 | Z156: 43 | AA156: 0
A157: 420583 | B157: 91420583760697808H | C157: 枝江畅通汽车客运有限责任公司 | D157: 23 | E157: 393 | F157: 23 | G157: 393 | H157: 0 | I157: 0 | J157: 34261 | K157: 2501053 | L157: 0 | M157: 0 | N157: 0 | O157: 0 | P157: 34261 | Q157: 2501053 | R157: 0 | S157: 0 | T157: 0 | U157: 0 | V157: 73 | W157: 0 | X157: 0 | Y157: 73 | Z157: 0 | AA157: 0
A158: 420583 | B158: 91420583741767217T | C158: 枝江市双枝客运有限责任公司 | D158: 16 | E158: 219 | F158: 16 | G158: 219 | H158: 0 | I158: 0 | J158: 30321 | K158: 1697976 | L158: 0 | M158: 0 | N158: 0 | O158: 0 | P158: 30321 | Q158: 1697976 | R158: 0 | S158: 0 | T158: 0 | U158: 0 | V158: 56 | W158: 0 | X158: 0 | Y158: 56 | Z158: 0 | AA158: 0
A159: 420583 | B159: 91420583682684111W | C159: 枝江市洲通客运有限公司 | D159: 8 | E159: 119 | F159: 8 | G159: 119 | H159: 0 | I159: 0 | J159: 9037 | K159: 243999 | L159: 0 | M159: 0 | N159: 0 | O159: 0 | P159: 0 | Q159: 0 | R159: 9037 | S159: 243999 | T159: 0 | U159: 0 | V159: 27 | W159: 0 | X159: 0 | Y159: 0 | Z159: 27 | AA159: 0
A160: 420602 | B160: 914206007371122500 | C160: 襄阳运鑫实业有限公司 | D160: 26 | E160: 827 | F160: 26 | G160: 827 | H160: 0 | I160: 0 | J160: 22808 | K160: 2068344 | L160: 0 | M160: 0 | N160: 7956 | O160: 1033125 | P160: 14852 | Q160: 1035219 | R160: 0 | S160: 0 | T160: 0 | U160: 0 | V160: 91 | W160: 0 | X160: 130 | Y160: 70 | Z160: 0 | AA160: 0
A161: 420602 | B161: 914206001793158109 | C161: 湖北神州运业集团有限公司 | D161: 118 | E161: 3425 | F161: 97 | G161: 2453 | H161: 21 | I161: 972 | J161: 40596 | K161: 5644235 | L161: 157 | M161: 62486 | N161: 15103 | O161: 3428471 | P161: 25212 | Q161: 2117814 | R161: 0 | S161: 0 | T161: 124 | U161: 35464 | V161: 139 | W161: 398 | X161: 227 | Y161: 84 | Z161: 0 | AA161: 286
A162: 420607 | B162: 91420607773907261R | C162: 襄阳运通运输有限公司 | D162: 13 | E162: 366 | F162: 13 | G162: 366 | H162: 0 | I162: 0 | J162: 5864 | K162: 158907 | L162: 0 | M162: 0 | N162: 0 | O162: 0 | P162: 0 | Q162: 0 | R162: 5864 | S162: 158907 | T162: 0 | U162: 0 | V162: 27 | W162: 0 | X162: 0 | Y162: 0 | Z162: 27 | AA162: 0
A163: 420607 | B163: 914206077674326509 | C163: 湖北襄阳安达运输有限责任公司 | D163: 30 | E163: 1162 | F163: 30 | G163: 1162 | H163: 0 | I163: 0 | J163: 36116 | K163: 5432953 | L163: 2998 | M163: 3356400 | N163: 0 | O163: 0 | P163: 33118 | Q163: 2076553 | R163: 0 | S163: 0 | T163: 0 | U163: 0 | V163: 150 | W163: 1120 | X163: 0 | Y163: 63 | Z163: 0 | AA163: 0
A164: 420624 | B164: 91420600737149600B | C164: 湖北神州运业集团南漳水镜运输有限公司 | D164: 119 | E164: 3508 | F164: 113 | G164: 3293 | H164: 6 | I164: 215 | J164: 220894 | K164: 8972324 | L164: 0 | M164: 0 | N164: 1524 | O164: 367236 | P164: 28261 | Q164: 1243516 | R164: 188185 | S164: 7151044 | T164: 2924 | U164: 210528 | V164: 41 | W164: 0 | X164: 241 | Y164: 44 | Z164: 38 | AA164: 72
A165: 420626 | B165: 9142062617981154XT | C165: 保康县楚通客运有限公司 | D165: 38 | E165: 1147 | F165: 33 | G165: 969 | H165: 5 | I165: 178 | J165: 52948 | K165: 4505602 | L165: 953 | M165: 109607 | N165: 5821 | O165: 989070 | P165: 24012 | Q165: 2201104 | R165: 21992 | S165: 1164516 | T165: 170 | U165: 41305 | V165: 85 | W165: 115 | X165: 170 | Y165: 92 | Z165: 53 | AA165: 243
A166: 420626 | B166: 91420626747662221B | C166: 保康县神通客运有限公司 | D166: 26 | E166: 642 | F166: 26 | G166: 642 | H166: 0 | I166: 0 | J166: 26700 | K166: 1735500 | L166: 0 | M166: 0 | N166: 0 | O166: 0 | P166: 0 | Q166: 0 | R166: 26700 | S166: 1735500 | T166: 0 | U166: 0 | V166: 65 | W166: 0 | X166: 0 | Y166: 0 | Z166: 65 | AA166: 0
A167: 420683 | B167: 760695431 | C167: 枣阳市安达运业有限公司 | D167: 14 | E167: 340 | F167: 14 | G167: 340 | H167: 0 | I167: 0 | J167: 7842 | K167: 397114 | L167: 0 | M167: 0 | N167: 0 | O167: 0 | P167: 0 | Q167: 0 | R167: 7842 | S167: 397114 | T167: 0 | U167: 0 | V167: 51 | W167: 0 | X167: 0 | Y167: 0 | Z167: 51 | AA167: 0
A168: 420683 | B168: 76066968X | C168: 枣阳市宏达客运有限公司 | D168: 16 | E168: 367 | F168: 16 | G168: 367 | H168: 0 | I168: 0 | J168: 6632 | K168: 146445 | L168: 0 | M168: 0 | N168: 0 | O168: 0 | P168: 0 | Q168: 0 | R168: 6632 | S168: 146445 | T168: 0 | U168: 0 | V168: 22 | W168: 0 | X168: 0 | Y168: 0 | Z168: 22 | AA168: 0
A169: 420683 | B169: 91420683737915141X | C169: 枣阳金利客运有限责任公司 | D169: 27 | E169: 946 | F169: 27 | G169: 946 | H169: 0 | I169: 0 | J169: 58618 | K169: 3182448 | L169: 1890 | M169: 399656 | N169: 5617 | O169: 1212179 | P169: 4481 | Q169: 511868 | R169: 46630 | S169: 1058745 | T169: 0 | U169: 0 | V169: 54 | W169: 211 | X169: 216 | Y169: 114 | Z169: 23 | AA169: 0
A170: 420683 | B170: 91420683753442137F | C170: 枣阳市益成运输有限公司 | D170: 7 | E170: 184 | F170: 7 | G170: 184 | H170: 0 | I170: 0 | J170: 5451 | K170: 158721 | L170: 0 | M170: 0 | N170: 0 | O170: 0 | P170: 0 | Q170: 0 | R170: 5451 | S170: 158721 | T170: 0 | U170: 0 | V170: 29 | W170: 0 | X170: 0 | Y170: 0 | Z170: 29 | AA170: 0
A171: 420683 | B171: 91420683326110912W | C171: 枣阳市凯杰运输有限公司 | D171: 11 | E171: 219 | F171: 11 | G171: 219 | H171: 0 | I171: 0 | J171: 25267 | K171: 960146 | L171: 0 | M171: 0 | N171: 0 | O171: 0 | P171: 0 | Q171: 0 | R171: 25267 | S171: 960146 | T171: 0 | U171: 0 | V171: 38 | W171: 0 | X171: 0 | Y171: 0 | Z171: 38 | AA171: 0
A172: 420683 | B172: 91420683MA48BG590U | C172: 枣阳恒盛达运业有限公司 | D172: 14 | E172: 358 | F172: 14 | G172: 358 | H172: 0 | I172: 0 | J172: 4296 | K172: 177301 | L172: 0 | M172: 0 | N172: 0 | O172: 0 | P172: 0 | Q172: 0 | R172: 4296 | S172: 177301 | T172: 0 | U172: 0 | V172: 41 | W172: 0 | X172: 0 | Y172: 0 | Z172: 41 | AA172: 0
A173: 420683 | B173: 91420683055404029B | C173: 枣阳市鑫俊运输有限公司 | D173: 25 | E173: 1004 | F173: 0 | G173: 0 | H173: 25 | I173: 1004 | J173: 15121 | K173: 2945781 | L173: 0 | M173: 0 | N173: 0 | O173: 0 | P173: 0 | Q173: 0 | R173: 0 | S173: 0 | T173: 15121 | U173: 2945781 | V173: 195 | W173: 0 | X173: 0 | Y173: 0 | Z173: 0 | AA173: 195
A174: 420683 | B174: 91420683751032716X | C174: 枣阳市宏兴运输有限公司 | D174: 98 | E174: 3608 | F174: 62 | G174: 2037 | H174: 36 | I174: 1571 | J174: 56672 | K174: 3391873 | L174: 3784 | M174: 401772 | N174: 42431 | O174: 2526041 | P174: 8426 | Q174: 241144 | R174: 0 | S174: 0 | T174: 2031 | U174: 222916 | V174: 60 | W174: 106 | X174: 60 | Y174: 29 | Z174: 0 | AA174: 110
A175: 420683 | B175: 91420683050009951k | C175: 枣阳市绿景客运有限公司 | D175: 12 | E175: 243 | F175: 12 | G175: 243 | H175: 0 | I175: 0 | J175: 3123 | K175: 87581 | L175: 0 | M175: 0 | N175: 0 | O175: 0 | P175: 0 | Q175: 0 | R175: 3123 | S175: 87581 | T175: 0 | U175: 0 | V175: 28 | W175: 0 | X175: 0 | Y175: 0 | Z175: 28 | AA175: 0
A176: 420684 | B176: 91420684732707589J | C176: 宜城市顺达汽车运输有限公司 | D176: 83 | E176: 2103 | F176: 81 | G176: 2007 | H176: 2 | I176: 96 | J176: 88297 | K176: 4146483 | L176: 0 | M176: 0 | N176: 4148 | O176: 886044 | P176: 33830 | Q176: 1603075 | R176: 43354 | S176: 770459 | T176: 6965 | U176: 886905 | V176: 47 | W176: 0 | X176: 214 | Y176: 47 | Z176: 18 | AA176: 127
A177: 420700 | B177: 914207007674431737 | C177: 鄂州市华铭旅游客运有限公司 | D177: 46 | E177: 2095 | F177: 0 | G177: 0 | H177: 46 | I177: 2095 | J177: 40624 | K177: 2234320 | L177: 0 | M177: 0 | N177: 0 | O177: 0 | P177: 0 | Q177: 0 | R177: 0 | S177: 0 | T177: 40624 | U177: 2234320 | V177: 55 | W177: 0 | X177: 0 | Y177: 0 | Z177: 0 | AA177: 55
A178: 420700 | B178: 91420700714682592W | C178: 鄂州市华联客运有限公司 | D178: 14 | E178: 427 | F178: 12 | G178: 360 | H178: 2 | I178: 67 | J178: 58697 | K178: 1018311 | L178: 0 | M178: 0 | N178: 0 | O178: 0 | P178: 50892 | Q178: 1006255 | R178: 0 | S178: 0 | T178: 7805 | U178: 12056 | V178: 17 | W178: 0 | X178: 0 | Y178: 20 | Z178: 0 | AA178: 2
A179: 420700 | B179: 91420700739131981P | C179: 鄂州市大兴联运有限责任公司 | D179: 3 | E179: 57 | F179: 3 | G179: 57 | H179: 0 | I179: 0 | J179: 3252 | K179: 128584 | L179: 0 | M179: 0 | N179: 0 | O179: 0 | P179: 0 | Q179: 0 | R179: 3252 | S179: 128584 | T179: 0 | U179: 0 | V179: 40 | W179: 0 | X179: 0 | Y179: 0 | Z179: 40 | AA179: 0
A180: 420700 | B180: 9142070078815141XE | C180: 鄂州市英发客运有限公司 | D180: 14 | E180: 297 | F180: 14 | G180: 297 | H180: 0 | I180: 0 | J180: 15300 | K180: 158000 | L180: 0 | M180: 0 | N180: 0 | O180: 0 | P180: 0 | Q180: 0 | R180: 15300 | S180: 158000 | T180: 0 | U180: 0 | V180: 10 | W180: 0 | X180: 0 | Y180: 0 | Z180: 10 | AA180: 0
A181: 420700 | B181: 914207007606760549 | C181: 鄂州市顺安旅游客运有限公司 | D181: 57 | E181: 1723 | F181: 37 | G181: 900 | H181: 20 | I181: 823 | J181: 115327 | K181: 4703867 | L181: 0 | M181: 0 | N181: 0 | O181: 0 | P181: 43646 | Q181: 1183041 | R181: 23595 | S181: 287359 | T181: 48086 | U181: 3233467 | V181: 41 | W181: 0 | X181: 0 | Y181: 27 | Z181: 12 | AA181: 67
A182: 420702 | B182: 91420700757014412J | C182: 鄂州市强盛旅游客运有限公司 | D182: 11 | E182: 209 | F182: 11 | G182: 209 | H182: 0 | I182: 0 | J182: 32774 | K182: 750606 | L182: 0 | M182: 0 | N182: 0 | O182: 0 | P182: 29651 | Q182: 687953 | R182: 3123 | S182: 62653 | T182: 0 | U182: 0 | V182: 23 | W182: 0 | X182: 0 | Y182: 23 | Z182: 20 | AA182: 0
A183: 420704 | B183: 9142070058248354XQ | C183: 鄂州市傲龙客运有限责任公司 | D183: 0 | E183: 0 | F183: 0 | G183: 0 | H183: 0 | I183: 0 | J183: 0 | K183: 0 | L183: 0 | M183: 0 | N183: 0 | O183: 0 | P183: 0 | Q183: 0 | R183: 0 | S183: 0 | T183: 0 | U183: 0 | V183: 0 | W183: 0 | X183: 0 | Y183: 0 | Z183: 0 | AA183: 0
A184: 420704 | B184: 91420700691767891L | C184: 鄂州市银顺运输有限责任公司 | D184: 1 | E184: 9 | F184: 1 | G184: 9 | H184: 0 | I184: 0 | J184: 518 | K184: 3626 | L184: 0 | M184: 0 | N184: 0 | O184: 0 | P184: 0 | Q184: 0 | R184: 518 | S184: 3626 | T184: 0 | U184: 0 | V184: 7 | W184: 0 | X184: 0 | Y184: 0 | Z184: 7 | AA184: 0
A185: 420800 | B185: 91420800726134462J | C185: 荆门市富鑫运输服务有限公司 | D185: 74 | E185: 1327 | F185: 74 | G185: 1327 | H185: 0 | I185: 0 | J185: 13337 | K185: 682855 | L185: 0 | M185: 0 | N185: 4826 | O185: 337820 | P185: 4715 | Q185: 212175 | R185: 3796 | S185: 132860 | T185: 0 | U185: 0 | V185: 51 | W185: 0 | X185: 70 | Y185: 45 | Z185: 35 | AA185: 0
A186: 420602 | B186: 91420600573705454x | C186: 襄阳恒达运业有限公司 | D186: 0 | E186: 0 | F186: 0 | G186: 0 | H186: 0 | I186: 0 | J186: 0 | K186: 0 | L186: 0 | M186: 0 | N186: 0 | O186: 0 | P186: 0 | Q186: 0 | R186: 0 | S186: 0 | T186: 0 | U186: 0 | V186: 0 | W186: 0 | X186: 0 | Y186: 0 | Z186: 0 | AA186: 0
A187: 420800 | B187: 91420800798782194D | C187: 湖北荆门华凯旅游运输有限公司 | D187: 7 | E187: 293 | F187: 0 | G187: 0 | H187: 7 | I187: 293 | J187: 1200 | K187: 397912 | L187: 0 | M187: 0 | N187: 0 | O187: 0 | P187: 0 | Q187: 0 | R187: 0 | S187: 0 | T187: 1200 | U187: 397912 | V187: 332 | W187: 0 | X187: 0 | Y187: 0 | Z187: 0 | AA187: 332
A188: 420802 | B188: 9142080088022997X5 | C188: 荆门市东通汽车运输有限公司 | D188: 18 | E188: 234 | F188: 18 | G188: 234 | H188: 0 | I188: 0 | J188: 9269 | K188: 232212 | L188: 0 | M188: 0 | N188: 0 | O188: 0 | P188: 7323 | Q188: 203785 | R188: 1946 | S188: 28427 | T188: 0 | U188: 0 | V188: 25 | W188: 0 | X188: 0 | Y188: 28 | Z188: 15 | AA188: 0
A189: 420802 | B189: 9142080076410212X7 | C189: 荆门市金马客运有限公司 | D189: 25 | E189: 971 | F189: 13 | G189: 521 | H189: 12 | I189: 450 | J189: 6854 | K189: 836586 | L189: 0 | M189: 0 | N189: 0 | O189: 0 | P189: 0 | Q189: 0 | R189: 4969 | S189: 124225 | T189: 1885 | U189: 712361 | V189: 122 | W189: 0 | X189: 0 | Y189: 0 | Z189: 25 | AA189: 378
A190: 420802 | B190: 91420800706927094K | C190: 荆门市仙居客运有限责任公司 | D190: 14 | E190: 382 | F190: 14 | G190: 382 | H190: 0 | I190: 0 | J190: 7875 | K190: 226916 | L190: 0 | M190: 0 | N190: 0 | O190: 0 | P190: 0 | Q190: 0 | R190: 7875 | S190: 226916 | T190: 0 | U190: 0 | V190: 29 | W190: 0 | X190: 0 | Y190: 0 | Z190: 29 | AA190: 0
A191: 420821 | B191: 91420821722016311M | C191: 京山市福刚公共汽车有限责任公司 | D191: 78 | E191: 1602 | F191: 78 | G191: 1602 | H191: 0 | I191: 0 | J191: 49758 | K191: 1741530 | L191: 0 | M191: 0 | N191: 0 | O191: 0 | P191: 0 | Q191: 0 | R191: 49758 | S191: 1741530 | T191: 0 | U191: 0 | V191: 35 | W191: 0 | X191: 0 | Y191: 0 | Z191: 35 | AA191: 0
A192: 420821 | B192: 91420821760655640R | C192: 京山京杨客运有限责任公司 | D192: 16 | E192: 304 | F192: 16 | G192: 304 | H192: 0 | I192: 0 | J192: 14300 | K192: 643500 | L192: 0 | M192: 0 | N192: 0 | O192: 0 | P192: 0 | Q192: 0 | R192: 14300 | S192: 643500 | T192: 0 | U192: 0 | V192: 45 | W192: 0 | X192: 0 | Y192: 0 | Z192: 45 | AA192: 0
A193: 420821 | B193: 91420821757007984W | C193: 京山京顺汽车运输有限公司 | D193: 70 | E193: 1318 | F193: 70 | G193: 1318 | H193: 0 | I193: 0 | J193: 66769 | K193: 3339786 | L193: 0 | M193: 0 | N193: 0 | O193: 0 | P193: 0 | Q193: 0 | R193: 66769 | S193: 3339786 | T193: 0 | U193: 0 | V193: 50 | W193: 0 | X193: 0 | Y193: 0 | Z193: 50 | AA193: 0
A194: 420821 | B194: 914208217606651794 | C194: 京山春风汽运有限公司 | D194: 57 | E194: 1399 | F194: 57 | G194: 1399 | H194: 0 | I194: 0 | J194: 16180 | K194: 2219545 | L194: 624 | M194: 386880 | N194: 12196 | O194: 1756225 | P194: 560 | Q194: 25200 | R194: 2800 | S194: 51240 | T194: 0 | U194: 0 | V194: 137 | W194: 620 | X194: 144 | Y194: 45 | Z194: 18 | AA194: 0
A195: 420822 | B195: 784494343 | C195: 荆门市建平运输有限公司 | D195: 34 | E195: 476 | F195: 23 | G195: 377 | H195: 11 | I195: 99 | J195: 5032 | K195: 210668 | L195: 0 | M195: 0 | N195: 4018 | O195: 150611 | P195: 0 | Q195: 0 | R195: 0 | S195: 0 | T195: 1014 | U195: 60057 | V195: 42 | W195: 0 | X195: 37 | Y195: 0 | Z195: 0 | AA195: 59
A196: 420881 | B196: 91420881691792763L | C196: 钟祥市恒通运业有限公司 | D196: 15 | E196: 278 | F196: 15 | G196: 278 | H196: 0 | I196: 0 | J196: 17224 | K196: 428147 | L196: 0 | M196: 0 | N196: 17224 | O196: 428147 | P196: 0 | Q196: 0 | R196: 0 | S196: 0 | T196: 0 | U196: 0 | V196: 25 | W196: 0 | X196: 25 | Y196: 0 | Z196: 0 | AA196: 0
A197: 420881 | B197: 91420881182071028T | C197: 钟祥市同安汽车运输有限责任公司 | D197: 10 | E197: 190 | F197: 10 | G197: 190 | H197: 0 | I197: 0 | J197: 3601 | K197: 64818 | L197: 0 | M197: 0 | N197: 0 | O197: 0 | P197: 0 | Q197: 0 | R197: 3601 | S197: 64818 | T197: 0 | U197: 0 | V197: 18 | W197: 0 | X197: 0 | Y197: 0 | Z197: 18 | AA197: 0
A198: 420881 | B198: 9142088169511234XP | C198: 钟祥市圣达运业有限公司 | D198: 13 | E198: 344 | F198: 13 | G198: 344 | H198: 0 | I198: 0 | J198: 3040 | K198: 74121 | L198: 0 | M198: 0 | N198: 1688 | O198: 43695 | P198: 1352 | Q198: 30426 | R198: 0 | S198: 0 | T198: 0 | U198: 0 | V198: 24 | W198: 0 | X198: 26 | Y198: 23 | Z198: 0 | AA198: 0
A199: 420881 | B199: 91420881182082675P | C199: 钟祥市客店汽车运输有限责任公司 | D199: 0 | E199: 0 | F199: 0 | G199: 0 | H199: 0 | I199: 0 | J199: 0 | K199: 0 | L199: 0 | M199: 0 | N199: 0 | O199: 0 | P199: 0 | Q199: 0 | R199: 0 | S199: 0 | T199: 0 | U199: 0 | V199: 0 | W199: 0 | X199: 0 | Y199: 0 | Z199: 0 | AA199: 0
A200: 420881 | B200: 914208816917617131 | C200: 湖北省钟祥市安达客运有限公司 | D200: 4 | E200: 120 | F200: 4 | G200: 120 | H200: 0 | I200: 0 | J200: 3088 | K200: 157488 | L200: 0 | M200: 0 | N200: 3088 | O200: 157488 | P200: 0 | Q200: 0 | R200: 0 | S200: 0 | T200: 0 | U200: 0 | V200: 51 | W200: 0 | X200: 51 | Y200: 0 | Z200: 0 | AA200: 0
... 570 more rows

Sheet 运政车辆数
A1: 企业代码 | B1: 企业名称 | C1: 车辆数 | D1: 载客位数
A2: 42020000016 | B2: 黄石市城市公交集团有限公司 | C2: 21 | D2: 877
A3: 42030000002 | B3: 十堰市交通经济开发有限公司 | C3: 44 | D3: 1732
A4: 42030300002 | B4: 十堰市城市公交集团有限公司 | C4: 32 | D4: 1483
A5: 42030400001 | B5: 郧县天鸿汽车运输有限公司 | C5: 56 | D5: 1984
A6: 42032300005 | B6: 湖北省十堰亨运集团竹山有限责任公司 | C6: 34 | D6: 1319
A7: 42032500004 | B7: 房县恒通发展有限责任公司 | C7: 130 | D7: 3321
A8: 42038100002 | B8: 湖北省十堰亨运集团武当山旅游运输有限公司 | C8: 27 | D8: 1303
A9: 42038100003 | B9: 丹江口市公共汽车公司 | C9: 22 | D9: 963
A10: 42050600001 | B10: 宜昌恒升客运联营有限公司 | C10: 2 | D10: 64
A11: 42052500002 | B11: 宜昌三峡运输集团远安县畅通汽车客运有限公司 | C11: 43 | D11: 1240
A12: 42052500003 | B12: 远安县全运公共交通运输有限公司 | C12: 12 | D12: 246
A13: 42052600004 | B13: 宜昌交运集团兴山客运有限公司 | C13: 33 | D13: 1095
A14: 42052700017 | B14: 宜昌交运集团秭归客运有限公司 | C14: 13 | D14: 507
A15: 42052900001 | B15: 宜昌交运集团五峰客运有限公司 | C15: 21 | D15: 499
A16: 42058100006 | B16: 宜昌交运集团宜都客运有限公司 | C16: 26 | D16: 720
A17: 42058200007 | B17: 当阳市永生汽车运输有限公司 | C17: 60 | D17: 1661
A18: 42058300005 | B18: 枝江市安捷交通运输有限责任公司 | C18: 23 | D18: 575
A19: 42060000024 | B19: 襄阳四海联托运有限责任公司 | C19: 40 | D19: 1263
A20: 42062500003 | B20: 谷城县公共交通运输集团有限公司 | C20: 53 | D20: 1867
A21: 42068200005 | B21: 老河口市顺通运业有限责任公司 | C21: 154 | D21: 5292
A22: 42068300005 | B22: 枣阳市四达汽车运输有限公司 | C22: 27 | D22: 1863
A23: 42070000006 | B23: 鄂州市华松汽车客运有限公司 | C23: 18 | D23: 794
A24: 42070000007 | B24: 鄂州市交通发展有限公司 | C24: 93 | D24: 2749
A25: 42070000009 | B25: 鄂州市大鹏客运有限公司 | C25: 10 | D25: 743
A26: 42080000002 | B26: 荆门市五三易达汽车运输有限公司 | C26: 16 | D26: 436
A27: 42080400001 | B27: 荆门万里交通建设有限公司 | C27: 52 | D27: 2116
A28: 42088100009 | B28: 湖北省钟祥宇风运业有限公司 | C28: 2 | D28: 64
A29: 42090100001 | B29: 孝感汽车客运集团有限公司 | C29: 53 | D29: 1253
A30: 42092100004 | B30: 孝昌县裕通汽车运输有限责任公司 | C30: 27 | D30: 926
A31: 42092200002 | B31: 大悟交运汽车运输有限公司 | C31: 41 | D31: 1220
A32: 42092300003 | B32: 云梦县永泰汽车客运有限公司 | C32: 95 | D32: 2070
A33: 42098100003 | B33: 应城市众达公共交通有限公司 | C33: 7 | D33: 119
A34: 42098100005 | B34: 应城八达运输有限公司 | C34: 54 | D34: 1117
A35: 42098400003 | B35: 汉川盛达客运有限公司 | C35: 43 | D35: 1674
A36: 42100000002 | B36: 荆州先行运输集团有限公司 | C36: 185 | D36: 5156
A37: 42102300030 | B37: 监利市汽车运输总公司 | C37: 113 | D37: 2417
A38: 42108100015 | B38: 石首市幸福汽车客运有限公司 | C38: 51 | D38: 988
A39: 42108300037 | B39: 洪湖市运通汽车运输有限责任公司 | C39: 36 | D39: 1155
A40: 42112400004 | B40: 黄冈市东方运输集团英山全顺有限公司 | C40: 45 | D40: 1441
A41: 42112600021 | B41: 蕲春县东昌汽车运输有限公司 | C41: 5 | D41: 170
A42: 42118200012 | B42: 武穴市公共汽车公司 | C42: 5 | D42: 92
A43: 42122100005 | B43: 嘉鱼交通建设集团鸿昌客运有限公司 | C43: 57 | D43: 2444
A44: 42122200003 | B44: 湖北咸宁咸运集团通城恒通运输有限公司 | C44: 94 | D44: 1773
A45: 42122300003 | B45: 湖北咸宁咸运集团崇阳天成运输有限公司 | C45: 38 | D45: 1304
A46: 42122400002 | B46: 通山县宏发出租车有限公司 | D46: 125
A47: 42122400003 | B47: 湖北咸宁咸运集团通山奔阳运输有限公司 | C47: 44 | D47: 1316
A48: 42130300005 | B48: 随州市公共交通有限责任公司 | C48: 7 | D48: 276
A49: 42138100008 | B49: 广水市恒泰汽车运输有限责任公司 | C49: 133 | D49: 3456
A50: 42280100005 | B50: 恩施市双龙客运有限公司 | C50: 37 | D50: 455
A51: 42280100010 | B51: 恩施市公共汽车有限责任公司 | C51: 29 | D51: 627
A52: 42280200001 | B52: 利川市联吉客运联营有限责任公司 | C52: 22 | D52: 272
A53: 42280200007 | B53: 利川市时代出租汽车有限责任公司 | C53: 64 | D53: 2698
A54: 42282300005 | B54: 巴东县东顺伟业出租车有限责任公司 | C54: 6 | D54: 410
A55: 42282500001 | B55: 宣恩县长兴客运有限公司 | C55: 88 | D55: 2104
A56: 42900500013 | B56: 湖北潜江驰宇运输有限公司 | C56: 32 | D56: 860
A57: 42900600011 | B57: 湖北公路客运（集团）天门汉羽运输有限公司 | C57: 42 | D57: 997
A58: 76066968X | B58: 枣阳市宏达客运有限公司 | C58: 16 | D58: 367
A59: 760695431 | B59: 枣阳市安达运业有限公司 | C59: 14 | D59: 340
A60: 784494343 | B60: 荆门市建平运输有限公司 | C60: 34 | D60: 476
A61: 91420000177604168W | B61: 湖北汽车工业进出口有限责任公司 | C61: 63 | D61: 2949
A62: 914200001776095247 | B62: 湖北捷龙交通运业有限公司 | C62: 72 | D62: 3556
A63: 914200007068019184 | B63: 湖北永通运输股份有限公司 | C63: 153 | D63: 4248
A64: 914201000557339572 | B64: 武汉暴风城物流有限公司 | C64: 10 | D64: 489
A65: 914201000630449916 | B65: 武汉远成宏运汽车服务有限公司 | C65: 22 | D65: 871
A66: 91420100303659697Q | B66: 武汉弛力汽车服务有限公司 | C66: 12 | D66: 576
A67: 914201005519761659 | B67: 武汉捷安顺达汽车服务有限公司 | C67: 25 | D67: 1103
A68: 914201005655611472 | B68: 武汉市浩程旅游客运有限公司 | C68: 71 | D68: 3131
A69: 914201005910523545 | B69: 武汉鑫乐驰通勤服务有限公司 | C69: 10 | D69: 423
A70: 91420100591093498H | B70: 武汉顺福隆通勤汽车服务有限公司 | C70: 12 | D70: 547
A71: 91420100682302849G | B71: 武汉易达顺汽车服务有限公司 | C71: 15 | D71: 599
A72: 914201006953003751 | B72: 武汉乐游旅游客运有限公司 | C72: 39 | D72: 1512
A73: 914201007335585112 | B73: 武汉外滩旅游车服务有限公司 | C73: 58 | D73: 2215
A74: 914201007414249949 | B74: 武汉荣达汽车旅游服务有限公司 | C74: 59 | D74: 2171
A75: 91420100744754892Y | B75: 湖北公路客运集团股份有限公司旅游运输分公司 | C75: 7 | D75: 205
A76: 91420100751827703K | B76: 武汉石化交通运输有限公司 | C76: 10 | D76: 527
A77: 91420100789328088M | B77: 湖北东方国际旅行社有限公司 | C77: 39 | D77: 1652
A78: 91420100796320930G | B78: 武汉市铁龙通勤汽车服务有限公司 | C78: 196 | D78: 8992
A79: 91420100MA49AWX04P | B79: 湖北三源互通科技有限公司 | C79: 23 | D79: 590
A80: 91420100MA49KLU18M | B80: 武汉吟海通达汽车服务有限公司 | C80: 11 | D80: 508
A81: 91420100MA4KXMG55G | B81: 武汉言智行汽车服务有限公司 | C81: 10 | D81: 480
A82: 91420100MAC8X3RA85 | B82: 湖北新角色出行服务有限公司 | C82: 25 | D82: 1062
A83: 914201020557328660 | B83: 武汉馨鑫吉祥汽车通勤服务有限公司 | C83: 11 | D83: 415
A84: 914201020908340595 | B84: 武汉长通顺捷旅游客运有限公司 | C84: 70 | D84: 2800
A85: 914201025818454812 | B85: 武汉鑫萌生商务服务有限公司 | C85: 10 | D85: 382
A86: 914201025945010390 | B86: 武汉永泰欣汽车信息服务有限公司 | C86: 4 | D86: 134
A87: 91420102675816278D | B87: 武汉市欣洪祥旅游客运服务有限公司 | C87: 21 | D87: 914
A88: 91420102685423486D | B88: 武汉瑞晟捷汽车运输服务有限公司 | C88: 23 | D88: 1135
A89: 91420102722706849K | B89: 武汉市一日游旅业有限责任公司 | C89: 41 | D89: 1684
A90: 91420102737535579H | B90: 武汉市江滩旅游车服务集团有限公司 | C90: 107 | D90: 4353
A91: 9142010274476162XY | B91: 武汉高氏旅游客运有限公司 | C91: 55 | D91: 2192
A92: 91420102778172882B | B92: 武汉市宏干线公路客运有限公司 | C92: 22 | D92: 836
A93: 91420102MA4K473L49 | B93: 武汉久鼎汉辉汽车服务有限公司 | C93: 50 | D93: 2376
A94: 9142010373354649XG | B94: 武汉市三缘旅游客运有限责任公司 | C94: 70 | D94: 3044
A95: 914201037680659878 | B95: 湖北捷龙交通运业有限公司武汉旅游客运分公司 | C95: 27 | D95: 1327
A96: 91420103792431043U | B96: 武汉市国运旅游客运有限公司 | C96: 55 | D96: 2181
A97: 914201037924343671 | B97: 武汉市天运旅游客运有限公司 | C97: 23 | D97: 1023
A98: 91420104333509454N | B98: 武汉稳通公路客运有限公司 | C98: 48 | D98: 1152
A99: 91420104565575194C | B99: 武汉添福田汽车通勤有限公司 | C99: 10 | D99: 480
A100: 9142010467582186X0 | B100: 武汉全直通旅游客运有限公司 | C100: 51 | D100: 2090
A101: 91420104679110512X | B101: 武汉市和畅汽车服务有限公司 | C101: 16 | D101: 656
A102: 9142010472826982XQ | B102: 武汉市全球通通勤汽车服务有限公司 | C102: 137 | D102: 6072
A103: 914201047414075023 | B103: 武汉富华旅游汽车服务有限公司 | C103: 56 | D103: 2255
A104: 91420104741438552N | B104: 武汉市创业旅游汽车服务有限责任公司 | C104: 40 | D104: 1584
A105: 91420104748343708U | B105: 武汉市光大通勤汽车服务有限公司 | C105: 53 | D105: 2427
A106: 914201047819851122 | B106: 武汉安信新能源运营管理有限公司 | C106: 10 | D106: 480
A107: 91420104796307787W | B107: 武汉开心通勤汽车服务有限公司 | C107: 10 | D107: 480
A108: 914201050668374601 | B108: 武汉吉顺通汽车服务有限公司 | C108: 10 | D108: 438
A109: 91420105558416494J | B109: 武汉裕腾汽车服务有限公司 | C109: 16 | D109: 578
A110: 914201055749051409 | B110: 武汉鼎盛通汽车租赁服务有限公司 | C110: 11 | D110: 492
A111: 914201055848885403 | B111: 武汉鑫顺鑫汽车通勤服务有限公司 | C111: 17 | D111: 744
A112: 91420105597900393M | B112: 武汉震亚汽车租赁服务有限公司 | C112: 14 | D112: 461
A113: 914201056667667741 | B113: 武汉长荣联合商务有限公司 | C113: 10 | D113: 480
A114: 91420105672794907G | B114: 武汉市诚安汽车服务有限公司 | C114: 11 | D114: 430
A115: 914201056823112862 | B115: 武汉盛合通勤汽车服务有限公司 | C115: 10 | D115: 480
A116: 91420105737515543P | B116: 武汉市伟业旅游汽车有限公司 | C116: 21 | D116: 823
A117: 914201057997971791 | B117: 武汉新力量旅游客运有限公司 | C117: 65 | D117: 2879
A118: 91420105MA49R1GM4W | B118: 武汉楚运汽车租赁有限公司 | C118: 12 | D118: 575
A119: 91420105MA4F5Q3R68 | B119: 武汉市宏干线公路客运有限公司金地分公司 | C119: 16 | D119: 684
A120: 9142010605201122XF | B120: 武汉阳光旅业汽车服务有限公司 | C120: 16 | D120: 552
A121: 914201060520246611 | B121: 武汉新纬度汽车服务有限公司 | C121: 10 | D121: 480
A122: 91420106055734386X | B122: 武汉驰骋安达商务有限公司 | C122: 55 | D122: 2352
A123: 91420106063006477G | B123: 湖北省全日通旅游客运有限公司 | C123: 30 | D123: 1191
A124: 914201065519629783 | B124: 武汉永兴泰汽车通勤服务有限责任公司 | C124: 8 | D124: 299
A125: 91420106555010413D | B125: 武汉零加壹旅游客运有限公司 | C125: 44 | D125: 1716
A126: 914201065910566977 | B126: 武汉中盛建运汽车服务有限公司 | C126: 10 | D126: 444
A127: 91420106666795065R | B127: 湖北红光汽车服务有限公司 | C127: 10 | D127: 460
A128: 914201066983262120 | B128: 武汉凯德通勤汽车服务有限公司 | C128: 30 | D128: 1374
A129: 91420106731056446X | B129: 武汉市鑫泽汽车租赁服务有限责任公司 | C129: 14 | D129: 686
A130: 91420106778184701A | B130: 武汉市宏干线公路客运有限公司武昌分公司 | C130: 7 | D130: 261
A131: 914201067963388316 | B131: 武汉宏兴泰旅游客运有限公司 | C131: 45 | D131: 1908
A132: 91420106MA4K2FXE9A | B132: 武汉今朝翔商务服务有限公司 | C132: 10 | D132: 436
A133: 91420106MA4KL3GL9B | B133: 湖北鑫隆泰格科技有限公司 | C133: 10 | D133: 460
A134: 91420106MA4KR71EXH | B134: 湖北恒意通汽车服务有限公司 | C134: 6 | D134: 283
A135: 91420106MA4L0L9T50 | B135: 武汉杰洋天勤科技有限公司 | C135: 10 | D135: 465
A136: 91420107077732912W | B136: 武汉钢东实通勤有限公司 | C136: 9 | D136: 366
A137: 91420107303334526J | B137: 武汉绿岛梦缘运输代理服务有限公司 | C137: 6 | D137: 240
A138: 91420107333581034D | B138: 武汉钢驰蓝星通勤有限公司 | C138: 10 | D138: 470
A139: 91420107MA49FXWF08 | B139: 武汉扬光路尚城市物流有限责任公司 | C139: 179 | D139: 8505
A140: 91420107MA4F1NYF5K | B140: 武汉新分子贸易有限公司 | C140: 11 | D140: 448
A141: 91420107MAC2UWCB87 | B141: 湖北融通新能源汽车服务有限责任公司 | C141: 0
A142: 914201110520124099 | B142: 武汉市彭浩翔通勤车服务有限公司 | C142: 24 | D142: 1010
A143: 914201110866110125 | B143: 武汉嘉辉天实通勤汽车服务有限公司 | C143: 16 | D143: 726
A144: 91420111303446966Y | B144: 武汉市拓城汽车租赁有限公司 | C144: 23 | D144: 877
A145: 91420111303745245J | B145: 武汉鸿发腾辉汽车通勤服务有限公司 | C145: 11 | D145: 446
A146: 914201116727929015 | B146: 武汉光迁汽车服务有限公司 | C146: 10 | D146: 411
A147: 914201116888270724 | B147: 武汉磊锋通勤汽车服务有限公司 | C147: 13 | D147: 412
A148: 91420111MA49D98E3P | B148: 武汉市恩骏达汽车服务有限责任公司 | C148: 9 | D148: 311
A149: 91420111MA4KY0F62G | B149: 武汉迈事通贸易有限公司 | C149: 18 | D149: 843
A150: 91420111MA4KY26Q4L | B150: 湖北众行智慧出行科技有限公司 | C150: 20 | D150: 850
A151: 91420111MA4L0BRF8Y | B151: 湖北公路客运集团股份有限公司运营管理分公司 | C151: 77 | D151: 2504
A152: 914201120960141070 | B152: 武汉园博汽车管理服务有限公司 | C152: 13 | D152: 606
A153: 91420112333510818Y | B153: 武汉福鑫运业汽车服务有限公司 | C153: 19 | D153: 856
A154: 9142011255500489XP | B154: 武汉东兴达客运有限公司 | C154: 51 | D154: 1151
A155: 91420112565586432J | B155: 武汉凯达顺汽车服务有限公司 | C155: 14 | D155: 633
A156: 91420112574924149H | B156: 武汉欣运达旅游汽车服务有限公司 | C156: 10 | D156: 480
A157: 9142011266954865X7 | B157: 武汉市顺和路通汽车服务有限公司 | C157: 15 | D157: 646
A158: 91420112717957985G | B158: 武汉市长带运输有限公司 | C158: 38 | D158: 1532
A159: 91420112725772163N | B159: 武汉永兴交通运输有限公司 | C159: 24 | D159: 592
A160: 91420112737532634D | B160: 武汉东方立信商务有限公司 | C160: 10 | D160: 364
A161: 91420112MA49CHQJ5D | B161: 武汉市捷运通新能源有限责任公司 | C161: 122 | D161: 5612
A162: 91420112MA4K2AUNXN | B162: 武汉凯美途商务服务有限公司 | C162: 10 | D162: 460
A163: 91420112MA4K2H7N24 | B163: 武汉杰龙文化传播有限公司 | C163: 14 | D163: 459
A164: 91420112MA4KLD1F16 | B164: 武汉亚投新能科技有限公司 | C164: 16 | D164: 616
A165: 91420112MA4KWA7U46 | B165: 武汉临空港经济技术开发区汽车服务有限公司 | C165: 10 | D165: 266
A166: 91420112MA7E9B6A1F | B166: 武汉市宏干线公路客运有限公司鑫运达分公司 | C166: 13 | D166: 402
A167: 91420113086646899Q | B167: 武汉泽欣四海商务发展有限公司 | C167: 14 | D167: 505
A168: 91420113744786886T | B168: 武汉市雄翔通勤汽车运输有限公司 | C168: 82 | D168: 3589
A169: 91420113MA4K4PL06W | B169: 武汉熹正运输有限公司 | C169: 10 | D169: 419
A170: 91420114063032480Q | B170: 武汉恒诚汽车服务有限公司 | C170: 18 | D170: 864
A171: 91420114090806592K | B171: 武汉市胜宇达汽车服务有限公司 | C171: 48 | D171: 2102
A172: 91420114MA49DD842J | B172: 武汉明辰校车服务有限公司 | C172: 1 | D172: 19
A173: 91420115303320669K | B173: 武汉金通诚汽车服务有限责任公司 | C173: 10 | D173: 388
A174: 914201153033866172 | B174: 武汉鑫长运通勤服务有限公司 | C174: 17 | D174: 796
A175: 91420115303578424A | B175: 武汉尧康公交有限公司 | C175: 26 | D175: 2316
A176: 91420115303770387F | B176: 武汉欣启程汽车服务有限公司 | C176: 15 | D176: 692
A177: 91420115551955559C | B177: 武汉鑫龙通勤汽车服务有限公司 | C177: 24 | D177: 1057
A178: 91420115562332701D | B178: 武汉金星联合商务有限公司 | C178: 55 | D178: 2511
A179: 91420115679122185U | B179: 武汉武威汽车服务有限公司 | C179: 22 | D179: 1067
A180: 91420115MA49GH4YXW | B180: 武汉畅瑞达科技有限公司 | C180: 15 | D180: 706
A181: 91420115MA49JU9PXR | B181: 武汉青苗雅瑞校车服务有限公司 | C181: 20 | D181: 960
A182: 91420115MA49LN9H6P | B182: 武汉星旅商务服务有限公司 | C182: 16 | D182: 637
A183: 91420115MA4F0PJR85 | B183: 武汉顺福程汽车服务有限公司 | C183: 14 | D183: 621
A184: 91420115MA4K2NF60A | B184: 武汉凯盛捷汽车服务有限公司 | C184: 10 | D184: 452
A185: 91420115MA4KNPTC9W | B185: 武汉欣达远汽车服务有限公司 | C185: 12 | D185: 510
A186: 91420115MA4KNW021A | B186: 武汉巴通旅游客运有限公司 | C186: 16 | D186: 714
A187: 91420115MA4KR9AR9H | B187: 武汉市夏东汽车服务有限公司 | C187: 11 | D187: 270
A188: 91420116090804167P | B188: 武汉兴荣昌汽车租赁有限公司 | C188: 16 | D188: 585
A189: 91420116MA4K23GH2N | B189: 武汉市恒昌鸿顺通勤汽车服务有限公司 | C189: 10 | D189: 335
A190: 914202001784379633 | B190: 黄石市交通运输集团有限责任公司 | C190: 43 | D190: 1013
A191: 914202005539036648 | B191: 黄石佳美汽车服务有限公司 | C191: 10 | D191: 478
A192: 914202005715444907 | B192: 黄石雄钢旅游客运有限公司 | C192: 21 | D192: 954
A193: 91420200670358079Y | B193: 黄石市瑞捷贸易发展有限公司 | C193: 20 | D193: 935
A194: 91420200722096008T | B194: 黄石市华龙客运有限公司 | C194: 24 | D194: 964
A195: 91420200MA488GLQ5W | B195: 黄石市安鑫汽车运输有限公司 | C195: 11 | D195: 298
A196: 91420200MA48YPET1D | B196: 黄石国顺客运有限公司 | C196: 20 | D196: 867
A197: 91420200MA491UX85B | B197: 黄石快乐旅游客运有限公司 | C197: 27 | D197: 1099
A198: 91420200MA49FTX700 | B198: 黄石市交通运输集团天一新能源有限公司 | C198: 12 | D198: 405
A199: 91420200MA4F2YFW9R | B199: 鄂旅投黄石客运服务有限公司 | C199: 11 | D199: 393
A200: 91420200MA7HMTRX68 | B200: 黄石鑫三盛旅游客运有限公司 | C200: 21 | D200: 917
... 568 more rows

Sheet 公路旅客分市州明细
A1: 公路班线客运量
A2: 地区 名称 | B2: 指标 | C2: 2026年1月 | D2: 1月与去年同比 | E2: 2026年2月 | F2: 2月与去年同比 | G2: 2026年3月 | H2: 3月与去年同比 | I2: 2026年4月 | J2: 4月与去年同比 | K2: 2026年5月 | L2: 5月与去年同比 | M2: 2026年6月 | N2: 6月与去年同比 | O2: 2026年累计 | P2: 累计与去年同比 | R2: 2025年1月 | S2: 1月与去年同比 | T2: 2025年2月 | U2: 2月与去年同比 | V2: 2025年3月 | W2: 3月与去年同比 | X2: 2025年4月 | Y2: 4月与去年同比 | Z2: 2025年5月 | AA2: 5月与去年同比 | AB2: 2025年6月 | AC2: 6月与去年同比 | AD2: 2025-07-01 | AE2: 7月与去年同比 | AF2: 2025-08-01 | AG2: 8月与去年同比 | AH2: 2025-09-01 | AI2: 9月与去年同比 | AJ2: 2025-10-01 | AK2: 10月与去年同比 | AL2: 2025-11-01 | AM2: 11月与去年同比 | AN2: 2025-12-01 | AO2: 12月与去年同比 | AP2: 累计 | AQ2: 累计同比 | AS2: 2024年1月 | AT2: 1月与去年同比 | AU2: 2024年2月 | AV2: 2月与去年同比 | AW2: 2024年3月 | AX2: 3月与去年同比 | AY2: 2024年4月 | AZ2: 4月与去年同比 | BA2: 2024年5月 | BB2: 5月与去年同比 | BC2: 2024年6月 | BD2: 6月与去年同比 | BE2: 2024年7月 | BF2: 7月与去年同比 | BG2: 2024年8月 | BH2: 8月与去年同比 | BI2: 2024年9月 | BJ2: 9月与去年同比 | BK2: 2024年10月 | BL2: 10月与去年同比 | BM2: 2024年11月 | BN2: 11月与去年同比 | BO2: 2024年12月 | BP2: 12月与去年同比 | BQ2: 累计 | BR2: 累计同比 | BT2: 2023年1月 | BU2: 1月与去年同比 | BV2: 2023年2月 | BW2: 2月与去年同比 | BX2: 2023年3月 | BY2: 3月与去年同比 | BZ2: 2023年4月 | CA2: 4月与去年同比 | CB2: 2023年5月 | CC2: 5月与去年同比 | CD2: 2023年6月 | CE2: 6月与去年同比 | CF2: 2023年7月 | CG2: 7月与去年同比 | CH2: 2023年8月 | CI2: 8月与去年同比 | CJ2: 2023年9月 | CK2: 9月与去年同比 | CL2: 2023-10-01 | CM2: 10月与去年同比 | CN2: 2023-11-01 | CO2: 11月与去年同比 | CP2: 2023-12-01 | CQ2: 12月与去年同比 | CR2: 累计 | CS2: 累计同比 | CV2: 2022年1月 | CW2: 2022年2月 | CX2: 2022年3月 | CY2: 2022年4月 | CZ2: 2022年5月 | DA2: 2022年6月 | DB2: 2022年7月 | DC2: 2022年8月 | DD2: 2022年9月 | DE2: 2022年10月 | DF2: 2022年11月 | DG2: 2022年12月 | DH2: 累计 | DI2: 累计同比 | DK2: 2021年1月 | DL2: 1月与去年同比 | DM2: 2021年2月 | DN2: 2月与去年同比 | DO2: 2021年3月 | DP2: 3月与去年同比 | DQ2: 1-3月累计 | DR2: 2021年4月 | DS2: 4月与去年同比 | DT2: 2021-05-01 | DU2: 5月与去年同比 | DV2: 2021-06-01 | DW2: 6月与去年同比 | DX2: 2021-07-01 | DY2: 7月与去年同比 | DZ2: 2021-08-01 | EA2: 8月与去年同比 | EB2: 2021-09-01 | EC2: 9月与去年同比 | ED2: 2021-10-01 | EE2: 10月与去年同比 | EF2: 2021-11-01 | EG2: 11月与去年同比 | EH2: 2021-12-01 | EI2: 12月与去年同比 | EJ2: 累计 | EK2: 累计同比 | EL2: 2020-01-01 | EM2: 1月与去年同比 | EN2: 2020年2月 | EO2: 2月与去年同比 | EP2: 2020年3月 | EQ2: 3月与去年同比 | ER2: 2020年4月 | ES2: 4月与去年同比 | ET2: 2020年5月 | EU2: 5月与去年同比 | EV2: 2020年6月 | EW2: 6月与去年同比 | EX2: 2020年7月 | EY2: 7月与去年同比 | EZ2: 2020年8月 | FA2: 8月与去年同比 | FB2: 2020年9月 | FC2: 9月与去年同比 | FD2: 2020年10月 | FE2: 10月于去年同比 | FF2: 2020年11月 | FG2: 11月于去年同比 | FH2: 2020年12月 | FI2: 12月于去年同比 | FJ2: 累计 | FK2: 累计同比 | FL2: 2019-01-01 | FM2: 2019-02-02 | FN2: 2019-03-03 | FO2: 2019-04-04 | FP2: 2019-05-04 | FQ2: 2019-06-04 | FR2: 2019-07-04 | FS2: 2019-08-04 | FT2: 2019-09-04 | FU2: 2019-10-04 | FV2: 10月与去年同期比 | FW2: 2019-11-04 | FX2: 11月与去年同期比 | FY2: 2019-12-04 | FZ2: 12月与去年同期比 | GA2: 累计 | GB2: 累计同比 | GC2: 部专调反馈数据 | GE2: 2018-01-01 | GG2: 2018-02-01 | GI2: 2018-03-01 | GK2: 2018-04-01 | GM2: 2018-05-01 | GO2: 2018-06-02 | GQ2: 2018-07-03 | GS2: 2018-08-03 | GU2: 2018-09-03 | GW2: 2018-10-03 | GY2: 2018-11-03 | HA2: 2018-12-03 | HD2: 2018年1-12月累计 | HH2: 2017-01-01 | HJ2: 2017-02-01 | HL2: 2017-03-01 | HN2: 2017-04-02 | HP2: 2017-05-02 | HR2: 1-5月合计 | HS2: 2017-06-02 | HU2: 2017-07-02 | HW2: 2017-08-02 | HY2: 2017-09-02 | IA2: 2017-10-02 | IC2: 2017-11-02 | IE2: 2017-12-02 | IG2: 累计 | IJ2: 2016-01-01 | IL2: 2016-02-01 | IN2: 2016-03-01 | IP2: 2016-04-01 | IR2: 2016-05-01 | IT2: 2016-06-01 | IV2: 2016-07-01 | IX2: 2016-08-02 | IZ2: 2016-09-02 | JB2: 2016-10-02 | JD2: 2016-11-02 | JF2: 2016-12-02
CT3: 环比 | GE3: 1月 | GF3: 同比 | GG3: 2月 | GH3: 同比 | GI3: 3月 | GJ3: 同比 | GK3: 4月 | GL3: 同比 | GM3: 5月 | GN3: 同比 | GO3: 6月 | GP3: 同比 | GQ3: 7月 | GR3: 同比 | GS3: 8月 | GT3: 同比 | GU3: 9月 | GV3: 同比 | GW3: 10月 | GX3: 同比 | GY3: 11月 | GZ3: 同比 | HA3: 12月 | HB3: 同比 | HD3: 累计 | HE3: 同比 | HF3: 平均运距56公里 | HH3: 1月 | HI3: 同比 | HJ3: 2月 | HK3: 同比 | HL3: 3月 | HM3: 同比 | HN3: 4月 | HO3: 同比 | HP3: 5月 | HQ3: 同比 | HS3: 6月 | HT3: 同比 | HU3: 7月 | HV3: 同比 | HW3: 8月 | HX3: 同比 | HY3: 9月 | HZ3: 同比 | IA3: 10月 | IB3: 同比 | IC3: 11月 | ID3: 同比 | IE3: 12月 | IF3: 同比 | IG3: 累计 | IH3: 同比 | IJ3: 1月 | IK3: 同比 | IL3: 2月 | IM3: 同比 | IN3: 3月 | IO3: 同比 | IP3: 4月 | IQ3: 同比 | IR3: 5月 | IS3: 同比 | IT3: 6月 | IU3: 同比 | IV3: 7月 | IW3: 同比 | IX3: 8月 | IY3: 同比 | IZ3: 9月 | JA3: 同比 | JB3: 10月 | JC3: 同比 | JD3: 11月 | JE3: 同比 | JF3: 12月 | JG3: 同比 | JH3: 2015全年 | JI3: 2015-01-01 | JJ3: 2015-02-01 | JK3: 2015-03-01 | JL3: 2015-04-01 | JM3: 2015-05-01 | JN3: 2015-06-01 | JO3: 2015-07-01 | JP3: 2015-08-01 | JQ3: 2015-09-01 | JR3: 2015-10-01 | JS3: 2015-11-01 | JT3: 2015-12-01 | JU3: 2015年全年 | JV3: 预估2016年全年
A4: 全省 | B4: 客运量 （万人） | C4: =C8+C10+C14+C36+C18+C22+C26+C28+C38+C32+C42+C44+C48+C50+C52+C54+C56 -> 1473.38 | D4: =C4/R4-1 -> -12.72% | E4: 1543.17 | F4: -10.27% | G4: 1575.67 | H4: -8.49% | I4: =I8+I10+I14+I36+I18+I22+I26+I28+I38+I32+I42+I44+I48+I50+I52+I54+I56 -> 1662.97 | J4: =I4/X4-1 -> -8.86% | K4: 1699.64 | L4: -6.19% | M4: 1618.51 | N4: -5.79% | O4: =G4+E4+C4+I4+K4+M4 -> 9573.34 | P4: =O4/SUM(R4+T4+V4+X4+Z4+AB4)-1 -> -8.69% | R4: =R8+R10+R14+R36+R18+R22+R26+R28+R38+R32+R42+R44+R48+R50+R52+R54+R56 -> 1688.14 | S4: =R4/AS4-1 -> 19.05% | T4: 1719.87 | U4: 17.06% | V4: 1721.89 | W4: 19.62% | X4: =X8+X10+X14+X36+X18+X22+X26+X28+X38+X32+X42+X44+X48+X50+X52+X54+X56 -> 1824.67 | Y4: =X4/AY4-1 -> 17.71% | Z4: 1811.82 | AA4: 12.92% | AB4: 1718.04 | AC4: 12.89% | AD4: =AD8+AD10+AD14+AD36+AD18+AD22+AD26+AD28+AD38+AD32+AD42+AD44+AD48+AD50+AD52+AD54+AD56 -> 1781.89 | AE4: =AD4/BE4-1 -> 15.19% | AF4: 1784.78 | AG4: 10.85% | AH4: 1666.80 | AI4: 9.74% | AJ4: =AJ8+AJ10+AJ14+AJ36+AJ18+AJ22+AJ26+AJ28+AJ38+AJ32+AJ42+AJ44+AJ48+AJ50+AJ52+AJ54+AJ56 -> 1723.76 | AK4: =AJ4/BK4-1 -> -8.54% | AL4: 1638.52 | AM4: -6.55% | AN4: 1550.37 | AO4: -6.00% | AP4: =V4+R4+T4+X4+Z4+AB4+AD4+AF4+AH4+AJ4+AL4+AN4 -> 20630.55 | AQ4: =AP4/(AS4+AU4+AW4+AY4+BA4+BC4+BE4+BG4+BI4+BK4+BM4+BO4)-1 -> 8.77% | AS4: =AS8+AS10+AS14+AS36+AS18+AS22+AS26+AS28+AS38+AS32+AS42+AS44+AS48+AS50+AS52+AS54+AS56 -> 1418.01 | AT4: 0.06% | AU4: 1469.24 | AV4: =AU4/BV4-1 -> -0.76% | AW4: 1439.51 | AX4: -7.01% | AY4: =AY8+AY10+AY14+AY36+AY18+AY22+AY26+AY28+AY38+AY32+AY42+AY44+AY48+AY50+AY52+AY54+AY56 -> 1550.11 | AZ4: -3.70% | BA4: 1604.55 | BB4: =BA4/CB4-1 -> -1.31% | BC4: 1521.81 | BD4: -4.84% | BE4: =BE8+BE10+BE14+BE36+BE18+BE22+BE26+BE28+BE38+BE32+BE42+BE44+BE48+BE50+BE52+BE54+BE56 -> 1546.96 | BF4: -7.98% | BG4: 1610.01 | BH4: =BG4/CH4-1 -> -4.74% | BI4: 1518.84 | BJ4: -2.46% | BK4: =BK8+BK10+BK14+BK36+BK18+BK22+BK26+BK28+BK38+BK32+BK42+BK44+BK48+BK50+BK52+BK54+BK56 -> 1884.72 | BL4: 15.60% | BM4: 1753.34 | BN4: =BM4/CN4-1 -> 16.33% | BO4: 1649.36 | BP4: 17.26% | BQ4: =AS4+AU4+AW4+AY4+BA4+BC4+BE4+BG4+BI4+BK4+BM4+BO4 -> 18966.47 | BR4: 1.14% | BT4: =BT8+BT10+BT14+BT36+BT18+BT22+BT26+BT28+BT38+BT32+BT42+BT44+BT48+BT50+BT52+BT54+BT56 -> 1417.17 | BU4: =BT4/CV4-1 -> -14.30% | BV4: =BV8+BV10+BV14+BV36+BV18+BV22+BV26+BV28+BV38+BV32+BV42+BV44+BV48+BV50+BV52+BV54+BV56 -> 1480.46 | BW4: =BV4/CW4-1 -> -13.42% | BX4: =SUM(BX8,BX10,BX18,BX14,BX36,BX22,BX26,BX28,BX38,BX32,BX42,BX44,BX48,BX52,BX50,BX54,BX56) -> 1548.04 | BY4: =BX4/CX4-1 -> 0.43% | BZ4: 1609.7255 | CA4: 20.08% | CB4: =SUM(CB8,CB10,CB18,CB14,CB36,CB22,CB26,CB28,CB38,CB32,CB42,CB44,CB48,CB52,CB50,CB54,CB56) -> 1625.7993 | CC4: =CB4/CZ4-1 -> 12.87% | CD4: 1599.2853 | CE4: =CD4/DA4-1 -> 5.93% | CF4: 1681.0643 | CG4: =CF4/DB4-1 -> 2.12% | CH4: =SUM(CH8,CH10,CH18,CH14,CH36,CH22,CH26,CH28,CH38,CH32,CH42,CH44,CH48,CH52,CH50,CH54,CH56) -> 1690.12 | CI4: =CH4/DC4-1 -> 7.36% | CJ4: 1557.21 | CK4: =CJ4/DD4-1 -> -5.24% | CL4: 1630.38 | CM4: =CL4/DE4-1 -> 26.13% | CN4: =SUM(CN8,CN10,CN18,CN14,CN36,CN22,CN26,CN28,CN38,CN32,CN42,CN44,CN48,CN52,CN50,CN54,CN56) -> 1507.18 | CO4: =CN4/DF4-1 -> 44.74% | CP4: =SUM(CP8,CP10,CP18,CP14,CP36,CP22,CP26,CP28,CP38,CP32,CP42,CP44,CP48,CP52,CP50,CP54,CP56) -> 1406.62 | CQ4: =CP4/DG4-1 -> 38.07% | CR4: =BT4+BV4+BX4+BZ4+CB4+CD4+CF4+CH4+CJ4+CL4+CN4+CP4 -> 18753.0623 | CS4: =CR4/SUM(CV4:DG4)-1 -> 7.70% | CT4: =CP4/CN4-1 -> -6.67% | CV4: 1653.72 | CW4: 1709.99 | CX4: 1541.43 | CY4: 1340.57 | CZ4: 1440.41 | DA4: 1509.73 | DB4: 1646.12 | DC4: 1574.27 | DD4: 1643.25 | DE4: 1292.57 | DF4: 1041.27 | DG4: 1018.77 | DH4: 17412.11 | DI4: -17.47% | DK4: =DK8+DK10+DK14+DK36+DK18+DK22+DK26+DK28+DK38+DK32+DK42+DK44+DK48+DK50+DK52+DK54+DK56 -> 1,810.6723 | DL4: =(DK4-DT4)/DT4 -> -9.16% | DM4: 1904.8374 | DO4: 1851.3825 | DP4: =(DO4-EP4)/EP4 -> 884.91% | DQ4: =DK4+DM4+DO4 -> 5566.89 | DR4: =DR8+DR10+DR14+DR36+DR18+DR22+DR26+DR28+DR38+DR32+DR42+DR44+DR48+DR50+DR52+DR54+DR56 -> 1950.9743 | DS4: =(DR4-ER4)/ER4 -> 66.61% | DT4: 1993.1842 | DU4: 53.64% | DV4: 1872.4959 | DW4: 41.72% | DX4: =DX8+DX10+DX14+DX36+DX18+DX22+DX26+DX28+DX38+DX32+DX42+DX44+DX48+DX50+DX52+DX54+DX56 -> 1905.9223 | DY4: =(DX4-EX4)/EX4 -> 21.11% | DZ4: 1299.9739 | EA4: -31.94% | EB4: 1593.5258 | EC4: -29.07% | ED4: =ED8+ED10+ED14+ED36+ED18+ED22+ED26+ED28+ED38+ED32+ED42+ED44+ED48+ED50+ED52+ED54+ED56 -> 1727.6503 | EE4: =(ED4-FD4)/FD4 -> -25.01% | EF4: 1602.9103 | EG4: -25.91% | EH4: 1584.8571 | EI4: -20.03% | EJ4: =EJ8+EJ10+EJ14+EJ36+EJ18+EJ22+EJ26+EJ28+EJ38+EJ32+EJ42+EJ44+EJ48+EJ50+EJ52+EJ54+EJ56 -> 21098.3863 | EK4: =(EJ4-FJ4)/FJ4 -> -2.91% | EL4: 5574.2123 | EM4: =(EL4-FL4)/FL4 -> -11.49% | EN4: 0.0000 | EO4: =(EN4-FM4)/FM4 -> -100.00% | EP4: =EP8+EP10+EP14+EP36+EP18+EP22+EP26+EP28+EP38+EP32+EP42+EP44+EP48+EP50+EP52+EP54+EP56 -> 187.9757 | EQ4: =(EP4-FN4)/FN4 -> -97.07% | ER4: 1171.0072 | ES4: =(ER4-FO4)/FO4 -> -78.75% | ET4: 1297.3356 | EU4: =(ET4-FP4)/FP4 -> -76.41% | EV4: =EV8+EV10+EV14+EV36+EV18+EV22+EV26+EV28+EV38+EV32+EV42+EV44+EV48+EV50+EV52+EV54+EV56 -> 1321.2475 | EW4: =(EV4-FQ4)/FQ4 -> -75.27% | EX4: 1573.7261 | EY4: =(EX4-FR4)/FR4 -> -70.89% | EZ4: 1909.9150 | FA4: =(EZ4-FS4)/FS4 -> -64.14% | FB4: =FB8+FB10+FB14+FB36+FB18+FB22+FB26+FB28+FB38+FB32+FB42+FB44+FB48+FB50+FB52+FB54+FB56 -> 2246.6339 | FC4: =(FB4-FT4)/FT4 -> -59.27% | FD4: 2303.7252 | FE4: =(FD4-FU4)/FU4 -> -60.71% | FF4: 2163.3218 | FG4: -58.16% | FH4: =FH8+FH10+FH14+FH36+FH18+FH22+FH26+FH28+FH38+FH32+FH42+FH44+FH48+FH50+FH52+FH54+FH56 -> 1981.7635 | FI4: -63.09% | FJ4: =EL4+EN4+EP4+ER4+ET4+EV4+EX4+EZ4+FB4+FD4+FF4+FH4 -> 21730.8638 | FK4: =(FJ4-(FL4+FM4+FN4+FO4+FP4+FQ4+FR4+FS4+FT4+FU4+FW4+FY4))/(FL4+FM4+FN4+FO4+FP4+FQ4+FR4+FS4+FT4+FU4+FW4+FY4) -> -68.77% | FL4: 6298 | FM4: 7877 | FN4: 6406.81 | FO4: 5510.28 | FP4: 5499.65 | FQ4: 5341.68 | FR4: 5406.5455 | FS4: 5326.3238 | FT4: 5515.7641 | FU4: 5863.3163 | FV4: =(FU4-GW4)/GW4 -> -13.54% | FW4: =FW8+FW10+FW14+FW36+FW18+FW22+FW26+FW28+FW38+FW32+FW42+FW44+FW48+FW50+FW52+FW54+FW56 -> 5170.6508 | FX4: -13.60% | FY4: =FY8+FY10+FY14+FY36+FY18+FY22+FY26+FY28+FY38+FY32+FY42+FY44+FY48+FY50+FY52+FY54+FY56 -> 5368.6079 | FZ4: -15.26% | GA4: =FL4+FM4+FN4+FO4+FP4+FQ4+FR4+FS4+FT4+FU4+FW4+FY4 -> 69584.36 | GB4: =(GA4-HC4)/HC4 -> -14.08% | GD4: 运距 | GE4: =GE8+GE10+GE14+GE36+GE18+GE22+GE26+GE28+GE38+GE32+GE42+GE44+GE48+GE50+GE52+GE54+GE56 -> 6905 | GF4: =(GE4-HH4)/HH4 -> -6.99% | GG4: 8810 | GH4: -9.72% | GI4: 7470 | GJ4: -5.81% | GK4: =GK8+GK10+GK14+GK36+GK18+GK22+GK26+GK28+GK38+GK32+GK42+GK44+GK48+GK50+GK52+GK54+GK56 -> 6445 | GL4: =(GK4-HN4)/HN4 -> -4.37% | GM4: 6468 | GN4: =(GM4-HP4)/HP4 -> -6.78% | GO4: 6521 | GP4: =(GO4-HS4)/HS4 -> -6.14% | GQ4: =GQ8+GQ10+GQ14+GQ36+GQ18+GQ22+GQ26+GQ28+GQ38+GQ32+GQ42+GQ44+GQ48+GQ50+GQ52+GQ54+GQ56 -> 6468 | GR4: -6.94% | GS4: 6373 | GT4: -7.67% | GU4: 6429 | GV4: =(GU4-HY4)/HY4 -> -5.71% | GW4: =GW8+GW10+GW14+GW36+GW18+GW22+GW26+GW28+GW38+GW32+GW42+GW44+GW48+GW50+GW52+GW54+GW56 -> 6781 | GX4: -6.19% | GY4: 5984 | GZ4: -4.95% | HA4: 6335 | HB4: =(HA4-IE4)/IE4 -> -7.34% | HC4: =GE4+GG4+GI4+GK4+GM4+GO4+GQ4+GS4+GU4+GW4+GY4+HA4 -> 80989 | HD4: =HA4+GY4+GW4+GU4+GS4+GQ4+GO4+GM4+GK4+GI4+GG4+GE4 -> 80989 | HE4: =(HD4-IG4)/IG4 -> -6.66% | HF4: 8.1亿人 | HH4: =HH8+HH10+HH14+HH36+HH18+HH22+HH26+HH28+HH38+HH32+HH42+HH44+HH48+HH50+HH52+HH54+HH56 -> 7424 | HI4: =(HH4-IJ4)/IJ4 -> 0.30% | HJ4: 9758.37 | HK4: -4.87% | HL4: 7930.11 | HM4: -3.12% | HN4: =HN8+HN10+HN14+HN36+HN18+HN22+HN26+HN28+HN38+HN32+HN42+HN44+HN48+HN50+HN52+HN54+HN56 -> 6740.08 | HO4: =(HN4-IP4)/IP4 -> -3.01% | HP4: 6938.03 | HQ4: =(HP4-IR4)/IR4 -> -1.93% | HR4: =HP4+HN4+HL4+HJ4+HH4 -> 38790.1924 | HS4: 6948.31 | HT4: =(HS4-IT4)/IT4 -> -2.19% | HU4: =HU8+HU10+HU14+HU36+HU18+HU22+HU26+HU28+HU38+HU32+HU42+HU44+HU48+HU50+HU52+HU54+HU56 -> 6950.78 | HV4: -1.48% | HW4: 6902.17 | HX4: -0.58% | HY4: 6818.46 | HZ4: =(HY4-IZ4)/IZ4 -> -0.37% | IA4: =IA8+IA10+IA14+IA36+IA18+IA22+IA26+IA28+IA38+IA32+IA42+IA44+IA48+IA50+IA52+IA54+IA56 -> 7228.99 | IB4: -0.49% | IC4: 6296.11 | ID4: 0.49% | IE4: 6837.17 | IF4: =(IE4-JF4)/JF4 -> -0.58% | IG4: =HH4+HJ4+HL4+HN4+HP4+HS4+HU4+HW4+HY4+IA4+IC4+IE4 -> 86772 | IH4: =(IG4-#REF!)/#REF! ->  | IJ4: 7401.5657 | IK4: =IJ4/JI4-1 -> 0.22% | IL4: 10257.863 | IM4: =IL4/JJ4-1 -> 0.67% | IN4: 8185.7431 | IO4: =(IN4-JK4)/JK4 -> -0.01% | IP4: 6949.00 | IQ4: =(IP4-JL4)/JL4 -> 3.28% | IR4: 7074.86 | IS4: =(IR4-JM4)/JM4 -> 3.17% | IT4: 7103.56 | IU4: =(IT4-JN4)/JN4 -> 2.34% | IV4: 7055.14 | IW4: =(IV4-JO4)/JO4 -> 1.02% | IX4: 6942.41 | IY4: =(IX4-JP4)/JP4 -> 1.80% | IZ4: 6843.82 | JA4: =(IZ4-JQ4)/JQ4 -> -0.33% | JB4: 7264.31 | JC4: =(JB4-JR4)/JR4 -> -0.21% | JD4: 6265.54 | JE4: =(JD4-JS4)/JS4 -> -1.74% | JF4: =JF8+JF10+JF14+JF36+JF18+JF22+JF26+JF28+JF38+JF32+JF42+JF44+JF48+JF50+JF52+JF54+JF56 -> 6877.07 | JG4: =(JF4-JT4)/JT4 -> -6.28% | JH4: =SUM(JI4:JT4) -> 87953 | JI4: 7385 | JJ4: 10190 | JK4: 8187 | JL4: 6729 | JM4: 6858 | JN4: 6941 | JO4: 6984 | JP4: 6820 | JQ4: 6866 | JR4: 7280 | JS4: 6377 | JT4: 7338 | JU4: =#REF!+JT4 ->  | JV4: 88020 | JW4: =(JV4-JU4)/JU4*100 ->  | JX4: =JV4-JU4 -> 
B5: 旅客周转量 （万人公里） | C5: =C9+C11+C15+C37+C19+C23+C27+C29+C39+C33+C43+C45+C49+C51+C53+C55+C57 -> 91471.08 | D5: =C5/R5-1 -> -11.86% | E5: 110843.06 | F5: -1.38% | G5: 115505.52 | H5: 2.02% | I5: =I9+I11+I15+I37+I19+I23+I27+I29+I39+I33+I43+I45+I49+I51+I53+I55+I57 -> 121466.09 | J5: =I5/X5-1 -> -3.70% | K5: 121944.20 | L5: 1.54% | M5: 112912.97 | N5: 1.20% | O5: 674142.93 | P5: -1.90% | R5: =R9+R11+R15+R37+R19+R23+R27+R29+R39+R33+R43+R45+R49+R51+R53+R55+R57 -> 103778.21 | S5: =R5/AS5-1 -> 18.27% | T5: 112395.81 | U5: 10.19% | V5: 113217.67 | W5: 12.07% | X5: =X9+X11+X15+X37+X19+X23+X27+X29+X39+X33+X43+X45+X49+X51+X53+X55+X57 -> 126127.51 | Y5: =X5/AY5-1 -> 10.97% | Z5: 120094.28 | AA5: 6.46% | AB5: 111571.00 | AC5: 8.53% | AD5: =AD9+AD11+AD15+AD37+AD19+AD23+AD27+AD29+AD39+AD33+AD43+AD45+AD49+AD51+AD53+AD55+AD57 -> 115657.79 | AE5: =AD5/BE5-1 -> 6.36% | AF5: 115659.11 | AG5: 4.18% | AH5: 110618.65 | AI5: 4.81% | AJ5: =AJ9+AJ11+AJ15+AJ37+AJ19+AJ23+AJ27+AJ29+AJ39+AJ33+AJ43+AJ45+AJ49+AJ51+AJ53+AJ55+AJ57 -> 117451.75 | AK5: =AJ5/BK5-1 -> -5.42% | AL5: 111181.80 | AM5: -1.88% | AN5: 98094.61 | AO5: 3.01% | AP5: 1355848.19 | AQ5: 6.09% | AS5: =AS9+AS11+AS15+AS37+AS19+AS23+AS27+AS29+AS39+AS33+AS43+AS45+AS49+AS51+AS53+AS55+AS57 -> 87744.68 | AT5: 15.10% | AU5: 102004.97 | AV5: =AU5/BV5-1 -> 10.01% | AW5: 101027.51 | AX5: 0.24% | AY5: =AY9+AY11+AY15+AY37+AY19+AY23+AY27+AY29+AY39+AY33+AY43+AY45+AY49+AY51+AY53+AY55+AY57 -> 113662.25 | AZ5: 8.10% | BA5: 112806.82 | BB5: =BA5/CB5-1 -> 9.27% | BC5: 102798.58 | BD5: 2.64% | BE5: =BE9+BE11+BE15+BE37+BE19+BE23+BE27+BE29+BE39+BE33+BE43+BE45+BE49+BE51+BE53+BE55+BE57 -> 108743.61 | BF5: -6.70% | BG5: 111021.88 | BH5: =BG5/CH5-1 -> 2.19% | BI5: 105538.55 | BJ5: 3.86% | BK5: =BK9+BK11+BK15+BK37+BK19+BK23+BK27+BK29+BK39+BK33+BK43+BK45+BK49+BK51+BK53+BK55+BK57 -> 124177.24 | BL5: 14.69% | BM5: 113313.79 | BN5: =BM5/CN5-1 -> 12.42% | BO5: 95232.32 | BP5: 9.37% | BQ5: 1278072.18 | BR5: 6.40% | BS5: =BQ5/BQ4 -> 67.39 | BT5: =BT9+BT11+BT15+BT37+BT19+BT23+BT27+BT29+BT39+BT33+BT43+BT45+BT49+BT51+BT53+BT55+BT57 -> 76232.92 | BU5: -20.56% | BV5: =BV9+BV11+BV15+BV37+BV19+BV23+BV27+BV29+BV39+BV33+BV43+BV45+BV49+BV51+BV53+BV55+BV57 -> 92722.75 | BW5: -14.06% | BX5: =SUM(BX9,BX11,BX19,BX15,BX37,BX23,BX27,BX29,BX39,BX33,BX43,BX45,BX49,BX53,BX51,BX55,BX57) -> 100787.53 | BY5: 24.46% | BZ5: 105145.2942 | CA5: 52.46% | CB5: =SUM(CB9,CB11,CB19,CB15,CB37,CB23,CB27,CB29,CB39,CB33,CB43,CB45,CB49,CB53,CB51,CB55,CB57) -> 103234.7729 | CC5: 35.52% | CD5: 100150.4022 | CE5: 14.48% | CF5: 116553.7522 | CG5: 16.64% | CH5: =SUM(CH9,CH11,CH19,CH15,CH37,CH23,CH27,CH29,CH39,CH33,CH43,CH45,CH49,CH53,CH51,CH55,CH57) -> 108644.39 | CI5: 21.78% | CJ5: 101615.25 | CK5: 8.44% | CL5: 108275.63 | CM5: 68.15% | CN5: =SUM(CN9,CN11,CN19,CN15,CN37,CN23,CN27,CN29,CN39,CN33,CN43,CN45,CN49,CN53,CN51,CN55,CN57) -> 100799.53 | CO5: 105.08% | CP5: =SUM(CP9,CP11,CP19,CP15,CP37,CP23,CP27,CP29,CP39,CP33,CP43,CP45,CP49,CP53,CP51,CP55,CP57) -> 87076.66 | CQ5: 79.38% | CR5: 1201238.8760 | CS5: 24.82% | CT5: -13.61% | CV5: 95959.99 | CW5: 107898.09 | CX5: 80977.62 | CY5: 68964.07 | CZ5: 76174.30 | DA5: 87483.62 | DB5: 99925.26 | DC5: 89215.81 | DD5: 93704.13 | DE5: 64392.46 | DF5: 49151.75 | DG5: 48542.38 | DH5: 962389.47 | DI5: -25.17% | DK5: =DK9+DK11+DK15+DK37+DK19+DK23+DK27+DK29+DK39+DK33+DK43+DK45+DK49+DK51+DK53+DK55+DK57 -> 102,498.2281 | DL5: -23.32% | DM5: 109132.1284 | DO5: 121229.1178 | DP5: 296.32% | DQ5: 332859.47 | DR5: =DR9+DR11+DR15+DR37+DR19+DR23+DR27+DR29+DR39+DR33+DR43+DR45+DR49+DR51+DR53+DR55+DR57 -> 132411.9805 | DS5: =(DR5-ER5)/ER5 -> 67.19% | DT5: 133676.1164 | DU5: 65.20% | DV5: 117476.9914 | DW5: 26.46% | DX5: =DX9+DX11+DX15+DX37+DX19+DX23+DX27+DX29+DX39+DX33+DX43+DX45+DX49+DX51+DX53+DX55+DX57 -> 121203.4490 | DY5: =(DX5-EX5)/EX5 -> 24.17% | DZ5: 67326.3311 | EA5: -44.81% | EB5: 93602.6346 | EC5: -28.86% | ED5: =ED9+ED11+ED15+ED37+ED19+ED23+ED27+ED29+ED39+ED33+ED43+ED45+ED49+ED51+ED53+ED55+ED57 -> 104645.5504 | EE5: =(ED5-FD5)/FD5 -> -27.78% | EF5: 92614.0055 | EG5: -32.00% | EH5: 90236.4312 | EI5: -21.21% | EJ5: =EJ9+EJ11+EJ15+EJ37+EJ19+EJ23+EJ27+EJ29+EJ39+EJ33+EJ43+EJ45+EJ49+EJ51+EJ53+EJ55+EJ57 -> 1286052.964 | EK5: -2.28% | EL5: 285617.5240 | EM5: -10.76% | EN5: 0.0000 | EO5: -100.00% | EP5: =EP9+EP11+EP15+EP37+EP19+EP23+EP27+EP29+EP39+EP33+EP43+EP45+EP49+EP51+EP53+EP55+EP57 -> 30588.8436 | EQ5: -91.09% | ER5: 79199.2118 | ES5: -73.79% | ET5: 80917.7425 | EU5: -74.93% | EV5: =EV9+EV11+EV15+EV37+EV19+EV23+EV27+EV29+EV39+EV33+EV43+EV45+EV49+EV51+EV53+EV55+EV57 -> 92899.2881 | EW5: -68.83% | EX5: 97613.8797 | EY5: -69.21% | EZ5: 121993.1505 | FA5: -61.16% | FB5: =FB9+FB11+FB15+FB37+FB19+FB23+FB27+FB29+FB39+FB33+FB43+FB45+FB49+FB51+FB53+FB55+FB57 -> 131582.0280 | FC5: -60.48% | FD5: 144888.5616 | FE5: =(FD5-FU5)/FU5 -> -56.47% | FF5: 136187.7237 | FG5: -53.04% | FH5: =FH9+FH11+FH15+FH37+FH19+FH23+FH27+FH29+FH39+FH33+FH43+FH45+FH49+FH51+FH53+FH55+FH57 -> 114524.7386 | FI5: -67.56% | FJ5: 1316012.692 | FK5: -66.44% | FL5: 320065 | FM5: 394903 | FN5: 343116.84 | FO5: 302219.89 | FP5: 322781.83 | FQ5: 298038.76 | FR5: 316980.9985 | FS5: 314053.9311 | FT5: 332927.6427 | FU5: 332831.4179 | FV5: =(FU5-GW5)/GW5 -> -13.50% | FW5: =FW9+FW11+FW15+FW37+FW19+FW23+FW27+FW29+FW39+FW33+FW43+FW45+FW49+FW51+FW53+FW55+FW57 -> 289994.0048 | FX5: -14.01% | FY5: =FY9+FY11+FY15+FY37+FY19+FY23+FY27+FY29+FY39+FY33+FY43+FY45+FY49+FY51+FY53+FY55+FY57 -> 353011.1746 | FZ5: -16.00% | GA5: 3920924.35 | GB5: -13.53% | GD5: =GA5/GA4 -> 56 | GE5: =GE9+GE11+GE15+GE37+GE19+GE23+GE27+GE29+GE39+GE33+GE43+GE45+GE49+GE51+GE53+GE55+GE57 -> 332918 | GF5: =(GE5-HH5)/HH5 -> -8.03% | GG5: 433473 | GH5: -13.82% | GI5: 398323 | GJ5: -0.79% | GK5: =GK9+GK11+GK15+GK37+GK19+GK23+GK27+GK29+GK39+GK33+GK43+GK45+GK49+GK51+GK53+GK55+GK57 -> 349434 | GL5: -4.72% | GM5: 376117 | GN5: -7.05% | GO5: 358955 | GP5: =(GO5-HS5)/HS5 -> -5.38% | GQ5: =GQ9+GQ11+GQ15+GQ37+GQ19+GQ23+GQ27+GQ29+GQ39+GQ33+GQ43+GQ45+GQ49+GQ51+GQ53+GQ55+GQ57 -> 379117 | GR5: -4.02% | GS5: 377374 | GT5: -5.53% | GU5: 386397 | GV5: =(GU5-HY5)/HY5 -> -5.36% | GW5: =GW9+GW11+GW15+GW37+GW19+GW23+GW27+GW29+GW39+GW33+GW43+GW45+GW49+GW51+GW53+GW55+GW57 -> 384778 | GX5: -2.94% | GY5: 337245 | GZ5: -2.62% | HA5: 420253 | HB5: -8.64% | HC5: 4534385 | HD5: 4534385 | HE5: =(HD5-IG5)/IG5 -> -5.98% | HF5: 453.4亿人公里 | HH5: =HH9+HH11+HH15+HH37+HH19+HH23+HH27+HH29+HH39+HH33+HH43+HH45+HH49+HH51+HH53+HH55+HH57 -> 361997 | HI5: =(HH5-IJ5)/IJ5 -> -0.53% | HJ5: 502999.55 | HK5: -5.72% | HL5: 401483.95 | HM5: -2.31% | HN5: =HN9+HN11+HN15+HN37+HN19+HN23+HN27+HN29+HN39+HN33+HN43+HN45+HN49+HN51+HN53+HN55+HN57 -> 366732.13 | HO5: -1.13% | HP5: 404639.17 | HQ5: -1.93% | HR5: =HP5+HN5+HL5+HJ5+HH5 -> 2037852.175 | HS5: 379364.25 | HT5: =(HS5-IT5)/IT5 -> -0.85% | HU5: =HU9+HU11+HU15+HU37+HU19+HU23+HU27+HU29+HU39+HU33+HU43+HU45+HU49+HU51+HU53+HU55+HU57 -> 395005.25 | HV5: -0.72% | HW5: 399459.39 | HX5: 0.10% | HY5: 408266.18 | HZ5: =(HY5-IZ5)/IZ5 -> -0.15% | IA5: =IA9+IA11+IA15+IA37+IA19+IA23+IA27+IA29+IA39+IA33+IA43+IA45+IA49+IA51+IA53+IA55+IA57 -> 396435.30 | IB5: 0.17% | IC5: 346329.83 | ID5: 1.75% | IE5: 460021.46 | IF5: 0.72% | IG5: 4822734 | IH5: =(IG5-#REF!)/#REF! ->  | IJ5: 363937.4196 | IK5: 1.25% | IL5: 533539.6573 | IM5: 0.79% | IN5: 410980.9457 | IO5: 1.63% | IP5: 370925.84 | IQ5: 2.81% | IR5: 412594.77 | IS5: 1.75% | IT5: 382626.48 | IU5: 2.36% | IV5: 397856.38 | IW5: -0.00% | IX5: 399045.47 | IY5: 2.16% | IZ5: 408894.40 | JA5: -0.96% | JB5: 395767.70 | JC5: -1.47% | JD5: 340357.92 | JE5: -2.33% | JF5: =JF9+JF11+JF15+JF37+JF19+JF23+JF27+JF29+JF39+JF33+JF43+JF45+JF49+JF51+JF53+JF55+JF57 -> 456742.55 | JG5: -10.11% | JH5: =SUM(JI5:JT5) -> 4892905 | JI5: 359459 | JJ5: 529374 | JK5: 404401 | JL5: 360777 | JM5: 405482 | JN5: 373812 | JO5: 397868 | JP5: 390623 | JQ5: 412871 | JR5: 401657 | JS5: 348483 | JT5: 508099 | JU5: =#REF!+JT5 ->  | JV5: 4896760 | JW5: =(JV5-JU5)/JU5*100 ->  | JX5: =JV5-JU5 -> 
B6: 其中个体客运量 （万人） | C6: =C12+C24+C30+C34+C40+C46 -> 21.83 | D6: =C6/R6-1 -> -57.19% | E6: 21.06 | F6: -54.01% | G6: 20.14 | H6: -51.77% | I6: =I12+I24+I30+I34+I40+I46 -> 19.53 | J6: =I6/X6-1 -> -48.99% | K6: 19.89 | L6: -48.63% | M6: 20.29 | N6: -45.35% | O6: 122.74 | P6: -51.42% | R6: =R12+R24+R30+R34+R40+R46 -> 50.98 | S6: =R6/AS6-1 -> -27.03% | T6: =T12+T16+T20+T24+T30+T40+T34+T46 -> 45.80 | U6: -30.51% | V6: 41.76 | W6: -27.02% | X6: 38.30 | Y6: =X6/AY6-1 -> -31.58% | Z6: =Z12+Z16+Z20+Z24+Z30+Z40+Z34+Z46 -> 38.71 | AA6: -33.70% | AB6: 37.13 | AC6: -33.46% | AD6: 34.40 | AE6: =AD6/BE6-1 -> -34.01% | AF6: =AF12+AF16+AF20+AF24+AF30+AF40+AF34+AF46 -> 32.57 | AG6: -36.54% | AH6: 33.08 | AI6: -45.74% | AJ6: 29.03 | AK6: =AJ6/BK6-1 -> -53.29% | AL6: =AL12+AL16+AL20+AL24+AL30+AL40+AL34+AL46 -> 28.51 | AM6: -52.40% | AN6: =AN12+AN16+AN20+AN24+AN30+AN40+AN34+AN46 -> 27.02 | AO6: -51.24% | AP6: 437.28 | AQ6: -37.98% | AS6: 69.8684 | AT6: -21.91% | AU6: =AU12+AU16+AU20+AU24+AU30+AU40+AU34+AU46 -> 65.90 | AV6: =AU6/BV6-1 -> -26.17% | AW6: 57.22 | AX6: -34.76% | AY6: 55.98 | AZ6: -36.37% | BA6: =BA12+BA16+BA20+BA24+BA30+BA40+BA34+BA46 -> 58.38 | BB6: =BA6/CB6-1 -> -34.66% | BC6: 55.80 | BD6: -38.49% | BE6: 52.12 | BF6: -42.98% | BG6: =BG12+BG16+BG20+BG24+BG30+BG40+BG34+BG46 -> 51.31 | BH6: =BG6/CH6-1 -> -35.13% | BI6: 60.97 | BJ6: -23.70% | BK6: 62.14 | BL6: -22.07% | BM6: =BM12+BM16+BM20+BM24+BM30+BM40+BM34+BM46 -> 59.90 | BN6: =BM6/CN6-1 -> -13.41% | BO6: =BO12+BO16+BO20+BO24+BO30+BO40+BO34+BO46 -> 55.41 | BP6: -13.71% | BQ6: 705.01 | BR6: -29.36% | BT6: =BT12+BT16+BT20+BT24+BT30+BT40+BT34+BT46 -> 89.4743 | BU6: -4.51% | BV6: =BV12+BV16+BV20+BV24+BV30+BV40+BV34+BV46 -> 89.2611 | BW6: -9.31% | BX6: =SUM(BX12,BX16,BX20,BX24,BX30,BX40,BX34,BX46) -> 87.7063 | BY6: 1.03% | BZ6: =SUM(BZ12,BZ16,BZ20,BZ24,BZ30,BZ40,BZ34,BZ46) -> 87.9754 | CA6: 7.98% | CB6: =CB12+CB16+CB20+CB24+CB30+CB40+CB34+CB46 -> 89.3497 | CC6: 2.13% | CD6: 90.7250 | CE6: 8.90% | CF6: 91.4184 | CG6: 7.61% | CH6: =CH12+CH16+CH20+CH24+CH30+CH40+CH34+CH46 -> 79.10 | CI6: -4.92% | CJ6: =CJ12+CJ16+CJ20+CJ24+CJ30+CJ40+CJ46+CJ34 -> 79.91 | CK6: -4.32% | CL6: 79.73 | CM6: -6.45% | CN6: 69.18 | CO6: 2.67% | CP6: =CP12+CP16+CP20+CP24+CP30+CP40+CP46+CP34 -> 64.22 | CQ6: -5.69% | CR6: 998.0463 | CS6: -0.55% | CT6: -7.17% | CV6: 93.70 | CW6: 98.42 | CX6: 86.81 | CY6: 81.47 | CZ6: 87.49 | DA6: 83.31 | DB6: 84.95 | DC6: 83.19 | DD6: 83.52 | DE6: 85.23 | DF6: 67.38 | DG6: 68.09 | DH6: 1003.58 | DI6: -22.04% | DK6: =DK12+DK16+DK20+DK24+DK30+DK40+DK34+DK46 -> 122.9998 | DM6: 136.7121 | DO6: 121.3927 | DQ6: 381.10 | DR6: =DR12+DR16+DR20+DR24+DR30+DR40+DR34+DR46 -> 111.0344 | DS6: =(DR6-ER6)/ER6 ->  | DT6: 121.6010 | DV6: 109.9823 | DX6: =DX12+DX16+DX20+DX24+DX30+DX40+DX34+DX46 -> 109.8008 | DY6: =(DX6-EX6)/EX6 ->  | DZ6: 87.1102 | EB6: 95.1574 | ED6: =ED12+ED16+ED20+ED24+ED30+ED40+ED34+ED46 -> 93.7887 | EE6: =(ED6-FD6)/FD6 ->  | EF6: 89.8158 | EH6: 87.9507 | EJ6: =EJ12+EJ16+EJ20+EJ24+EJ30+EJ40+EJ34+EJ46 -> 1,287.3459 | FJ6: 0.0000
B7: 其中个体旅客周转量（万人公里） | C7: =C13+C17+C21+C25+C31+C41+C35+C47 -> 584.27 | D7: =C7/R7-1 -> -59.41% | E7: 527.41 | F7: -55.14% | G7: 498.89 | H7: -53.62% | I7: =I13+I17+I21+I25+I31+I41+I35+I47 -> 484.20 | J7: =I7/X7-1 -> -51.12% | K7: 493.89 | L7: -50.77% | M7: 496.60 | N7: -47.50% | O7: 3085.27 | P7: -53.47% | R7: 1439.60 | S7: =R7/AS7-1 -> -16.46% | T7: 1175.64 | U7: -28.14% | V7: =V13+V17+V21+V25+V31+V41+V35+V47 -> 1075.66 | W7: -27.71% | X7: 990.69 | Y7: =X7/AY7-1 -> -32.19% | Z7: 1003.16 | AA7: -32.77% | AB7: =AB13+AB17+AB21+AB25+AB31+AB41+AB35+AB47 -> 945.93 | AC7: -32.46% | AD7: 885.00 | AE7: =AD7/BE7-1 -> -30.49% | AF7: 809.88 | AG7: -37.82% | AH7: =AH13+AH17+AH21+AH25+AH31+AH41+AH35+AH47 -> 832.00 | AI7: -50.38% | AJ7: 721.56 | AK7: =AJ7/BK7-1 -> -57.48% | AL7: 737.07 | AM7: -53.52% | AN7: =AN13+AN17+AN21+AN25+AN31+AN41+AN35+AN47 -> 708.41 | AO7: -49.89% | AP7: 11324.60 | AQ7: -37.61% | AS7: 1723.3406 | AT7: -22.53% | AU7: =AU13+AU17+AU21+AU25+AU31+AU41+AU35+AU47 -> 1635.91 | AV7: =AU7/BV7-1 -> -26.83% | AW7: 1488.08 | AX7: -33.12% | AY7: 1460.90 | AZ7: -35.52% | BA7: =BA13+BA17+BA21+BA25+BA31+BA41+BA35+BA47 -> 1492.05 | BB7: =BA7/CB7-1 -> -35.30% | BC7: 1400.60 | BD7: -35.79% | BE7: 1273.27 | BF7: -37.03% | BG7: =BG13+BG17+BG21+BG25+BG31+BG41+BG35+BG47 -> 1302.54 | BH7: =BG7/CH7-1 -> -33.21% | BI7: 1676.66 | BJ7: -12.51% | BK7: 1696.89 | BL7: -16.21% | BM7: =BM13+BM17+BM21+BM25+BM31+BM41+BM35+BM47 -> 1585.89 | BN7: =BM7/CN7-1 -> -10.29% | BO7: =BO13+BO17+BO21+BO25+BO31+BO41+BO35+BO47 -> 1413.76 | BP7: -10.54% | BQ7: 18149.89 | BR7: -26.52% | BT7: =BT13+BT17+BT21+BT25+BT31+BT41+BT35+BT47 -> 2224.5900 | BU7: -8.83% | BV7: =BV13+BV17+BV21+BV25+BV31+BV41+BV35+BV47 -> 2235.6633 | BW7: -9.51% | BX7: =SUM(BX13,BX17,BX21,BX25,BX31,BX41,BX35,BX47) -> 2224.9107 | BY7: 6.91% | BZ7: 2265.8042 | CA7: 16.99% | CB7: 2306.1412 | CC7: 11.96% | CD7: =SUM(CD13,CD17,CD21,CD25,CD31,CD41,CD35,CD47) -> 2181.1615 | CE7: 8.91% | CF7: 2022.1535 | CG7: -4.81% | CH7: 1950.14 | CI7: 0.57% | CJ7: =SUM(CJ13,CJ17,CJ21,CJ25,CJ31,CJ41,CJ35,CJ47) -> 1916.35 | CK7: -7.61% | CL7: 2025.18 | CM7: -1.99% | CN7: 1767.88 | CO7: 17.60% | CP7: =SUM(CP13,CP17,CP21,CP25,CP31,CP41,CP35,CP47) -> 1580.31 | CQ7: -2.09% | CR7: 24700.2896 | CS7: 1.60% | CT7: -10.61% | CV7: 2440.14 | CW7: 2470.59 | CX7: 2081.12 | CY7: 1936.72 | CZ7: 2059.81 | DA7: 2002.63 | DB7: 2124.24 | DC7: 1939.07 | DD7: 2074.30 | DE7: 2066.20 | DF7: 1503.28 | DG7: 1613.99 | DH7: 24312.10 | DI7: -26.08% | DK7: =DK13+DK17+DK21+DK25+DK31+DK41+DK35+DK47 -> 3,325.0447 | DM7: 3,870.8858 | DO7: 3,401.4900 | DQ7: 10597.42 | DR7: =DR13+DR17+DR21+DR25+DR31+DR41+DR35+DR47 -> 2,760.0995 | DS7: =(DR7-ER7)/ER7 ->  | DT7: 3,101.4784 | DV7: 2,696.0046 | DX7: =DX13+DX17+DX21+DX25+DX31+DX41+DX35+DX47 -> 2,575.3929 | DY7: =(DX7-EX7)/EX7 ->  | DZ7: 2,100.1407 | EB7: 2,338.1611 | ED7: =ED13+ED17+ED21+ED25+ED31+ED41+ED35+ED47 -> 2,334.3781 | EE7: =(ED7-FD7)/FD7 ->  | EF7: 2,206.7666 | EH7: 2,181.2040 | EJ7: =EJ13+EJ17+EJ21+EJ25+EJ31+EJ41+EJ35+EJ47 -> 32,891.0464 | FJ7: 0.0000
A8: 武汉市 | B8: 客运量 （万人） | C8: 323.8804 | D8: =C8/R8-1 -> 26.93% | E8: 236.0855 | F8: -6.56% | G8: 326.996 | H8: 5.44% | I8: 335.787 | J8: =I8/X8-1 -> -0.40% | K8: 327.5977 | L8: 4.31% | M8: 341.1759 | N8: 5.75% | O8: 1891.52 | P8: 5.57% | R8: 255.17 | S8: =R8/AS8-1 -> 577.13% | T8: 252.65 | U8: 683.76% | V8: 310.1362 | W8: 497.43% | X8: 337.1413 | Y8: =X8/AY8-1 -> 470.99% | Z8: 314.0756 | AA8: 434.35% | AB8: 322.6236 | AC8: 497.57% | AD8: 346.4243 | AE8: =AD8/BE8-1 -> 603.21% | AF8: 324.3908 | AG8: 635.60% | AH8: 349.4122 | AI8: 551.61% | AJ8: 330.8522 | AK8: =AJ8/BK8-1 -> 10.86% | AL8: 355.1516 | AM8: 16.10% | AN8: 354.3792 | AO8: 17.92% | AP8: 3852.41 | AQ8: 186.32% | AS8: 37.68 | AT8: 133.89% | AU8: 32.2358 | AV8: =AU8/BV8-1 -> 6.93% | AW8: 51.9115 | AX8: 0.17% | AY8: 59.05 | AZ8: 14.42% | BA8: 58.78 | BB8: =BA8/CB8-1 -> 14.08% | BC8: 53.99 | BD8: 10.11% | BE8: 49.26 | BF8: 11.32% | BG8: 44.10 | BH8: =BG8/CH8-1 -> 7.42% | BI8: 53.62 | BJ8: 25.06% | BK8: 298.43 | BL8: 455.32% | BM8: 305.89 | BN8: =BM8/CN8-1 -> 461.29% | BO8: 300.51 | BP8: 518.33% | BQ8: 1345.47 | BR8: 151.36% | BT8: 16.11 | BU8: -61.49% | BV8: 30.15 | BW8: -23.52% | BX8: 51.82 | BY8: 85.98% | BZ8: 51.6056 | CA8: 147.32% | CB8: 51.5205 | CC8: 89.54% | CD8: 49.0330 | CE8: 40.89% | CF8: 44.255 | CG8: 22.91% | CH8: 41.05 | CI8: 38.76% | CJ8: 42.88 | CK8: 49.17% | CL8: 53.74 | CM8: 178.33% | CN8: 54.50 | CO8: 276.10% | CP8: 48.60 | CQ8: 340.72% | CR8: 535.2699 | CS8: 61.65% | CT8: -10.82% | CV8: 41.84 | CW8: 39.42 | CX8: 27.87 | CY8: 20.87 | CZ8: 27.18 | DA8: 34.80 | DB8: 36.01 | DC8: 29.59 | DD8: 28.74 | DE8: 19.31 | DF8: 14.49 | DG8: 11.03 | DH8: 331.14 | DI8: -42.76% | DK8: 34.234 | DL8: -46.87% | DM8: 30.7588 | DO8: 46.2780 | DQ8: 111.27 | DR8: 64.3700 | DS8: =(DR8-ER8)/ER8 -> 445.05% | DT8: 64.4300 | DU8: 117.44% | DV8: 63.3300 | DW8: 36.13% | DX8: 61.0000 | DY8: =(DX8-EX8)/EX8 -> 7.60% | DZ8: 22.8109 | EA8: -67.65% | EB8: 47.2808 | EC8: -31.30% | ED8: 49.4189 | EE8: =(ED8-FD8)/FD8 -> -58.63% | EF8: 49.061 | EG8: -43.56% | EH8: 45.5398 | EI8: -35.40% | EJ8: =DK8+DM8+DO8+DR8+DT8+DV8+DX8+DZ8+EB8+ED8+EF8+EH8 -> 578.5122 | EK8: -27.94% | EL8: 242.0000 | EM8: -63.22% | EN8: 0.0000 | EO8: -100.00% | EP8: 0.0000 | EQ8: -100.00% | ER8: 11.8100 | ES8: -97.20% | ET8: 29.6318 | EU8: -92.57% | EV8: 46.5200 | EW8: -87.69% | EX8: 56.6900 | EY8: -84.84% | EZ8: 70.5100 | FA8: -77.69% | FB8: 68.8200 | FC8: -80.28% | FD8: 119.4500 | FE8: =(FD8-FU8)/FU8 -> -66.07% | FF8: 86.9200 | FG8: -70.13% | FH8: 70.5000 | FI8: -60.17% | FJ8: 802.8518 | FK8: -83.56% | FL8: 658 | FM8: 680 | FN8: 487 | FO8: 422 | FP8: 399 | FQ8: 378 | FR8: 374.0000 | FS8: 316.0000 | FT8: 349.0000 | FU8: 352.0000 | FV8: =(FU8-GW8)/GW8 -> -54.29% | FW8: 291.0000 | FX8: -61.56% | FY8: 177.0000 | FZ8: -71.45% | GA8: 4883.00 | GB8: -44.93% | GE8: 729 | GF8: =(GE8-HH8)/HH8 -> -15.13% | GG8: 832 | GH8: -22.96% | GI8: 780 | GJ8: -15.22% | GK8: 808 | GL8: -4.04% | GM8: 715 | GN8: -18.00% | GO8: 758 | GP8: =(GO8-HS8)/HS8 -> -11.55% | GQ8: 716 | GR8: -15.76% | GS8: 672 | GT8: -22.04% | GU8: 710 | GV8: =(GU8-HY8)/HY8 -> -16.47% | GW8: 770 | GX8: -15.38% | GY8: 757 | GZ8: -7.68% | HA8: 620 | HB8: -15.42% | HC8: 8867 | HD8: 8867 | HF8: 平均运距181公里 | HH8: 859 | HI8: =(HH8-IJ8)/IJ8 -> -4.71% | HJ8: 1080.00 | HK8: -14.70% | HL8: 920.00 | HM8: -10.16% | HN8: 842.00 | HO8: -14.86% | HP8: 872.00 | HQ8: -10.20% | HS8: 857.00 | HT8: =(HS8-IT8)/IT8 -> -13.87% | HU8: 850.00 | HV8: -8.21% | HW8: 862.00 | HX8: -3.25% | HY8: 850.00 | HZ8: =(HY8-IZ8)/IZ8 -> -2.52% | IA8: 910.00 | IB8: -5.31% | IC8: 820.00 | ID8: -3.53% | IE8: 733.00 | IF8: -12.43% | IG8: 10455 | IJ8: 902 | IK8: -11.89% | IL8: 1266 | IM8: -9.79% | IN8: 1024 | IO8: -9.18% | IP8: 989.00 | IQ8: 11.17% | IR8: 971.00 | IS8: 9.57% | IT8: 995.00 | IU8: 5.16% | IV8: 926.00 | IW8: -1.77% | IX8: 891 | IY8: -2.11% | IZ8: 872 | JA8: -4.62% | JB8: 961 | JC8: 2.08% | JD8: 850 | JE8: 0.54% | JF8: 837 | JG8: -16.75% | JH8: 11835 | JI8: 1023 | JJ8: 1403 | JK8: 1127 | JL8: 890 | JM8: 886 | JN8: 946 | JO8: 943 | JP8: 910 | JQ8: 914 | JR8: 941 | JS8: 845 | JT8: 1005
B9: 旅客周转量 （万人公里） | C9: 15634.2955 | D9: =C9/R9-1 -> 25.30% | E9: 13762.8961 | F9: 0.30% | G9: 18904.2637 | H9: 0.22% | I9: 21448.6084 | J9: =I9/X9-1 -> -3.73% | K9: 20903.5122 | L9: 6.44% | M9: 19301.074 | N9: 7.22% | O9: 109954.65 | P9: 4.74% | R9: 12477.09 | S9: =R9/AS9-1 -> 69.58% | T9: 13721.33 | U9: 59.69% | V9: 18862.214 | W9: 59.45% | X9: 22278.7557 | Y9: =X9/AY9-1 -> 57.98% | Z9: 19639.6472 | AA9: 49.97% | AB9: 18002.1549 | AC9: 61.43% | AD9: 18986.7293 | AE9: =AD9/BE9-1 -> 61.47% | AF9: 17983.9839 | AG9: 72.48% | AH9: 19399.7794 | AI9: 78.98% | AJ9: 21001.8897 | AK9: =AJ9/BK9-1 -> 5.62% | AL9: 20735.7868 | AM9: 13.43% | AN9: 18221.526 | AO9: 26.95% | AP9: 221310.89 | AQ9: 45.91% | AS9: 7357.66 | AT9: 129.73% | AU9: 8592.7413 | AV9: =AU9/BV9-1 -> 32.23% | AW9: 11829.351 | AX9: -8.76% | AY9: 14101.90 | AZ9: 15.32% | BA9: 13096.13 | BB9: =BA9/CB9-1 -> 21.01% | BC9: 11151.92 | BD9: 7.23% | BE9: 11759.02 | BF9: 13.44% | BG9: 10426.67 | BH9: =BG9/CH9-1 -> 5.07% | BI9: 10838.90 | BJ9: 2.60% | BK9: 19883.77 | BL9: 70.46% | BM9: 18280.05 | BN9: =BM9/CN9-1 -> 65.56% | BO9: 14353.36 | BP9: 73.21% | BQ9: 151671.48 | BR9: 28.57% | BT9: 3202.76 | BU9: -51.60% | BV9: 6498.38 | BW9: 7.17% | BX9: 12965.78 | BY9: 320.29% | BZ9: 12228.1172 | CA9: 410.04% | CB9: 10822.1259 | CC9: 177.73% | CD9: 10400.3617 | CE9: 36.90% | CF9: 10366.0647 | CG9: 23.75% | CH9: 9923.97 | CI9: 69.93% | CJ9: 10564.11 | CK9: 118.30% | CL9: 11664.96 | CM9: 338.96% | CN9: 11041.07 | CO9: 439.21% | CP9: 8286.78 | CQ9: 352.34% | CR9: 117964.4858 | CS9: 113.51% | CT9: -24.95% | CV9: 6617.11 | CW9: 6063.56 | CX9: 3084.94 | CY9: 2397.50 | CZ9: 3896.60 | DA9: 7596.98 | DB9: 8376.61 | DC9: 5840.00 | DD9: 4839.16 | DE9: 2657.42 | DF9: 2047.64 | DG9: 1831.99 | DH9: 55249.52 | DI9: -47.54% | DK9: 4,523.30 | DL9: -64.92% | DM9: 5241.8177 | DO9: 9511.3416 | DQ9: 19276.46 | DR9: 14974.0656 | DS9: =(DR9-ER9)/ER9 -> 803.26% | DT9: 12893.9500 | DU9: 298.86% | DV9: 11748.4800 | DW9: 128.40% | DX9: 11974.4000 | DY9: =(DX9-EX9)/EX9 -> 89.24% | DZ9: 3146.1531 | EA9: -62.55% | EB9: 7805.1603 | EC9: -1.09% | ED9: 8218.7359 | EE9: =(ED9-FD9)/FD9 -> -41.98% | EF9: 7682.7804 | EG9: -26.68% | EH9: 7590.2016 | EI9: -4.68% | EJ9: 105310.3874 | EK9: 8.08% | EL9: 32176.0000 | EM9: -34.15% | EN9: 0.0000 | EO9: -100.00% | EP9: 0.0000 | EQ9: -100.00% | ER9: 1657.7800 | ES9: -95.64% | ET9: 3232.6954 | EU9: -90.91% | EV9: 5143.8600 | EW9: -85.18% | EX9: 6327.4900 | EY9: -81.08% | EZ9: 8401.2300 | FA9: -76.15% | FB9: 7891.2900 | FC9: -77.04% | FD9: 14166.0500 | FE9: =(FD9-FU9)/FU9 -> -66.51% | FF9: 10477.8700 | FG9: -66.10% | FH9: 7962.9000 | FI9: -64.60% | FJ9: 97437.1654 | FK9: -77.59% | FL9: 48861 | FM9: 42276 | FN9: 36525 | FO9: 38051 | FP9: 35571 | FQ9: 34710 | FR9: 33,437.0000 | FS9: 35,219.0000 | FT9: 34,369.0000 | FU9: 42,294.0000 | FV9: =(FU9-GW9)/GW9 -> -38.85% | FW9: 30,906.0000 | FX9: -48.51% | FY9: 22,497.0000 | FZ9: -50.87% | GA9: 434716.00 | GB9: -35.10% | GE9: 43743 | GF9: =(GE9-HH9)/HH9 -> -24.17% | GG9: 52486 | GH9: -47.25% | GI9: 53040 | GJ9: -6.70% | GK9: 57218 | GL9: -14.45% | GM9: 53423 | GN9: -13.63% | GO9: 58100 | GP9: =(GO9-HS9)/HS9 -> -10.71% | GQ9: 59610 | GR9: -2.28% | GS9: 61763 | GT9: -5.63% | GU9: 55495 | GV9: =(GU9-HY9)/HY9 -> -6.26% | GW9: 69170 | GX9: 2.02% | GY9: 60019 | GZ9: 2.60% | HA9: 45793 | HB9: -13.57% | HC9: 669860 | HD9: 669860 | HH9: 57685 | HI9: =(HH9-IJ9)/IJ9 -> -8.25% | HJ9: 99500.00 | HK9: -14.87% | HL9: 56846.00 | HM9: -6.25% | HN9: 66880.00 | HO9: -4.64% | HP9: 61855.00 | HQ9: -6.82% | HS9: 65069.00 | HT9: =(HS9-IT9)/IT9 -> -4.21% | HU9: 61000.00 | HV9: -2.31% | HW9: 65448.00 | HX9: -0.62% | HY9: 59200.00 | HZ9: =(HY9-IZ9)/IZ9 -> -0.44% | IA9: 67800.00 | IB9: -1.87% | IC9: 58500.00 | ID9: -0.85% | IE9: 52982.00 | IF9: -0.28% | IG9: 772765 | IJ9: 62872 | IK9: -3.57% | IL9: 116886 | IM9: -9.62% | IN9: 60635 | IO9: 6.09% | IP9: 70132.00 | IQ9: 10.00% | IR9: 66382.00 | IS9: 13.49% | IT9: 67927.00 | IU9: 13.84% | IV9: 62445.00 | IW9: -3.87% | IX9: 65854 | IY9: 3.65% | IZ9: 59,463.00 | JA9: 1.35% | JB9: 69,092.00 | JC9: -4.62% | JD9: 59,000.00 | JE9: 0.69% | JF9: 53,130.00 | JG9: -10.08% | JH9: 810885 | JI9: 65199 | JJ9: 129330 | JK9: 57156 | JL9: 63756 | JM9: 58492 | JN9: 59668 | JO9: 64958 | JP9: 63535 | JQ9: 58673 | JR9: 72437 | JS9: 58594 | JT9: 59087
A10: 黄石市 | B10: 客运量 （万人） | C10: 75.4816 | D10: =C10/R10-1 -> -23.00% | E10: 84.6235 | F10: -12.69% | G10: 79.3692 | H10: -14.26% | I10: 78.3745 | J10: =I10/X10-1 -> -15.67% | K10: 75.5822 | L10: -17.15% | M10: 74.7909 | N10: -14.04% | O10: 468.22 | P10: -16.19% | R10: 98.03 | S10: =R10/AS10-1 -> -1.96% | T10: 96.92 | U10: -8.30% | V10: 92.5724 | W10: -2.06% | X10: 92.9372 | Y10: =X10/AY10-1 -> -4.04% | Z10: 91.2247 | AA10: -4.43% | AB10: 87.0116 | AC10: -2.96% | AD10: 86.8392 | AE10: =AD10/BE10-1 -> -2.26% | AF10: 84.9174 | AG10: -1.44% | AH10: 84.3078 | AI10: -1.13% | AJ10: 84.4888 | AK10: =AJ10/BK10-1 -> -4.17% | AL10: 82.6305 | AM10: -4.01% | AN10: 77.1923 | AO10: -9.34% | AP10: 1059.07 | AQ10: -3.88% | AS10: 99.99 | AT10: -23.34% | AU10: 105.6907 | AV10: =AU10/BV10-1 -> -16.32% | AW10: 94.5163 | AX10: -19.18% | AY10: 96.85 | AZ10: -12.22% | BA10: 95.45 | BB10: =BA10/CB10-1 -> -10.02% | BC10: 89.67 | BD10: -14.49% | BE10: 88.85 | BF10: -13.77% | BG10: 86.15 | BH10: =BG10/CH10-1 -> -18.64% | BI10: 85.27 | BJ10: -16.28% | BK10: 88.17 | BL10: -15.42% | BM10: 86.08 | BN10: =BM10/CN10-1 -> -15.94% | BO10: 85.15 | BP10: -14.37% | BQ10: 1101.84 | BR10: -16.01% | BT10: 130.43 | BU10: -2.05% | BV10: 126.30 | BW10: -7.84% | BX10: 116.94 | BY10: -8.91% | BZ10: 110.3304 | CA10: -2.95% | CB10: 106.0867 | CC10: -9.61% | CD10: 104.8661 | CE10: -9.55% | CF10: 103.034 | CG10: -12.18% | CH10: 105.90 | CI10: -10.50% | CJ10: =100.995+0.8543 -> 101.85 | CK10: -13.73% | CL10: =103.2384+CL12 -> 104.25 | CM10: -12.83% | CN10: 102.41 | CO10: -1.56% | CP10: 99.44 | CQ10: -13.79% | CR10: 1311.8213 | CS10: -8.79% | CT10: -2.90% | CV10: 133.15 | CW10: 137.04 | CX10: 128.38 | CY10: 113.68 | CZ10: 117.36 | DA10: 115.93 | DB10: 117.32 | DC10: 118.31 | DD10: 118.06 | DE10: 119.59 | DF10: 104.04 | DG10: 115.35 | DH10: 1438.21 | DI10: -10.43% | DK10: 136.862 | DL10: 0.08% | DM10: 147.0029 | DO10: 136.2224 | DQ10: 420.09 | DR10: 136.2181 | DS10: =(DR10-ER10)/ER10 -> 56.61% | DT10: 136.7568 | DU10: 96.18% | DV10: 133.4810 | DW10: 72.93% | DX10: 132.9982 | DY10: =(DX10-EX10)/EX10 -> 38.45% | DZ10: 119.4692 | EA10: -10.48% | EB10: 129.9068 | EC10: -7.66% | ED10: 133.9978 | EE10: =(ED10-FD10)/FD10 -> -20.98% | EF10: 130.2118 | EG10: -8.20% | EH10: 132.6356 | EI10: 2.60% | EJ10: 1605.7626 | EK10: 30.85% | EL10: 182.3800 | EM10: -7.15% | EN10: 0.0000 | EO10: -100.00% | EP10: 0.0000 | EQ10: -100.00% | ER10: 86.9800 | ES10: -56.05% | ET10: 69.7100 | EU10: -60.29% | EV10: 77.1900 | EW10: -60.37% | EX10: 96.0600 | EY10: -49.37% | EZ10: 133.4500 | FA10: -23.09% | FB10: 140.6900 | FC10: -33.87% | FD10: 169.5700 | FE10: =(FD10-FU10)/FU10 -> -27.98% | FF10: 141.8500 | FG10: -39.66% | FH10: 129.2800 | FI10: -38.67% | FJ10: 1227.1600 | FK10: -53.32% | FL10: 196 | FM10: 304 | FN10: 303 | FO10: 198 | FP10: 176 | FQ10: 195 | FR10: 189.7400 | FS10: 173.5100 | FT10: 212.7600 | FU10: 235.4400 | FV10: =(FU10-GW10)/GW10 -> -6.58% | FW10: 235.0700 | FX10: 8.40% | FY10: 210.7900 | FZ10: -17.66% | GA10: 2628.91 | GB10: -14.36% | GE10: 198 | GF10: =(GE10-HH10)/HH10 -> -33.45% | GG10: 390 | GH10: -3.49% | GI10: 320 | GJ10: -0.99% | GK10: 220 | GL10: -13.95% | GM10: 217 | GN10: -15.53% | GO10: 251.01 | GP10: =(GO10-HS10)/HS10 -> -8.53% | GQ10: 253 | GR10: -7.31% | GS10: 246 | GT10: -5.82% | GU10: 250 | GV10: =(GU10-HY10)/HY10 -> -4.63% | GW10: 252 | GX10: -7.17% | GY10: 217 | GZ10: -10.39% | HA10: 256 | HB10: -13.51% | HC10: 3070 | HD10: 3070 | HH10: 297 | HI10: =(HH10-IJ10)/IJ10 -> 1.02% | HJ10: 404.54 | HK10: 0.78% | HL10: 323.04 | HM10: -0.17% | HN10: 256.00 | HO10: 0.39% | HP10: 257.00 | HQ10: 1.18% | HS10: 274.42 | HT10: =(HS10-IT10)/IT10 -> 1.26% | HU10: 273.00 | HV10: 1.11% | HW10: 261.00 | HX10: 0.38% | HY10: 262.00 | HZ10: =(HY10-IZ10)/IZ10 -> 0.77% | IA10: 271.50 | IB10: 0.93% | IC10: 242.00 | ID10: 1.26% | IE10: 296.00 | IF10: 0.68% | IG10: 3418 | IJ10: 294 | IK10: 1.92% | IL10: 401 | IM10: 1.51% | IN10: 324 | IO10: 1.87% | IP10: 255 | IQ10: 2.25% | IR10: 254.0000 | IS10: 2.54% | IT10: 271.0000 | IU10: 1.79% | IV10: 270.00 | IW10: 1.91% | IX10: 260 | IY10: 1.78% | IZ10: 260 | JA10: 1.36% | JB10: 269 | JC10: 2.21% | JD10: 239.00 | JE10: 0.81% | JF10: 294 | JG10: 3.86% | JH10: 3325 | JI10: 288 | JJ10: 395 | JK10: 318 | JL10: 249 | JM10: 248 | JN10: 266 | JO10: 265 | JP10: 255 | JQ10: 257 | JR10: 263 | JS10: 237 | JT10: 283
B11: 旅客周转量 （万人公里） | C11: 2072.6875 | D11: =C11/R11-1 -> -19.10% | E11: 2381.0712 | F11: -6.88% | G11: 2528.9262 | H11: -9.22% | I11: 2913.672 | J11: =I11/X11-1 -> -6.08% | K11: 2547.6156 | L11: -5.72% | M11: 2470.4711 | N11: -0.68% | O11: 14914.44 | P11: -7.91% | R11: 2561.96 | S11: =R11/AS11-1 -> 2.22% | T11: 2556.90 | U11: 3.34% | V11: 2785.6986 | W11: 0.08% | X11: 3102.1665 | Y11: =X11/AY11-1 -> -0.73% | Z11: 2702.052 | AA11: -8.73% | AB11: 2487.3006 | AC11: -3.24% | AD11: 2434.3376 | AE11: =AD11/BE11-1 -> -13.00% | AF11: 2571.1196 | AG11: -3.94% | AH11: 2439.2523 | AI11: -6.14% | AJ11: 2622.7803 | AK11: =AJ11/BK11-1 -> -9.75% | AL11: 2698.1026 | AM11: -1.19% | AN11: 2490.7552 | AO11: 7.16% | AP11: 31452.42 | AQ11: -3.09% | AS11: 2506.26 | AT11: -4.58% | AU11: 2474.1958 | AV11: =AU11/BV11-1 -> -8.85% | AW11: 2783.4942 | AX11: -15.39% | AY11: 3124.87 | AZ11: -4.17% | BA11: 2960.35 | BB11: =BA11/CB11-1 -> -8.52% | BC11: 2570.54 | BD11: -16.39% | BE11: 2797.96 | BF11: -9.28% | BG11: 2676.61 | BH11: =BG11/CH11-1 -> -15.72% | BI11: 2598.88 | BJ11: -14.67% | BK11: 2906.17 | BL11: -8.68% | BM11: 2730.66 | BN11: =BM11/CN11-1 -> -8.86% | BO11: 2324.44 | BP11: -10.99% | BQ11: 32454.44 | BR11: -10.59% | BT11: 2626.66 | BU11: -16.65% | BV11: 2714.44 | BW11: -18.33% | BX11: 3289.97 | BY11: 11.65% | BZ11: 3260.6964 | CA11: 33.88% | CB11: 3236.2005 | CC11: 20.47% | CD11: 3074.3419 | CE11: 6.56% | CF11: 3084.3101 | CG11: 3.95% | CH11: 3175.79 | CI11: 10.70% | CJ11: =3030.8088+CJ13 -> 3045.69 | CK11: 6.56% | CL11: =3166.7203+CL13 -> 3182.34 | CM11: 15.36% | CN11: 2996.23 | CO11: 35.64% | CP11: 2611.31 | CQ11: 16.50% | CR11: 36297.9717 | CS11: 8.90% | CT11: -12.85% | CV11: 3151.28 | CW11: 3323.60 | CX11: 2946.67 | CY11: 2435.51 | CZ11: 2686.20 | DA11: 2885.04 | DB11: 2967.08 | DC11: 2868.70 | DD11: 2858.16 | DE11: 2758.69 | DF11: 2208.91 | DG11: 2241.42 | DH11: 33331.27 | DI11: -26.98% | DK11: 3,672.93 | DL11: -20.21% | DM11: 3872.4619 | DO11: 4065.4968 | DQ11: 11610.89 | DR11: 4491.6433 | DS11: =(DR11-ER11)/ER11 -> -31.87% | DT11: 4603.1440 | DU11: -20.17% | DV11: 4315.5691 | DW11: -36.18% | DX11: 4242.8576 | DY11: =(DX11-EX11)/EX11 -> -48.20% | DZ11: 2625.0030 | EA11: -75.41% | EB11: 3382.5641 | EC11: -69.35% | ED11: 3573.7885 | EE11: =(ED11-FD11)/FD11 -> -68.90% | EF11: 3406.4255 | EG11: -65.37% | EH11: 3392.7883 | EI11: -61.53% | EJ11: 45644.6691 | EK11: -48.34% | EL11: 9172.2000 | EM11: -33.79% | EN11: 0.0000 | EO11: -100.00% | EP11: 0.0000 | EQ11: -100.00% | ER11: 6592.5300 | ES11: -43.91% | ET11: 5766.0700 | EU11: -59.49% | EV11: 6761.7100 | EW11: -47.01% | EX11: 8191.3200 | EY11: -36.70% | EZ11: 10676.9100 | FA11: -15.37% | FB11: 11037.8400 | FC11: -21.71% | FD11: 11491.8200 | FE11: =(FD11-FU11)/FU11 -> -7.51% | FF11: 9838.0400 | FG11: -9.65% | FH11: 8820.1200 | FI11: -23.33% | FJ11: 88348.5600 | FK11: -45.89% | FL11: 13853 | FM11: 20994 | FN11: 15206 | FO11: 11754 | FP11: 14233 | FQ11: 12760 | FR11: 12,939.5500 | FS11: 12,615.7400 | FT11: 14,098.6600 | FU11: 12,424.8000 | FV11: =(FU11-GW11)/GW11 -> -17.08% | FW11: 10,888.2600 | FX11: -16.39% | FY11: 11,504.2400 | FZ11: -47.75% | GA11: 163271.50 | GB11: -19.84% | GE11: 14828 | GF11: =(GE11-HH11)/HH11 -> -6.19% | GG11: 23150 | GH11: 8.00% | GI11: 20101 | GJ11: 5.66% | GK11: 14566 | GL11: -6.55% | GM11: 16714 | GN11: -12.01% | GO11: 15769.04 | GP11: =(GO11-HS11)/HS11 -> -11.03% | GQ11: 16136 | GR11: -9.85% | GS11: 15600 | GT11: -11.86% | GU11: 16806 | GV11: =(GU11-HY11)/HY11 -> -10.52% | GW11: 14984 | GX11: -12.06% | GY11: 13023 | GZ11: -11.21% | HA11: 22017 | HB11: -13.90% | HC11: 203694 | HD11: 203694 | HH11: 15807 | HI11: =(HH11-IJ11)/IJ11 -> 0.94% | HJ11: 21435.00 | HK11: 0.23% | HL11: 19024.60 | HM11: 0.62% | HN11: 15587.00 | HO11: 0.25% | HP11: 18996.00 | HQ11: 1.86% | HS11: 17724.40 | HT11: =(HS11-IT11)/IT11 -> 0.92% | HU11: 17900.00 | HV11: 0.98% | HW11: 17698.00 | HX11: 3.28% | HY11: 18782.00 | HZ11: =(HY11-IZ11)/IZ11 -> 0.46% | IA11: 17039.00 | IB11: 0.50% | IC11: 14667.00 | ID11: 0.46% | IE11: 25571.00 | IF11: 1.32% | IG11: 220231 | IJ11: 15660 | IK11: 2.39% | IL11: 21385 | IM11: 1.39% | IN11: 18907 | IO11: 2.18% | IP11: 15548 | IQ11: 1.66% | IR11: 18,649.0000 | IS11: 2.71% | IT11: 17,563.0000 | IU11: 6.63% | IV11: 17726.00 | IW11: 1.64% | IX11: 17136 | IY11: 0.89% | IZ11: 18,696.00 | JA11: 0.11% | JB11: 16,954.00 | JC11: 2.82% | JD11: 14600.00 | JE11: 0.90% | JF11: 25,238.00 | JG11: 1.79% | JH11: 213665 | JI11: 15295 | JJ11: 21091 | JK11: 18504 | JL11: 15293 | JM11: 18157 | JN11: 16471 | JO11: 17440 | JP11: 16984 | JQ11: 18675 | JR11: 16489 | JS11: 14470 | JT11: 24794
B12: 其中个体客运量 （万人） | C12: 0.45 | D12: =C12/R12-1 -> -45.94% | E12: 0.4823 | F12: -47.88% | G12: 0.4978 | H12: -52.77% | I12: 0.4917 | J12: =I12/X12-1 -> -51.81% | K12: 0.4937 | L12: -52.99% | M12: 0.4869 | N12: -40.79% | O12: 2.90 | P12: -49.12% | R12: 0.83 | S12: =R12/AS12-1 -> 8.85% | T12: 0.93 | U12: 13.85% | V12: 1.05 | W12: 32.13% | X12: 1.02 | Y12: =X12/AY12-1 -> 25.53% | Z12: 1.05 | AA12: 34.54% | AB12: 0.82 | AC12: 9.68% | AD12: 0.74 | AE12: =AD12/BE12-1 -> -4.92% | AF12: 0.72 | AG12: -11.77% | AH12: 0.76 | AI12: -14.71% | AJ12: 0.77 | AK12: =AJ12/BK12-1 -> -7.29% | AL12: 0.4269 | AM12: -47.77% | AN12: 0.4303 | AO12: -41.39% | AP12: 9.54 | AQ12: -0.35% | AS12: 0.76 | AT12: 137.89% | AU12: 0.8128 | AV12: =AU12/BV12-1 -> 148.71% | AW12: 0.7976 | AX12: 140.75% | AY12: 0.81 | AZ12: 144.67% | BA12: 0.78 | BB12: =BA12/CB12-1 -> 115.73% | BC12: 0.75 | BD12: 91.54% | BE12: 0.77 | BF12: 6.32% | BG12: 0.81 | BH12: =BG12/CH12-1 -> -2.16% | BI12: 0.89 | BJ12: 4.06% | BK12: 0.83 | BL12: -17.20% | BM12: 0.82 | BN12: =BM12/CN12-1 -> -24.37% | BO12: 0.73 | BP12: -28.29% | BQ12: 9.57 | BR12: 26.18% | BT12: 0.32 | BU12: -14.01% | BV12: 0.33 | BW12: -10.73% | BX12: 0.33 | BY12: 9.23% | BZ12: 0.3322 | CA12: 20.84% | CB12: 0.3618 | CC12: 30.90% | CD12: 0.3914 | CE12: 54.83% | CF12: 0.73 | CG12: 183.89% | CH12: 0.83 | CI12: 216.79% | CJ12: 0.85 | CK12: 220.92% | CL12: 1.01 | CM12: 263.51% | CN12: 1.08 | CO12: 482.64% | CP12: 1.02 | CQ12: 270.04% | CR12: 7.5868 | CS12: 125.23% | CT12: -5.26% | CV12: 0.37 | CW12: 0.37 | CX12: 0.30 | CY12: 0.27 | CZ12: 0.28 | DA12: 0.25 | DB12: 0.26 | DC12: 0.26 | DD12: 0.27 | DE12: 0.28 | DF12: 0.19 | DG12: 0.28 | DH12: 3.37 | DI12: -35.32% | DK12: 0.45 | DM12: 0.4663 | DO12: 0.4701 | DQ12: 1.38 | DR12: 0.4662 | DS12: =(DR12-ER12)/ER12 ->  | DT12: 0.4568 | DV12: 0.4097 | DX12: 0.4089 | DY12: =(DX12-EX12)/EX12 ->  | DZ12: 0.4246 | EB12: 0.4596 | ED12: 0.4038 | EE12: =(ED12-FD12)/FD12 ->  | EF12: 0.4041 | EH12: 0.3915 | EJ12: 5.2077 | FJ12: 0.0000
B13: 其中个体旅客周转量（万人公里） | C13: 4.98 | D13: =C13/R13-1 -> -60.91% | E13: 5.2579 | F13: -62.00% | G13: 5.3201 | H13: -63.18% | I13: 5.2381 | J13: =I13/X13-1 -> -62.91% | K13: 5.2894 | L13: -63.12% | M13: 5.1518 | N13: -59.79% | O13: 31.24 | P13: -62.05% | R13: 12.75 | S13: =R13/AS13-1 -> -5.70% | T13: 13.84 | U13: -4.88% | V13: 14.45 | W13: 2.75% | X13: 14.12 | Y13: =X13/AY13-1 -> -2.91% | Z13: 14.34 | AA13: 2.19% | AB13: 12.81 | AC13: -6.10% | AD13: 10.35 | AE13: =AD13/BE13-1 -> -22.94% | AF13: 10.14 | AG13: -26.48% | AH13: 10.29 | AI13: -29.10% | AJ13: 10.34 | AK13: =AJ13/BK13-1 -> -25.51% | AL13: 10.34 | AM13: -25.07% | AN13: 4.96 | AO13: -57.36% | AP13: 138.74 | AQ13: -16.13% | AS13: 13.52 | AT13: 35.06% | AU13: 14.5471 | AV13: =AU13/BV13-1 -> 48.51% | AW13: 14.0632 | AX13: 41.55% | AY13: 14.55 | AZ13: 48.24% | BA13: 14.03 | BB13: =BA13/CB13-1 -> 26.28% | BC13: 13.64 | BD13: 18.29% | BE13: 13.43 | BF13: -3.44% | BG13: 13.79 | BH13: =BG13/CH13-1 -> -12.39% | BI13: 14.52 | BJ13: -2.45% | BK13: 13.88 | BL13: -11.10% | BM13: 13.80 | BN13: =BM13/CN13-1 -> -12.70% | BO13: 11.63 | BP13: -31.62% | BQ13: 165.42 | BR13: 6.60% | BT13: 10.01 | BU13: -18.18% | BV13: 9.80 | BW13: -18.25% | BX13: 9.94 | BY13: 6.41% | BZ13: 9.81 | CA13: 23.64% | CB13: 11.1135 | CC13: 36.72% | CD13: 11.5350 | CE13: 50.50% | CF13: 13.9097 | CG13: 77.85% | CH13: 15.74 | CI13: 92.43% | CJ13: 14.88 | CK13: 78.42% | CL13: 15.62 | CM13: 72.52% | CN13: 15.81 | CO13: 161.86% | CP13: 17.01 | CQ13: 88.05% | CR13: 155.1754 | CS13: 46.72% | CT13: 7.60% | CV13: 12.24 | CW13: 11.98 | CX13: 9.34 | CY13: 7.94 | CZ13: 8.13 | DA13: 7.66 | DB13: 7.82 | DC13: 8.18 | DD13: 8.34 | DE13: 9.05 | DF13: 6.04 | DG13: 9.05 | DH13: 105.76 | DI13: -31.00% | DK13: 15.88 | DM13: 16.4391 | DO13: 16.7722 | DQ13: 49.09 | DR13: 12.5393 | DS13: =(DR13-ER13)/ER13 ->  | DT13: 9.8554 | DV13: 10.2418 | DX13: 10.2487 | DY13: =(DX13-EX13)/EX13 ->  | DZ13: 10.3983 | EB13: 10.5409 | ED13: 13.8743 | EE13: =(ED13-FD13)/FD13 ->  | EF13: 13.4026 | EH13: 13.0909 | EJ13: 153.2860 | FJ13: 0.0000
A14: 十堰市 | B14: 客运量 （万人） | C14: 44.2561 | D14: =C14/R14-1 -> -13.56% | E14: 64.7578 | F14: -7.77% | G14: 60.4028 | H14: 4.26% | I14: 68.256 | J14: =I14/X14-1 -> 5.71% | K14: 66.0753 | L14: 3.28% | M14: 57.5147 | N14: -6.31% | O14: 361.26 | P14: -2.17% | R14: 51.20 | S14: =R14/AS14-1 -> 2.03% | T14: 70.22 | U14: 4.74% | V14: 57.9371 | W14: 2.15% | X14: 64.5687 | Y14: =X14/AY14-1 -> 0.21% | Z14: 63.9781 | AA14: 3.15% | AB14: 61.3862 | AC14: 4.50% | AD14: 52.2756 | AE14: =AD14/BE14-1 -> -6.68% | AF14: 60.4119 | AG14: -1.15% | AH14: 52.0508 | AI14: -5.06% | AJ14: 57.7711 | AK14: =AJ14/BK14-1 -> -16.32% | AL14: 49.1361 | AM14: -5.04% | AN14: 41.2319 | AO14: -12.59% | AP14: 682.16 | AQ14: -2.41% | AS14: 50.18 | AT14: -5.00% | AU14: 67.0345 | AV14: =AU14/BV14-1 -> 15.20% | AW14: 56.7158 | AX14: -3.49% | AY14: 64.43 | AZ14: 11.27% | BA14: 62.03 | BB14: =BA14/CB14-1 -> 0.52% | BC14: 58.75 | BD14: -1.88% | BE14: 56.02 | BF14: -12.28% | BG14: 61.11 | BH14: =BG14/CH14-1 -> -9.91% | BI14: 54.82 | BJ14: -2.04% | BK14: 69.04 | BL14: 11.22% | BM14: 51.74 | BN14: =BM14/CN14-1 -> -0.20% | BO14: 47.17 | BP14: -2.77% | BQ14: 699.04 | BR14: -0.04% | BT14: 52.82 | BU14: 11.13% | BV14: 58.19 | BW14: 0.69% | BX14: 58.77 | BY14: 26.26% | BZ14: 57.9084 | CA14: 32.06% | CB14: 61.7046 | CC14: 36.98% | CD14: 59.8683 | CE14: 33.61% | CF14: 63.8588 | CG14: 18.85% | CH14: 67.83 | CI14: 50.69% | CJ14: =55.9615+CJ16 -> 55.96 | CK14: 33.50% | CL14: =62.0732+CL16 -> 62.07 | CM14: 82.93% | CN14: 51.85 | CO14: 86.85% | CP14: 48.51 | CQ14: 66.27% | CR14: 699.3359 | CS14: 35.25% | CT14: -6.43% | CV14: 47.53 | CW14: 57.79 | CX14: 46.54 | CY14: 43.85 | CZ14: 45.05 | DA14: 44.81 | DB14: 53.73 | DC14: 45.01 | DD14: 41.92 | DE14: 33.93 | DF14: 27.75 | DG14: 29.18 | DH14: 517.08 | DI14: -25.50% | DK14: 56.7426 | DL14: =(DK14-DT14)/DT14 -> -27.52% | DM14: 57.0941 | DO14: 60.0695 | DP14: 343.41% | DQ14: 173.91 | DR14: 67.9450 | DS14: =(DR14-ER14)/ER14 -> 164.17% | DT14: 78.2916 | DU14: 226.22% | DV14: 57.8819 | DW14: 285.88% | DX14: 63.3864 | DY14: =(DX14-EX14)/EX14 -> 111.29% | DZ14: 42.1833 | EA14: -20.41% | EB14: 53.9917 | EC14: -45.30% | ED14: 62.0602 | EE14: =(ED14-FD14)/FD14 -> -30.95% | EF14: 47.9142 | EG14: -38.87% | EH14: 46.5169 | EI14: -25.42% | EJ14: 694.0774 | EK14: -11.08% | EL14: 290.0000 | EM14: =(EL14-FL14)/FL14 -> -2.36% | EN14: 0.0000 | EO14: =(EN14-FM14)/FM14 -> -100.00% | EP14: 13.5473 | EQ14: =(EP14-FN14)/FN14 -> -95.71% | ER14: 25.7202 | ES14: =(ER14-FO14)/FO14 -> -89.71% | ET14: 24.0000 | EU14: =(ET14-FP14)/FP14 -> -90.04% | EV14: 15.0000 | EW14: =(EV14-FQ14)/FQ14 -> -94.34% | EX14: 30.0000 | EY14: =(EX14-FR14)/FR14 -> -88.68% | EZ14: 53.0000 | FA14: =(EZ14-FS14)/FS14 -> -79.22% | FB14: 98.7024 | FC14: =(FB14-FT14)/FT14 -> -60.04% | FD14: 89.8831 | FE14: =(FD14-FU14)/FU14 -> -65.03% | FF14: 78.3824 | FG14: -65.62% | FH14: 62.3678 | FI14: -77.24% | FJ14: 780.6032 | FK14: =(FJ14-(FL14+FM14+FN14+FO14+FP14+FQ14+FR14+FS14+FT14+FU14+FW14+FY14))/(FL14+FM14+FN14+FO14+FP14+FQ14+FR14+FS14+FT14+FU14+FW14+FY14) -> -76.19% | FL14: 297 | FM14: 383 | FN14: 316 | FO14: 250 | FP14: 241 | FQ14: 265 | FR14: 265 | FS14: 255.0000 | FT14: 247.0000 | FU14: 257.0000 | FV14: =(FU14-GW14)/GW14 -> -2.28% | FW14: 228.0000 | FX14: -2.15% | FY14: 274.0000 | FZ14: -2.14% | GA14: =FL14+FM14+FN14+FO14+FP14+FQ14+FR14+FS14+FT14+FU14+FW14+FY14 -> 3278.00 | GB14: =(GA14-HC14)/HC14 -> -2.38% | GE14: 304 | GF14: =(GE14-HH14)/HH14 -> 1.33% | GG14: 394 | GH14: -2.96% | GI14: 324 | GJ14: -1.22% | GK14: 256 | GL14: =(GK14-HN14)/HN14 -> -1.16% | GM14: 246 | GN14: =(GM14-HP14)/HP14 -> -1.20% | GO14: 271 | GP14: =(GO14-HS14)/HS14 -> -1.09% | GQ14: 272 | GR14: -1.09% | GS14: 262 | GT14: 0.77% | GU14: 253 | GV14: =(GU14-HY14)/HY14 -> -1.56% | GW14: 263 | GX14: -1.13% | GY14: 233 | GZ14: -1.27% | HA14: 280 | HB14: =(HA14-IE14)/IE14 -> -1.06% | HC14: =GE14+GG14+GI14+GK14+GM14+GO14+GQ14+GS14+GU14+GW14+GY14+HA14 -> 3358 | HD14: =HA14+GY14+GW14+GU14+GS14+GQ14+GO14+GM14+GK14+GI14+GG14+GE14 -> 3358 | HH14: 300 | HI14: =(HH14-IJ14)/IJ14 -> 2.74% | HJ14: 406.00 | HK14: 2.78% | HL14: 328.00 | HM14: 2.18% | HN14: 259.00 | HO14: =(HN14-IP14)/IP14 -> 2.37% | HP14: 249.00 | HQ14: =(HP14-IR14)/IR14 -> 0.00% | HS14: 274.00 | HT14: =(HS14-IT14)/IT14 -> 2.24% | HU14: 275.00 | HV14: 2.23% | HW14: 260 | HX14: 0.00% | HY14: 257 | HZ14: =(HY14-IZ14)/IZ14 -> 2.39% | IA14: 266 | IB14: 2.31% | IC14: 236 | ID14: 1.97% | IE14: 283 | IF14: =(IE14-JF14)/JF14 -> 2.17% | IG14: =HH14+HJ14+HL14+HN14+HP14+HS14+HU14+HW14+HY14+IA14+IC14+IE14 -> 3393 | IJ14: 292 | IK14: =IJ14/JI14-1 -> 4.66% | IL14: 395 | IM14: =IL14/JJ14-1 -> 3.29% | IN14: 321 | IO14: =(IN14-JK14)/JK14 -> 4.49% | IP14: 253.00 | IQ14: =(IP14-JL14)/JL14 -> 4.97% | IR14: 249.00 | IS14: =(IR14-JM14)/JM14 -> 4.05% | IT14: 268.00 | IU14: =(IT14-JN14)/JN14 -> 4.10% | IV14: 269.00 | IW14: =(IV14-JO14)/JO14 -> 5.02% | IX14: 260 | IY14: =(IX14-JP14)/JP14 -> 5.30% | IZ14: 251 | JA14: =(IZ14-JQ14)/JQ14 -> 1.23% | JB14: 260 | JC14: =(JB14-JR14)/JR14 -> 2.27% | JD14: 231.43 | JE14: =(JD14-JS14)/JS14 -> 1.00% | JF14: 277 | JG14: =(JF14-JT14)/JT14 -> 1.19% | JH14: 3215 | JI14: 279 | JJ14: 382 | JK14: 307 | JL14: 241 | JM14: 239 | JN14: 257 | JO14: 256 | JP14: 247 | JQ14: 248 | JR14: 254 | JS14: 229 | JT14: 274
B15: 旅客周转量 （万人公里） | C15: 4442.6528 | D15: =C15/R15-1 -> -16.49% | E15: 6222.1126 | F15: -7.75% | G15: 5800.6944 | H15: 11.92% | I15: 6318.1348 | J15: =I15/X15-1 -> 0.48% | K15: 6328.6093 | L15: 4.76% | M15: 5538.8125 | N15: -12.57% | O15: 34651.02 | P15: -3.51% | R15: 5320.12 | S15: =R15/AS15-1 -> -1.67% | T15: 6744.50 | U15: -1.36% | V15: 5182.7868 | W15: -10.95% | X15: 6288.2648 | Y15: =X15/AY15-1 -> -2.63% | Z15: 6041.1196 | AA15: -2.04% | AB15: 6335.3697 | AC15: 12.51% | AD15: 5145.913 | AE15: =AD15/BE15-1 -> -16.11% | AF15: 6061.8412 | AG15: -4.53% | AH15: 5254.1807 | AI15: -7.40% | AJ15: 5743.0441 | AK15: =AJ15/BK15-1 -> -19.09% | AL15: 4862.8408 | AM15: -5.48% | AN15: 4174.5837 | AO15: -10.89% | AP15: 67154.57 | AQ15: -5.96% | AS15: 5410.32 | AT15: 7.97% | AU15: 6837.2059 | AV15: =AU15/BV15-1 -> 17.68% | AW15: 5820.3194 | AX15: 3.00% | AY15: 6457.93 | AZ15: 7.15% | BA15: 6167.09 | BB15: =BA15/CB15-1 -> 2.30% | BC15: 5630.92 | BD15: -6.74% | BE15: 6134.03 | BF15: -8.88% | BG15: 6349.39 | BH15: =BG15/CH15-1 -> -7.60% | BI15: 5674.02 | BJ15: -1.49% | BK15: 7098.50 | BL15: 10.65% | BM15: 5144.75 | BN15: =BM15/CN15-1 -> -4.23% | BO15: 4684.51 | BP15: -5.96% | BQ15: 71409.00 | BR15: 1.01% | BT15: 5011.12 | BU15: 2.34% | BV15: 5809.91 | BW15: -6.41% | BX15: 5650.86 | BY15: 17.70% | BZ15: 6026.9590 | CA15: 38.85% | CB15: 6028.5251 | CC15: 39.36% | CD15: 6037.7172 | CE15: 27.74% | CF15: 6731.4531 | CG15: 20.81% | CH15: 6871.68 | CI15: 63.74% | CJ15: 5759.97 | CK15: 43.67% | CL15: =6415.3051+CL17 -> 6415.31 | CM15: 131.30% | CN15: 5371.93 | CO15: 126.82% | CP15: 4981.47 | CQ15: 82.39% | CR15: 70696.8908 | CS15: 38.76% | CT15: -7.27% | CV15: 4896.43 | CW15: 6207.88 | CX15: 4801.15 | CY15: 4340.53 | CZ15: 4325.96 | DA15: 4726.75 | DB15: 5571.99 | DC15: 4196.77 | DD15: 4009.17 | DE15: 2773.59 | DF15: 2368.38 | DG15: 2731.20 | DH15: 50949.81 | DI15: -32.34% | DK15: 5,392.77 | DL15: -39.48% | DM15: 5654.4842 | DO15: 7178.2246 | DP15: 783.11% | DQ15: 18225.47 | DR15: 7298.0344 | DS15: =(DR15-ER15)/ER15 -> 372.91% | DT15: 8910.2663 | DU15: 518.77% | DV15: 6669.3579 | DW15: 584.04% | DX15: 7174.8116 | DY15: =(DX15-EX15)/EX15 -> 267.94% | DZ15: 4355.0407 | EA15: 9.56% | EB15: 6233.7504 | EC15: -26.89% | ED15: 6550.7219 | EE15: =(ED15-FD15)/FD15 -> -35.82% | EF15: 5049.7519 | EG15: -57.73% | EH15: 4830.1792 | EI15: -16.55% | EJ15: 75297.3884 | EK15: 9.19% | EL15: 21798.0000 | EM15: -2.18% | EN15: 0.0000 | EO15: -100.00% | EP15: 812.8380 | EQ15: -96.92% | ER15: 1543.2120 | ES15: -92.83% | ET15: 1440.0000 | EU15: -94.24% | EV15: 975.0000 | EW15: -95.81% | EX15: 1950.0000 | EY15: -92.06% | EZ15: 3975.0000 | FA15: -83.05% | FB15: 8526.3531 | FC15: -67.03% | FD15: 10206.8928 | FE15: =(FD15-FU15)/FU15 -> -55.22% | FF15: 11946.2901 | FG15: -39.19% | FH15: 5787.7981 | FI15: -83.51% | FJ15: 68961.3841 | FK15: -76.89% | FL15: 22283 | FM15: 28487 | FN15: 26410 | FO15: 21528 | FP15: 25020 | FQ15: 23293 | FR15: 24564 | FS15: 23,454.0000 | FT15: 25,859.0000 | FU15: 22,793.0000 | FV15: =(FU15-GW15)/GW15 -> -2.05% | FW15: 19,645.0000 | FX15: -2.09% | FY15: 35,100.0000 | FZ15: -1.86% | GA15: 298436.00 | GB15: -2.00% | GE15: 22731 | GF15: =(GE15-HH15)/HH15 -> 2.07% | GG15: 29093 | GH15: -3.05% | GI15: 26898 | GJ15: -1.58% | GK15: 21963 | GL15: -1.58% | GM15: 25496 | GN15: -1.42% | GO15: 23,696.00 | GP15: =(GO15-HS15)/HS15 -> -1.25% | GQ15: 25063 | GR15: -1.25% | GS15: 24031 | GT15: 0.70% | GU15: 26443 | GV15: =(GU15-HY15)/HY15 -> -1.32% | GW15: 23271 | GX15: -1.21% | GY15: 20065 | GZ15: -1.14% | HA15: 35765 | HB15: -1.01% | HC15: 304515 | HD15: 304515 | HH15: 22269 | HI15: =(HH15-IJ15)/IJ15 -> 3.40% | HJ15: 30009.00 | HK15: 3.60% | HL15: 27331.00 | HM15: 3.08% | HN15: 22316.00 | HO15: 3.47% | HP15: 25863.00 | HQ15: 0.00% | HS15: 23996.00 | HT15: =(HS15-IT15)/IT15 -> 2.39% | HU15: 25381.00 | HV15: 3.01% | HW15: 23,863.00 | HX15: 0.00% | HY15: 26,796.00 | HZ15: =(HY15-IZ15)/IZ15 -> 3.06% | IA15: 23,556.00 | IB15: 3.54% | IC15: 20,296.00 | ID15: 3.24% | IE15: 36,131.00 | IF15: 3.20% | IG15: 307807 | IJ15: 21536 | IK15: 5.09% | IL15: 28965 | IM15: 4.18% | IN15: 26514 | IO15: 5.20% | IP15: 21567.00 | IQ15: 5.35% | IR15: 25863.00 | IS15: 5.07% | IT15: 23436.00 | IU15: 5.34% | IV15: 24639.00 | IW15: 4.72% | IX15: 23,863.00 | IY15: 4.33% | IZ15: 26,000.00 | JA15: 2.47% | JB15: 22,750.00 | JC15: 3.87% | JD15: 19659.96 | JE15: 2.00% | JF15: 35,010.00 | JG15: 2.28% | JH15: 288017 | JI15: 20493 | JJ15: 27803 | JK15: 25204 | JL15: 20472 | JM15: 24615 | JN15: 22248 | JO15: 23529 | JP15: 22872 | JQ15: 25373 | JR15: 21901 | JS15: 19274 | JT15: 34230
B16: 其中个体客运量 （万人） | O16: 0.00 | AP16: 0.00 | BQ16: 0.00 | BR16: =BQ16/CR16-1 ->  | BT16: 0.00 | BU16: -100.00% | BV16: 0.00 | BW16: -100.00% | BX16: 0.00 | BY16: -100.00% | BZ16: 0.0000 | CA16: -100.00% | CB16: 0.0000 | CC16: -100.00% | CD16: 0.0000 | CF16: 0.00 | CH16: 0.00 | CJ16: 0.00 | CL16: 0.00 | CR16: 0.0000 | CS16: -100.00% | CV16: 0.71 | CW16: 0.76 | CX16: 0.73 | CY16: 3.37 | CZ16: 3.30 | DA16: 0.00 | DB16: 0.00 | DC16: 0.00 | DD16: 0.00 | DE16: 0.00 | DF16: 0.00 | DG16: 0.00 | DH16: 8.87 | DI16: -57.00% | DK16: 2.53 | DM16: 5.6719 | DO16: 2.7322 | DQ16: 10.93 | DR16: 2.7331 | DS16: =(DR16-ER16)/ER16 ->  | DT16: 2.7296 | DV16: 0.5744 | DX16: 0.5941 | DY16: =(DX16-EX16)/EX16 ->  | DZ16: 0.6231 | EB16: 0.5341 | ED16: 0.6231 | EE16: =(ED16-FD16)/FD16 ->  | EF16: 0.6583 | EH16: 0.6321 | EJ16: 20.6347 | FJ16: 0.0000
B17: 其中个体旅客周转量（万人公里） | O17: 0.00 | AP17: 0.00 | BQ17: 0.00 | BT17: 0.00 | BU17: -100.00% | BV17: 0.00 | BW17: -100.00% | BX17: 0.00 | BY17: -100.00% | BZ17: 0.00 | CA17: -100.00% | CB17: 0.00 | CC17: -100.00% | CD17: 0.00 | CF17: 0 | CH17: 0.00 | CJ17: 0.00 | CL17: 0.00 | CR17: 0.0000 | CS17: -100.00% | CV17: 49.03 | CW17: 50.59 | CX17: 47.20 | CY17: 105.12 | CZ17: 106.62 | DA17: 0.00 | DB17: 0.00 | DC17: 0.00 | DD17: 0.00 | DE17: 0.00 | DF17: 0.00 | DG17: 0.00 | DH17: 358.56 | DI17: -63.47% | DK17: 250.73 | DM17: 198.5470 | DO17: 89.9426 | DQ17: 539.22 | DR17: 86.0926 | DS17: =(DR17-ER17)/ER17 ->  | DT17: 86.0753 | DV17: 34.4831 | DX17: 36.0915 | DY17: =(DX17-EX17)/EX17 ->  | DZ17: 40.4664 | EB17: 34.6839 | ED17: 40.4664 | EE17: =(ED17-FD17)/FD17 ->  | EF17: 42.7766 | EH17: 41.0848 | EJ17: 981.4416 | FJ17: 0.0000
A18: 宜昌市 | B18: 客运量 （万人） | C18: 178.5701 | D18: =C18/R18-1 -> -28.04% | E18: 215.5515 | F18: -14.49% | G18: 211.3526 | H18: -10.76% | I18: 243.5999 | J18: =I18/X18-1 -> -6.72% | K18: 277.3764 | L18: 5.02% | M18: 250.6952 | N18: 9.11% | O18: 1377.15 | P18: -7.70% | R18: 248.15 | S18: =R18/AS18-1 -> 22.27% | T18: 252.07 | U18: 19.11% | V18: 236.835 | W18: 5.97% | X18: 261.1492 | Y18: =X18/AY18-1 -> -4.26% | Z18: 264.1072 | AA18: -7.66% | AB18: 229.7584 | AC18: -15.81% | AD18: 250.0405 | AE18: =AD18/BE18-1 -> -12.72% | AF18: 270.8413 | AG18: -12.16% | AH18: 233.6322 | AI18: -16.71% | AJ18: 265.9381 | AK18: =AJ18/BK18-1 -> -13.62% | AL18: 236.3336 | AM18: -13.75% | AN18: 200.5632 | AO18: -14.26% | AP18: 2949.42 | AQ18: -6.69% | AS18: 202.96 | AT18: 10.61% | AU18: 211.6244 | AV18: =AU18/BV18-1 -> 6.79% | AW18: 223.4823 | AX18: -5.77% | AY18: 272.76 | AZ18: 5.53% | BA18: 286.02 | BB18: =BA18/CB18-1 -> 8.23% | BC18: 272.91 | BD18: 8.73% | BE18: 286.49 | BF18: 3.41% | BG18: 308.33 | BH18: =BG18/CH18-1 -> 9.62% | BI18: 280.49 | BJ18: 13.04% | BK18: 307.88 | BL18: 17.76% | BM18: 274.03 | BN18: =BM18/CN18-1 -> 18.96% | BO18: 233.91 | BP18: =BO18/CP18-1 -> 16.55% | BQ18: 3160.89 | BR18: 9.32% | BT18: 183.48 | BU18: -9.11% | BV18: 198.17 | BW18: -7.72% | BX18: 237.18 | BY18: 17.31% | BZ18: 258.4707 | CA18: 35.24% | CB18: 264.2812 | CC18: 34.99% | CD18: 250.9941 | CE18: 15.90% | CF18: 277.026 | CG18: 8.93% | CH18: 281.28 | CI18: 8.36% | CJ18: =244.9769+CJ20 -> 248.13 | CK18: 3.19% | CL18: =257.9596+CL20 -> 261.43 | CM18: 29.43% | CN18: 230.35 | CO18: 39.93% | CP18: 200.70 | CQ18: 40.33% | CR18: 2891.5130 | CS18: 16.30% | CT18: -12.87% | CV18: 201.88 | CW18: 214.76 | CX18: 202.18 | CY18: 191.12 | CZ18: 195.78 | DA18: 216.57 | DB18: 254.32 | DC18: 259.59 | DD18: 240.46 | DE18: 202.00 | DF18: 164.62 | DG18: 143.02 | DH18: 2486.30 | DI18: -6.94% | DK18: 211.98 | DL18: -23.37% | DM18: 211.7500 | DO18: 219.8359 | DP18: 507.28% | DQ18: 643.57 | DR18: 259.1400 | DS18: =(DR18-ER18)/ER18 -> 91.96% | DT18: 276.6157 | DU18: 49.52% | DV18: 249.8223 | DW18: 78.44% | DX18: 248.9417 | DY18: =(DX18-EX18)/EX18 -> -11.09% | DZ18: 159.1078 | EA18: -39.96% | EB18: 196.6046 | EC18: -49.41% | ED18: 236.2855 | EE18: =(ED18-FD18)/FD18 -> -36.48% | EF18: 204.8715 | EG18: -40.44% | EH18: 196.6346 | EI18: -21.35% | EJ18: 2671.5896 | EK18: -15.16% | EL18: 753.0000 | EM18: -5.28% | EN18: 0.0000 | EO18: -100.00% | EP18: 36.2000 | EQ18: -95.70% | ER18: 135.0000 | ES18: -81.25% | ET18: 185.0000 | EU18: -75.82% | EV18: 140.0000 | EW18: -80.31% | EX18: 280.0000 | EY18: -62.72% | EZ18: 265.0000 | FA18: -65.22% | FB18: 388.5900 | FC18: -46.62% | FD18: 372.0000 | FE18: =(FD18-FU18)/FU18 -> -58.80% | FF18: 344.0000 | FG18: -51.27% | FH18: 250.0000 | FI18: -64.39% | FJ18: 3148.7900 | FK18: -66.79% | FL18: 795 | FM18: 1099 | FN18: 841 | FO18: 720 | FP18: 765 | FQ18: 711 | FR18: 751.0000 | FS18: 762.0000 | FT18: 728.0000 | FU18: 903.0000 | FV18: =(FU18-GW18)/GW18 -> -6.62% | FW18: 706.0000 | FX18: -4.92% | FY18: 702.0000 | FZ18: -4.62% | GA18: 9482.60 | GB18: -10.25% | GE18: 854 | GF18: =(GE18-HH18)/HH18 -> -5.74% | GG18: 1185 | GH18: -4.82% | GI18: 954 | GJ18: -4.89% | GK18: 804 | GL18: -4.68% | GM18: 897 | GN18: -4.52% | GO18: 880 | GP18: =(GO18-HS18)/HS18 -> 0.00% | GQ18: 862 | GR18: -3.25% | GS18: 858 | GT18: -3.05% | GU18: 826 | GV18: =(GU18-HY18)/HY18 -> -1.55% | GW18: 967 | GX18: -4.64% | GY18: 743 | GZ18: -4.56% | HA18: 736 | HB18: -9.58% | HC18: 10566 | HD18: 10566 | HH18: 906 | HI18: =(HH18-IJ18)/IJ18 -> 2.14% | HJ18: 1245.00 | HK18: 1.97% | HL18: 1003.00 | HM18: 1.36% | HN18: 843.50 | HO18: 1.02% | HP18: 939.50 | HQ18: 1.13% | HS18: 880.00 | HT18: =(HS18-IT18)/IT18 -> 1.09% | HU18: 891.00 | HV18: 1.14% | HW18: 885.00 | HX18: 1.03% | HY18: 839.00 | HZ18: =(HY18-IZ18)/IZ18 -> 0.96% | IA18: 1014.00 | IB18: 1.10% | IC18: 778.00 | ID18: 1.04% | IE18: 814.00 | IF18: 0.99% | IG18: 11038 | IJ18: 887 | IK18: 3.87% | IL18: 1221 | IM18: 3.63% | IN18: 990 | IO18: 3.46% | IP18: 835.00 | IQ18: 2.08% | IR18: 929.00 | IS18: 2.20% | IT18: 870.50 | IU18: 2.10% | IV18: 881.00 | IW18: 1.52% | IX18: 876 | IY18: 2.10% | IZ18: 831 | JA18: 2.10% | JB18: 1,003.00 | JC18: 0.80% | JD18: 770.00 | JE18: -3.69% | JF18: 806 | JG18: -9.28% | JH18: 10791 | JI18: 854 | JJ18: 1178 | JK18: 956 | JL18: 818 | JM18: 909 | JN18: 853 | JO18: 868 | JP18: 858 | JQ18: 814 | JR18: 995 | JS18: 800 | JT18: 888
B19: 旅客周转量 （万人公里） | C19: 12032.7491 | D19: =C19/R19-1 -> -23.44% | E19: 14351.0886 | F19: -10.43% | G19: 14986.0133 | H19: -9.84% | I19: 17342.3056 | J19: =I19/X19-1 -> -6.76% | K19: 19384.3163 | L19: 8.49% | M19: 18766.1584 | N19: 14.12% | O19: 96862.63 | P19: -4.35% | R19: 15716.36 | S19: =R19/AS19-1 -> 20.40% | T19: 16022.28 | U19: 8.56% | V19: 16622.2817 | W19: 4.97% | X19: 18599.003 | Y19: =X19/AY19-1 -> -3.48% | Z19: 17867.628 | AA19: -5.12% | AB19: 16444.6674 | AC19: -5.71% | AD19: 17393.9704 | AE19: =AD19/BE19-1 -> -7.94% | AF19: 18710.6664 | AG19: -6.00% | AH19: 17273.6802 | AI19: -7.37% | AJ19: 18570.5124 | AK19: =AJ19/BK19-1 -> -7.55% | AL19: 17276.7181 | AM19: -8.74% | AN19: 13873.2427 | AO19: 3.51% | AP19: 204371.00 | AQ19: -2.24% | AS19: 13052.91 | AT19: 39.72% | AU19: 14758.8764 | AV19: =AU19/BV19-1 -> 18.58% | AW19: 15835.2168 | AX19: 13.54% | AY19: 19270.27 | AZ19: 28.01% | BA19: 18831.70 | BB19: =BA19/CB19-1 -> 17.15% | BC19: 17440.17 | BD19: 15.24% | BE19: 18894.04 | BF19: 7.18% | BG19: 19904.61 | BH19: =BG19/CH19-1 -> 12.44% | BI19: 18647.49 | BJ19: 15.89% | BK19: 20086.46 | BL19: 19.92% | BM19: 18932.33 | BN19: 21.63% | BO19: 13402.60 | BP19: 3.89% | BQ19: 209056.66 | BR19: 17.03% | BT19: 9342.12 | BU19: -23.74% | BV19: 12446.55 | BW19: -15.94% | BX19: 13947.16 | BY19: 24.12% | BZ19: 15053.5810 | CA19: 50.58% | CB19: 16075.0909 | CC19: 52.92% | CD19: 15134.4133 | CE19: 19.22% | CF19: 17627.5312 | CG19: 8.97% | CH19: 17701.77 | CI19: 15.44% | CJ19: =16047.9452+CJ21 -> 16091.16 | CK19: 28.43% | CL19: =16715.5265+CL21 -> 16749.83 | CM19: 60.90% | CN19: 15566.08 | CO19: 104.48% | CP19: 12900.68 | CQ19: 98.88% | CR19: 178635.9627 | CS19: 27.56% | CT19: -17.12% | CV19: 12250.13 | CW19: 14806.66 | CX19: 11236.92 | CY19: 9996.74 | CZ19: 10511.79 | DA19: 12694.70 | DB19: 16176.45 | DC19: 15333.61 | DD19: 12529.19 | DE19: 10409.98 | DF19: 7612.42 | DG19: 6486.50 | DH19: 140045.10 | DI19: -18.87% | DK19: 13,248.40 | DL19: -28.51% | DM19: 12525.4900 | DO19: 15217.2374 | DP19: 173.89% | DQ19: 40991.13 | DR19: 19166.7100 | DS19: =(DR19-ER19)/ER19 -> 147.89% | DT19: 18533.0844 | DU19: 100.47% | DV19: 18196.1231 | DW19: 99.74% | DX19: 16168.4584 | DY19: =(DX19-EX19)/EX19 -> 17.97% | DZ19: 9015.3316 | EA19: -39.80% | EB19: 11638.7635 | EC19: -37.25% | ED19: 14994.4387 | EE19: =(ED19-FD19)/FD19 -> -8.79% | EF19: 12488.9860 | EG19: -37.40% | EH19: 11418.2705 | EI19: -11.31% | EJ19: 172611.2936 | EK19: 6.58% | EL19: 33820.0000 | EM19: -5.16% | EN19: 0.0000 | EO19: -100.00% | EP19: 5556.0000 | EQ19: -85.65% | ER19: 7732.0000 | ES19: -78.96% | ET19: 9245.0000 | EU19: -75.75% | EV19: 9110.0000 | EW19: -74.54% | EX19: 13705.0000 | EY19: -63.42% | EZ19: 14975.0000 | FA19: -62.29% | FB19: 18547.6500 | FC19: -53.78% | FD19: 16440.0000 | FE19: =(FD19-FU19)/FU19 -> -67.24% | FF19: 19951.0000 | FG19: -50.57% | FH19: 12874.0000 | FI19: -66.23% | FJ19: 161955.6500 | FK19: -66.49% | FL19: 35660 | FM19: 52225 | FN19: 38720 | FO19: 36755 | FP19: 38120 | FQ19: 35785 | FR19: 37,470.0000 | FS19: 39,710.0000 | FT19: 40,130.0000 | FU19: 50,180.0000 | FV19: =(FU19-GW19)/GW19 -> -1.78% | FW19: 40,360.0000 | FX19: -5.28% | FY19: 38,120.0000 | FZ19: -4.89% | GA19: 483235.00 | GB19: -8.16% | GE19: 37950 | GF19: =(GE19-HH19)/HH19 -> -5.95% | GG19: 54650 | GH19: -5.69% | GI19: 42358 | GJ19: -5.01% | GK19: 40385 | GL19: -4.71% | GM19: 44523 | GN19: -4.31% | GO19: 42750 | GP19: =(GO19-HS19)/HS19 -> 0.00% | GQ19: 41510 | GR19: -3.47% | GS19: 44145 | GT19: -3.11% | GU19: 44100 | GV19: =(GU19-HY19)/HY19 -> -2.04% | GW19: 51090 | GX19: -4.47% | GY19: 42610 | GZ19: -4.72% | HA19: 40079 | HB19: -9.49% | HC19: 526150 | HD19: 526150 | HH19: 40350 | HI19: =(HH19-IJ19)/IJ19 -> 3.02% | HJ19: 57950.00 | HK19: 2.29% | HL19: 44590.00 | HM19: 1.55% | HN19: 42380.00 | HO19: 1.26% | HP19: 46530.00 | HQ19: 1.09% | HS19: 42750.00 | HT19: =(HS19-IT19)/IT19 -> 1.18% | HU19: 43000.00 | HV19: 1.06% | HW19: 45560.00 | HX19: 1.61% | HY19: 45020.00 | HZ19: =(HY19-IZ19)/IZ19 -> 1.50% | IA19: 53480.00 | IB19: 1.19% | IC19: 44720.00 | ID19: 1.06% | IE19: 44280.00 | IF19: 1.07% | IG19: 550610 | IJ19: 39166 | IK19: 4.35% | IL19: 56650 | IM19: 4.37% | IN19: 43910 | IO19: 3.98% | IP19: 41852.00 | IQ19: 2.90% | IR19: 46030.00 | IS19: 4.04% | IT19: 42251.00 | IU19: 2.81% | IV19: 42550.00 | IW19: 2.45% | IX19: 44,840.00 | IY19: 4.04% | IZ19: 44,355.00 | JA19: 2.88% | JB19: 52,850.00 | JC19: 1.75% | JD19: 44,250.00 | JE19: -4.19% | JF19: 43,810.00 | JG19: -10.23% | JH19: 534729 | JI19: 37535 | JJ19: 54279 | JK19: 42229 | JL19: 40673 | JM19: 44242 | JN19: 41095 | JO19: 41533 | JP19: 43100 | JQ19: 43114 | JR19: 51942 | JS19: 46186 | JT19: 48802
B20: 其中个体客运量 （万人） | O20: 0.00 | AP20: 0.00 | AQ20: -100.00% | AS20: 0.03 | AT20: -99.51% | AU20: 0.0153 | AV20: =AU20/BV20-1 -> -99.69% | AX20: -100.00% | AZ20: -100.00% | BB20: =BA20/CB20-1 -> -100.00% | BD20: -100.00% | BF20: -100.00% | BH20: =BG20/CH20-1 -> -100.00% | BJ20: -100.00% | BL20: -100.00% | BN20: -100.00% | BP20: -100.00% | BQ20: 0.04 | BR20: -99.91% | BT20: 5.16 | BU20: -20.55% | BV20: 4.96 | BW20: -16.80% | BX20: 5.09 | BY20: -29.65% | BZ20: 5.2064 | CA20: -14.06% | CB20: 5.0463 | CC20: -34.62% | CD20: 5.0557 | CE20: -29.15% | CF20: 4.06 | CG20: -38.26% | CH20: 3.20 | CI20: -52.29% | CJ20: 3.16 | CK20: -50.15% | CL20: 3.47 | CM20: -42.06% | CN20: 0.81 | CO20: -86.31% | CP20: 0.26 | CQ20: -95.10% | CR20: 45.4749 | CS20: -41.23% | CT20: -68.06% | CV20: 6.49 | CW20: 5.96 | CX20: 7.23 | CY20: 6.06 | CZ20: 7.72 | DA20: 7.14 | DB20: 6.57 | DC20: 6.71 | DD20: 6.33 | DE20: 6.00 | DF20: 5.90 | DG20: 5.26 | DH20: 77.38 | DI20: -10.51% | DK20: 9.71 | DM20: 6.5494 | DO20: 6.6250 | DQ20: 22.88 | DR20: 8.1300 | DS20: =(DR20-ER20)/ER20 ->  | DT20: 6.8826 | DV20: 7.4525 | DX20: 6.7351 | DY20: =(DX20-EX20)/EX20 ->  | DZ20: 6.5642 | EB20: 5.8838 | ED20: 7.2076 | EE20: =(ED20-FD20)/FD20 ->  | EF20: 7.2012 | EH20: 7.5300 | EJ20: 86.4714 | FJ20: 0.0000
B21: 其中个体旅客周转量（万人公里） | O21: 0.00 | AP21: 0.00 | AQ21: -100.00% | AS21: 0.56 | AT21: -99.23% | AU21: 0.4879 | AV21: =AU21/BV21-1 -> -99.32% | AX21: -100.00% | AZ21: -100.00% | BB21: =BA21/CB21-1 -> -100.00% | BD21: -100.00% | BF21: -100.00% | BH21: =BG21/CH21-1 -> -100.00% | BJ21: -100.00% | BL21: -100.00% | BN21: -100.00% | BP21: -100.00% | BQ21: 1.05 | BR21: -99.84% | BT21: 73.09 | BU21: -9.63% | BV21: 71.68 | BW21: -4.46% | BX21: 76.60 | BY21: -2.81% | BZ21: 71.4834 | CA21: -0.16% | CB21: 69.8492 | CC21: -13.85% | CD21: 69.3744 | CE21: -11.34% | CF21: 68.8137 | CG21: -14.34% | CH21: 45.30 | CI21: -46.01% | CJ21: 43.22 | CK21: -45.57% | CL21: 34.30 | CM21: -58.14% | CN21: 11.63 | CO21: -85.67% | CP21: 4.51 | CQ21: -93.00% | CR21: 639.8444 | CS21: -31.70% | CT21: -61.19% | CV21: 80.88 | CW21: 75.02 | CX21: 78.81 | CY21: 71.59 | CZ21: 81.07 | DA21: 78.25 | DB21: 80.34 | DC21: 83.90 | DD21: 79.40 | DE21: 81.94 | DF21: 81.16 | DG21: 64.48 | DH21: 936.85 | DI21: -8.38% | DK21: 112.80 | DM21: 77.5388 | DO21: 76.3128 | DQ21: 266.65 | DR21: 88.5400 | DS21: =(DR21-ER21)/ER21 ->  | DT21: 86.3014 | DV21: 86.1430 | DX21: 79.7620 | DY21: =(DX21-EX21)/EX21 ->  | DZ21: 76.3516 | EB21: 84.5831 | ED21: 84.8139 | EE21: =(ED21-FD21)/FD21 ->  | EF21: 84.8685 | EH21: 84.5404 | EJ21: 1022.5555 | FJ21: 0.0000
A22: 襄阳市 | B22: 客运量 （万人） | C22: 103.0089 | D22: =C22/R22-1 -> -28.08% | E22: 126.6864 | F22: -13.61% | G22: 116.5618 | H22: -18.96% | I22: 121.936 | J22: =I22/X22-1 -> -17.37% | K22: 120.2889 | L22: -16.47% | M22: 113.3073 | N22: -10.44% | O22: 701.79 | P22: -17.61% | R22: 143.23 | S22: =R22/AS22-1 -> 0.35% | T22: 146.64 | U22: -4.52% | V22: 143.83 | W22: 2.44% | X22: 147.5729 | Y22: =X22/AY22-1 -> 0.61% | Z22: 143.9986 | AA22: -2.78% | AB22: 126.5163 | AC22: -2.81% | AD22: 124.775 | AE22: =AD22/BE22-1 -> -0.55% | AF22: 124.0754 | AG22: -2.74% | AH22: 117.619 | AI22: 0.01% | AJ22: 129.5702 | AK22: =AJ22/BK22-1 -> 4.01% | AL22: 114.6044 | AM22: -9.28% | AN22: 104.8242 | AO22: -16.48% | AP22: 1567.25 | AQ22: -2.58% | AS22: 142.73 | AT22: 2.30% | AU22: 153.5841 | AV22: =AU22/BV22-1 -> 12.16% | AW22: 140.4058 | AX22: 1.67% | AY22: 146.67 | AZ22: 6.43% | BA22: 148.12 | BB22: =BA22/CB22-1 -> 0.73% | BC22: 130.17 | BD22: -11.32% | BE22: 125.46 | BF22: -14.47% | BG22: 127.57 | BH22: =BG22/CH22-1 -> -13.87% | BI22: 117.61 | BJ22: -19.27% | BK22: 124.57 | BL22: -19.32% | BM22: 126.33 | BN22: -14.06% | BO22: 125.51 | BP22: -11.57% | BQ22: 1608.73 | BR22: -7.01% | BT22: 139.53 | BU22: -25.75% | BV22: 136.93 | BW22: -24.15% | BX22: 138.10 | BY22: -17.96% | BZ22: 137.8052 | CA22: -10.07% | CB22: 147.0451 | CC22: -8.76% | CD22: 146.7956 | CE22: -9.85% | CF22: 146.6824 | CG22: -10.16% | CH22: 148.11 | CI22: 10.15% | CJ22: =137.3068+CJ24 -> 145.68 | CK22: -1.96% | CL22: =145.8193+CL24 -> 154.40 | CM22: 21.00% | CN22: 147.00 | CO22: 51.47% | CP22: 141.93 | CQ22: 70.96% | CR22: 1729.9970 | CS22: -2.15% | CT22: -3.45% | CV22: 187.92 | CW22: 180.53 | CX22: 168.32 | CY22: 153.23 | CZ22: 161.17 | DA22: 162.83 | DB22: 163.26 | DC22: 134.46 | DD22: 148.60 | DE22: 127.61 | DF22: 97.04 | DG22: 83.01 | DH22: 1767.99 | DI22: -23.01% | DK22: 215.1658 | DL22: =(DK22-DT22)/DT22 -> 11.48% | DM22: 216.1841 | DO22: 222.0238 | DP22: 1750.20% | DQ22: 653.37 | DR22: 222.4096 | DS22: =(DR22-ER22)/ER22 -> 442.46% | DT22: 193.0085 | DU22: 367.33% | DV22: 191.5433 | DW22: 439.56% | DX22: 196.7099 | DY22: =(DX22-EX22)/EX22 -> 373.14% | DZ22: 163.6623 | EA22: -27.28% | EB22: 162.8224 | EC22: -24.72% | ED22: 173.8615 | EE22: =(ED22-FD22)/FD22 -> -30.29% | EF22: 169.8856 | EG22: -28.78% | EH22: 169.1716 | EI22: -26.49% | EJ22: 2296.4484 | EK22: 9.73% | EL22: 762.0000 | EM22: =(EL22-FL22)/FL22 -> -5.22% | EN22: 0.0000 | EO22: =(EN22-FM22)/FM22 -> -100.00% | EP22: 12.0000 | EQ22: =(EP22-FN22)/FN22 -> -98.56% | ER22: 41.0000 | ES22: =(ER22-FO22)/FO22 -> -94.70% | ET22: 41.3000 | EU22: =(ET22-FP22)/FP22 -> -94.51% | EV22: 35.5000 | EW22: =(EV22-FQ22)/FQ22 -> -94.70% | EX22: 41.5756 | EY22: =(EX22-FR22)/FR22 -> -94.08% | EZ22: 225.0469 | FA22: =(EZ22-FS22)/FS22 -> -71.55% | FB22: 216.2754 | FC22: =(FB22-FT22)/FT22 -> -73.82% | FD22: 249.4241 | FE22: =(FD22-FU22)/FU22 -> -70.31% | FF22: 238.5374 | FG22: -67.90% | FH22: 230.1193 | FI22: -66.41% | FJ22: 2092.7787 | FK22: =(FJ22-(FL22+FM22+FN22+FO22+FP22+FQ22+FR22+FS22+FT22+FU22+FW22+FY22))/(FL22+FM22+FN22+FO22+FP22+FQ22+FR22+FS22+FT22+FU22+FW22+FY22) -> -78.13% | FL22: 804 | FM22: 1150 | FN22: 832 | FO22: 773 | FP22: 752 | FQ22: 670 | FR22: 702 | FS22: 791.0000 | FT22: 826.0000 | FU22: 840.0000 | FV22: =(FU22-GW22)/GW22 -> -8.89% | FW22: 743.0000 | FX22: -4.13% | FY22: 685.0000 | FZ22: -8.05% | GA22: =FL22+FM22+FN22+FO22+FP22+FQ22+FR22+FS22+FT22+FU22+FW22+FY22 -> 9567.50 | GB22: =(GA22-HC22)/HC22 -> -10.07% | GE22: 864 | GF22: =(GE22-HH22)/HH22 -> -5.78% | GG22: 1240 | GH22: -4.76% | GI22: 945 | GJ22: -4.93% | GK22: 863 | GL22: =(GK22-HN22)/HN22 -> -4.75% | GM22: 884 | GN22: =(GM22-HP22)/HP22 -> -4.43% | GO22: 795 | GP22: =(GO22-HS22)/HS22 -> -4.45% | GQ22: 807 | GR22: -3.12% | GS22: 890 | GT22: -3.16% | GU22: 909 | GV22: =(GU22-HY22)/HY22 -> -1.73% | GW22: 922 | GX22: -4.65% | GY22: 775 | GZ22: -4.56% | HA22: 745 | HB22: =(HA22-IE22)/IE22 -> -4.85% | HC22: =GE22+GG22+GI22+GK22+GM22+GO22+GQ22+GS22+GU22+GW22+GY22+HA22 -> 10639 | HD22: =HA22+GY22+GW22+GU22+GS22+GQ22+GO22+GM22+GK22+GI22+GG22+GE22 -> 10639 | HH22: 917 | HI22: =(HH22-IJ22)/IJ22 -> 2.12% | HJ22: 1302.00 | HK22: 2.04% | HL22: 994.00 | HM22: 1.33% | HN22: 906.00 | HO22: =(HN22-IP22)/IP22 -> 1.00% | HP22: 925.00 | HQ22: =(HP22-IR22)/IR22 -> 1.09% | HS22: 832.00 | HT22: =(HS22-IT22)/IT22 -> 1.09% | HU22: 833.00 | HV22: 1.09% | HW22: 919.00 | HX22: 1.10% | HY22: 925.00 | HZ22: =(HY22-IZ22)/IZ22 -> 0.98% | IA22: 967.00 | IB22: 1.04% | IC22: 812.00 | ID22: 1.12% | IE22: 783.00 | IF22: =(IE22-JF22)/JF22 -> 1.03% | IG22: =HH22+HJ22+HL22+HN22+HP22+HS22+HU22+HW22+HY22+IA22+IC22+IE22 -> 11115 | IJ22: 898 | IK22: =IJ22/JI22-1 -> 3.88% | IL22: 1276 | IM22: =IL22/JJ22-1 -> 3.67% | IN22: 981 | IO22: =(IN22-JK22)/JK22 -> 3.48% | IP22: 897.00 | IQ22: =(IP22-JL22)/JL22 -> 2.08% | IR22: 915.00 | IS22: =(IR22-JM22)/JM22 -> 2.17% | IT22: 823.00 | IU22: =(IT22-JN22)/JN22 -> 2.04% | IV22: 824.00 | IW22: =(IV22-JO22)/JO22 -> 1.47% | IX22: 909 | IY22: =(IX22-JP22)/JP22 -> 2.06% | IZ22: 916 | JA22: =(IZ22-JQ22)/JQ22 -> 2.15% | JB22: 957 | JC22: =(JB22-JR22)/JR22 -> 0.66% | JD22: 803 | JE22: =(JD22-JS22)/JS22 -> -3.57% | JF22: 775 | JG22: =(JF22-JT22)/JT22 -> -9.70% | JH22: 10865 | JI22: 865 | JJ22: 1231 | JK22: 948 | JL22: 879 | JM22: 896 | JN22: 807 | JO22: 812 | JP22: 891 | JQ22: 897 | JR22: 951 | JS22: 833 | JT22: 858
B23: 旅客周转量 （万人公里） | C23: 10120.8517 | D23: =C23/R23-1 -> -33.65% | E23: 16615.7551 | F23: 4.35% | G23: 15869.8464 | H23: 12.26% | I23: 14345.6508 | J23: =I23/X23-1 -> -6.48% | K23: 14014.5296 | L23: -3.51% | M23: 11627.7753 | N23: -11.11% | O23: 82594.41 | P23: -6.42% | R23: 15253.40 | S23: =R23/AS23-1 -> 36.61% | T23: 15922.81 | U23: 17.00% | V23: 14136.3268 | W23: 11.60% | X23: 15340.24586 | Y23: =X23/AY23-1 -> 13.77% | Z23: 14524.2484 | AA23: 13.55% | AB23: 13081.581 | AC23: 14.91% | AD23: 13740.179 | AE23: =AD23/BE23-1 -> 9.50% | AF23: 13762.2386 | AG23: 5.29% | AH23: 12615.6868 | AI23: 15.18% | AJ23: 14007.3104 | AK23: =AJ23/BK23-1 -> 11.31% | AL23: 12472.8922 | AM23: -0.17% | AN23: 10530.50917 | AO23: -3.13% | AP23: 165387.43 | AQ23: 12.03% | AS23: 11165.68 | AT23: 7.94% | AU23: 13609.32098 | AV23: =AU23/BV23-1 -> 5.85% | AW23: 12666.9078 | AX23: 10.98% | AY23: 13484.07 | AZ23: 16.79% | BA23: 12790.89 | BB23: =BA23/CB23-1 -> 11.45% | BC23: 11384.64 | BD23: -0.15% | BE23: 12548.17 | BF23: -12.63% | BG23: 13070.54 | BH23: =BG23/CH23-1 -> -4.91% | BI23: 10952.71 | BJ23: -9.92% | BK23: 12583.93 | BL23: -5.25% | BM23: 12494.69 | BN23: 0.11% | BO23: 10871.26 | BP23: 3.54% | BQ23: 147622.78 | BR23: 1.41% | BT23: 10344.04 | BU23: -23.06% | BV23: 12857.51 | BW23: -16.11% | BX23: 11414.13 | BY23: 13.52% | BZ23: 11545.4868 | CA23: 22.57% | CB23: 11477.1440 | CC23: 7.56% | CD23: 11402.1473 | CE23: -0.22% | CF23: 14361.5452 | CG23: 14.19% | CH23: 13745.87 | CI23: 41.90% | CJ23: =11938.0841+CJ25 -> 12159.52 | CK23: 19.75% | CL23: =13053.922+CL25 -> 13281.28 | CM23: 81.28% | CN23: 12480.50 | CO23: 153.08% | CP23: 10499.88 | CQ23: 129.12% | CR23: 145569.0432 | CS23: 21.71% | CT23: -15.87% | CV23: 13444.91 | CW23: 15326.82 | CX23: 10054.65 | CY23: 9419.35 | CZ23: 10670.16 | DA23: 11426.75 | DB23: 12577.09 | DC23: 9686.89 | DD23: 10154.08 | DE23: 7326.55 | DF23: 4931.48 | DG23: 4582.65 | DH23: 119601.37 | DI23: -26.48% | DK23: 13,714.22 | DL23: -14.41% | DM23: 14269.0026 | DO23: 16754.9696 | DP23: 440.48% | DQ23: 44738.20 | DR23: 16683.6060 | DS23: =(DR23-ER23)/ER23 -> 171.28% | DT23: 16023.5896 | DU23: 158.65% | DV23: 12515.6255 | DW23: 135.04% | DX23: 15539.8946 | DY23: =(DX23-EX23)/EX23 -> 211.48% | DZ23: 8724.4377 | EA23: -47.52% | EB23: 12040.6236 | EC23: -33.33% | ED23: 13418.4503 | EE23: =(ED23-FD23)/FD23 -> -33.75% | EF23: 11625.8810 | EG23: -39.18% | EH23: 11377.3433 | EI23: -38.12% | EJ23: 162687.6470 | EK23: 5.14% | EL23: 36535.0000 | EM23: -5.19% | EN23: 0.0000 | EO23: -100.00% | EP23: 3100.0000 | EQ23: -92.00% | ER23: 6150.0000 | ES23: -83.10% | ET23: 6195.0000 | EU23: -84.15% | EV23: 5325.0000 | EW23: -84.57% | EX23: 4989.0720 | EY23: -87.56% | EZ23: 16623.5399 | FA23: -58.61% | FB23: 18059.5715 | FC23: -57.53% | FD23: 20254.6876 | FE23: =(FD23-FU23)/FU23 -> -49.89% | FF23: 19114.4054 | FG23: -48.07% | FH23: 18386.9485 | FI23: -50.82% | FJ23: 154733.2249 | FK23: -67.21% | FL23: 38535 | FM23: 47259 | FN23: 38765 | FO23: 36395 | FP23: 39089 | FQ23: 34506 | FR23: 40101 | FS23: 40,165.0000 | FT23: 42,520.0000 | FU23: 40,421.0000 | FV23: =(FU23-GW23)/GW23 -> -7.97% | FW23: 36,809.0000 | FX23: 2.11% | FY23: 37,389.0000 | FZ23: -7.11% | GA23: 471954.00 | GB23: -8.16% | GE23: 41007 | GF23: =(GE23-HH23)/HH23 -> -5.95% | GG23: 49390 | GH23: -5.67% | GI23: 42379 | GJ23: -5.01% | GK23: 39975 | GL23: -4.71% | GM23: 45531 | GN23: -4.35% | GO23: 39306 | GP23: =(GO23-HS23)/HS23 -> -4.85% | GQ23: 44406 | GR23: -3.54% | GS23: 44596 | GT23: -3.15% | GU23: 47090 | GV23: =(GU23-HY23)/HY23 -> -2.18% | GW23: 43921 | GX23: -4.52% | GY23: 36049 | GZ23: -4.76% | HA23: 40249 | HB23: -4.73% | HC23: 513899 | HD23: 513899 | HH23: 43600 | HI23: =(HH23-IJ23)/IJ23 -> 3.02% | HJ23: 52358.00 | HK23: 2.24% | HL23: 44615.00 | HM23: 1.56% | HN23: 41953.00 | HO23: 1.26% | HP23: 47601.00 | HQ23: 1.13% | HS23: 41309.00 | HT23: =(HS23-IT23)/IT23 -> 1.20% | HU23: 46037.00 | HV23: 1.11% | HW23: 46046.00 | HX23: 1.59% | HY23: 48140.00 | HZ23: =(HY23-IZ23)/IZ23 -> 1.47% | IA23: 46001.00 | IB23: 1.10% | IC23: 37849.00 | ID23: 1.09% | IE23: 42248.00 | IF23: 1.03% | IG23: 537757 | IJ23: 42320 | IK23: 4.35% | IL23: 51211 | IM23: 4.36% | IN23: 43929 | IO23: 4.01% | IP23: 41430.00 | IQ23: 2.91% | IR23: 47071.10 | IS23: 4.03% | IT23: 40820.00 | IU23: 2.79% | IV23: 45530.00 | IW23: 2.55% | IX23: 45,325.00 | IY23: 3.98% | IZ23: 47,441.00 | JA23: 2.97% | JB23: 45,501.00 | JC23: 1.52% | JD23: 37440 | JE23: -5.30% | JF23: 41,818.00 | JG23: -10.45% | JH23: 522187 | JI23: 40554 | JJ23: 49071 | JK23: 42235 | JL23: 40258 | JM23: 45247 | JN23: 39713 | JO23: 44397 | JP23: 43588 | JQ23: 46071 | JR23: 44820 | JS23: 39536 | JT23: 46697
B24: 其中个体客运量 （万人） | C24: 2.49 | D24: =C24/R24-1 -> -27.55% | E24: 2.6698 | F24: -21.78% | G24: 2.4174 | H24: -25.46% | I24: 2.2694 | J24: =I24/X24-1 -> -29.87% | K24: 2.2832 | L24: -30.33% | M24: 2.7015 | N24: -15.57% | O24: 14.83 | P24: -25.12% | R24: 3.44 | S24: =R24/AS24-1 -> -60.84% | T24: 3.41 | U24: -54.15% | V24: 3.24 | W24: -55.39% | X24: 3.236 | Y24: =X24/AY24-1 -> -54.67% | Z24: 3.28 | AA24: -53.86% | AB24: 3.20 | AC24: -47.35% | AD24: 3.21 | AE24: =AD24/BE24-1 -> -41.20% | AF24: 2.88 | AG24: -42.23% | AH24: 2.80 | AI24: -39.92% | AJ24: 2.70 | AK24: =AJ24/BK24-1 -> -34.03% | AL24: 2.7076 | AM24: -34.09% | AN24: 2.3867 | AO24: -40.59% | AP24: 36.48 | AQ24: -48.70% | AS24: 8.77 | AT24: 19.62% | AU24: 7.4448 | AV24: =AU24/BV24-1 -> -0.42% | AW24: 7.2703 | AX24: -14.36% | AY24: 7.14 | AZ24: -14.30% | BA24: 7.10 | BB24: =BA24/CB24-1 -> -15.10% | BC24: 6.08 | BD24: -26.82% | BE24: 5.46 | BF24: -33.45% | BG24: 4.98 | BH24: =BG24/CH24-1 -> -38.90% | BI24: 4.65 | BJ24: -44.41% | BK24: 4.09 | BL24: -52.31% | BM24: 4.11 | BN24: -50.55% | BO24: 4.02 | BP24: -53.10% | BQ24: 71.12 | BR24: -27.79% | BT24: 7.33 | BU24: -33.54% | BV24: 7.48 | BW24: -32.54% | BX24: 8.49 | BY24: 1.83% | BZ24: 8.3292 | CA24: 5.47% | CB24: 8.3656 | CC24: 4.83% | CD24: 8.3040 | CE24: 3.48% | CF24: 8.20 | CG24: 1.46% | CH24: 8.16 | CI24: 3.23% | CJ24: 8.37 | CK24: 5.68% | CL24: 8.58 | CM24: 40.49% | CN24: 8.31 | CO24: 23.79% | CP24: 8.57 | CQ24: 39.16% | CR24: 98.4858 | CS24: 1.28% | CT24: 3.11% | CV24: 11.04 | CW24: 11.08 | CX24: 8.34 | CY24: 7.90 | CZ24: 7.98 | DA24: 8.02 | DB24: 8.08 | DC24: 7.90 | DD24: 7.92 | DE24: 6.11 | DF24: 6.71 | DG24: 6.15 | DH24: 97.24 | DI24: -36.80% | DK24: 16.84 | DM24: 6.9496 | DO24: 15.1574 | DQ24: 38.94 | DR24: 14.1785 | DS24: =(DR24-ER24)/ER24 ->  | DT24: 14.5509 | DV24: 14.4880 | DX24: 13.5446 | DY24: =(DX24-EX24)/EX24 ->  | DZ24: 12.8728 | EB24: 11.0832 | ED24: 11.4646 | EE24: =(ED24-FD24)/FD24 ->  | EF24: 11.3672 | EH24: 11.3776 | EJ24: 153.8703 | FJ24: 0.0000
B25: 其中个体旅客周转量（万人公里） | C25: 57.35 | D25: =C25/R25-1 -> -41.97% | E25: 60.8606 | F25: -39.19% | G25: 55.2767 | H25: -39.55% | I25: 51.9476 | J25: =I25/X25-1 -> -43.32% | K25: 51.8758 | L25: -44.36% | M25: 57.4551 | N25: -37.38% | O25: 334.77 | P25: -40.96% | R25: 98.83 | S25: =R25/AS25-1 -> -57.54% | T25: 100.08 | U25: -50.74% | V25: 91.45 | W25: -54.27% | X25: 91.66 | Y25: =X25/AY25-1 -> -53.25% | Z25: 93.24 | AA25: -51.89% | AB25: 91.76 | AC25: -44.05% | AD25: 91.08 | AE25: =AD25/BE25-1 -> -39.22% | AF25: 72.17 | AG25: -48.37% | AH25: 70.56 | AI25: -47.67% | AJ25: 69.45 | AK25: =AJ25/BK25-1 -> -38.99% | AL25: 69.45 | AM25: -39.76% | AN25: 54.62 | AO25: -51.35% | AP25: 994.33 | AQ25: -49.15% | AS25: 232.73 | AT25: 44.51% | AU25: 203.152984 | AV25: =AU25/BV25-1 -> 22.49% | AW25: 199.956 | AX25: -11.85% | AY25: 196.06 | AZ25: -11.11% | BA25: 193.80 | BB25: =BA25/CB25-1 -> -13.03% | BC25: 164.00 | BD25: -25.23% | BE25: 149.86 | BF25: -30.75% | BG25: 139.78 | BH25: =BG25/CH25-1 -> -34.83% | BI25: 134.82 | BJ25: -39.11% | BK25: 113.83 | BL25: -49.93% | BM25: 115.29 | BN25: -47.17% | BO25: 112.27 | BP25: -50.41% | BQ25: 1955.57 | BR25: -23.03% | BT25: 161.05 | BU25: -47.49% | BV25: 165.85 | BW25: -46.29% | BX25: 226.83 | BY25: 29.31% | BZ25: 220.5658 | CA25: 29.31% | CB25: 222.8496 | CC25: 29.84% | CD25: 219.3374 | CE25: 27.19% | CF25: 216.4183 | CG25: 24.31% | CH25: 214.48 | CI25: 25.38% | CJ25: 221.44 | CK25: 30.13% | CL25: 227.35 | CM25: 75.73% | CN25: 218.21 | CO25: 46.18% | CP25: 226.40 | CQ25: 64.84% | CR25: 2540.7785 | CS25: 13.59% | CT25: 3.75% | CV25: 306.68 | CW25: 308.80 | CX25: 175.41 | CY25: 170.58 | CZ25: 171.64 | DA25: 172.46 | DB25: 174.09 | DC25: 171.06 | DD25: 170.16 | DE25: 129.38 | DF25: 149.27 | DG25: 137.35 | DH25: 2236.89 | DI25: -50.14% | DK25: 517.59 | DM25: 260.6436 | DO25: 435.9805 | DQ25: 1214.22 | DR25: 422.9915 | DS25: =(DR25-ER25)/ER25 ->  | DT25: 418.4388 | DV25: 412.4421 | DX25: 386.2965 | DY25: =(DX25-EX25)/EX25 ->  | DZ25: 365.4591 | EB25: 309.3693 | ED25: 321.0472 | EE25: =(ED25-FD25)/FD25 ->  | EF25: 317.4131 | EH25: 318.6585 | EJ25: 4486.3344 | FJ25: 0.0000
A26: 鄂州市 | B26: 客运量 （万人） | C26: 58.6181 | D26: =C26/R26-1 -> 6.13% | E26: 51.2609 | F26: -0.46% | G26: 51.4017 | H26: -2.02% | I26: 51.5443 | J26: =I26/X26-1 -> -2.45% | K26: 51.6972 | L26: -2.48% | M26: 50.2205 | N26: -7.46% | O26: 314.74 | P26: -1.43% | R26: 55.23 | S26: =R26/AS26-1 -> 17.83% | T26: 51.50 | U26: 10.14% | V26: 52.4615 | W26: 5.01% | X26: 52.8375 | Y26: =X26/AY26-1 -> 4.61% | Z26: 53.0121 | AA26: 1.83% | AB26: 54.2703 | AC26: -4.49% | AD26: 50.3549 | AE26: =AD26/BE26-1 -> -6.97% | AF26: 48.9525 | AG26: -9.11% | AH26: 49.2128 | AI26: -6.59% | AJ26: 49.5826 | AK26: =AJ26/BK26-1 -> -11.49% | AL26: 52.5038 | AM26: -14.15% | AN26: 60.2661 | AO26: 3.50% | AP26: 630.18 | AQ26: -1.39% | AS26: 46.87 | AT26: 23.29% | AU26: 46.7568 | AV26: =AU26/BV26-1 -> 8.91% | AW26: 49.9574 | AX26: -1.25% | AY26: 50.51 | AZ26: -6.62% | BA26: 52.06 | BB26: =BA26/CB26-1 -> -5.39% | BC26: 56.82 | BD26: -16.54% | BE26: 54.13 | BF26: -11.66% | BG26: 53.86 | BH26: =BG26/CH26-1 -> -2.75% | BI26: 52.69 | BJ26: -1.29% | BK26: 56.02 | BL26: -1.99% | BM26: 61.16 | BN26: 18.40% | BO26: 58.23 | BP26: 17.82% | BQ26: 639.05 | BR26: 0.32% | BT26: 38.02 | BU26: -11.37% | BV26: 42.93 | BW26: 4.58% | BX26: 50.59 | BY26: 15.43% | BZ26: 54.0876 | CA26: 169.04% | CB26: 55.0261 | CC26: 41.30% | CD26: 68.0809 | CE26: 51.39% | CF26: 61.2707 | CG26: 17.84% | CH26: 55.38 | CI26: 13.90% | CJ26: 53.37 | CK26: 26.35% | CL26: 57.15 | CM26: 32.63% | CN26: 51.65 | CO26: 58.76% | CP26: 49.42 | CQ26: 76.59% | CR26: 636.9907 | CS26: 33.19% | CT26: -4.32% | CV26: 42.90 | CW26: 41.05 | CX26: 43.83 | CY26: 20.10 | CZ26: 38.94 | DA26: 44.97 | DB26: 51.99 | DC26: 48.62 | DD26: 42.24 | DE26: 43.09 | DF26: 32.54 | DG26: 27.99 | DH26: 478.27 | DI26: -15.39% | DK26: 53.1155 | DL26: -2.48% | DM26: 54.4053 | DO26: 52.8281 | DP26: 6042.80% | DQ26: 160.35 | DR26: 55.2734 | DS26: =(DR26-ER26)/ER26 -> 43.62% | DT26: 54.4659 | DU26: 94.48% | DV26: 50.5827 | DW26: 47.93% | DX26: 48.1378 | DY26: =(DX26-EX26)/EX26 -> 37.71% | DZ26: 25.4038 | EA26: -54.23% | EB26: 41.1191 | EC26: -13.95% | ED26: 45.1472 | EE26: =(ED26-FD26)/FD26 -> -27.37% | EF26: 42.9876 | EG26: -15.60% | EH26: 41.7695 | EI26: -13.57% | EJ26: 565.2359 | EK26: 9.04% | EL26: 117.1407 | EM26: -15.77% | EN26: 0.0000 | EO26: -100.00% | EP26: 0.8600 | EQ26: -99.44% | ER26: 38.4870 | ES26: -67.48% | ET26: 28.0066 | EU26: -77.88% | EV26: 34.1927 | EW26: -69.86% | EX26: 34.9559 | EY26: -69.27% | EZ26: 55.5053 | FA26: -47.92% | FB26: 47.7859 | FC26: -55.04% | FD26: 62.1616 | FE26: =(FD26-FU26)/FU26 -> -44.83% | FF26: 50.9330 | FG26: -46.94% | FH26: 48.3256 | FI26: -56.57% | FJ26: 518.3543 | FK26: -65.00% | FL26: 139 | FM26: 183 | FN26: 153 | FO26: 118 | FP26: 127 | FQ26: 113 | FR26: 113.7518 | FS26: 106.5756 | FT26: 106.2796 | FU26: 112.6674 | FV26: =(FU26-GW26)/GW26 -> -27.91% | FW26: 96.0000 | FX26: -27.66% | FY26: 111.2800 | FZ26: -26.90% | GA26: 1481.02 | GB26: -20.17% | GE26: 149 | GF26: =(GE26-HH26)/HH26 -> -4.60% | GG26: 203 | GH26: -8.86% | GI26: 180 | GJ26: -3.95% | GK26: 142 | GL26: -4.97% | GM26: 154 | GN26: -4.28% | GO26: 151.161 | GP26: =(GO26-HS26)/HS26 -> -4.24% | GQ26: 151 | GR26: -2.98% | GS26: 143 | GT26: -5.23% | GU26: 141 | GV26: =(GU26-HY26)/HY26 -> -6.70% | GW26: 156 | GX26: -5.01% | GY26: 133 | GZ26: -5.21% | HA26: 152 | HB26: -6.68% | HC26: 1855 | HD26: 1855 | HH26: 156 | HI26: =(HH26-IJ26)/IJ26 -> -1.74% | HJ26: 222.83 | HK26: -4.65% | HL26: 187.06 | HM26: -4.59% | HN26: 149.57 | HO26: -4.86% | HP26: 160.49 | HQ26: 0.80% | HS26: 157.86 | HT26: =(HS26-IT26)/IT26 -> -1.50% | HU26: 155.79 | HV26: -2.90% | HW26: 150.89 | HX26: -3.91% | HY26: 151.46 | HZ26: =(HY26-IZ26)/IZ26 -> -4.70% | IA26: 164.53 | IB26: -3.22% | IC26: 140.00 | ID26: -4.72% | IE26: 163.1346 | IF26: -4.06% | IG26: 1960 | IJ26: 159 | IK26: -10.93% | IL26: 234 | IM26: -5.00% | IN26: 196 | IO26: -0.80% | IP26: 157.21 | IQ26: -3.22% | IR26: 159.21 | IS26: -3.83% | IT26: 160.26 | IU26: -4.37% | IV26: 160.44 | IW26: -4.84% | IX26: 157.03 | IY26: -4.63% | IZ26: 158.93 | JA26: -4.12% | JB26: 170 | JC26: -3.27% | JD26: 146.94 | JE26: -4.55% | JF26: 170.036 | JG26: -4.01% | JH26: 2123 | JI26: 178 | JJ26: 246 | JK26: 198 | JL26: 162 | JM26: 166 | JN26: 168 | JO26: 169 | JP26: 165 | JQ26: 166 | JR26: 176 | JS26: 154 | JT26: 177
B27: 旅客周转量 （万人公里） | C27: 2574.3453 | D27: =C27/R27-1 -> 12.95% | E27: 2270.4778 | F27: 9.31% | G27: 2312.8897 | H27: 5.83% | I27: 2341.8271 | J27: =I27/X27-1 -> 3.20% | K27: 2329.9036 | L27: 4.50% | M27: 2252.8378 | N27: -3.07% | O27: 14082.28 | P27: 5.37% | R27: 2279.20 | S27: =R27/AS27-1 -> 14.74% | T27: 2077.13 | U27: 11.45% | V27: 2185.5626 | W27: 6.43% | X27: 2269.1796 | Y27: =X27/AY27-1 -> 6.17% | Z27: 2229.5816 | AA27: 1.13% | AB27: 2324.301 | AC27: -7.21% | AD27: 2217.5578 | AE27: =AD27/BE27-1 -> -5.66% | AF27: 2185.8589 | AG27: -7.01% | AH27: 2215.595 | AI27: -5.14% | AJ27: 2222.7273 | AK27: =AJ27/BK27-1 -> -8.73% | AL27: 2449.5953 | AM27: -9.69% | AN27: 2678.3547 | AO27: 5.73% | AP27: 27334.64 | AQ27: -0.49% | AS27: 1986.47 | AT27: 28.07% | AU27: 1863.7694 | AV27: =AU27/BV27-1 -> 4.55% | AW27: 2053.4641 | AX27: -9.34% | AY27: 2137.32 | AZ27: -11.21% | BA27: 2204.67 | BB27: =BA27/CB27-1 -> -9.08% | BC27: 2504.85 | BD27: -16.66% | BE27: 2350.58 | BF27: -8.83% | BG27: 2350.63 | BH27: =BG27/CH27-1 -> 1.92% | BI27: 2335.62 | BJ27: 1.02% | BK27: 2435.40 | BL27: -1.55% | BM27: 2712.29 | BN27: 21.07% | BO27: 2533.28 | BP27: 18.46% | BQ27: 27468.35 | BR27: -0.06% | BT27: 1551.13 | BU27: -9.09% | BV27: 1782.73 | BW27: 13.10% | BX27: 2265.07 | BY27: 23.43% | BZ27: 2407.1986 | CA27: 167.57% | CB27: 2424.9071 | CC27: 46.40% | CD27: 3005.4202 | CE27: 35.85% | CF27: 2578.28 | CG27: 14.30% | CH27: 2306.30 | CI27: 7.68% | CJ27: 2311.99 | CK27: 29.87% | CL27: 2473.63 | CM27: 32.87% | CN27: 2240.34 | CO27: 65.06% | CP27: 2138.47 | CQ27: 84.65% | CR27: 27485.4884 | CS27: 34.46% | CT27: -4.55% | CV27: 1706.27 | CW27: 1576.28 | CX27: 1835.11 | CY27: 899.66 | CZ27: 1656.30 | DA27: 2212.35 | DB27: 2255.81 | DC27: 2141.90 | DD27: 1780.22 | DE27: 1861.67 | DF27: 1357.27 | DG27: 1158.11 | DH27: 20440.95 | DI27: -15.45% | DK27: 2,399.90 | DL27: 2.34% | DM27: 2414.3381 | DO27: 2226.0953 | DP27: 1420.04% | DQ27: 7040.33 | DR27: 2352.4863 | DS27: =(DR27-ER27)/ER27 -> 13.92% | DT27: 2344.9131 | DU27: 35.82% | DV27: 2147.4335 | DW27: 23.86% | DX27: 2019.0132 | DY27: =(DX27-EX27)/EX27 -> 14.35% | DZ27: 1090.1195 | EA27: -68.11% | EB27: 1675.3286 | EC27: -38.50% | ED27: 1958.0613 | EE27: =(ED27-FD27)/FD27 -> -46.13% | EF27: 1823.7110 | EG27: -35.70% | EH27: 1725.9113 | EI27: -33.60% | EJ27: 24177.3063 | EK27: -16.08% | EL27: 6159.0481 | EM27: -16.82% | EN27: 0.0000 | EO27: -100.00% | EP27: 146.4500 | EQ27: -98.21% | ER27: 2065.0621 | ES27: -69.54% | ET27: 1726.4446 | EU27: -79.14% | EV27: 1733.7624 | EW27: -73.60% | EX27: 1765.5945 | EY27: -74.07% | EZ27: 3418.0300 | FA27: -48.08% | FB27: 2724.0399 | FC27: -61.55% | FD27: 3634.6135 | FE27: =(FD27-FU27)/FU27 -> -44.27% | FF27: 2836.4363 | FG27: -47.47% | FH27: 2599.3504 | FI27: -72.88% | FJ27: 28808.8318 | FK27: -67.65% | FL27: 7404 | FM27: 9870 | FN27: 8184 | FO27: 6780 | FP27: 8276 | FQ27: 6567 | FR27: 6,809.0802 | FS27: 6,583.0306 | FT27: 7,084.1998 | FU27: 6,521.3373 | FV27: =(FU27-GW27)/GW27 -> -28.98% | FW27: 5,400.0000 | FX27: -29.74% | FY27: 9,583.2500 | FZ27: -26.71% | GA27: 89062.96 | GB27: -23.44% | GE27: 8294 | GF27: =(GE27-HH27)/HH27 -> -4.23% | GG27: 11176 | GH27: -8.83% | GI27: 10214 | GJ27: -4.29% | GK27: 8462 | GL27: -4.45% | GM27: 10452 | GN27: -4.29% | GO27: 9229.6049 | GP27: =(GO27-HS27)/HS27 -> -4.73% | GQ27: 9565 | GR27: -3.02% | GS27: 9181 | GT27: -5.02% | GU27: 9808 | GV27: =(GU27-HY27)/HY27 -> -6.40% | GW27: 9182 | GX27: -4.69% | GY27: 7686 | GZ27: -5.13% | HA27: 13076 | HB27: -5.63% | HC27: 116328 | HD27: 116328 | HH27: 8661 | HI27: =(HH27-IJ27)/IJ27 -> -1.20% | HJ27: 12259.16 | HK27: -1.23% | HL27: 10672.12 | HM27: -4.21% | HN27: 8856.10 | HO27: -4.31% | HP27: 10920.64 | HQ27: 2.62% | HS27: 9687.70 | HT27: =(HS27-IT27)/IT27 -> -2.74% | HU27: 9863.30 | HV27: -2.10% | HW27: 9667.07 | HX27: -2.75% | HY27: 10478.81 | HZ27: =(HY27-IZ27)/IZ27 -> -3.79% | IA27: 9634.21 | IB27: -3.01% | IC27: 8101.94 | ID27: -4.17% | IE27: 13,856.76 | IF27: -4.27% | IG27: 122659 | IJ27: 8766 | IK27: -5.96% | IL27: 12412 | IM27: -4.00% | IN27: 11141 | IO27: -0.60% | IP27: 9254.80 | IQ27: -0.73% | IR27: 10641.43 | IS27: -3.42% | IT27: 9961.00 | IU27: -0.47% | IV27: 10074.79 | IW27: -4.97% | IX27: 9,940.33 | IY27: -3.79% | IZ27: 10891.56 | JA27: -3.80% | JB27: 9,932.80 | JC27: -1.46% | JD27: 8,454.91 | JE27: -4.33% | JF27: 14,474.98 | JG27: -3.13% | JH27: 129923 | JI27: 9321 | JJ27: 12929 | JK27: 11208 | JL27: 9323 | JM27: 11018 | JN27: 10008 | JO27: 10601 | JP27: 10331 | JQ27: 11322 | JR27: 10080 | JS27: 8837 | JT27: 14943
A28: 荆门市 | B28: 客运量 （万人） | C28: 39.055 | D28: =C28/R28-1 -> -33.92% | E28: 40.8426 | F28: -27.31% | G28: 40.7877 | H28: -26.07% | I28: 41.5487 | J28: =I28/X28-1 -> -25.53% | K28: 41.3523 | L28: -14.08% | M28: 35.2665 | N28: -29.46% | O28: 238.85 | P28: -26.37% | R28: 59.10 | S28: =R28/AS28-1 -> -12.42% | T28: 56.18 | U28: -10.68% | V28: 55.1709 | W28: -11.23% | X28: 55.7954 | Y28: =X28/AY28-1 -> -11.62% | Z28: 48.1287 | AA28: -24.92% | AB28: 49.994 | AC28: -19.03% | AD28: 48.8363 | AE28: =AD28/BE28-1 -> -22.39% | AF28: 47.4127 | AG28: -24.35% | AH28: 47.5084 | AI28: -22.93% | AJ28: 48.6599 | AK28: =AJ28/BK28-1 -> -27.29% | AL28: 46.5076 | AM28: -23.77% | AN28: 45.0386 | AO28: -20.47% | AP28: 608.34 | AQ28: -19.25% | AS28: 67.49 | AT28: 23.96% | AU28: 62.8993 | AV28: =AU28/BV28-1 -> 13.66% | AW28: 62.1523 | AX28: 4.03% | AY28: 63.13 | AZ28: 1.45% | BA28: 64.11 | BB28: =BA28/CB28-1 -> 2.63% | BC28: 61.74 | BD28: -2.91% | BE28: 62.92 | BF28: -1.40% | BG28: 62.67 | BH28: =BG28/CH28-1 -> -3.50% | BI28: 61.65 | BJ28: -5.20% | BK28: 66.92 | BL28: -3.32% | BM28: 61.01 | BN28: -12.99% | BO28: 56.63 | BP28: -15.84% | BQ28: 753.31 | BR28: -0.65% | BT28: 54.44 | BU28: -6.43% | BV28: 55.34 | BW28: -6.26% | BX28: 59.74 | BY28: 7.82% | BZ28: 62.2280 | CA28: 20.56% | CB28: 62.4613 | CC28: 12.01% | CD28: 63.5910 | CE28: 5.73% | CF28: 63.8179 | CG28: 3.71% | CH28: 64.95 | CI28: 5.08% | CJ28: =58.8355+CJ30 -> 65.03 | CK28: 6.83% | CL28: =62.4026+CL30 -> 69.22 | CM28: 58.31% | CN28: 70.12 | CO28: 66.93% | CP28: 67.29 | CQ28: 67.51% | CR28: 758.2255 | CS28: 16.60% | CT28: -4.04% | CV28: 58.19 | CW28: 59.04 | CX28: 55.41 | CY28: 51.61 | CZ28: 55.77 | DA28: 60.15 | DB28: 61.54 | DC28: 61.81 | DD28: 60.87 | DE28: 43.72 | DF28: 42.01 | DG28: 40.17 | DH28: 650.27 | DI28: 12.11% | DK28: 50.25 | DL28: -0.16% | DM28: 46.5906 | DO28: 49.1175 | DP28: 329.19% | DQ28: 145.96 | DR28: 49.2572 | DS28: =(DR28-ER28)/ER28 -> 63.32% | DT28: 50.3263 | DU28: -4.71% | DV28: 49.0023 | DW28: -40.08% | DX28: 49.8045 | DY28: =(DX28-EX28)/EX28 -> -41.51% | DZ28: 15.1727 | EA28: -73.42% | EB28: 49.9943 | EC28: -10.33% | ED28: 55.0004 | EE28: =(ED28-FD28)/FD28 -> -11.01% | EF28: 53.9605 | EG28: -7.86% | EH28: 61.5413 | EI28: 8.32% | EJ28: 580.0154 | EK28: -17.85% | EL28: 154.7052 | EM28: -3.67% | EN28: 0.0000 | EO28: -100.00% | EP28: 11.4441 | EQ28: -92.87% | ER28: 30.1608 | ES28: -80.16% | ET28: 52.8143 | EU28: -64.83% | EV28: 81.7830 | EW28: -45.94% | EX28: 85.1535 | EY28: -42.98% | EZ28: 57.0765 | FA28: -61.80% | FB28: 55.7544 | FC28: -62.64% | FD28: 61.8086 | FE28: =(FD28-FU28)/FU28 -> -59.44% | FF28: 58.5641 | FG28: -61.22% | FH28: 56.8138 | FI28: -60.54% | FJ28: 706.0783 | FK28: -61.50% | FL28: 161 | FM28: 164 | FN28: 160 | FO28: 152 | FP28: 150 | FQ28: 151 | FR28: 149.3507 | FS28: 149.4144 | FT28: 149.2200 | FU28: 152.3800 | FV28: =(FU28-GW28)/GW28 -> -9.79% | FW28: 151.0347 | FX28: -9.21% | FY28: 143.9940 | FZ28: -9.91% | GA28: 1833.76 | GB28: -17.32% | GE28: 263 | GF28: =(GE28-HH28)/HH28 -> 0.00% | GG28: 202 | GH28: -42.20% | GI28: 200 | GJ28: -29.54% | GK28: 185 | GL28: -17.79% | GM28: 183 | GN28: -17.13% | GO28: 181.5575 | GP28: =(GO28-HS28)/HS28 -> -23.72% | GQ28: 170 | GR28: -26.85% | GS28: 170 | GT28: -23.64% | GU28: 169 | GV28: =(GU28-HY28)/HY28 -> -25.76% | GW28: 169 | GX28: -29.22% | GY28: 166 | GZ28: -19.92% | HA28: 160 | HB28: -30.28% | HC28: 2218 | HD28: 2218 | HH28: 263 | HI28: =(HH28-IJ28)/IJ28 -> 0.80% | HJ28: 349.60 | HK28: -1.20% | HL28: 283.87 | HM28: -0.80% | HN28: 224.5949 | HO28: -0.40% | HP28: 221.1335 | HQ28: -0.10% | HS28: 238 | HT28: =(HS28-IT28)/IT28 -> -0.41% | HU28: 232.00 | HV28: -0.65% | HW28: 222.50 | HX28: -0.09% | HY28: 227.54 | HZ28: =(HY28-IZ28)/IZ28 -> 1.38% | IA28: 238.65 | IB28: 4.53% | IC28: 207.74 | IE28: 229.23 | IF28: -7.69% | IG28: 2938 | IJ28: 261 | IK28: 5.00% | IL28: 354 | IM28: 3.90% | IN28: 286 | IO28: 4.59% | IP28: 225.50 | IQ28: 4.50% | IR28: 221.35 | IS28: 3.00% | IT28: 238.98 | IU28: 4.10% | IV28: 233.51 | IW28: 2.10% | IX28: 222.6989 | IY28: 0.86% | IZ28: 224.4413 | JA28: 1.20% | JB28: 228 | JC28: 0.00% | JD28: =JS28*#REF! ->  | JF28: 248.3435 | JG28: 1.80% | JH28: 2871 | JI28: 248 | JJ28: 341 | JK28: 274 | JL28: 216 | JM28: 215 | JN28: 230 | JO28: 229 | JP28: 221 | JQ28: 222 | JR28: 228 | JS28: 205 | JT28: 244
B29: 旅客周转量 （万人公里） | C29: 2914.7385 | D29: =C29/R29-1 -> -28.86% | E29: 3370.793718 | F29: -14.64% | G29: 3406.832473 | H29: -19.95% | I29: 3476.813709 | J29: =I29/X29-1 -> -23.71% | K29: 3514.446795 | L29: -7.75% | M29: 3038.760275 | N29: -19.23% | O29: 19722.39 | P29: -19.27% | R29: 4097.10 | S29: =R29/AS29-1 -> -2.82% | T29: 3949.10 | U29: -7.21% | V29: 4255.7056 | W29: -2.85% | X29: 4557.0772 | Y29: =X29/AY29-1 -> -3.74% | Z29: 3809.8095 | AA29: -20.31% | AB29: 3762.2446 | AC29: -13.50% | AD29: 3863.2014 | AE29: =AD29/BE29-1 -> -14.71% | AF29: 3833.8786 | AG29: -16.66% | AH29: 4060.267 | AI29: -8.69% | AJ29: 3956.287441 | AK29: =AJ29/BK29-1 -> -26.49% | AL29: 3699.532092 | AM29: -22.09% | AN29: 3376.6286 | AO29: -17.31% | AP29: 47220.83 | AQ29: -13.37% | AS29: 4215.95 | AT29: 38.34% | AU29: 4255.7623 | AV29: =AU29/BV29-1 -> 18.72% | AW29: 4380.6747 | AX29: 6.09% | AY29: 4734.11 | AZ29: -2.22% | BA29: 4780.92 | BB29: =BA29/CB29-1 -> 3.38% | BC29: 4349.59 | BD29: -9.43% | BE29: 4529.31 | BF29: -2.17% | BG29: 4600.50 | BH29: =BG29/CH29-1 -> -1.94% | BI29: 4446.75 | BJ29: -3.26% | BK29: 5381.76 | BL29: 10.19% | BM29: 4748.62 | BN29: -12.12% | BO29: 4083.72 | BP29: -8.73% | BQ29: 54507.67 | BR29: 1.49% | BT29: 3047.62 | BU29: -22.44% | BV29: 3584.79 | BW29: -13.26% | BX29: 4129.16 | BY29: 19.93% | BZ29: 4841.5306 | CA29: 52.56% | CB29: 4624.7181 | CC29: 32.40% | CD29: 4802.3754 | CE29: 15.81% | CF29: 4629.8523 | CG29: 1.63% | CH29: 4691.64 | CI29: 6.11% | CJ29: =4424.2155+CJ31 -> 4596.57 | CK29: 11.20% | CL29: =4700.3884+CL31 -> 4884.04 | CM29: 86.37% | CN29: 5403.38 | CO29: 118.29% | CP29: 4474.35 | CQ29: 101.68% | CR29: 53710.0434 | CS29: 25.66% | CT29: -17.19% | CV29: 3929.38 | CW29: 4133.00 | CX29: 3442.85 | CY29: 3173.56 | CZ29: 3493.01 | DA29: 4146.82 | DB29: 4555.54 | DC29: 4421.43 | DD29: 4133.47 | DE29: 2620.63 | DF29: 2475.29 | DG29: 2218.54 | DH29: 42743.52 | DI29: 1.58% | DK29: 2,758.58 | DL29: -25.90% | DM29: 2938.5911 | DO29: 3740.5654 | DP29: 115.57% | DQ29: 9437.74 | DR29: 3528.9356 | DS29: =(DR29-ER29)/ER29 -> -15.85% | DT29: 3722.9485 | DU29: -20.57% | DV29: 3134.1738 | DW29: -50.28% | DX29: 3439.8600 | DY29: =(DX29-EX29)/EX29 -> -46.60% | DZ29: 954.0851 | EA29: -68.19% | EB29: 4061.8927 | EC29: 37.59% | ED29: 4970.1535 | EE29: =(ED29-FD29)/FD29 -> 49.03% | EF29: 4496.2061 | EG29: 38.98% | EH29: 4333.0598 | EI29: 43.65% | EJ29: 42079.0554 | EK29: -14.57% | EL29: 10356.4748 | EM29: -2.09% | EN29: 0.0000 | EO29: -100.00% | EP29: 1735.2212 | EQ29: -83.16% | ER29: 4193.6205 | ES29: -58.20% | ET29: 4686.7983 | EU29: -52.02% | EV29: 6303.5317 | EW29: -37.77% | EX29: 6441.2479 | EY29: -33.24% | EZ29: 2999.7046 | FA29: -69.88% | FB29: 2952.1446 | FC29: -70.04% | FD29: 3334.8987 | FE29: =(FD29-FU29)/FU29 -> -71.58% | FF29: 3235.0597 | FG29: -71.75% | FH29: 3016.3050 | FI29: -69.84% | FJ29: 49255.0070 | FK29: -60.32% | FL29: 10578 | FM29: 10684 | FN29: 10303 | FO29: 10034 | FP29: 9769 | FQ29: 10129 | FR29: 9,648.6010 | FS29: 9,960.1209 | FT29: 9,853.9052 | FU29: 11,732.5774 | FV29: =(FU29-GW29)/GW29 -> -9.35% | FW29: 11,452.5648 | FX29: -10.47% | FY29: 10,001.6771 | FZ29: -4.21% | GA29: 124145.66 | GB29: -22.76% | GE29: 13135 | GF29: =(GE29-HH29)/HH29 -> 0.00% | GG29: 15709 | GH29: -11.37% | GI29: 15669 | GJ29: 0.33% | GK29: 13630 | GL29: 6.17% | GM29: 13845 | GN29: -8.79% | GO29: 13686.7384 | GP29: =(GO29-HS29)/HS29 -> -0.21% | GQ29: 12922 | GR29: -10.57% | GS29: 13019 | GT29: -6.34% | GU29: 12938 | GV29: =(GU29-HY29)/HY29 -> -18.81% | GW29: 12943 | GX29: -7.91% | GY29: 12792 | GZ29: 11.33% | HA29: 10441 | HB29: -47.46% | HC29: 160731 | HD29: 160731 | HH29: 13135 | HI29: =(HH29-IJ29)/IJ29 -> 0.80% | HJ29: 17725.70 | HK29: -0.60% | HL29: 15617.44 | HM29: -0.90% | HN29: 12838.233 | HO29: -0.50% | HP29: 15,179.45 | HQ29: -0.30% | HS29: 13,716.00 | HT29: =(HS29-IT29)/IT29 -> -0.30% | HU29: 14450.00 | HV29: -0.30% | HW29: 13900.00 | HX29: -0.09% | HY29: 15934.62 | HZ29: =(HY29-IZ29)/IZ29 -> 3.16% | IA29: 14055.31 | IB29: 5.22% | IC29: 11489.44 | IE29: 19873.26 | IF29: -3.18% | IG29: 177914 | IJ29: 13030 | IK29: 5.00% | IL29: 17833 | IM29: 4.50% | IN29: 15759 | IO29: 4.67% | IP29: 12902.75 | IQ29: 4.00% | IR29: 15225.13 | IS29: 3.14% | IT29: 13757.38 | IU29: 2.80% | IV29: 14492.92 | IW29: 2.30% | IX29: 13,912.61 | IY29: 0.87% | IZ29: 15,447.11 | JA29: 1.70% | JB29: 13358 | JC29: 0.00% | JD29: =JS29*#REF! ->  | JF29: 20,526.26 | JG29: 1.50% | JH29: 173541 | JI29: 12410 | JJ29: 17065 | JK29: 15056 | JL29: 12406 | JM29: 14762 | JN29: 13383 | JO29: 14167 | JP29: 13793 | JQ29: 15189 | JR29: 13358 | JS29: 11729 | JT29: 20223
B30: 其中个体客运量 （万人） | C30: 0.10 | D30: =C30/R30-1 -> -88.30% | E30: 0.0712 | F30: -91.46% | G30: 0.0872 | H30: -65.08% | I30: 0.0945 | J30: =I30/X30-1 -> -66.15% | K30: 0.1012 | L30: -66.12% | M30: 0.0937 | N30: -71.44% | O30: 0.55 | P30: -80.69% | R30: 0.83 | S30: =R30/AS30-1 -> -85.20% | T30: 0.83 | U30: -72.53% | V30: 0.25 | W30: -80.03% | X30: 0.28 | Y30: =X30/AY30-1 -> -78.73% | Z30: 0.30 | AA30: -78.67% | AB30: 0.33 | AC30: -76.04% | AD30: 0.28 | AE30: =AD30/BE30-1 -> -79.76% | AF30: 0.26 | AG30: -81.31% | AH30: 0.28 | AI30: -80.82% | AJ30: 0.09 | AK30: =AJ30/BK30-1 -> -93.75% | AL30: 0.0857 | AM30: -94.23% | AN30: 0.0862 | AO30: -91.31% | AP30: 3.90 | AQ30: -82.39% | AS30: 5.63 | AT30: -0.12% | AU30: 3.0368 | AV30: =AU30/BV30-1 -> -46.72% | AW30: 1.2505 | AX30: -78.70% | AY30: 1.31 | AZ30: -77.82% | BA30: 1.40 | BB30: =BA30/CB30-1 -> -77.34% | BC30: 1.37 | BD30: -77.31% | BE30: 1.38 | BF30: -76.42% | BG30: 1.38 | BH30: =BG30/CH30-1 -> -76.87% | BI30: 1.44 | BJ30: -76.70% | BK30: 1.48 | BL30: -78.35% | BM30: 1.49 | BN30: -76.37% | BO30: 0.99 | BP30: -83.76% | BQ30: 22.17 | BR30: -69.47% | BT30: 5.64 | BU30: 760.96% | BV30: 5.70 | BW30: 805.83% | BX30: 5.87 | BY30: 839.84% | BZ30: 5.9185 | CA30: 129.99% | CB30: 6.1791 | CC30: 154.71% | CD30: 6.0339 | CE30: 144.90% | CF30: 5.86 | CG30: 89.24% | CH30: 5.99 | CI30: 6.42% | CJ30: 6.19 | CK30: 10.68% | CL30: 6.82 | CM30: 21.96% | CN30: 6.29 | CO30: 13.28% | CP30: 6.11 | CQ30: 11.94% | CR30: 72.6024 | CS30: 80.19% | CT30: -2.87% | CV30: 0.66 | CW30: 0.63 | CX30: 0.62 | CY30: 2.57 | CZ30: 2.43 | DA30: 2.46 | DB30: 3.10 | DC30: 5.62 | DD30: 5.59 | DE30: 5.59 | DF30: 5.55 | DG30: 5.46 | DH30: 40.29 | DI30: 346.65% | DK30: 0.88 | DM30: 0.9800 | DO30: 0.7928 | DQ30: 2.65 | DR30: 0.9352 | DS30: =(DR30-ER30)/ER30 ->  | DT30: 0.9784 | DV30: 0.8724 | DX30: 0.8964 | DY30: =(DX30-EX30)/EX30 ->  | DZ30: 0.0000 | EB30: 0.6084 | ED30: 0.6736 | EE30: =(ED30-FD30)/FD30 ->  | EF30: 0.7028 | EH30: 0.7048 | EJ30: 9.0209 | FJ30: 0.0000
B31: 其中个体旅客周转量（万人公里） | C31: 2.58 | D31: =C31/R31-1 -> -82.73% | E31: 1.880818 | F31: -87.40% | G31: 2.303473 | H31: -65.13% | I31: 2.496309 | J31: =I31/X31-1 -> -66.20% | K31: 2.673295 | L31: -66.16% | M31: 2.475175 | N31: -71.45% | O31: 14.41 | P31: -76.16% | R31: 14.93 | S31: =R31/AS31-1 -> -90.11% | T31: 14.93 | U31: -83.42% | V31: 6.61 | W31: -85.00% | X31: 7.39 | Y31: =X31/AY31-1 -> -83.77% | Z31: 7.90 | AA31: -83.63% | AB31: 8.67 | AC31: -81.68% | AD31: 7.39 | AE31: =AD31/BE31-1 -> -84.49% | AF31: 6.84 | AG31: -85.75% | AH31: 7.31 | AI31: -85.37% | AJ31: 2.44 | AK31: =AJ31/BK31-1 -> -95.26% | AL31: 2.44 | AM31: -95.31% | AN31: 2.28 | AO31: -91.02% | AP31: 89.11 | AQ31: -87.28% | AS31: 150.96 | AT31: -2.63% | AU31: 90.0485 | AV31: =AU31/BV31-1 -> -42.61% | AW31: 44.0481 | AX31: -72.46% | AY31: 45.52 | AZ31: -71.73% | BA31: 48.25 | BB31: =BA31/CB31-1 -> -70.87% | BC31: 47.31 | BD31: -71.89% | BE31: 47.65 | BF31: -71.10% | BG31: 47.96 | BH31: =BG31/CH31-1 -> -71.22% | BI31: 49.94 | BJ31: -71.03% | BK31: 51.39 | BL31: -72.02% | BM31: 52.04 | BN31: -70.05% | BO31: 25.37 | BP31: -84.24% | BQ31: 700.48 | BR31: -64.78% | BT31: 155.03 | BU31: 1868.01% | BV31: 156.91 | BW31: 1968.57% | BX31: 159.97 | BY31: 2034.08% | BZ31: 161.0266 | CA31: 106.04% | CB31: 165.6476 | CC31: 156.63% | CD31: 168.3096 | CE31: 133.36% | CF31: 164.8628 | CG31: 92.85% | CH31: 166.63 | CI31: 11.08% | CJ31: 172.36 | CK31: 11.07% | CL31: 183.66 | CM31: 18.51% | CN31: 173.79 | CO31: 13.19% | CP31: 160.92 | CQ31: 7.66% | CR31: 1989.1062 | CS31: 83.09% | CT31: -7.40% | CV31: 7.88 | CW31: 7.59 | CX31: 7.50 | CY31: 78.15 | CZ31: 64.55 | DA31: 72.13 | DB31: 85.49 | DC31: 150.02 | DD31: 155.18 | DE31: 154.97 | DF31: 153.53 | DG31: 149.47 | DH31: 1086.44 | DI31: 888.83% | DK31: 10.59 | DM31: 11.8850 | DO31: 8.9493 | DQ31: 31.42 | DR31: 11.2088 | DS31: =(DR31-ER31)/ER31 ->  | DT31: 12.1689 | DV31: 10.7850 | DX31: 11.4597 | DY31: =(DX31-EX31)/EX31 ->  | DZ31: 0.0000 | EB31: 7.6579 | ED31: 8.1785 | EE31: =(ED31-FD31)/FD31 ->  | EF31: 8.4830 | EH31: 8.5070 | EJ31: 109.8710 | FJ31: 0.0000
A32: 孝感市 | B32: 客运量 （万人） | C32: 59.3255 | D32: =C32/R32-1 -> -19.46% | E32: 60.7363 | F32: -15.96% | G32: 56.7931 | H32: -23.84% | I32: 61.8497 | J32: =I32/X32-1 -> -21.29% | K32: 62.0998 | L32: -29.43% | M32: 62.8884 | N32: -13.50% | O32: 363.69 | P32: -20.90% | R32: 73.66 | S32: =R32/AS32-1 -> -17.61% | T32: 72.27 | U32: -15.11% | V32: 74.5694 | W32: -15.84% | X32: 78.5743 | Y32: =X32/AY32-1 -> -16.08% | Z32: 88.0018 | AA32: -5.12% | AB32: 72.7053 | AC32: -15.26% | AD32: 66.0679 | AE32: =AD32/BE32-1 -> -19.21% | AF32: 64.5414 | AG32: -18.31% | AH32: 66.3654 | AI32: -14.26% | AJ32: 69.6476 | AK32: =AJ32/BK32-1 -> -19.16% | AL32: 65.118 | AM32: -22.93% | AN32: 62.5022 | AO32: -16.50% | AP32: 854.02 | AQ32: -16.19% | AS32: 89.40 | AT32: -0.80% | AU32: 85.1356 | AV32: =AU32/BV32-1 -> -6.69% | AW32: 88.6011 | AX32: -13.66% | AY32: 93.63 | AZ32: -10.98% | BA32: 92.75 | BB32: =BA32/CB32-1 -> -11.24% | BC32: 85.80 | BD32: -19.15% | BE32: 81.77 | BF32: -25.84% | BG32: 79.01 | BH32: =BG32/CH32-1 -> -22.31% | BI32: 77.40 | BJ32: -24.78% | BK32: 86.16 | BL32: -20.87% | BM32: 84.50 | BN32: -17.62% | BO32: 74.85 | BP32: -21.59% | BQ32: 1019.02 | BR32: -16.58% | BT32: 90.13 | BU32: -29.68% | BV32: 91.24 | BW32: -31.44% | BX32: 102.62 | BY32: -13.30% | BZ32: 105.1827 | CA32: 19.36% | CB32: 104.5001 | CC32: 0.21% | CD32: 106.1183 | CE32: 0.40% | CF32: 110.2726 | CG32: 6.52% | CH32: 101.70 | CI32: 3.01% | CJ32: =90.7712+CJ34 -> 102.91 | CK32: 52.25% | CL32: =96.9351+CL34 -> 108.89 | CM32: 71.28% | CN32: 102.57 | CO32: 169.09% | CP32: 95.46 | CQ32: 113.44% | CR32: 1221.5908 | CS32: 11.67% | CT32: -6.93% | CV32: 128.17 | CW32: 133.09 | CX32: 118.36 | CY32: 88.12 | CZ32: 104.28 | DA32: 105.70 | DB32: 103.52 | DC32: 98.74 | DD32: 67.59 | DE32: 63.57 | DF32: 38.12 | DG32: 44.73 | DH32: 1093.96 | DI32: -34.10% | DK32: 153.2798 | DL32: =(DK32-DT32)/DT32 -> 1.44% | DM32: 158.1680 | DO32: 142.5601 | DP32: 178.17% | DQ32: 454.01 | DR32: 145.3739 | DS32: =(DR32-ER32)/ER32 -> -27.88% | DT32: 151.1074 | DU32: -26.99% | DV32: 142.0322 | DW32: -34.69% | DX32: 140.3826 | DY32: =(DX32-EX32)/EX32 -> -35.10% | DZ32: 107.8136 | EA32: -9.85% | EB32: 124.9627 | EC32: -19.98% | ED32: 139.1247 | EE32: =(ED32-FD32)/FD32 -> -20.74% | EF32: 130.4864 | EG32: -18.29% | EH32: 124.7628 | EI32: -15.69% | EJ32: 1660.0542 | EK32: -22.41% | EL32: 486.8600 | EM32: =(EL32-FL32)/FL32 -> -9.65% | EN32: 0.0000 | EO32: =(EN32-FM32)/FM32 -> -100.00% | EP32: 51.2500 | EQ32: =(EP32-FN32)/FN32 -> -90.84% | ER32: 201.5800 | ES32: =(ER32-FO32)/FO32 -> -54.68% | ET32: 206.9800 | EU32: =(ET32-FP32)/FP32 -> -51.62% | EV32: 217.4800 | EW32: =(EV32-FQ32)/FQ32 -> -51.54% | EX32: 216.2900 | EY32: =(EX32-FR32)/FR32 -> -51.51% | EZ32: 119.6000 | FA32: =(EZ32-FS32)/FS32 -> -71.87% | FB32: 156.1700 | FC32: =(FB32-FT32)/FT32 -> -64.97% | FD32: 175.5300 | FE32: =(FD32-FU32)/FU32 -> -61.43% | FF32: 159.6900 | FG32: -60.88% | FH32: 147.9800 | FI32: -69.11% | FJ32: 2139.4100 | FK32: =(FJ32-(FL32+FM32+FN32+FO32+FP32+FQ32+FR32+FS32+FT32+FU32+FW32+FY32))/(FL32+FM32+FN32+FO32+FP32+FQ32+FR32+FS32+FT32+FU32+FW32+FY32) -> -63.09% | FL32: 539 | FM32: 717 | FN32: 559 | FO32: 445 | FP32: 428 | FQ32: 449 | FR32: 446.05 | FS32: 425.1800 | FT32: 445.8700 | FU32: 455.0900 | FV32: =(FU32-GW32)/GW32 -> -10.65% | FW32: 408.2300 | FX32: -10.68% | FY32: 478.9800 | FZ32: -10.72% | GA32: =FL32+FM32+FN32+FO32+FP32+FQ32+FR32+FS32+FT32+FU32+FW32+FY32 -> 5795.94 | GB32: =(GA32-HC32)/HC32 -> -11.21% | GE32: 580 | GF32: =(GE32-HH32)/HH32 -> -1.62% | GG32: 786 | GH32: -3.86% | GI32: 616 | GJ32: -4.02% | GK32: 493 | GL32: =(GK32-HN32)/HN32 -> -4.05% | GM32: 492 | GN32: =(GM32-HP32)/HP32 -> -4.02% | GO32: 521.76 | GP32: =(GO32-HS32)/HS32 -> -5.23% | GQ32: 529 | GR32: -3.58% | GS32: 508 | GT32: -4.31% | GU32: 498 | GV32: =(GU32-HY32)/HY32 -> -5.81% | GW32: 509 | GX32: -5.88% | GY32: 457 | GZ32: -5.91% | HA32: 537 | HB32: =(HA32-IE32)/IE32 -> -5.76% | HC32: =GE32+GG32+GI32+GK32+GM32+GO32+GQ32+GS32+GU32+GW32+GY32+HA32 -> 6527 | HD32: =HA32+GY32+GW32+GU32+GS32+GQ32+GO32+GM32+GK32+GI32+GG32+GE32 -> 6527 | HH32: 590 | HI32: =(HH32-IJ32)/IJ32 -> -2.02% | HJ32: 817.83 | HK32: -1.06% | HL32: 641.86 | HM32: -1.54% | HN32: 514.19 | HO32: =(HN32-IP32)/IP32 -> -1.76% | HP32: 512.81 | HQ32: =(HP32-IR32)/IR32 -> -1.93% | HS32: 550.56 | HT32: =(HS32-IT32)/IT32 -> -1.95% | HU32: 548.25 | HV32: -1.96% | HW32: 530.87 | HX32: -1.67% | HY32: 528.54 | HZ32: =(HY32-IZ32)/IZ32 -> -1.18% | IA32: 541.17 | IB32: -1.53% | IC32: 485.76 | ID32: -1.31% | IE32: 569.32 | IF32: =(IE32-JF32)/JF32 -> -1.39% | IG32: =HH32+HJ32+HL32+HN32+HP32+HS32+HU32+HW32+HY32+IA32+IC32+IE32 -> 6831 | IJ32: 602 | IK32: =IJ32/JI32-1 -> 0.26% | IL32: 827 | IM32: =IL32/JJ32-1 -> 0.36% | IN32: 652 | IO32: =(IN32-JK32)/JK32 -> -1.48% | IP32: 523.40 | IQ32: =(IP32-JL32)/JL32 -> 0.34% | IR32: 522.90 | IS32: =(IR32-JM32)/JM32 -> 0.69% | IT32: 561.50 | IU32: =(IT32-JN32)/JN32 -> 1.14% | IV32: 559.21 | IW32: =(IV32-JO32)/JO32 -> 1.12% | IX32: 539.89 | IY32: =(IX32-JP32)/JP32 -> 1.14% | IZ32: 534.86 | JA32: =(IZ32-JQ32)/JQ32 -> -0.24% | JB32: 549.58 | JC32: =(JB32-JR32)/JR32 -> -0.39% | JD32: 492.21 | JE32: =(JD32-JS32)/JS32 -> -0.71% | JF32: 577.34 | JG32: =(JF32-JT32)/JT32 -> -2.14% | JH32: 6942 | JI32: 601 | JJ32: 824 | JK32: 662 | JL32: 522 | JM32: 519 | JN32: 555 | JO32: 553 | JP32: 534 | JQ32: 536 | JR32: 552 | JS32: 496 | JT32: 590
B33: 旅客周转量 （万人公里） | C33: 2820.2439 | D33: =C33/R33-1 -> -6.37% | E33: 2880.7429 | F33: -5.02% | G33: 3223.1066 | H33: -13.21% | I33: 3740.0259 | J33: =I33/X33-1 -> -12.27% | K33: 3834.7599 | L33: -21.37% | M33: 4215.6505 | N33: 9.24% | O33: 20714.53 | P33: -8.98% | R33: 3012.15 | S33: =R33/AS33-1 -> -6.16% | T33: 3032.92 | U33: -7.78% | V33: 3713.6165 | W33: -7.68% | X33: 4263.1965 | Y33: =X33/AY33-1 -> -15.06% | Z33: 4876.7518 | AA33: 6.53% | AB33: 3859.0526 | AC33: 2.52% | AD33: 3570.2202 | AE33: =AD33/BE33-1 -> -3.68% | AF33: 3408.068 | AG33: -0.89% | AH33: 3530.7566 | AI33: 2.05% | AJ33: 3837.5662 | AK33: =AJ33/BK33-1 -> -11.49% | AL33: 4288.0104 | AM33: -0.80% | AN33: 3095.6344 | AO33: -5.60% | AP33: 44487.95 | AQ33: -4.17% | AS33: 3210.05 | AT33: 10.88% | AU33: 3288.7968 | AV33: =AU33/BV33-1 -> -12.31% | AW33: 4022.413 | AX33: -21.30% | AY33: 5019.31 | AZ33: -16.06% | BA33: 4577.88 | BB33: =BA33/CB33-1 -> 2.53% | BC33: 3764.21 | BD33: -22.69% | BE33: 3706.54 | BF33: -22.99% | BG33: 3438.71 | BH33: =BG33/CH33-1 -> -25.73% | BI33: 3459.96 | BJ33: -25.69% | BK33: 4335.78 | BL33: -16.99% | BM33: 4322.40 | BN33: -11.14% | BO33: 3279.20 | BP33: -18.75% | BQ33: 46425.25 | BR33: -16.04% | BT33: 2895.15 | BU33: -38.00% | BV33: 3750.41 | BW33: -32.75% | BX33: 5110.75 | BY33: 13.65% | BZ33: 5979.4294 | CA33: 94.91% | CB33: 4464.7565 | CC33: 23.27% | CD33: 4869.1835 | CE33: 18.44% | CF33: 4813.1694 | CG33: 15.87% | CH33: 4630.14 | CI33: 27.54% | CJ33: =4460.9907+CJ35 -> 4655.86 | CK33: 114.49% | CL33: =5022.4635+CL35 -> 5223.20 | CM33: 164.02% | CN33: 4864.46 | CO33: 285.10% | CP33: 4036.03 | CQ33: 169.00% | CR33: 55292.5363 | CS33: 37.40% | CT33: -17.03% | CV33: 4669.62 | CW33: 5576.61 | CX33: 4496.91 | CY33: 3067.78 | CZ33: 3621.89 | DA33: 4111.19 | DB33: 4153.99 | DC33: 3630.28 | DD33: 2170.70 | DE33: 1978.34 | DF33: 1263.16 | DG33: 1500.40 | DH33: 40240.87 | DI33: -36.77% | DK33: 5,800.94 | DL33: -8.78% | DM33: 5920.4927 | DO33: 5533.9084 | DP33: 152.95% | DQ33: 17255.35 | DR33: 5985.4238 | DS33: =(DR33-ER33)/ER33 -> -33.98% | DT33: 6359.4837 | DU33: -35.46% | DV33: 5787.4575 | DW33: -33.90% | DX33: 5620.9966 | DY33: =(DX33-EX33)/EX33 -> -40.22% | DZ33: 3407.2583 | EA33: -60.03% | EB33: 4483.1789 | EC33: -50.25% | ED33: 5366.2515 | EE33: =(ED33-FD33)/FD33 -> -45.23% | EF33: 4903.1620 | EG33: -46.07% | EH33: 4470.7423 | EI33: -47.80% | EJ33: 63639.2998 | EK33: -37.65% | EL33: 17813.4000 | EM33: -9.17% | EN33: 0.0000 | EO33: -100.00% | EP33: 2187.7500 | EQ33: -90.17% | ER33: 9065.5200 | ES33: -52.33% | ET33: 9853.3200 | EU33: -53.79% | EV33: 8755.3400 | EW33: -53.21% | EX33: 9402.2100 | EY33: -53.18% | EZ33: 8524.8000 | FA33: -56.26% | FB33: 9011.6000 | FC33: -59.89% | FD33: 9798.0900 | FE33: =(FD33-FU33)/FU33 -> -50.36% | FF33: 9091.9900 | FG33: -47.26% | FH33: 8564.5110 | FI33: -70.28% | FJ33: 102068.5310 | FK33: -60.12% | FL33: 19612 | FM33: 27,179 | FN33: 22,255 | FO33: 19,017 | FP33: 21,322 | FQ33: 18,712 | FR33: 20081.59 | FS33: 19,487.6800 | FT33: 22,469.6700 | FU33: 19,737.4600 | FV33: =(FU33-GW33)/GW33 -> -10.77% | FW33: 17,237.7600 | FX33: -10.81% | FY33: 28,820.8300 | FZ33: -10.86% | GA33: 255932.76 | GB33: -10.69% | GE33: 20971 | GF33: =(GE33-HH33)/HH33 -> -1.87% | GG33: 28752 | GH33: -4.41% | GI33: 23767 | GJ33: -5.11% | GK33: 20586 | GL33: -5.13% | GM33: 24374 | GN33: -5.08% | GO33: 21914.15 | GP33: =(GO33-HS33)/HS33 -> -6.34% | GQ33: 23981 | GR33: -3.12% | GS33: 23309 | GT33: -3.84% | GU33: 25135 | GV33: =(GU33-HY33)/HY33 -> -4.76% | GW33: 22120 | GX33: -4.93% | GY33: 19327 | GZ33: -4.96% | HA33: 32332 | HB33: -4.87% | HC33: 286566 | HD33: 286566 | HH33: 21370 | HI33: =(HH33-IJ33)/IJ33 -> -2.94% | HJ33: 30078.71 | HK33: -1.22% | HL33: 25046.71 | HM33: -2.18% | HN33: 21699.08 | HO33: -2.14% | HP33: 25678.45 | HQ33: -2.26% | HS33: 23397.56 | HT33: =(HS33-IT33)/IT33 -> -2.24% | HU33: 24753.19 | HV33: -2.25% | HW33: 24239.44 | HX33: -1.74% | HY33: 26390.73 | HZ33: =(HY33-IZ33)/IZ33 -> -1.22% | IA33: 23265.83 | IB33: -1.48% | IC33: 20335.67 | ID33: -1.37% | IE33: 33987.32 | IF33: -1.41% | IG33: 300243 | IJ33: 22018 | IK33: 0.12% | IL33: 30450 | IM33: 0.29% | IN33: 25605 | IO33: -3.64% | IP33: 22173.60 | IQ33: 0.83% | IR33: 26272.20 | IS33: 0.72% | IT33: 23933.70 | IU33: 1.12% | IV33: 25322.96 | IW33: 1.04% | IX33: 24,668.40 | IY33: 1.05% | IZ33: 26,716.68 | JA33: -0.40% | JB33: 23,615.34 | JC33: -0.46% | JD33: 20,618.14 | JE33: -0.95% | JF33: 34,475.14 | JG33: -3.08% | JH33: 307082 | JI33: 21992 | JJ33: 30362 | JK33: 26573 | JL33: 21991 | JM33: 26085 | JN33: 23669 | JO33: 25063 | JP33: 24412 | JQ33: 26824 | JR33: 23724 | JS33: 20816 | JT33: 35571
B34: 其中个体客运量 （万人） | C34: 2.35 | D34: =C34/R34-1 -> -65.17% | E34: 2.41 | F34: -63.36% | G34: 2.159 | H34: -64.43% | I34: 2.0569 | J34: =I34/X34-1 -> -61.27% | K34: 2.0727 | L34: -61.23% | M34: 2.3384 | N34: -54.63% | O34: 13.38 | P34: -61.97% | R34: 6.73 | S34: =R34/AS34-1 -> -34.10% | T34: 6.58 | U34: -33.46% | V34: 6.07 | W34: -34.36% | X34: 5.31 | Y34: =X34/AY34-1 -> -39.18% | Z34: 5.35 | AA34: -40.47% | AB34: 5.15 | AC34: -42.69% | AD34: 4.65 | AE34: =AD34/BE34-1 -> -45.32% | AF34: 4.64 | AG34: -43.48% | AH34: 4.70 | AI34: -43.78% | AJ34: 4.88 | AK34: =AJ34/BK34-1 -> -43.55% | AL34: 4.6494 | AM34: -43.15% | AN34: 4.2354 | AO34: -48.90% | AP34: 62.94 | AQ34: -40.75% | AS34: 10.22 | AT34: -21.18% | AU34: 9.8839 | AV34: =AU34/BV34-1 -> -12.41% | AW34: 9.2455 | AX34: -19.72% | AY34: 8.73 | AZ34: -22.08% | BA34: 8.98 | BB34: =BA34/CB34-1 -> -22.52% | BC34: 8.99 | BD34: -21.67% | BE34: 8.51 | BF34: -54.39% | BG34: 8.20 | BH34: =BG34/CH34-1 -> -29.41% | BI34: 8.35 | BJ34: -31.18% | BK34: 8.64 | BL34: -27.71% | BM34: 8.18 | BN34: -20.08% | BO34: 8.29 | BP34: -17.61% | BQ34: 106.22 | BR34: -26.59% | BT34: 12.96 | BU34: -12.02% | BV34: 11.28 | BW34: -26.05% | BX34: 11.52 | BY34: -18.11% | BZ34: 11.2073 | CA34: -19.67% | CB34: 11.5899 | CC34: -17.57% | CD34: 11.4819 | CE34: -19.10% | CF34: 18.66 | CG34: 34.87% | CH34: 11.62 | CI34: -14.60% | CJ34: 12.14 | CK34: 26.83% | CL34: 11.95 | CM34: 20.58% | CN34: 10.23 | CO34: 9.80% | CP34: 10.06 | CQ34: 15.29% | CR34: 144.7038 | CS34: -4.31% | CT34: -1.69% | CV34: 14.73 | CW34: 15.26 | CX34: 14.06 | CY34: 13.95 | CZ34: 14.06 | DA34: 14.19 | DB34: 13.84 | DC34: 13.61 | DD34: 9.57 | DE34: 9.91 | DF34: 9.32 | DG34: 8.72 | DH34: 151.23 | DI34: -29.24% | DK34: 23.56 | DM34: 25.1988 | DO34: 19.6029 | DQ34: 68.36 | DR34: 18.0871 | DS34: =(DR34-ER34)/ER34 ->  | DT34: 16.8053 | DV34: 17.0148 | DX34: 17.0767 | DY34: =(DX34-EX34)/EX34 ->  | DZ34: 16.4853 | EB34: 15.7735 | ED34: 15.4980 | EE34: =(ED34-FD34)/FD34 ->  | EF34: 14.3214 | EH34: 14.2980 | EJ34: 213.7196 | FJ34: 0.0000
B35: 其中个体旅客周转量（万人公里） | C35: 51.17 | D35: =C35/R35-1 -> -57.84% | E35: 53.2252 | F35: -55.76% | G35: 43.9387 | H35: -58.73% | I35: 41.1799 | J35: =I35/X35-1 -> -57.17% | K35: 41.8882 | L35: -57.00% | M35: 49.6743 | N35: -45.86% | O35: 281.08 | P35: -55.63% | R35: 121.37 | S35: =R35/AS35-1 -> -28.87% | T35: 120.30 | U35: -25.47% | V35: 106.46 | W35: -29.61% | X35: 96.16 | Y35: =X35/AY35-1 -> -33.34% | Z35: 97.42 | AA35: -33.57% | AB35: 91.75 | AC35: -37.99% | AD35: 88.44 | AE35: =AD35/BE35-1 -> -38.04% | AF35: 85.24 | AG35: -39.56% | AH35: 86.64 | AI35: -39.76% | AJ35: 88.92 | AK35: =AJ35/BK35-1 -> -40.86% | AL35: 104.43 | AM35: -23.98% | AN35: 90.24 | AO35: -35.70% | AP35: 1177.36 | AQ35: -33.78% | AS35: 170.63 | AT35: -19.37% | AU35: 161.4117 | AV35: =AU35/BV35-1 -> -11.39% | AW35: 151.246 | AX35: -21.53% | AY35: 144.25 | AZ35: -21.37% | BA35: 146.66 | BB35: =BA35/CB35-1 -> -22.96% | BC35: 147.95 | BD35: -21.91% | BE35: 142.73 | BF35: -26.36% | BG35: 141.02 | BH35: =BG35/CH35-1 -> -26.25% | BI35: 143.83 | BJ35: -26.19% | BK35: 150.36 | BL35: -25.10% | BM35: 137.37 | BN35: -18.13% | BO35: 140.35 | BP35: -15.58% | BQ35: 1777.82 | BR35: -21.49% | BT35: 211.62 | BU35: -17.24% | BV35: 182.16 | BW35: -31.65% | BX35: 192.74 | BY35: -21.83% | BZ35: 183.4674 | CA35: -23.07% | CB35: 190.3791 | CC35: -19.44% | CD35: 189.4661 | CE35: -22.82% | CF35: 193.8319 | CG35: -18.05% | CH35: 191.22 | CI35: -17.28% | CJ35: 194.87 | CK35: 21.96% | CL35: 200.74 | CM35: 23.14% | CN35: 167.79 | CO35: 15.67% | CP35: 166.25 | CQ35: 19.91% | CR35: 2264.5396 | CS35: -11.66% | CT35: -0.92% | CV35: 255.71 | CW35: 266.53 | CX35: 246.56 | CY35: 238.49 | CZ35: 236.31 | DA35: 245.49 | DB35: 236.54 | DC35: 231.16 | DD35: 159.79 | DE35: 163.01 | DF35: 145.07 | DG35: 138.65 | DH35: 2563.29 | DI35: -31.64% | DK35: 321.40 | DM35: 488.0232 | DO35: 387.1630 | DQ35: 1196.58 | DR35: 342.5843 | DS35: =(DR35-ER35)/ER35 ->  | DT35: 292.2797 | DV35: 298.1928 | DX35: 303.6275 | DY35: =(DX35-EX35)/EX35 ->  | DZ35: 290.4718 | EB35: 269.9398 | ED35: 269.9841 | EE35: =(ED35-FD35)/FD35 ->  | EF35: 241.7117 | EH35: 244.4399 | EJ35: 3749.8140 | FJ35: 0.0000
A36: 荆州市 | B36: 客运量 （万人） | C36: 133.6683 | D36: =C36/R36-1 -> -18.74% | E36: 143.6103 | F36: -16.83% | G36: 139.5382 | H36: -11.69% | I36: 141.171 | J36: =I36/X36-1 -> -12.90% | K36: 140.9257 | L36: -13.83% | M36: 134.7257 | N36: -16.38% | O36: 833.64 | P36: -15.10% | R36: 164.50 | S36: =R36/AS36-1 -> 4.59% | T36: 172.67 | U36: 3.81% | V36: 158.0056 | W36: 1.11% | X36: 162.0783 | Y36: =X36/AY36-1 -> 1.36% | Z36: 163.5476 | AA36: -3.62% | AB36: 161.1131 | AC36: 0.41% | AD36: 167.1169 | AE36: =AD36/BE36-1 -> 0.83% | AF36: 162.8831 | AG36: 4.99% | AH36: 136.8044 | AI36: -7.22% | AJ36: 145.8738 | AK36: =AJ36/BK36-1 -> -6.62% | AL36: 133.7493 | AM36: -6.33% | AN36: 132.9524 | AO36: -7.90% | AP36: 1861.29 | AQ36: -1.08% | AS36: 157.27 | AT36: -12.33% | AU36: 166.3319 | AV36: =AU36/BV36-1 -> -3.94% | AW36: 156.2658 | AX36: -5.30% | AY36: 159.91 | AZ36: -4.89% | BA36: 169.69 | BB36: =BA36/CB36-1 -> -0.95% | BC36: 160.46 | BD36: -5.01% | BE36: 165.74 | BF36: -6.00% | BG36: 155.14 | BH36: =BG36/CH36-1 -> -11.30% | BI36: 147.46 | BJ36: -12.08% | BK36: 156.21 | BL36: -5.96% | BM36: 142.78 | BN36: -5.71% | BO36: 144.35 | BP36: 0.08% | BQ36: 1881.62 | BR36: -6.23% | BT36: 179.39 | BU36: -18.66% | BV36: 173.16 | BW36: -23.28% | BX36: 165.02 | BY36: -14.55% | BZ36: 168.1359 | CA36: -6.34% | CB36: 171.3219 | CC36: -9.95% | CD36: 168.9196 | CE36: -13.31% | CF36: 176.3177 | CG36: -11.19% | CH36: 174.90 | CI36: -7.80% | CJ36: 167.71 | CK36: -9.31% | CL36: 166.11 | CM36: 26.26% | CN36: 151.43 | CO36: 11.78% | CP36: 144.23 | CQ36: 26.28% | CR36: 2006.6441 | CS36: -7.03% | CT36: -4.75% | CV36: 220.54 | CW36: 225.71 | CX36: 193.13 | CY36: 179.52 | CZ36: 190.26 | DA36: 194.86 | DB36: 198.54 | DC36: 189.69 | DD36: 184.92 | DE36: 131.56 | DF36: 135.48 | DG36: 114.22 | DH36: 2158.43 | DI36: -21.01% | DK36: 246.82 | DL36: -3.31% | DM36: 261.5492 | DO36: 241.2143 | DP36: 923.52% | DQ36: 749.58 | DR36: 245.6004 | DS36: =(DR36-ER36)/ER36 -> 153.31% | DT36: 255.2680 | DU36: 175.38% | DV36: 252.9692 | DW36: 89.95% | DX36: 256.3831 | DY36: =(DX36-EX36)/EX36 -> 48.45% | DZ36: 138.2668 | EA36: -52.89% | EB36: 215.1248 | EC36: -24.78% | ED36: 210.5634 | EE36: =(ED36-FD36)/FD36 -> -27.05% | EF36: 206.5183 | EG36: -19.61% | EH36: 202.2508 | EI36: -21.33% | EJ36: 2732.5283 | EK36: 18.18% | EL36: 411.0000 | EM36: 1.66% | EN36: 0.0000 | EO36: -100.00% | EP36: 23.5671 | EQ36: -95.58% | ER36: 96.9556 | ES36: -78.41% | ET36: 92.6972 | EU36: -79.80% | EV36: 133.1800 | EW36: -69.87% | EX36: 172.7100 | EY36: -63.64% | EZ36: 293.5000 | FA36: -37.42% | FB36: 286.0000 | FC36: -37.14% | FD36: 288.6300 | FE36: =(FD36-FU36)/FU36 -> -36.70% | FF36: 256.8800 | FG36: -35.94% | FH36: 257.1000 | FI36: -44.76% | FJ36: 2312.2199 | FK36: -58.64% | FL36: 404 | FM36: 582 | FN36: 533 | FO36: 449 | FP36: 459 | FQ36: 442 | FR36: 475.0000 | FS36: 469.0000 | FT36: 455.0000 | FU36: 456.0000 | FV36: =(FU36-GW36)/GW36 -> -9.33% | FW36: 401.0000 | FX36: -9.68% | FY36: 465.4500 | FZ36: -10.89% | GA36: 5590.73 | GB36: -10.61% | GE36: 438 | GF36: =(GE36-HH36)/HH36 -> -21.57% | GG36: 706 | GH36: 0.95% | GI36: 577 | GJ36: 1.21% | GK36: 498 | GL36: 2.75% | GM36: 508 | GN36: 0.73% | GO36: 493.48 | GP36: =(GO36-HS36)/HS36 -> -0.98% | GQ36: 532 | GR36: -0.84% | GS36: 530 | GT36: 0.26% | GU36: 502 | GV36: =(GU36-HY36)/HY36 -> 1.43% | GW36: 503 | GX36: 2.10% | GY36: 444 | GZ36: 1.81% | HA36: 522 | HB36: 0.43% | HC36: 6254 | HD36: 6254 | HH36: 559 | HI36: =(HH36-IJ36)/IJ36 -> 3.13% | HJ36: 699.56 | HK36: -9.48% | HL36: 570.12 | HM36: -7.71% | HN36: 484.37 | HO36: -0.89% | HP36: 504.38 | HQ36: -0.08% | HS36: 498.37 | HT36: =(HS36-IT36)/IT36 -> -0.87% | HU36: 536.68 | HV36: 2.65% | HW36: 528.69 | HX36: 0.29% | HY36: 494.79 | HZ36: =(HY36-IZ36)/IZ36 -> 0.43% | IA36: 492.56 | IB36: -0.08% | IC36: 436.07 | ID36: 0.43% | IE36: 520.09 | IF36: 2.88% | IG36: 6324 | IJ36: 542 | IK36: -2.69% | IL36: 773 | IM36: 1.28% | IN36: 618 | IO36: 0.77% | IP36: 488.71 | IQ36: 1.63% | IR36: 504.78 | IS36: 5.73% | IT36: 502.74 | IU36: -2.13% | IV36: 522.80 | IW36: 2.29% | IX36: 527.15 | IY36: 7.00% | IZ36: 492.69 | JA36: -0.41% | JB36: 492.96 | JC36: -2.82% | JD36: 434.2 | JE36: -5.03% | JF36: 505.54 | JG36: -7.45% | JH36: 6414 | JI36: 557 | JJ36: 763 | JK36: 613 | JL36: 481 | JM36: 477 | JN36: 514 | JO36: 511 | JP36: 493 | JQ36: 495 | JR36: 507 | JS36: 457 | JT36: 546
B37: 旅客周转量 （万人公里） | C37: 8460.3268 | D37: =C37/R37-1 -> -21.66% | E37: 10893.6835 | F37: -17.18% | G37: 10915.655 | H37: 0.32% | I37: 9181.1169 | J37: =I37/X37-1 -> -17.32% | K37: 9903.441 | L37: -9.10% | M37: 9184.0432 | N37: -10.13% | O37: 58538.27 | P37: -12.70% | R37: 10799.78 | S37: =R37/AS37-1 -> 14.25% | T37: 13153.01 | U37: -2.99% | V37: 10881.1162 | W37: 5.92% | X37: 11104.6944 | Y37: =X37/AY37-1 -> -1.25% | Z37: 10895.0669 | AA37: -7.71% | AB37: 10219.4209 | AC37: -2.90% | AD37: 10813.7971 | AE37: =AD37/BE37-1 -> -0.92% | AF37: 9954.1267 | AG37: -4.17% | AH37: 9722.3011 | AI37: -1.38% | AJ37: 10569.0524 | AK37: =AJ37/BK37-1 -> -1.46% | AL37: 9485.8706 | AM37: 3.87% | AN37: 8968.5755 | AO37: -1.16% | AP37: 126566.81 | AQ37: -0.30% | AS37: 9452.70 | AT37: 2.06% | AU37: 13557.7368 | AV37: =AU37/BV37-1 -> 27.55% | AW37: 10272.9172 | AX37: 8.55% | AY37: 11245.41 | AZ37: 13.25% | BA37: 11804.84 | BB37: =BA37/CB37-1 -> 11.04% | BC37: 10524.23 | BD37: 8.83% | BE37: 10914.38 | BF37: 5.01% | BG37: 10387.05 | BH37: =BG37/CH37-1 -> 2.89% | BI37: 9858.84 | BJ37: 1.54% | BK37: 10725.55 | BL37: 0.81% | BM37: 9132.62 | BN37: -3.40% | BO37: 9073.59 | BP37: 7.00% | BQ37: 126949.88 | BR37: 7.26% | BT37: 9262.00 | BU37: -17.70% | BV37: 10629.06 | BW37: -20.37% | BX37: 9463.75 | BY37: -0.11% | BZ37: 9929.8885 | CA37: 15.37% | CB37: 10630.7192 | CC37: 15.12% | CD37: 9670.5229 | CE37: 0.48% | CF37: 10394.0898 | CG37: -2.91% | CH37: 10095.01 | CI37: 0.21% | CJ37: 9709.79 | CK37: 3.32% | CL37: 10639.90 | CM37: 63.42% | CN37: 9453.68 | CO37: 52.74% | CP37: 8480.30 | CQ37: 58.97% | CR37: 118358.7056 | CS37: 7.84% | CT37: -10.30% | CV37: 11253.37 | CW37: 13348.51 | CX37: 9474.62 | CY37: 8606.75 | CZ37: 9234.70 | DA37: 9624.55 | DB37: 10705.23 | DC37: 10074.33 | DD37: 9397.86 | DE37: 6510.76 | DF37: 6189.34 | DG37: 5334.57 | DH37: 109754.58 | DI37: -21.08% | DK37: 11,862.69 | DL37: -16.31% | DM37: 13066.6868 | DO37: 13069.8031 | DP37: 118.34% | DQ37: 37999.18 | DR37: 13570.5241 | DS37: =(DR37-ER37)/ER37 -> 18.62% | DT37: 14174.2605 | DU37: 124.87% | DV37: 12327.6149 | DW37: -33.70% | DX37: 13495.2463 | DY37: =(DX37-EX37)/EX37 -> 6.75% | DZ37: 6418.3694 | EA37: -60.84% | EB37: 10618.1946 | EC37: -33.37% | ED37: 10796.8437 | EE37: =(ED37-FD37)/FD37 -> -38.98% | EF37: 9820.3519 | EG37: -31.92% | EH37: 9844.5976 | EI37: -26.18% | EJ37: 139065.1829 | EK37: -8.19% | EL37: 18717.0000 | EM37: 1.23% | EN37: 0.0000 | EO37: -100.00% | EP37: 5986.0434 | EQ37: -77.90% | ER37: 11440.7600 | ES37: -51.00% | ET37: 6303.4000 | EU37: -74.76% | EV37: 18592.8700 | EW37: -17.74% | EX37: 12641.9800 | EY37: -52.73% | EZ37: 16389.5000 | FA37: -34.78% | FB37: 15936.7600 | FC37: -37.03% | FD37: 17695.2900 | FE37: =(FD37-FU37)/FU37 -> -30.37% | FF37: 14425.1900 | FG37: -32.44% | FH37: 13336.6400 | FI37: -44.12% | FJ37: 151465.4334 | FK37: -48.22% | FL37: 18489 | FM37: 28237 | FN37: 27,082 | FO37: 23,350 | FP37: 24,973 | FQ37: 22,603 | FR37: 26,742.0000 | FS37: 25,128.0000 | FT37: 25,308.0000 | FU37: 25,412.0000 | FV37: =(FU37-GW37)/GW37 -> -10.95% | FW37: 21,352.0000 | FX37: -9.74% | FY37: 23,866.5700 | FZ37: -18.30% | GA37: 292542.28 | GB37: -11.53% | GE37: 19294 | GF37: =(GE37-HH37)/HH37 -> -27.74% | GG37: 34437 | GH37: 1.64% | GI37: 30180 | GJ37: 1.58% | GK37: 25932 | GL37: 3.29% | GM37: 27618 | GN37: 1.05% | GO37: 25251.04 | GP37: =(GO37-HS37)/HS37 -> -0.02% | GQ37: 29822 | GR37: 1.01% | GS37: 28293 | GT37: 1.36% | GU37: 28450 | GV37: =(GU37-HY37)/HY37 -> -4.20% | GW37: 28537 | GX37: 3.33% | GY37: 23656 | GZ37: -2.50% | HA37: 29213 | HB37: -4.92% | HC37: 330683 | HD37: 330683 | HH37: 26699 | HI37: =(HH37-IJ37)/IJ37 -> 5.18% | HJ37: 33880.61 | HK37: -13.39% | HL37: 29709.98 | HM37: -1.77% | HN37: 25105.95 | HO37: -4.09% | HP37: 27331.72 | HQ37: -5.92% | HS37: 25256.87 | HT37: =(HS37-IT37)/IT37 -> -0.52% | HU37: 29522.33 | HV37: 0.02% | HW37: 27913.07 | HX37: 0.33% | HY37: 29698.13 | HZ37: =(HY37-IZ37)/IZ37 -> 0.25% | IA37: 27616.78 | IB37: -0.66% | IC37: 24261.75 | ID37: -0.36% | IE37: 30723.91 | IF37: -2.77% | IG37: 337720 | IJ37: 25385 | IK37: -3.83% | IL37: 39121 | IM37: 7.72% | IN37: 30245 | IO37: -5.51% | IP37: 26176.61 | IQ37: -0.81% | IR37: 29051.55 | IS37: -7.44% | IT37: 25389.78 | IU37: -10.78% | IV37: 29516.05 | IW37: -2.03% | IX37: 27,821.48 | IY37: -5.15% | IZ37: 29,623.59 | JA37: -8.27% | JB37: 27,800.06 | JC37: -2.19% | JD37: 24,348.80 | JE37: -2.42% | JF37: 31,598.32 | JG37: -26.47% | JH37: 369055 | JI37: 26396 | JJ37: 36316 | JK37: 32009 | JL37: 26390 | JM37: 31388 | JN37: 28458 | JO37: 30127 | JP37: 29332 | JQ37: 32293 | JR37: 28422 | JS37: 24952 | JT37: 42973
A38: 黄冈市 | B38: 客运量 （万人） | C38: 136.7024 | D38: =C38/R38-1 -> -17.95% | E38: 146.6421 | F38: -9.79% | G38: 136.5708 | H38: -12.67% | I38: 136.3122 | J38: =I38/X38-1 -> -14.02% | K38: 142.7334 | L38: -7.28% | M38: 133.5838 | N38: -11.24% | O38: 832.54 | P38: -12.23% | R38: 166.60 | S38: =R38/AS38-1 -> 10.33% | T38: 162.56 | U38: 7.18% | V38: 156.3913 | W38: 12.78% | X38: 158.5341 | Y38: =X38/AY38-1 -> 12.45% | Z38: 153.939 | AA38: 10.34% | AB38: 150.4945 | AC38: 11.31% | AD38: 145.7717 | AE38: =AD38/BE38-1 -> 11.32% | AF38: 146.7911 | AG38: -6.12% | AH38: 151.2837 | AI38: -18.87% | AJ38: 156.9226 | AK38: =AJ38/BK38-1 -> -22.62% | AL38: 149.9079 | AM38: -13.66% | AN38: 145.3567 | AO38: -11.04% | AP38: 1844.55 | AQ38: -1.40% | AS38: 151.00 | AT38: -8.32% | AU38: 151.6764 | AV38: =AU38/BV38-1 -> -12.44% | AW38: 138.6749 | AX38: -18.29% | AY38: 140.98 | AZ38: -16.66% | BA38: 139.52 | BB38: =BA38/CB38-1 -> -13.34% | BC38: 135.20 | BD38: -13.92% | BE38: 130.95 | BF38: -16.16% | BG38: 156.37 | BH38: =BG38/CH38-1 -> 1.07% | BI38: 186.48 | BJ38: 25.08% | BK38: 202.80 | BL38: 35.36% | BM38: 173.62 | BN38: 22.19% | BO38: 163.39 | BP38: 16.82% | BQ38: 1870.68 | BR38: -0.85% | BT38: 164.72 | BU38: -13.80% | BV38: 173.23 | BW38: -12.67% | BX38: 169.71 | BY38: -2.54% | BZ38: 169.1605 | CA38: 17.83% | CB38: 160.9967 | CC38: 10.67% | CD38: 157.0721 | CE38: 3.28% | CF38: 156.1852 | CG38: -0.61% | CH38: 154.72 | CI38: 0.39% | CJ38: =125.6761+CJ40 -> 149.09 | CK38: -4.82% | CL38: =128.6553+CL40 -> 149.82 | CM38: 0.19% | CN38: 142.10 | CO38: 48.06% | CP38: 139.87 | CQ38: 30.20% | CR38: 1886.6787 | CS38: 3.35% | CT38: -1.57% | CV38: 191.08 | CW38: 198.37 | CX38: 174.13 | CY38: 143.56 | CZ38: 145.48 | DA38: 152.08 | DB38: 157.14 | DC38: 154.12 | DD38: 156.65 | DE38: 149.55 | DF38: 95.98 | DG38: 107.43 | DH38: 1825.56 | DI38: -21.76% | DK38: 195.8309 | DL38: -11.88% | DM38: 236.2488 | DO38: 213.2599 | DP38: 1084.78% | DQ38: 645.34 | DR38: 210.5397 | DS38: =(DR38-ER38)/ER38 -> 17.00% | DT38: 222.2333 | DU38: 45.25% | DV38: 203.1977 | DW38: 29.43% | DX38: 200.4787 | DY38: =(DX38-EX38)/EX38 -> 27.69% | DZ38: 148.3964 | EA38: -14.80% | EB38: 171.5654 | EC38: -7.69% | ED38: 177.2809 | EE38: =(ED38-FD38)/FD38 -> -10.69% | EF38: 176.0252 | EG38: -3.80% | EH38: 178.1568 | EI38: -1.82% | EJ38: 2333.2137 | EK38: 4.12% | EL38: 653.0000 | EM38: -9.31% | EN38: 0.0000 | EO38: -100.00% | EP38: 18.0000 | EQ38: -97.43% | ER38: 179.9522 | ES38: -72.32% | ET38: 153.0000 | EU38: -76.75% | EV38: 157.0000 | EW38: -74.60% | EX38: 157.0000 | EY38: -74.05% | EZ38: 174.1766 | FA38: -69.71% | FB38: 185.8497 | FC38: -71.41% | FD38: 198.4985 | FE38: =(FD38-FU38)/FU38 -> -71.76% | FF38: 182.9753 | FG38: -70.91% | FH38: 181.4548 | FI38: -71.74% | FJ38: 2240.9071 | FK38: -71.57% | FL38: 720 | FM38: 733 | FN38: 700 | FO38: 650 | FP38: 658 | FQ38: 618 | FR38: 605.0000 | FS38: 575.0000 | FT38: 650 | FU38: 703 | FV38: =(FU38-GW38)/GW38 -> -13.00% | FW38: 629 | FX38: -10.78% | FY38: 642 | FZ38: -11.45% | GA38: 7883.00 | GB38: -16.21% | GE38: 850 | GF38: =(GE38-HH38)/HH38 -> 0.00% | GG38: 857 | GH38: -9.79% | GI38: 938 | GJ38: 2.85% | GK38: 776.00 | GL38: 0.00% | GM38: 784.00 | GN38: -5.20% | GO38: 763 | GP38: =(GO38-HS38)/HS38 -> -3.78% | GQ38: 750 | GR38: -3.85% | GS38: 700 | GT38: -6.42% | GU38: 752 | GV38: =(GU38-HY38)/HY38 -> -4.08% | GW38: 808 | GX38: -4.38% | GY38: 705 | GZ38: -6.99% | HA38: 725 | HB38: -9.60% | HC38: 9408 | HD38: 9408 | HH38: 850 | HI38: =(HH38-IJ38)/IJ38 -> 1.31% | HJ38: 950.00 | HK38: -17.03% | HL38: 912.00 | HM38: -4.80% | HN38: 776.00 | HO38: -5.37% | HP38: 827.00 | HQ38: -3.73% | HS38: 793.00 | HT38: =(HS38-IT38)/IT38 -> -2.34% | HU38: 780.00 | HV38: -5.22% | HW38: 748.00 | HX38: -1.97% | HY38: 784.00 | HZ38: =(HY38-IZ38)/IZ38 -> -2.12% | IA38: 845.00 | IB38: -0.82% | IC38: 758.00 | ID38: 5.13% | IE38: 802.00 | IF38: 3.89% | IG38: 9825 | IJ38: 839 | IK38: 2.57% | IL38: 1145 | IM38: 1.40% | IN38: 958 | IO38: 2.02% | IP38: 820.00 | IQ38: 0.61% | IR38: 859.00 | IS38: 0.82% | IT38: 812.00 | IU38: 1.75% | IV38: 823.00 | IW38: -1.56% | IX38: 763 | IY38: 0.79% | IZ38: 801 | JA38: -2.55% | JB38: 852 | JC38: -2.18% | JD38: 721 | JE38: -2.18% | JF38: 772 | JG38: -6.54% | JH38: 10200 | JI38: 818 | JJ38: 1129 | JK38: 939 | JL38: 815 | JM38: 852 | JN38: 798 | JO38: 836 | JP38: 757 | JQ38: 822 | JR38: 871 | JS38: 737 | JT38: 826
B39: 旅客周转量 （万人公里） | C39: 7888.0719 | D39: =C39/R39-1 -> -8.84% | E39: 9890.8954 | F39: 11.45% | G39: 9258.3636 | H39: 6.87% | I39: 9236.1468 | J39: =I39/X39-1 -> 0.37% | K39: 9544.8729 | L39: 6.24% | M39: 9053.128 | N39: 5.41% | O39: 54871.48 | P39: 3.60% | R39: 8652.70 | S39: =R39/AS39-1 -> 26.73% | T39: 8874.89 | U39: 22.02% | V39: 8663.1027 | W39: 23.89% | X39: 9201.8672 | Y39: =X39/AY39-1 -> 25.99% | Z39: 8984.2135 | AA39: 24.95% | AB39: 8588.2675 | AC39: 28.08% | AD39: 8528.6379 | AE39: =AD39/BE39-1 -> 28.78% | AF39: 8864.1288 | AG39: -2.45% | AH39: 8956.6383 | AI39: -16.08% | AJ39: 9643.3971 | AK39: =AJ39/BK39-1 -> -16.80% | AL39: 8993.5855 | AM39: -6.29% | AN39: 8330.8369 | AO39: -2.24% | AP39: 106282.26 | AQ39: 8.03% | AS39: 6827.72 | AT39: -15.68% | AU39: 7273.4122 | AV39: =AU39/BV39-1 -> -19.35% | AW39: 6992.3083 | AX39: -20.13% | AY39: 7303.41 | AZ39: -15.42% | BA39: 7190.10 | BB39: =BA39/CB39-1 -> -12.58% | BC39: 6705.59 | BD39: -10.88% | BE39: 6622.51 | BF39: -13.00% | BG39: 9086.40 | BH39: =BG39/CH39-1 -> 17.09% | BI39: 10672.31 | BJ39: 49.82% | BK39: 11591.18 | BL39: 59.12% | BM39: 9597.02 | BN39: 41.99% | BO39: 8521.76 | BP39: 34.42% | BQ39: 98383.72 | BR39: 5.64% | BT39: 8097.61 | BU39: -32.14% | BV39: 9018.92 | BW39: -29.52% | BX39: 8754.38 | BY39: -1.71% | BZ39: 8635.1416 | CA39: 24.52% | CB39: 8225.2181 | CC39: 18.45% | CD39: 7524.5983 | CE39: -2.52% | CF39: 7612.0761 | CG39: -5.22% | CH39: 7759.90 | CI39: 0.16% | CJ39: =6518.1528+CJ41 -> 7123.44 | CK39: -8.24% | CL39: =6621.5284+CL41 -> 7284.61 | CM39: 4.48% | CN39: 6758.73 | CO39: 62.92% | CP39: 6339.76 | CQ39: 34.93% | CR39: 93134.3919 | CS39: -1.54% | CT39: -6.20% | CV39: 11933.00 | CW39: 12796.07 | CX39: 8907.09 | CY39: 6934.89 | CZ39: 6943.91 | DA39: 7719.01 | DB39: 8031.31 | DC39: 7747.64 | DD39: 7763.49 | DE39: 6972.34 | DF39: 4148.37 | DG39: 4698.62 | DH39: 94595.74 | DI39: -32.44% | DK39: 9,835.74 | DL39: -29.96% | DM39: 12229.2263 | DO39: 13338.1853 | DP39: 96.53% | DQ39: 35403.16 | DR39: 13442.9753 | DS39: =(DR39-ER39)/ER39 -> 54.61% | DT39: 14042.9576 | DU39: 77.80% | DV39: 12434.7222 | DW39: 55.36% | DX39: 11895.2987 | DY39: =(DX39-EX39)/EX39 -> 40.77% | DZ39: 8891.2552 | EA39: -3.28% | EB39: 10393.7435 | EC39: 18.60% | ED39: 11402.7587 | EE39: =(ED39-FD39)/FD39 -> 17.56% | EF39: 11087.3647 | EG39: 33.70% | EH39: 11024.5237 | EI39: 24.28% | EJ39: 140018.7557 | EK39: 20.81% | EL39: 31245.0000 | EM39: -11.44% | EN39: 0.0000 | EO39: -100.00% | EP39: 6787.0000 | EQ39: -80.55% | ER39: 8694.4953 | ES39: -71.74% | ET39: 7898.0000 | EU39: -74.62% | EV39: 8004.0000 | EW39: -74.34% | EX39: 8450.0000 | EY39: -71.91% | EZ39: 9193.0219 | FA39: -70.45% | FB39: 8764.0416 | FC39: -74.79% | FD39: 9699.2591 | FE39: =(FD39-FU39)/FU39 -> -68.10% | FF39: 8293.0190 | FG39: -74.45% | FH39: 8871.0700 | FI39: -79.07% | FJ39: 115898.9069 | FK39: -71.05% | FL39: 35280 | FM39: 35819 | FN39: 34900 | FO39: 30762 | FP39: 31,122 | FQ39: 31,191 | FR39: 30,086.0000 | FS39: 31,110.0000 | FT39: 34759 | FU39: 30409 | FV39: =(FU39-GW39)/GW39 -> -13.14% | FW39: 32456 | FX39: -10.04% | FY39: 42379 | FZ39: -13.65% | GA39: 400273.00 | GB39: -12.94% | GE39: 38096 | GF39: =(GE39-HH39)/HH39 -> 0.00% | GG39: 36997 | GH39: -7.73% | GI39: 44086 | GJ39: 4.73% | GK39: 35173.00 | GL39: 0.00% | GM39: 36758.00 | GN39: -10.27% | GO39: 36895 | GP39: =(GO39-HS39)/HS39 -> -2.31% | GQ39: 36058 | GR39: -4.38% | GS39: 36208 | GT39: -6.70% | GU39: 39309 | GV39: =(GU39-HY39)/HY39 -> -3.96% | GW39: 35009 | GX39: -3.21% | GY39: 36078 | GZ39: -5.61% | HA39: 49078 | HB39: -12.71% | HC39: 459745 | HD39: 459745 | HH39: 38096 | HI39: =(HH39-IJ39)/IJ39 -> 1.80% | HJ39: 40096.00 | HK39: -16.40% | HL39: 42096.00 | HM39: -4.49% | HN39: 35173.00 | HO39: 0.27% | HP39: 40963.00 | HQ39: -3.29% | HS39: 37769.00 | HT39: =(HS39-IT39)/IT39 -> -2.57% | HU39: 37709.00 | HV39: -4.72% | HW39: 38809.00 | HX39: -1.08% | HY39: 40931.00 | HZ39: =(HY39-IZ39)/IZ39 -> -2.73% | IA39: 36170.00 | IB39: -1.14% | IC39: 38222.00 | ID39: 17.55% | IE39: 56222.00 | IF39: 3.52% | IG39: 482256 | IJ39: 37424 | IK39: 7.38% | IL39: 47959 | IM39: 1.67% | IN39: 44077 | IO39: 2.59% | IP39: 35077.00 | IQ39: 0.77% | IR39: 42357.00 | IS39: 1.02% | IT39: 38766.00 | IU39: 2.34% | IV39: 39579.00 | IW39: -1.18% | IX39: 39,232.00 | IY39: 0.79% | IZ39: 42,079.00 | JA39: -2.67% | JB39: 36,587.00 | JC39: -1.64% | JD39: 32,516.00 | JE39: -0.72% | JF39: 54,310.00 | JG39: -7.09% | JH39: 490220 | JI39: 34851 | JJ39: 47171 | JK39: 42962 | JL39: 34811 | JM39: 41930 | JN39: 37878 | JO39: 40053 | JP39: 38924 | JQ39: 43235 | JR39: 37199 | JS39: 32750 | JT39: 58456
B40: 其中个体客运量 （万人） | C40: 3.63 | D40: =C40/R40-1 -> -82.33% | E40: 1.8462 | F40: -88.14% | G40: 1.1319 | H40: -92.07% | I40: 0.9238 | J40: =I40/X40-1 -> -92.49% | K40: 1.0415 | L40: -91.53% | M40: 0.9698 | N40: -91.48% | O40: 9.55 | P40: -88.95% | R40: 20.56 | S40: =R40/AS40-1 -> -0.43% | T40: 15.56 | U40: -20.48% | V40: 14.27 | W40: -7.28% | X40: 12.30 | Y40: =X40/AY40-1 -> -21.45% | Z40: 12.30 | AA40: -29.83% | AB40: 11.39 | AC40: -28.77% | AD40: 10.64 | AE40: =AD40/BE40-1 -> -27.30% | AF40: 10.23 | AG40: -35.97% | AH40: 10.47 | AI40: -57.95% | AJ40: 6.26 | AK40: =AJ40/BK40-1 -> -77.25% | AL40: 6.2611 | AM40: -75.50% | AN40: 6.2152 | AO40: -70.71% | AP40: 136.46 | AQ40: -41.83% | AS40: 20.65 | AT40: -30.29% | AU40: 19.5674 | AV40: =AU40/BV40-1 -> -24.60% | AW40: 15.3955 | AX40: -42.32% | AY40: 15.66 | AZ40: -44.64% | BA40: 17.53 | BB40: =BA40/CB40-1 -> -42.21% | BC40: 15.99 | BD40: -49.87% | BE40: 14.64 | BF40: -46.63% | BG40: 15.98 | BH40: =BG40/CH40-1 -> -34.38% | BI40: 24.89 | BJ40: 6.30% | BK40: 27.52 | BL40: 30.02% | BM40: 25.55 | BN40: 40.98% | BO40: 21.22 | BP40: 36.64% | BQ40: 234.58 | BR40: -22.52% | BT40: 29.62 | BU40: -7.04% | BV40: 25.95 | BW40: -21.08% | BX40: 26.69 | BY40: -4.37% | BZ40: 28.2857 | CA40: 9.07% | CB40: 30.3305 | CC40: 16.87% | CD40: 31.8895 | CE40: 27.39% | CF40: 27.43 | CG40: -0.84% | CH40: 24.35 | CI40: -5.10% | CJ40: 23.41 | CK40: -12.99% | CL40: 21.17 | CM40: -18.43% | CN40: 18.12 | CO40: -11.29% | CP40: 15.53 | CQ40: -21.77% | CR40: 302.7848 | CS40: -4.19% | CT40: -14.32% | CV40: 31.86 | CW40: 32.89 | CX40: 27.91 | CY40: 25.93 | CZ40: 25.95 | DA40: 25.03 | DB40: 27.66 | DC40: 25.66 | DD40: 26.91 | DE40: 25.95 | DF40: 20.43 | DG40: 19.85 | DH40: 316.04 | DI40: -22.97% | DK40: 31.34 | DM40: 49.4020 | DO40: 42.3980 | DQ40: 123.14 | DR40: 32.5440 | DS40: =(DR40-ER40)/ER40 ->  | DT40: 43.8686 | DV40: 34.7330 | DX40: 36.1002 | DY40: =(DX40-EX40)/EX40 ->  | DZ40: 25.1084 | EB40: 30.7422 | ED40: 28.4426 | EE40: =(ED40-FD40)/FD40 ->  | EF40: 27.5623 | EH40: 28.0485 | EJ40: 410.2908 | FJ40: 0.0000
B41: 其中个体旅客周转量（万人公里） | C41: 139.62 | D41: =C41/R41-1 -> -80.29% | E41: 54.9222 | F41: -87.68% | G41: 34.3465 | H41: -91.79% | I41: 30.2418 | J41: =I41/X41-1 -> -91.67% | K41: 34.0819 | L41: -90.62% | M41: 28.8824 | N41: -90.96% | O41: 322.10 | P41: -87.70% | R41: 708.35 | S41: =R41/AS41-1 -> 31.65% | T41: 445.95 | U41: -13.95% | V41: 418.34 | W41: -13.22% | X41: 363.18 | Y41: =X41/AY41-1 -> -26.12% | Z41: 363.18 | AA41: -29.20% | AB41: 319.58 | AC41: -28.87% | AD41: 303.07 | AE41: =AD41/BE41-1 -> -19.44% | AF41: 287.34 | AG41: -36.84% | AH41: 294.00 | AI41: -63.59% | AJ41: 178.45 | AK41: =AJ41/BK41-1 -> -79.76% | AL41: 178.45 | AM41: -76.93% | AN41: 203.94 | AO41: -67.14% | AP41: 4063.84 | AQ41: -41.16% | AS41: 538.04 | AT41: -38.97% | AU41: 518.2736 | AV41: =AU41/BV41-1 -> -33.59% | AW41: 482.0587 | AX41: -37.79% | AY41: 491.55 | AZ41: -43.09% | BA41: 513.00 | BB41: =BA41/CB41-1 -> -44.74% | BC41: 449.31 | BD41: -43.95% | BE41: 376.21 | BF41: -44.73% | BG41: 454.96 | BH41: =BG41/CH41-1 -> -32.61% | BI41: 807.47 | BJ41: 33.40% | BK41: 881.69 | BL41: 32.97% | BM41: 773.65 | BN41: 41.27% | BO41: 620.64 | BP41: 46.86% | BQ41: 6906.86 | BR41: -19.92% | BT41: 881.53 | BU41: -14.23% | BV41: 780.44 | BW41: -17.33% | BX41: 774.89 | BY41: -4.17% | BZ41: 863.7725 | CA41: 20.98% | CB41: 928.3230 | CC41: 27.43% | CD41: 801.6954 | CE41: 8.70% | CF41: 680.6631 | CG41: -22.13% | CH41: 675.15 | CI41: -0.93% | CJ41: 605.29 | CK41: -21.42% | CL41: 663.08 | CM41: -2.05% | CN41: 547.64 | CO41: 19.83% | CP41: 422.60 | CQ41: -19.60% | CR41: 8625.0616 | CS41: -3.59% | CT41: -22.83% | CV41: 1027.77 | CW41: 944.03 | CX41: 808.58 | CY41: 714.00 | CZ41: 728.49 | DA41: 737.53 | DB41: 874.05 | DC41: 681.50 | DD41: 770.23 | DE41: 676.98 | DF41: 457.01 | DG41: 525.60 | DH41: 8945.77 | DI41: -27.09% | DK41: 1,096.94 | DM41: 1729.0700 | DO41: 1483.9300 | DQ41: 4309.94 | DR41: 911.2320 | DS41: =(DR41-ER41)/ER41 ->  | DT41: 1267.1661 | DV41: 941.5374 | DX41: 849.6640 | DY41: =(DX41-EX41)/EX41 ->  | DZ41: 680.7145 | EB41: 835.1998 | ED41: 847.0324 | EE41: =(ED41-FD41)/FD41 ->  | EF41: 801.5624 | EH41: 825.3822 | EJ41: 12269.4258 | FJ41: 0.0000
A42: 咸宁市 | B42: 客运量 （万人） | C42: 39.3094 | D42: =C42/R42-1 -> -33.47% | E42: 56.4335 | F42: -13.22% | G42: 56.8116 | H42: -13.02% | I42: 58.6924 | J42: =I42/X42-1 -> -2.49% | K42: 58.0517 | L42: 1.57% | M42: 52.6658 | N42: -10.81% | O42: 321.96 | P42: -11.99% | R42: 59.09 | S42: =R42/AS42-1 -> 11.61% | T42: 65.03 | U42: 31.50% | V42: 65.3187 | W42: 24.77% | X42: 60.1882 | Y42: =X42/AY42-1 -> 23.68% | Z42: 57.1571 | AA42: 8.73% | AB42: 59.0458 | AC42: 13.75% | AD42: 53.5025 | AE42: =AD42/BE42-1 -> 10.29% | AF42: 53.6282 | AG42: 1.52% | AH42: 53.3324 | AI42: -4.28% | AJ42: 52.6712 | AK42: =AJ42/BK42-1 -> -13.17% | AL42: 48.952 | AM42: -18.44% | AN42: 41.0177 | AO42: -28.58% | AP42: 668.93 | AQ42: 4.02% | AS42: 52.94 | AT42: -3.47% | AU42: 49.4533 | AV42: =AU42/BV42-1 -> -9.80% | AW42: 52.3527 | AX42: -5.50% | AY42: 48.66 | AZ42: -21.94% | BA42: 52.57 | BB42: =BA42/CB42-1 -> -8.71% | BC42: 51.91 | BD42: -7.56% | BE42: 48.51 | BF42: -8.47% | BG42: 52.82 | BH42: =BG42/CH42-1 -> -2.93% | BI42: 55.72 | BJ42: 0.78% | BK42: 60.66 | BL42: 1.98% | BM42: 60.02 | BN42: 3.10% | BO42: 57.43 | BP42: 3.03% | BQ42: 643.06 | BR42: -5.06% | BT42: 54.84 | BU42: -17.25% | BV42: 54.83 | BW42: -22.01% | BX42: 55.40 | BY42: -10.04% | BZ42: 62.3403 | CA42: 4.07% | CB42: 57.5830 | CC42: -8.30% | CD42: 56.1490 | CE42: -8.84% | CF42: 53.0032 | CG42: -13.05% | CH42: 54.42 | CI42: -10.16% | CJ42: 55.29 | CK42: -9.42% | CL42: 59.49 | CM42: 4.02% | CN42: 58.22 | CO42: 22.43% | CP42: 55.74 | CQ42: 36.06% | CR42: 677.3031 | CS42: -4.70% | CT42: -4.25% | CV42: 66.27 | CW42: 70.30 | CX42: 61.58 | CY42: 59.90 | CZ42: 62.80 | DA42: 61.59 | DB42: 60.96 | DC42: 60.57 | DD42: 61.04 | DE42: 57.19 | DF42: 47.55 | DG42: 40.97 | DH42: 710.74 | DI42: -25.17% | DK42: 79.9779 | DL42: =(DK42-DT42)/DT42 -> -21.98% | DM42: 90.2991 | DO42: 90.5514 | DP42: 1572.88% | DQ42: 260.83 | DR42: 94.4988 | DS42: =(DR42-ER42)/ER42 -> 529.99% | DT42: 102.5070 | DU42: 49.45% | DV42: 93.6941 | DW42: 30.64% | DX42: 88.2697 | DY42: =(DX42-EX42)/EX42 -> 14.80% | DZ42: 55.4200 | EA42: -28.70% | EB42: 63.3182 | EC42: -19.02% | ED42: 71.2840 | EE42: =(ED42-FD42)/FD42 -> -19.97% | EF42: 61.0187 | EG42: -26.52% | EH42: 58.9513 | EI42: -22.81% | EJ42: 949.7902 | EK42: -6.61% | EL42: 375.0000 | EM42: =(EL42-FL42)/FL42 -> -16.67% | EN42: 0.0000 | EO42: =(EN42-FM42)/FM42 -> -100.00% | EP42: 5.4129 | EQ42: =(EP42-FN42)/FN42 -> -98.90% | ER42: 15.0000 | ES42: =(ER42-FO42)/FO42 -> -96.27% | ET42: 68.5912 | EU42: =(ET42-FP42)/FP42 -> -83.35% | EV42: 71.7215 | EW42: =(EV42-FQ42)/FQ42 -> -81.98% | EX42: 76.8870 | EY42: =(EX42-FR42)/FR42 -> -79.82% | EZ42: 77.7229 | FA42: =(EZ42-FS42)/FS42 -> -78.82% | FB42: 78.1878 | FC42: =(FB42-FT42)/FT42 -> -78.98% | FD42: 89.0679 | FE42: =(FD42-FU42)/FU42 -> -76.68% | FF42: 83.0432 | FG42: -76.74% | FH42: 76.3678 | FI42: -80.42% | FJ42: 1017.0022 | FK42: =(FJ42-(FL42+FM42+FN42+FO42+FP42+FQ42+FR42+FS42+FT42+FU42+FW42+FY42))/(FL42+FM42+FN42+FO42+FP42+FQ42+FR42+FS42+FT42+FU42+FW42+FY42) -> -79.70% | FL42: 450 | FM42: 610 | FN42: 490 | FO42: 402 | FP42: 412 | FQ42: 398 | FR42: 381.0000 | FS42: 367.0000 | FT42: 372.0000 | FU42: 382.0000 | FV42: =(FU42-GW42)/GW42 -> -11.16% | FW42: 357.0000 | FX42: -12.93% | FY42: 390.0000 | FZ42: -17.89% | GA42: =FL42+FM42+FN42+FO42+FP42+FQ42+FR42+FS42+FT42+FU42+FW42+FY42 -> 5011.00 | GB42: =(GA42-HC42)/HC42 -> -12.40% | GE42: 509 | GF42: =(GE42-HH42)/HH42 -> -0.39% | GG42: 690 | GH42: -1.29% | GI42: 557 | GJ42: -1.42% | GK42: 430 | GL42: =(GK42-HN42)/HN42 -> -3.37% | GM42: 429 | GN42: =(GM42-HP42)/HP42 -> -2.72% | GO42: 465 | GP42: =(GO42-HS42)/HS42 -> -2.72% | GQ42: 455 | GR42: -3.40% | GS42: 440 | GT42: -3.30% | GU42: 430 | GV42: =(GU42-HY42)/HY42 -> -3.80% | GW42: 430 | GX42: -2.93% | GY42: 410 | GZ42: -0.73% | HA42: 475 | HB42: =(HA42-IE42)/IE42 -> -4.04% | HC42: =GE42+GG42+GI42+GK42+GM42+GO42+GQ42+GS42+GU42+GW42+GY42+HA42 -> 5720 | HD42: =HA42+GY42+GW42+GU42+GS42+GQ42+GO42+GM42+GK42+GI42+GG42+GE42 -> 5720 | HH42: 511 | HI42: =(HH42-IJ42)/IJ42 -> -1.34% | HJ42: 699.00 | HK42: -1.55% | HL42: 565.00 | HM42: -0.88% | HN42: 445.00 | HO42: =(HN42-IP42)/IP42 -> -0.67% | HP42: 441.00 | HQ42: =(HP42-IR42)/IR42 -> -0.68% | HS42: 478.00 | HT42: =(HS42-IT42)/IT42 -> 0.21% | HU42: 471.00 | HV42: -1.05% | HW42: 455.00 | HX42: -0.44% | HY42: 447.00 | HZ42: =(HY42-IZ42)/IZ42 -> -0.67% | IA42: 443.00 | IB42: -0.45% | IC42: 413 | ID42: 0.00% | IE42: 495 | IF42: =(IE42-JF42)/JF42 -> 2.70% | IG42: =HH42+HJ42+HL42+HN42+HP42+HS42+HU42+HW42+HY42+IA42+IC42+IE42 -> 5863 | IJ42: 518 | IK42: =IJ42/JI42-1 -> 2.24% | IL42: 710 | IM42: =IL42/JJ42-1 -> 2.29% | IN42: 570 | IO42: =(IN42-JK42)/JK42 -> 2.23% | IP42: 448.00 | IQ42: =(IP42-JL42)/JL42 -> 2.64% | IR42: 444.00 | IS42: =(IR42-JM42)/JM42 -> 2.58% | IT42: 477.00 | IU42: =(IT42-JN42)/JN42 -> 2.14% | IV42: 476.00 | IW42: =(IV42-JO42)/JO42 -> 2.50% | IX42: 457 | IY42: =(IX42-JP42)/JP42 -> 2.14% | IZ42: 450 | JA42: =(IZ42-JQ42)/JQ42 -> 0.18% | JB42: 445 | JC42: =(JB42-JR42)/JR42 -> -3.24% | JD42: 413 | JE42: =(JD42-JS42)/JS42 -> -0.49% | JF42: 482 | JG42: =(JF42-JT42)/JT42 -> -2.96% | JH42: 5827 | JI42: 507 | JJ42: 694 | JK42: 558 | JL42: 436 | JM42: 433 | JN42: 467 | JO42: 464 | JP42: 447 | JQ42: 449 | JR42: 460 | JS42: 415 | JT42: 497
B43: 旅客周转量 （万人公里） | C43: 4330.6841 | D43: =C43/R43-1 -> -18.09% | E43: 5973.8076 | F43: 3.82% | G43: 6126.3787 | H43: -0.23% | I43: 6709.8015 | J43: =I43/X43-1 -> 6.53% | K43: 6422.9636 | L43: 7.91% | M43: 5719.9664 | N43: -1.55% | O43: 35283.60 | P43: 0.12% | R43: 5287.19 | S43: =R43/AS43-1 -> 41.87% | T43: 5754.26 | U43: 37.71% | V43: 6140.7334 | W43: 35.17% | X43: 6298.517 | Y43: =X43/AY43-1 -> 32.31% | Z43: 5951.9289 | AA43: 22.15% | AB43: 5809.819 | AC43: 30.90% | AD43: 5215.6359 | AE43: =AD43/BE43-1 -> 17.42% | AF43: 5112.6802 | AG43: 9.08% | AH43: 5120.6557 | AI43: 5.11% | AJ43: 5405.8883 | AK43: =AJ43/BK43-1 -> -7.14% | AL43: 5115.4008 | AM43: -12.88% | AN43: 4543.3814 | AO43: -12.58% | AP43: 65756.09 | AQ43: 14.54% | AS43: 3726.79 | AT43: -0.15% | AU43: 4178.52 | AV43: =AU43/BV43-1 -> 9.42% | AW43: 4542.9886 | AX43: 3.81% | AY43: 4760.54 | AZ43: -6.67% | BA43: 4872.60 | BB43: =BA43/CB43-1 -> 2.25% | BC43: 4438.52 | BD43: 7.63% | BE43: 4442.02 | BF43: 4.77% | BG43: 4687.18 | BH43: =BG43/CH43-1 -> 4.37% | BI43: 4871.87 | BJ43: 7.73% | BK43: 5821.29 | BL43: 21.57% | BM43: 5871.43 | BN43: 22.95% | BO43: 5196.93 | BP43: 31.43% | BQ43: 57410.68 | BR43: 8.96% | BT43: 3732.53 | BU43: -11.26% | BV43: 3818.91 | BW43: -25.35% | BX43: 4376.31 | BY43: 17.92% | BZ43: 5101.0157 | CA43: 49.60% | CB43: 4765.1556 | CC43: 20.77% | CD43: 4123.9797 | CE43: 1.02% | CF43: 4239.8353 | CG43: -2.23% | CH43: 4491.13 | CI43: 10.95% | CJ43: 4522.28 | CK43: 23.19% | CL43: 4788.61 | CM43: 42.99% | CN43: 4775.59 | CO43: 75.10% | CP43: 3954.04 | CQ43: 59.76% | CR43: 52689.3822 | CS43: 16.89% | CT43: -17.20% | CV43: 4205.92 | CW43: 5115.78 | CX43: 3711.31 | CY43: 3409.76 | CZ43: 3945.76 | DA43: 4082.29 | DB43: 4336.57 | DC43: 4047.89 | DD43: 3670.86 | DE43: 3348.86 | DF43: 2727.38 | DG43: 2474.92 | DH43: 45077.30 | DI43: -28.40% | DK43: 5,592.34 | DL43: -25.97% | DM43: 5856.5941 | DO43: 6533.8882 | DP43: 239.63% | DQ43: 17982.82 | DR43: 6719.0444 | DS43: =(DR43-ER43)/ER43 -> 645.03% | DT43: 7554.1231 | DU43: 74.80% | DV43: 6458.6032 | DW43: 37.96% | DX43: 6142.8114 | DY43: =(DX43-EX43)/EX43 -> 23.87% | DZ43: 2988.5226 | EA43: -45.95% | EB43: 3761.2096 | EC43: -36.35% | ED43: 4353.4544 | EE43: =(ED43-FD43)/FD43 -> -33.46% | EF43: 3436.8596 | EG43: -44.95% | EH43: 3561.7182 | EI43: -33.28% | EJ43: 62959.1690 | EK43: -2.61% | EL43: 18295.0000 | EM43: -15.52% | EN43: 0.0000 | EO43: -100.00% | EP43: 1923.8000 | EQ43: -92.59% | ER43: 901.8500 | ES43: -95.93% | ET43: 4321.4735 | EU43: -83.94% | EV43: 4681.5283 | EW43: -78.86% | EX43: 4958.9303 | EY43: -78.56% | EZ43: 5529.4788 | FA43: -74.29% | FB43: 5909.1589 | FC43: -75.49% | FD43: 6542.3687 | FE43: =(FD43-FU43)/FU43 -> -69.48% | FF43: 6243.4981 | FG43: -67.38% | FH43: 5338.3817 | FI43: -82.60% | FJ43: 64645.4683 | FK43: -77.51% | FL43: 21655 | FM43: 28651 | FN43: 25951 | FO43: 22151 | FP43: 26916 | FQ43: 22149 | FR43: 23,132.0000 | FS43: 21,503.0000 | FT43: 24,106.0000 | FU43: 21,433.0000 | FV43: =(FU43-GW43)/GW43 -> -10.40% | FW43: 19,142.0000 | FX43: -12.29% | FY43: 30,675.0000 | FZ43: -14.22% | GA43: 287464.00 | GB43: -11.36% | GE43: 24093 | GF43: =(GE43-HH43)/HH43 -> -0.38% | GG43: 32435 | GH43: -1.46% | GI43: 28896 | GJ43: -1.23% | GK43: 23614 | GL43: -1.73% | GM43: 27815 | GN43: -2.97% | GO43: 25632 | GP43: =(GO43-HS43)/HS43 -> -2.54% | GQ43: 26994 | GR43: -1.19% | GS43: 25818 | GT43: -4.03% | GU43: 27503 | GV43: =(GU43-HY43)/HY43 -> -4.05% | GW43: 23921 | GX43: -2.04% | GY43: 21824 | GZ43: 0.01% | HA43: 35758 | HB43: -1.57% | HC43: 324303 | HD43: 324303 | HH43: 24186 | HI43: =(HH43-IJ43)/IJ43 -> -1.45% | HJ43: 32915.00 | HK43: -1.70% | HL43: 29255.00 | HM43: -1.42% | HN43: 24030.00 | HO43: -1.79% | HP43: 28665.00 | HQ43: -1.50% | HS43: 26299.00 | HT43: =(HS43-IT43)/IT43 -> 0.20% | HU43: 27318.00 | HV43: -2.14% | HW43: 26901.00 | HX43: -0.65% | HY43: 28663.00 | HZ43: =(HY43-IZ43)/IZ43 -> -1.88% | IA43: 24419.00 | IB43: -0.53% | IC43: 21,822.00 | ID43: 0.00% | IE43: 36,327.00 | IF43: 3.83% | IG43: 330800 | IJ43: 24542 | IK43: 3.09% | IL43: 33485 | IM43: 2.40% | IN43: 29677 | IO43: 2.63% | IP43: 24467.00 | IQ43: 2.81% | IR43: 29101.00 | IS43: 2.68% | IT43: 26247.00 | IU43: 2.18% | IV43: 27916.00 | IW43: 2.67% | IX43: 27,077.00 | IY43: 2.30% | IZ43: 29,212.00 | JA43: 0.16% | JB43: 24,550.00 | JC43: -4.14% | JD43: 21,822.00 | JE43: -2.97% | JF43: 34,988.00 | JG43: -10.00% | JH43: 333050 | JI43: 23806 | JJ43: 32700 | JK43: 28916 | JL43: 23798 | JM43: 28342 | JN43: 25687 | JO43: 27190 | JP43: 26468 | JQ43: 29165 | JR43: 25611 | JS43: 22491 | JT43: 38875
A44: 随州市 | B44: 客运量 （万人） | C44: 114.3916 | D44: =C44/R44-1 -> -12.22% | E44: 120.983 | F44: -9.22% | G44: 119.5115 | H44: -6.76% | I44: 120.3786 | J44: =I44/X44-1 -> -7.50% | K44: 122.8015 | L44: -7.76% | M44: 121.1953 | N44: -7.34% | O44: 719.26 | P44: -8.47% | R44: 130.32 | S44: =R44/AS44-1 -> 5.07% | T44: 133.27 | U44: 2.68% | V44: 128.1825 | W44: 2.94% | X44: 130.1364 | Y44: =X44/AY44-1 -> 3.43% | Z44: 133.1321 | AA44: 1.40% | AB44: 130.7896 | AC44: 1.95% | AD44: 128.1039 | AE44: =AD44/BE44-1 -> 1.38% | AF44: 120.2483 | AG44: -2.77% | AH44: 118.1387 | AI44: -4.52% | AJ44: 123.2278 | AK44: =AJ44/BK44-1 -> -5.15% | AL44: 118.7277 | AM44: -7.07% | AN44: 116.6459 | AO44: -7.71% | AP44: 1510.92 | AQ44: -0.70% | AS44: 124.04 | AT44: -5.33% | AU44: 129.7884 | AV44: =AU44/BV44-1 -> -12.00% | AW44: 124.522 | AX44: -2.70% | AY44: 125.82 | AZ44: -2.69% | BA44: 131.29 | BB44: =BA44/CB44-1 -> 0.86% | BC44: 128.28 | BD44: -1.14% | BE44: 126.36 | BF44: -0.19% | BG44: 123.68 | BH44: =BG44/CH44-1 -> 0.10% | BI44: 123.73 | BJ44: -1.29% | BK44: 129.92 | BL44: -1.23% | BM44: 127.76 | BN44: 4.18% | BO44: 126.39 | BP44: 6.14% | BQ44: 1521.59 | BR44: -1.48% | BT44: 131.02 | BU44: 11.81% | BV44: 147.48 | BW44: 14.77% | BX44: 127.98 | BY44: 13.59% | BZ44: 129.3014 | CA44: 65.02% | CB44: 130.1743 | CC44: 41.61% | CD44: 129.7606 | CE44: 38.43% | CF44: 126.603 | CG44: 36.45% | CH44: 123.56 | CI44: 39.76% | CJ44: =99.5593+CJ46 -> 125.35 | CK44: -61.49% | CL44: =104.8202+CL46 -> 131.55 | CM44: -5.04% | CN44: 122.64 | CO44: 49.72% | CP44: 119.08 | CQ44: 15.00% | CR44: 1544.4916 | CS44: 6.29% | CT44: -2.90% | CV44: 117.18 | CW44: 128.50 | CX44: 112.66 | CY44: 78.36 | CZ44: 91.92 | DA44: 93.73 | DB44: 92.78 | DC44: 88.41 | DD44: 325.50 | DE44: 138.54 | DF44: 81.91 | DG44: 103.55 | DH44: 1453.06 | DI44: -6.94% | DK44: 149.7522 | DL44: 2.66% | DM44: 164.6407 | DO44: 147.5440 | DP44: 9236.46% | DQ44: 461.94 | DR44: 144.0516 | DS44: =(DR44-ER44)/ER44 -> 96.70% | DT44: 145.8662 | DU44: 36.55% | DV44: 137.1799 | DW44: 84.85% | DX44: 133.4315 | DY44: =(DX44-EX44)/EX44 -> 52.48% | DZ44: 95.7142 | EA44: -19.62% | EB44: 111.3512 | EC44: -10.70% | ED44: 115.8213 | EE44: =(ED44-FD44)/FD44 -> -10.15% | EF44: 110.4734 | EG44: -3.32% | EH44: 105.6576 | EI44: -3.63% | EJ44: 1561.4838 | EK44: 28.12% | EL44: 278.8478 | EM44: -1.32% | EN44: 0.0000 | EO44: -100.00% | EP44: 1.5803 | EQ44: -98.91% | ER44: 73.2335 | ES44: -55.88% | ET44: 106.8197 | EU44: -33.13% | EV44: 74.2123 | EW44: -52.20% | EX44: 87.5067 | EY44: -43.80% | EZ44: 119.0738 | FA44: -21.86% | FB44: 124.6885 | FC44: -37.20% | FD44: 128.9063 | FE44: =(FD44-FU44)/FU44 -> -41.91% | FF44: 114.2690 | FG44: -42.42% | FH44: 109.6353 | FI44: -61.48% | FJ44: 1218.7732 | FK44: -47.11% | FL44: 283 | FM44: 184 | FN44: 145 | FO44: 166 | FP44: 160 | FQ44: 155 | FR44: 155.7059 | FS44: 152.3916 | FT44: 198.5506 | FU44: 221.8934 | FV44: =(FU44-GW44)/GW44 -> -0.84% | FW44: 198.4638 | FX44: -1.40% | FY44: 284.6173 | FZ44: -1.09% | GA44: 2304.48 | GB44: -1.25% | GE44: 291 | GF44: =(GE44-HH44)/HH44 -> -2.10% | GG44: 188 | GH44: -51.25% | GI44: 151 | GJ44: -43.42% | GK44: 172 | GL44: -28.79% | GM44: 161 | GN44: -29.70% | GO44: 160.4726 | GP44: =(GO44-HS44)/HS44 -> -39.84% | GQ44: 147 | GR44: -44.04% | GS44: 148 | GT44: -42.40% | GU44: 202 | GV44: =(GU44-HY44)/HY44 -> -21.00% | GW44: 224 | GX44: -12.50% | GY44: 201 | GZ44: -13.20% | HA44: 288 | HB44: -1.20% | HC44: 2334 | HD44: 2334 | HH44: 298 | HI44: =(HH44-IJ44)/IJ44 -> 1.90% | HJ44: 386.14 | HK44: -8.00% | HL44: 267.45 | HM44: -7.30% | HN44: 240.86 | HO44: -4.20% | HP44: 228.37 | HQ44: -5.00% | HS44: 266.73 | HT44: =(HS44-IT44)/IT44 -> -1.20% | HU44: 263.28 | HV44: -1.10% | HW44: 256.88 | HX44: -1.20% | HY44: 255.94 | HZ44: =(HY44-IZ44)/IZ44 -> -0.91% | IA44: 255.74 | IB44: -0.85% | IC44: 231.89 | ID44: -0.94% | IE44: 291.25 | IF44: 5.00% | IG44: 3242 | IJ44: 292 | IK44: 3.20% | IL44: 420 | IM44: 8.10% | IN44: 289 | IO44: -7.50% | IP44: 251.42 | IQ44: 2.00% | IR44: 240.39 | IS44: -2.18% | IT44: 269.97 | IU44: 3.10% | IV44: 266.20 | IW44: 2.00% | IX44: 260 | IY44: 3.13% | IZ44: 258.2872 | JA44: 1.99% | JB44: 257.9331 | JC44: -1.20% | JD44: 234.0919 | JE44: -0.05% | JF44: 277.3798 | JG44: -0.29% | JH44: 3277 | JI44: 283 | JJ44: 388 | JK44: 312 | JL44: 246 | JM44: 246 | JN44: 262 | JO44: 261 | JP44: 252 | JQ44: 253 | JR44: 261 | JS44: 234 | JT44: 278
B45: 旅客周转量 （万人公里） | C45: 6018.7633 | D45: =C45/R45-1 -> -8.78% | E45: 6370.467 | F45: -5.45% | G45: 6382.2507 | H45: -5.47% | I45: 6638.9771 | J45: =I45/X45-1 -> -5.99% | K45: 6644.3877 | L45: -5.58% | M45: 6426.1171 | N45: -5.96% | O45: 38480.96 | P45: -6.19% | R45: 6597.74 | S45: =R45/AS45-1 -> 7.48% | T45: 6737.60 | U45: 6.47% | V45: 6751.7551 | W45: 6.99% | X45: 7061.7388 | Y45: =X45/AY45-1 -> 4.46% | Z45: 7036.9949 | AA45: -0.50% | AB45: 6833.286 | AC45: 1.28% | AD45: 6717.576 | AE45: =AD45/BE45-1 -> -0.64% | AF45: 6359.2432 | AG45: -4.18% | AH45: 6290.8263 | AI45: -1.36% | AJ45: 6607.9652 | AK45: =AJ45/BK45-1 -> -2.54% | AL45: 6390.1947 | AM45: -2.64% | AN45: 6195.4234 | AO45: -1.05% | AP45: 79580.35 | AQ45: 1.07% | AS45: 6138.54 | AT45: -1.37% | AU45: 6328.0714 | AV45: =AU45/BV45-1 -> -12.43% | AW45: 6310.3957 | AX45: 1.07% | AY45: 6759.95 | AZ45: 4.36% | BA45: 7072.03 | BB45: =BA45/CB45-1 -> 7.28% | BC45: 6747.02 | BD45: 5.63% | BE45: 6760.54 | BF45: 5.44% | BG45: 6636.86 | BH45: =BG45/CH45-1 -> 6.25% | BI45: 6377.68 | BJ45: 1.86% | BK45: 6780.47 | BL45: 1.47% | BM45: 6563.41 | BN45: 6.43% | BO45: 6261.38 | BP45: 5.27% | BQ45: 78736.35 | BR45: 2.43% | BT45: 6224.11 | BU45: 14.07% | BV45: 7226.03 | BW45: 17.61% | BX45: 6243.54 | BY45: 16.79% | BZ45: 6477.7291 | CA45: 83.54% | CB45: 6592.0497 | CC45: 60.69% | CD45: 6387.5932 | CE45: 47.19% | CF45: 6411.5337 | CG45: 41.05% | CH45: 6246.59 | CI45: 50.03% | CJ45: =5597.1552+CJ47 -> 6261.46 | CK45: -70.84% | CL45: =5981.7169+CL47 -> 6682.16 | CM45: -2.95% | CN45: 6166.93 | CO45: 59.77% | CP45: 5948.14 | CQ45: 16.01% | CR45: 76867.8663 | CS45: 2.53% | CT45: -3.55% | CV45: 5456.51 | CW45: 6143.95 | CX45: 5346.15 | CY45: 3529.35 | CZ45: 4102.43 | DA45: 4339.76 | DB45: 4545.59 | DC45: 4163.64 | DD45: 21471.95 | DE45: 6885.60 | DF45: 3859.82 | DG45: 5127.34 | DH45: 74972.09 | DI45: -14.39% | DK45: 9,666.41 | DL45: 7.37% | DM45: 10708.2193 | DO45: 9828.8168 | DP45: 683.32% | DQ45: 30203.45 | DR45: 9179.3661 | DS45: =(DR45-ER45)/ER45 -> 67.60% | DT45: 9002.8123 | DU45: 33.97% | DV45: 7696.7050 | DW45: 94.79% | DX45: 7036.6053 | DY45: =(DX45-EX45)/EX45 -> 36.54% | DZ45: 4135.7870 | EA45: -37.25% | EB45: 5015.5497 | EC45: -23.04% | ED45: 5321.0767 | EE45: =(ED45-FD45)/FD45 -> -25.84% | EF45: 4976.3213 | EG45: -13.36% | EH45: 5008.3337 | EI45: -10.01% | EJ45: 87576.0047 | EK45: 32.65% | EL45: 11868.8804 | EM45: -1.70% | EN45: 0.0000 | EO45: -100.00% | EP45: 1254.7610 | EQ45: -90.01% | ER45: 5476.9540 | ES45: -47.87% | ET45: 6720.1906 | EU45: -27.20% | EV45: 3951.3670 | EW45: -56.40% | EX45: 5153.4173 | EY45: -47.20% | EZ45: 6590.6444 | FA45: -31.81% | FB45: 6517.3091 | FC45: -39.99% | FD45: 7175.4351 | FE45: =(FD45-FU45)/FU45 -> -36.02% | FF45: 5743.6379 | FG45: -41.90% | FH45: 5565.5341 | FI45: -72.15% | FJ45: 66018.1309 | FK45: -52.23% | FL45: 12074 | FM45: 13413 | FN45: 12556 | FO45: 10507 | FP45: 9231 | FQ45: 9063 | FR45: 9,760.2600 | FS45: 9,665.1387 | FT45: 10,860.0850 | FU45: 11,214.6759 | FV45: =(FU45-GW45)/GW45 -> -1.77% | FW45: 9,884.9920 | FX45: -1.90% | FY45: 19,983.1777 | FZ45: -1.63% | GA45: 138211.74 | GB45: -2.70% | GE45: 12592 | GF45: =(GE45-HH45)/HH45 -> -2.30% | GG45: 13294 | GH45: -21.41% | GI45: 13203 | GJ45: 6.88% | GK45: 10968 | GL45: -10.14% | GM45: 9793 | GN45: -26.35% | GO45: 9352.7022 | GP45: =(GO45-HS45)/HS45 -> -31.58% | GQ45: 10134 | GR45: -29.34% | GS45: 9812 | GT45: -42.10% | GU45: 11093 | GV45: =(GU45-HY45)/HY45 -> -23.00% | GW45: 11417 | GX45: -15.20% | GY45: 10076 | GZ45: -12.10% | HA45: 20314 | HB45: -1.10% | HC45: 142048 | HD45: 142048 | HH45: 12888 | HI45: =(HH45-IJ45)/IJ45 -> 1.30% | HJ45: 16915.96 | HK45: -9.00% | HL45: 12353.17 | HM45: -8.60% | HN45: 12205.64 | HO45: -3.10% | HP45: 13296.49 | HQ45: -4.30% | HS45: 13669.97 | HT45: =(HS45-IT45)/IT45 -> -1.80% | HU45: 14341.18 | HV45: -1.50% | HW45: 16947.50 | HX45: -1.10% | HY45: 14406.54 | HZ45: =(HY45-IZ45)/IZ45 -> -1.00% | IA45: 13463.15 | IB45: 2.79% | IC45: 11463.53 | ID45: -1.25% | IE45: 20540.24 | IF45: 4.00% | IG45: 172491 | IJ45: 12723 | IK45: 3.50% | IL45: 18589 | IM45: 10.00% | IN45: 13515 | IO45: -9.40% | IP45: 12596.12 | IQ45: 2.50% | IR45: 13893.93 | IS45: -5.00% | IT45: 13920.54 | IU45: 5.00% | IV45: 14559.57 | IW45: 3.74% | IX45: 17136 | IY45: 25.42% | IZ45: 14,552.06 | JA45: -3.30% | JB45: 13,097.94 | JC45: -1.00% | JD45: 11,608.64 | JE45: -0.07% | JF45: 19,750.23 | JG45: -1.45% | JH45: 171915 | JI45: 12292 | JJ45: 16899 | JK45: 14918 | JL45: 12289 | JM45: 14625 | JN45: 13258 | JO45: 14034 | JP45: 13663 | JQ45: 15048 | JR45: 13230 | JS45: 11617 | JT45: 20041
B46: 其中个体客运量 （万人） | C46: 12.81 | D46: =C46/R46-1 -> -31.09% | E46: 13.5845 | F46: -26.52% | G46: 13.8477 | H46: -17.92% | I46: 13.6975 | J46: =I46/X46-1 -> -15.19% | K46: 13.8946 | L46: -15.48% | M46: 13.7005 | N46: -15.63% | O46: 81.54 | P46: -20.67% | R46: 18.60 | S46: =R46/AS46-1 -> -21.91% | T46: 18.49 | U46: -26.47% | V46: 16.87 | W46: -27.48% | X46: 16.15 | Y46: =X46/AY46-1 -> -27.65% | Z46: 16.44 | AA46: -27.23% | AB46: 16.24 | AC46: -28.24% | AD46: 14.87 | AE46: =AD46/BE46-1 -> -30.36% | AF46: 13.84 | AG46: -30.61% | AH46: 14.09 | AI46: -32.08% | AJ46: 14.32 | AK46: =AJ46/BK46-1 -> -26.82% | AL46: 14.3825 | AM46: -27.23% | AN46: 13.6668 | AO46: -32.21% | AP46: 187.96 | AQ46: -28.07% | AS46: 23.81 | AT46: -16.27% | AU46: 25.1424 | AV46: =AU46/BV46-1 -> -25.08% | AW46: 23.2625 | AX46: -21.72% | AY46: 22.32 | AZ46: -22.22% | BA46: 22.59 | BB46: =BA46/CB46-1 -> -17.78% | BC46: 22.63 | BD46: -17.93% | BE46: 21.36 | BF46: -19.34% | BG46: 19.95 | BH46: =BG46/CH46-1 -> -20.04% | BI46: 20.74 | BJ46: -19.56% | BK46: 19.57 | BL46: -26.78% | BM46: 19.76 | BN46: -18.79% | BO46: 20.16 | BP46: -11.08% | BQ46: 261.30 | BR46: -19.95% | BT46: 28.44 | BU46: 2.14% | BV46: 33.56 | BW46: 6.62% | BX46: 29.72 | BY46: 7.65% | BZ46: 28.6961 | CA46: 34.02% | CB46: 27.4765 | CC46: 6.61% | CD46: 27.5686 | CE46: 5.19% | CF46: 26.48 | CG46: 4.07% | CH46: 24.95 | CI46: 6.51% | CJ46: 25.79 | CK46: -4.23% | CL46: 26.73 | CM46: -14.86% | CN46: 24.33 | CO46: 26.22% | CP46: 22.67 | CQ46: 1.38% | CR46: 326.4078 | CS46: 5.58% | CT46: -6.83% | CV46: 27.85 | CW46: 31.48 | CX46: 27.61 | CY46: 21.41 | CZ46: 25.77 | DA46: 26.21 | DB46: 25.44 | DC46: 23.42 | DD46: 26.93 | DE46: 31.39 | DF46: 19.28 | DG46: 22.36 | DH46: 309.15 | DI46: -20.35% | DK46: 37.70 | DM46: 41.4941 | DO46: 33.6143 | DQ46: 112.81 | DR46: 33.9603 | DS46: =(DR46-ER46)/ER46 ->  | DT46: 35.3288 | DV46: 34.4375 | DX46: 34.4448 | DY46: =(DX46-EX46)/EX46 ->  | DZ46: 25.0318 | EB46: 30.0726 | ED46: 29.4754 | EE46: =(ED46-FD46)/FD46 ->  | EF46: 27.5985 | EH46: 24.9682 | EJ46: 388.1305 | FJ46: 0.0000
B47: 其中个体旅客周转量（万人公里） | C47: 328.57 | D47: =C47/R47-1 -> -32.02% | E47: 351.2583 | F47: -26.90% | G47: 357.7085 | H47: -18.40% | I47: 353.1005 | J47: =I47/X47-1 -> -15.56% | K47: 358.086 | L47: -16.15% | M47: 352.9648 | N47: -16.23% | O47: 2101.69 | P47: -21.25% | R47: 483.37 | S47: =R47/AS47-1 -> -21.65% | T47: 480.54 | U47: -25.84% | V47: 438.35 | W47: -26.54% | X47: 418.19 | Y47: =X47/AY47-1 -> -26.50% | Z47: 427.07 | AA47: -25.89% | AB47: 421.36 | AC47: -27.15% | AD47: 384.67 | AE47: =AD47/BE47-1 -> -29.21% | AF47: 348.16 | AG47: -31.06% | AH47: 363.21 | AI47: -30.96% | AJ47: 371.97 | AK47: =AJ47/BK47-1 -> -23.42% | AL47: 371.97 | AM47: -24.66% | AN47: 352.37 | AO47: -30.01% | AP47: 4861.23 | AQ47: -26.82% | AS47: 616.90 | AT47: -15.75% | AU47: 647.9865 | AV47: =AU47/BV47-1 -> -25.42% | AW47: 596.7038 | AX47: -23.89% | AY47: 568.97 | AZ47: -24.71% | BA47: 576.30 | BB47: =BA47/CB47-1 -> -19.73% | BC47: 578.37 | BD47: -19.83% | BE47: 543.38 | BF47: -20.52% | BG47: 505.03 | BH47: =BG47/CH47-1 -> -21.29% | BI47: 526.09 | BJ47: -20.81% | BK47: 485.73 | BL47: -30.65% | BM47: 493.73 | BN47: -22.00% | BO47: 503.50 | BP47: -13.58% | BQ47: 6642.69 | BR47: -21.72% | BT47: 732.26 | BU47: 4.62% | BV47: 868.83 | BW47: 7.79% | BX47: 783.96 | BY47: 10.77% | BZ47: 755.6750 | CA47: 37.18% | CB47: 717.9792 | CC47: 8.29% | CD47: 721.4436 | CE47: 4.69% | CF47: 683.654 | CG47: 2.66% | CH47: 641.61 | CI47: 4.62% | CJ47: 664.30 | CK47: -9.15% | CL47: 700.44 | CM47: -17.68% | CN47: 633.02 | CO47: 23.83% | CP47: 582.61 | CQ47: -1.15% | CR47: 8485.7839 | CS47: 5.04% | CT47: -7.96% | CV47: 699.95 | CW47: 806.06 | CX47: 707.72 | CY47: 550.86 | CZ47: 663.01 | DA47: 689.12 | DB47: 665.92 | DC47: 613.25 | DD47: 731.20 | DE47: 850.86 | DF47: 511.20 | DG47: 589.40 | DH47: 8078.54 | DI47: -20.16% | DK47: 999.12 | DM47: 1088.7391 | DO47: 902.4396 | DQ47: 2990.30 | DR47: 884.9110 | DS47: =(DR47-ER47)/ER47 ->  | DT47: 929.1928 | DV47: 902.1794 | DX47: 898.2430 | DY47: =(DX47-EX47)/EX47 ->  | DZ47: 636.2790 | EB47: 786.1864 | ED47: 748.9813 | EE47: =(ED47-FD47)/FD47 ->  | EF47: 696.5487 | EH47: 645.5003 | EJ47: 10118.3181 | FJ47: 0.0000
A48: 恩施州 | B48: 客运量 （万人） | C48: 146.7156 | D48: =C48/R48-1 -> -7.24% | E48: 164.4127 | F48: 0.06% | G48: 162.0982 | H48: -5.42% | I48: 182.7013 | J48: =I48/X48-1 -> -8.15% | K48: 190.2239 | L48: -10.26% | M48: 170.9711 | N48: -8.80% | O48: 1017.12 | P48: -6.88% | R48: 158.17 | S48: =R48/AS48-1 -> -0.48% | T48: 164.32 | U48: -2.58% | V48: 171.3825 | W48: 0.79% | X48: 198.9183 | Y48: =X48/AY48-1 -> -0.47% | Z48: 211.9699 | AA48: -4.10% | AB48: 187.4679 | AC48: -9.89% | AD48: 223.1793 | AE48: =AD48/BE48-1 -> -4.86% | AF48: 231.6134 | AG48: -6.47% | AH48: 182.6086 | AI48: -7.08% | AJ48: 185.0951 | AK48: =AJ48/BK48-1 -> -10.76% | AL48: 165.4614 | AM48: -5.75% | AN48: 150.5717 | AO48: -3.66% | AP48: 2230.75 | AQ48: -4.85% | AS48: 158.93 | AT48: 4.75% | AU48: 168.6599 | AV48: =AU48/BV48-1 -> 3.78% | AW48: 170.0416 | AX48: -7.13% | AY48: 199.86 | AZ48: -4.03% | BA48: 221.04 | BB48: =BA48/CB48-1 -> 3.20% | BC48: 208.04 | BD48: 4.17% | BE48: 234.59 | BF48: -5.28% | BG48: 247.64 | BH48: =BG48/CH48-1 -> -3.02% | BI48: 196.53 | BJ48: -3.70% | BK48: 207.40 | BL48: -1.62% | BM48: 175.55 | BN48: -4.99% | BO48: 156.29 | BP48: -4.37% | BQ48: 2344.57 | BR48: -1.72% | BT48: 151.72 | BU48: -7.70% | BV48: 162.52 | BW48: -4.27% | BX48: 183.11 | BY48: 12.97% | BZ48: 208.2557 | CA48: 35.43% | CB48: 214.1804 | CC48: 35.62% | CD48: 199.7152 | CE48: 15.73% | CF48: 247.6741 | CG48: 12.79% | CH48: 255.35 | CI48: 16.32% | CJ48: 204.08 | CK48: 69.14% | CL48: 210.82 | CM48: 65.16% | CN48: 184.77 | CO48: 42.63% | CP48: 163.44 | CQ48: 24.39% | CR48: 2385.6258 | CS48: 23.68% | CT48: -11.55% | CV48: 164.37 | CW48: 169.76 | CX48: 162.09 | CY48: 153.77 | CZ48: 157.92 | DA48: 172.57 | DB48: 219.58 | DC48: 219.53 | DD48: 120.66 | DE48: 127.64 | DF48: 129.54 | DG48: 131.39 | DH48: 1928.84 | DI48: -8.09% | DK48: 157.1298 | DL48: =(DK48-DT48)/DT48 -> -15.10% | DM48: 156.0712 | DO48: 157.6955 | DQ48: 470.90 | DR48: 181.9330 | DS48: =(DR48-ER48)/ER48 -> 1.42% | DT48: 185.0666 | DU48: 6.84% | DV48: 183.5163 | DW48: 6.18% | DX48: 217.4233 | DY48: =(DX48-EX48)/EX48 -> 23.92% | DZ48: 159.9243 | EA48: -11.59% | EB48: 169.5122 | EC48: -46.79% | ED48: 192.7755 | EE48: =(ED48-FD48)/FD48 -> -11.51% | EF48: 167.3068 | EG48: -40.89% | EH48: 170.3530 | EI48: -40.28% | EJ48: 2098.7075 | EK48: -10.47% | EL48: 357.6786 | EM48: =(EL48-FL48)/FL48 -> 13.55% | EN48: 0.0000 | EO48: =(EN48-FM48)/FM48 -> -100.00% | EP48: 0.0000 | EQ48: =(EP48-FN48)/FN48 -> -100.00% | ER48: 179.3779 | ES48: =(ER48-FO48)/FO48 -> -42.56% | ET48: 173.2148 | EU48: =(ET48-FP48)/FP48 -> -46.29% | EV48: 172.8380 | EW48: =(EV48-FQ48)/FQ48 -> -47.00% | EX48: 175.4574 | EY48: =(EX48-FR48)/FR48 -> -48.30% | EZ48: 180.8930 | FA48: =(EZ48-FS48)/FS48 -> -46.39% | FB48: 318.5898 | FC48: =(FB48-FT48)/FT48 -> -1.54% | FD48: 217.8462 | FE48: =(FD48-FU48)/FU48 -> -32.79% | FF48: 283.0221 | FG48: -9.53% | FH48: 285.2450 | FI48: -11.55% | FJ48: 2344.1628 | FK48: =(FJ48-(FL48+FM48+FN48+FO48+FP48+FQ48+FR48+FS48+FT48+FU48+FW48+FY48))/(FL48+FM48+FN48+FO48+FP48+FQ48+FR48+FS48+FT48+FU48+FW48+FY48) -> -40.05% | FL48: 315 | FM48: 349 | FN48: 325 | FO48: 312 | FP48: 322 | FQ48: 326 | FR48: 339.3471 | FS48: 337.4522 | FT48: 323.5839 | FU48: 324.1455 | FV48: =(FU48-GW48)/GW48 -> 3.98% | FW48: 312.8523 | FX48: 4.19% | FY48: 322.4966 | FZ48: 0.94% | GA48: =FL48+FM48+FN48+FO48+FP48+FQ48+FR48+FS48+FT48+FU48+FW48+FY48 -> 3910.42 | GB48: =(GA48-HC48)/HC48 -> 1.51% | GE48: 314 | GF48: =(GE48-HH48)/HH48 -> -8.01% | GG48: 355 | GH48: -9.65% | GI48: 325 | GJ48: 3.45% | GK48: 317 | GL48: =(GK48-HN48)/HN48 -> 4.48% | GM48: 317 | GN48: =(GM48-HP48)/HP48 -> 3.42% | GO48: 326 | GP48: =(GO48-HS48)/HS48 -> 0.11% | GQ48: 331 | GR48: 1.26% | GS48: 327 | GT48: 1.70% | GU48: 310 | GV48: =(GU48-HY48)/HY48 -> 4.56% | GW48: 312 | GX48: 3.28% | GY48: 300 | GZ48: 10.37% | HA48: 319 | HB48: =(HA48-IE48)/IE48 -> 1.77% | HC48: =GE48+GG48+GI48+GK48+GM48+GO48+GQ48+GS48+GU48+GW48+GY48+HA48 -> 3852 | HD48: =HA48+GY48+GW48+GU48+GS48+GQ48+GO48+GM48+GK48+GI48+GG48+GE48 -> 3852 | HH48: 342 | HI48: =(HH48-IJ48)/IJ48 -> 2.95% | HJ48: 392.88 | HK48: -5.97% | HL48: 313.71 | HM48: -8.62% | HN48: 303.00 | HO48: =(HN48-IP48)/IP48 -> 0.74% | HP48: 306.35 | HQ48: =(HP48-IR48)/IR48 -> 1.70% | HS48: 325.37 | HT48: =(HS48-IT48)/IT48 -> 1.80% | HU48: 326.79 | HV48: 3.10% | HW48: 321.34 | HX48: 4.11% | HY48: 296.69 | HZ48: =(HY48-IZ48)/IZ48 -> 4.98% | IA48: 301.84 | IB48: 4.61% | IC48: 272.06 | ID48: 6.86% | IE48: 313.94 | IF48: =(IE48-JF48)/JF48 -> 4.85% | IG48: =HH48+HJ48+HL48+HN48+HP48+HS48+HU48+HW48+HY48+IA48+IC48+IE48 -> 3816 | IJ48: 332 | IK48: =IJ48/JI48-1 -> 9.09% | IL48: 418 | IM48: =IL48/JJ48-1 -> 0.12% | IN48: 343 | IO48: =(IN48-JK48)/JK48 -> 2.41% | IP48: 300.77 | IQ48: =(IP48-JL48)/JL48 -> 13.42% | IR48: 301.23 | IS48: =(IR48-JM48)/JM48 -> 13.87% | IT48: 319.62 | IU48: =(IT48-JN48)/JN48 -> 13.54% | IV48: 316.98 | IW48: =(IV48-JO48)/JO48 -> 12.95% | IX48: 308.6449 | IY48: =(IX48-JP48)/JP48 -> 13.83% | IZ48: 282.6099 | JA48: =(IZ48-JQ48)/JQ48 -> 3.75% | JB48: 288.5342 | JC48: =(JB48-JR48)/JR48 -> 2.68% | JD48: 254.60 | JE48: =(JD48-JS48)/JS48 -> 1.05% | JF48: 299.4329 | JG48: =(JF48-JT48)/JT48 -> 0.14% | JH48: 3524 | JI48: 304 | JJ48: 417 | JK48: 335 | JL48: 265 | JM48: 265 | JN48: 281 | JO48: 281 | JP48: 271 | JQ48: 272 | JR48: 281 | JS48: 252 | JT48: 299
B49: 旅客周转量 （万人公里） | C49: 10684.8007 | D49: =C49/R49-1 -> 8.92% | E49: 13255.0026 | F49: 11.79% | G49: 13786.1171 | H49: 17.47% | I49: 14831.9663 | J49: =I49/X49-1 -> 4.21% | K49: 13914.4557 | L49: -1.14% | M49: 12216.1679 | N49: -1.42% | O49: 78688.51 | P49: 6.19% | R49: 9809.95 | S49: =R49/AS49-1 -> -7.90% | T49: 11856.92 | U49: -7.60% | V49: 11735.9405 | W49: -1.61% | X49: 14233.1319 | Y49: =X49/AY49-1 -> 3.59% | Z49: 14074.4332 | AA49: -4.08% | AB49: 12391.6582 | AC49: -11.39% | AD49: 14757.5267 | AE49: =AD49/BE49-1 -> -4.75% | AF49: 14360.2888 | AG49: -5.52% | AH49: 11934.8122 | AI49: -9.46% | AJ49: 11428.8009 | AK49: =AJ49/BK49-1 -> -10.68% | AL49: 11283.7082 | AM49: 0.12% | AN49: 10386.9353 | AO49: 9.84% | AP49: 148254.11 | AQ49: -4.48% | AS49: 10651.28 | AT49: 12.32% | AU49: 12831.9186 | AV49: =AU49/BV49-1 -> 15.03% | AW49: 11927.3966 | AX49: 1.17% | AY49: 13740.38 | AZ49: 13.08% | BA49: 14673.05 | BB49: =BA49/CB49-1 -> 20.09% | BC49: 13984.32 | BD49: 16.01% | BE49: 15494.05 | BF49: -28.19% | BG49: 15198.82 | BH49: =BG49/CH49-1 -> 4.01% | BI49: 13182.46 | BJ49: 1.74% | BK49: 12795.91 | BL49: -2.53% | BM49: 11270.40 | BN49: -4.86% | BO49: 9456.67 | BP49: -11.33% | BQ49: 155206.64 | BR49: 1.02% | BT49: 9482.60 | BU49: -5.00% | BV49: 11155.16 | BW49: 3.10% | BX49: 11790.03 | BY49: 23.11% | BZ49: 12151.0568 | CA49: 36.53% | CB49: 12218.4783 | CC49: 34.10% | CD49: 12054.8498 | CE49: 22.57% | CF49: 21575.6923 | CG49: 71.24% | CH49: 14612.18 | CI49: 16.56% | CJ49: 12957.31 | CK49: 86.39% | CL49: 13127.54 | CM49: 93.10% | CN49: 11846.30 | CO49: 76.87% | CP49: 10665.33 | CQ49: 52.10% | CR49: 153636.5363 | CS49: 38.64% | CT49: -9.97% | CV49: 9981.68 | CW49: 10819.73 | CX49: 9576.85 | CY49: 8900.02 | CZ49: 9111.66 | DA49: 9834.96 | DB49: 12599.66 | DC49: 12535.84 | DD49: 6951.64 | DE49: 6798.19 | DF49: 6697.75 | DG49: 7012.20 | DH49: 110820.18 | DI49: -14.02% | DK49: 10,852.84 | DL49: -6.65% | DM49: 11199.2777 | DO49: 10659.1566 | DQ49: 32711.28 | DR49: 11378.8182 | DS49: =(DR49-ER49)/ER49 -> 0.56% | DT49: 11625.5725 | DU49: 8.13% | DV49: 10837.8957 | DW49: 0.97% | DX49: 13230.2389 | DY49: =(DX49-EX49)/EX49 -> 21.94% | DZ49: 9402.6116 | EA49: -16.37% | EB49: 9915.5849 | EC49: -19.75% | ED49: 10886.9607 | EE49: =(ED49-FD49)/FD49 -> 0.57% | EF49: 9517.9172 | EG49: -15.54% | EH49: 9384.1389 | EI49: -5.38% | EJ49: 128891.0149 | EK49: 8.37% | EL49: 19674.5207 | EM49: 16.54% | EN49: 0.0000 | EO49: -100.00% | EP49: 0.0000 | EQ49: -100.00% | ER49: 11315.3779 | ES49: -34.43% | ET49: 10751.8501 | EU49: -40.29% | EV49: 10734.1487 | EW49: -40.55% | EX49: 10849.7177 | EY49: -51.91% | EZ49: 11242.8209 | FA49: -44.58% | FB49: 12356.2793 | FC49: -38.99% | FD49: 10825.3674 | FE49: =(FD49-FU49)/FU49 -> -44.00% | FF49: 11268.6765 | FG49: -36.84% | FH49: 9917.7723 | FI49: -45.14% | FJ49: 118936.5315 | FK49: -49.77% | FL49: 16882 | FM49: 23466 | FN49: 24789 | FO49: 17256 | FP49: 18006 | FQ49: 18054 | FR49: 22,562.9173 | FS49: 20,286.2209 | FT49: 20,254.1227 | FU49: 19,329.5673 | FV49: =(FU49-GW49)/GW49 -> 1.08% | FW49: 17,842.4280 | FX49: 8.43% | FY49: 18,078.4298 | FZ49: 7.31% | GA49: 236806.45 | GB49: 1.64% | GE49: 16419 | GF49: =(GE49-HH49)/HH49 -> -2.91% | GG49: 24426 | GH49: -17.45% | GI49: 24619 | GJ49: 18.81% | GK49: 17778 | GL49: -1.19% | GM49: 17205 | GN49: -8.53% | GO49: 17653 | GP49: =(GO49-HS49)/HS49 -> 0.01% | GQ49: 21743 | GR49: 1.05% | GS49: 20891 | GT49: 0.49% | GU49: 19818 | GV49: =(GU49-HY49)/HY49 -> -2.45% | GW49: 19123 | GX49: 1.10% | GY49: 16455 | GZ49: 1.79% | HA49: 16847 | HB49: 2.22% | HC49: 232978 | HD49: 232978 | HH49: 16911 | HI49: =(HH49-IJ49)/IJ49 -> -5.25% | HJ49: 29587.40 | HK49: -0.47% | HL49: 20721.93 | HM49: -9.77% | HN49: 17992.13 | HO49: 1.87% | HP49: 18809.42 | HQ49: 1.14% | HS49: 17651.74 | HT49: =(HS49-IT49)/IT49 -> 2.87% | HU49: 21517.25 | HV49: 3.45% | HW49: 20788.30 | HX49: 3.02% | HY49: 20315.35 | HZ49: =(HY49-IZ49)/IZ49 -> -0.41% | IA49: 18915.02 | IB49: 4.02% | IC49: 16165.50 | ID49: 3.95% | IE49: 16480.98 | IF49: 1.76% | IG49: 235856 | IJ49: 17848 | IK49: -6.53% | IL49: 29728 | IM49: 13.14% | IN49: 22966 | IO49: -0.80% | IP49: 17661.97 | IQ49: -7.49% | IR49: 18597.44 | IS49: -18.09% | IT49: 17160.07 | IU49: -16.64% | IV49: 20799.09 | IW49: -4.56% | IX49: 20,179.65 | IY49: -4.90% | IZ49: 20,398.39 | JA49: -12.67% | JB49: 18,184.13 | JC49: -11.57% | JD49: 15,550.63 | JE49: -13.86% | JF49: 16,196.61 | JG49: -47.89% | JH49: 266968 | JI49: 19096 | JJ49: 26275 | JK49: 23152 | JL49: 19091 | JM49: 22704 | JN49: 20586 | JO49: 21793 | JP49: 21219 | JQ49: 23358 | JR49: 20562 | JS49: 18052 | JT49: 31080
A50: 仙桃市 | B50: 客运量 （万人） | C50: 9.2372 | D50: =C50/R50-1 -> 26.81% | E50: 9.1901 | F50: 27.39% | G50: 9.1723 | H50: 32.13% | I50: 9.1413 | J50: =I50/X50-1 -> 34.44% | K50: 9.3403 | L50: 34.59% | M50: 9.9419 | N50: 0.16% | O50: 56.02 | P50: 24.20% | R50: 7.28 | S50: =R50/AS50-1 -> -19.66% | T50: 7.21 | U50: -13.28% | V50: 6.9417 | W50: -12.82% | X50: 6.7997 | Y50: =X50/AY50-1 -> -14.26% | Z50: 6.94 | AA50: -13.18% | AB50: 9.9261 | AC50: 21.92% | AD50: 10.0811 | AE50: =AD50/BE50-1 -> 27.98% | AF50: 10.0225 | AG50: 29.59% | AH50: 10.8021 | AI50: 40.12% | AJ50: 9.6101 | AK50: =AJ50/BK50-1 -> 19.74% | AL50: 9.3551 | AM50: 15.12% | AN50: 9.2859 | AO50: 12.92% | AP50: 104.26 | AQ50: 7.37% | AS50: 9.07 | AT50: -9.21% | AU50: 8.319 | AV50: =AU50/BV50-1 -> -11.72% | AW50: 7.9629 | AX50: -14.27% | AY50: 7.93 | AZ50: -15.52% | BA50: 7.99 | BB50: =BA50/CB50-1 -> -15.69% | BC50: 8.14 | BD50: -13.95% | BE50: 7.88 | BF50: -15.86% | BG50: 7.73 | BH50: =BG50/CH50-1 -> -20.32% | BI50: 7.71 | BJ50: -16.25% | BK50: 8.03 | BL50: -11.38% | BM50: 8.13 | BN50: -8.44% | BO50: 8.22 | BP50: -6.69% | BQ50: 97.11 | BR50: -13.33% | BT50: 9.99 | BU50: -42.03% | BV50: 9.42 | BW50: -49.09% | BX50: 9.29 | BY50: -48.62% | BZ50: 9.3880 | CA50: -47.78% | CB50: 9.4815 | CC50: -48.02% | CD50: 9.4618 | CE50: -47.69% | CF50: 9.3617 | CG50: -47.81% | CH50: 9.71 | CI50: -46.41% | CJ50: 9.21 | CK50: -47.62% | CL50: 9.06 | CM50: 11.17% | CN50: 8.88 | CO50: 6.24% | CP50: 8.81 | CQ50: 1.60% | CR50: 112.0473 | CS50: -40.05% | CT50: -0.71% | CV50: 17.23 | CW50: 18.51 | CX50: 18.08 | CY50: 17.98 | CZ50: 18.24 | DA50: 18.09 | DB50: 17.94 | DC50: 18.11 | DD50: 17.57 | DE50: 8.15 | DF50: 8.35 | DG50: 8.67 | DH50: 186.92 | DI50: -24.08% | DK50: 25.4 | DL50: 4.70% | DM50: 26.7200 | DO50: 25.8300 | DP50: 177.74% | DQ50: 77.95 | DR50: 26.3500 | DS50: =(DR50-ER50)/ER50 -> 52.31% | DT50: 24.2600 | DU50: 44.40% | DV50: 22.4000 | DW50: 23.21% | DX50: 19.8600 | DY50: =(DX50-EX50)/EX50 -> -5.70% | DZ50: 8.5393 | EA50: -61.71% | EB50: 16.2900 | EC50: -29.42% | ED50: 16.9300 | EE50: =(ED50-FD50)/FD50 -> -31.46% | EF50: 16.9400 | EG50: -37.03% | EH50: 16.6700 | EI50: -39.82% | EJ50: 246.1893 | EK50: -33.34% | EL50: 162.0000 | EM50: -7.95% | EN50: 0.0000 | EO50: -100.00% | EP50: 9.3000 | EQ50: -94.89% | ER50: 17.3000 | ES50: -88.15% | ET50: 16.8000 | EU50: -88.41% | EV50: 18.1800 | EW50: -88.12% | EX50: 21.0600 | EY50: -85.77% | EZ50: 22.3000 | FA50: -84.30% | FB50: 23.0800 | FC50: -83.86% | FD50: 24.7000 | FE50: =(FD50-FU50)/FU50 -> -83.86% | FF50: 26.9000 | FG50: -79.93% | FH50: 27.7000 | FI50: -82.01% | FJ50: 369.3200 | FK50: -80.75% | FL50: 176 | FM50: 243 | FN50: 182 | FO50: 146 | FP50: 145 | FQ50: 153 | FR50: 148.0000 | FS50: 142.0000 | FT50: 143.0000 | FU50: 153.0000 | FV50: =(FU50-GW50)/GW50 -> -5.56% | FW50: 134.0000 | FX50: -6.29% | FY50: 154.0000 | FZ50: -8.33% | GA50: 1919.00 | GB50: -5.58% | GE50: 183 | GF50: =(GE50-HH50)/HH50 -> -1.08% | GG50: 252 | GH50: -0.79% | GI50: 193 | GJ50: -1.53% | GK50: 154 | GL50: -1.28% | GM50: 154 | GN50: -0.65% | GO50: 163 | GP50: =(GO50-HS50)/HS50 -> -1.21% | GQ50: 158 | GR50: -3.07% | GS50: 152 | GT50: -3.80% | GU50: 151 | GV50: =(GU50-HY50)/HY50 -> -4.14% | GW50: 162 | GX50: -1.22% | GY50: 143 | GZ50: -2.05% | HA50: 168 | HB50: -2.33% | HC50: 2033 | HD50: 2033 | HH50: 185 | HI50: =(HH50-IJ50)/IJ50 -> 1.65% | HJ50: 254.00 | HK50: 0.79% | HL50: 196.00 | HM50: 0.51% | HN50: 156.00 | HO50: 0.65% | HP50: 155.00 | HQ50: 0.65% | HS50: 165.00 | HT50: =(HS50-IT50)/IT50 -> 0.61% | HU50: 163.00 | HV50: 0.62% | HW50: 158.00 | HX50: 1.28% | HY50: 157.00 | HZ50: =(HY50-IZ50)/IZ50 -> 0.64% | IA50: 164.00 | IB50: 0.61% | IC50: 146.00 | ID50: 0.69% | IE50: 172.00 | IF50: 0.58% | IG50: 2071 | IH50: ` | IJ50: 182 | IK50: 5.60% | IL50: 252 | IM50: 6.53% | IN50: 195 | IO50: 2.62% | IP50: 155.00 | IQ50: 2.96% | IR50: 154.00 | IS50: 2.46% | IT50: 164.00 | IU50: 2.74% | IV50: 162.00 | IW50: 1.76% | IX50: 156 | IY50: 1.38% | IZ50: 156 | JA50: 0.90% | JB50: 163 | JC50: 2.09% | JD50: 145 | JE50: 1.38% | JF50: 171 | JG50: 0.86% | JH50: 1999 | JI50: 172 | JJ50: 237 | JK50: 190 | JL50: 151 | JM50: 150 | JN50: 160 | JO50: 159 | JP50: 154 | JQ50: 155 | JR50: 160 | JS50: 143 | JT50: 170
B51: 旅客周转量 （万人公里） | C51: 447.8643 | D51: =C51/R51-1 -> 39.90% | E51: 448.4483 | F51: 39.18% | G51: 460.931 | H51: 45.76% | I51: 465.732 | J51: =I51/X51-1 -> 47.22% | K51: 484.5462 | L51: 48.96% | M51: 516.0528 | N51: 9.15% | O51: 2823.57 | P51: 36.21% | R51: 320.14 | S51: =R51/AS51-1 -> -16.71% | T51: 322.21 | U51: -9.59% | V51: 316.2177 | W51: -8.50% | X51: 316.3553 | Y51: =X51/AY51-1 -> -9.87% | Z51: 325.2936 | AA51: -8.16% | AB51: 472.8138 | AC51: 28.02% | AD51: 479.6233 | AE51: =AD51/BE51-1 -> 28.86% | AF51: 481.2883 | AG51: 29.56% | AH51: 526.2857 | AI51: 39.86% | AJ51: 445.2084 | AK51: =AJ51/BK51-1 -> 13.79% | AL51: 440.1304 | AM51: 10.71% | AN51: 440.8022 | AO51: 8.79% | AP51: 4886.37 | AQ51: 9.19% | AS51: 384.38 | AT51: 2.53% | AU51: 356.4048 | AV51: =AU51/BV51-1 -> -1.67% | AW51: 345.5992 | AX51: -4.33% | AY51: 350.99 | AZ51: -3.63% | BA51: 354.20 | BB51: =BA51/CB51-1 -> -3.85% | BC51: 369.32 | BD51: -0.72% | BE51: 372.21 | BF51: 1.32% | BG51: 371.48 | BH51: =BG51/CH51-1 -> -3.08% | BI51: 376.30 | BJ51: 2.71% | BK51: 391.27 | BL51: 6.67% | BM51: 397.55 | BN51: 8.51% | BO51: 405.20 | BP51: 10.51% | BQ51: 4474.91 | BR51: 1.24% | BT51: 374.88 | BU51: -42.26% | BV51: 362.45 | BW51: -47.58% | BX51: 361.25 | BY51: -46.88% | BZ51: 364.2234 | CA51: -45.84% | CB51: 368.3674 | CC51: -46.57% | CD51: 371.9877 | CE51: -46.23% | CF51: 367.3688 | CG51: -46.47% | CH51: 383.29 | CI51: -44.73% | CJ51: 366.38 | CK51: -45.39% | CL51: 366.79 | CM51: 25.62% | CN51: 366.38 | CO51: 23.67% | CP51: 366.66 | CQ51: 18.10% | CR51: 4420.0356 | CS51: -37.07% | CT51: 0.08% | CV51: 649.23 | CW51: 691.44 | CX51: 680.09 | CY51: 672.46 | CZ51: 689.48 | DA51: 691.85 | DB51: 686.26 | DC51: 693.52 | DD51: 670.95 | DE51: 291.99 | DF51: 296.25 | DG51: 310.46 | DH51: 7024.00 | DI51: -26.65% | DK51: 999.09 | DL51: 2.61% | DM51: 1048.0000 | DO51: 1035.0000 | DP51: 89.21% | DQ51: 3082.09 | DR51: 1055.3000 | DS51: =(DR51-ER51)/ER51 -> 55.65% | DT51: 973.7000 | DU51: 45.55% | DV51: 901.6000 | DW51: 25.92% | DX51: 805.9000 | DY51: =(DX51-EX51)/EX51 -> -2.90% | DZ51: 296.5800 | EA51: -66.60% | EB51: 596.8200 | EC51: -34.75% | ED51: 618.7300 | EE51: =(ED51-FD51)/FD51 -> -36.48% | EF51: 624.5500 | EG51: -40.63% | EH51: 620.8000 | EI51: -43.25% | EJ51: 9576.0700 | EK51: -29.56% | EL51: 5233.0000 | EM51: -8.27% | EN51: 0.0000 | EO51: -100.00% | EP51: 547.0000 | EQ51: -91.71% | ER51: 678.0000 | ES51: -87.56% | ET51: 669.0000 | EU51: -89.71% | EV51: 716.0000 | EW51: -86.62% | EX51: 830.0000 | EY51: -86.29% | EZ51: 888.0000 | FA51: -84.78% | FB51: 914.6000 | FC51: -85.66% | FD51: 974.0000 | FE51: =(FD51-FU51)/FU51 -> -83.02% | FF51: 1052.0000 | FG51: -79.59% | FH51: 1094.0000 | FI51: -86.90% | FJ51: 13595.6000 | FK51: -81.86% | FL51: 5705 | FM51: 7850 | FN51: 6597 | FO51: 5451 | FP51: 6500 | FQ51: 5352 | FR51: 6,054.0000 | FS51: 5,836.0000 | FT51: 6,379.0000 | FU51: 5,736.0000 | FV51: =(FU51-GW51)/GW51 -> -5.66% | FW51: 5,155.0000 | FX51: -2.09% | FY51: 8,348.0000 | FZ51: -8.26% | GA51: 74963.00 | GB51: -5.34% | GE51: 5929 | GF51: =(GE51-HH51)/HH51 -> -2.18% | GG51: 8150 | GH51: -0.97% | GI51: 6980 | GJ51: -1.55% | GK51: 5740 | GL51: -1.15% | GM51: 6858 | GN51: -1.21% | GO51: 5700 | GP51: =(GO51-HS51)/HS51 -> -8.61% | GQ51: 6418 | GR51: -3.53% | GS51: 6245 | GT51: -3.76% | GU51: 6730 | GV51: =(GU51-HY51)/HY51 -> -4.09% | GW51: 6080 | GX51: -1.67% | GY51: 5265 | GZ51: -2.59% | HA51: 9100 | HB51: -2.88% | HC51: 79195 | HD51: 79195 | HH51: 6061 | HI51: =(HH51-IJ51)/IJ51 -> 1.99% | HJ51: 8230.00 | HK51: 0.98% | HL51: 7090.00 | HM51: 0.90% | HN51: 5807.00 | HO51: 0.59% | HP51: 6942.00 | HQ51: 0.84% | HS51: 6237.00 | HT51: =(HS51-IT51)/IT51 -> 0.99% | HU51: 6653.00 | HV51: 0.79% | HW51: 6489.00 | HX51: 2.00% | HY51: 7017.00 | HZ51: =(HY51-IZ51)/IZ51 -> 0.99% | IA51: 6183.00 | IB51: 0.59% | IC51: 5405.00 | ID51: 0.60% | IE51: 9370.00 | IF51: 1.00% | IG51: 81484 | IJ51: 5943 | IK51: 5.98% | IL51: 8150 | IM51: 5.99% | IN51: 7027 | IO51: 2.99% | IP51: 5773.00 | IQ51: 3.00% | IR51: 6884.00 | IS51: 2.99% | IT51: 6176.00 | IU51: 1.99% | IV51: 6601.00 | IW51: 2.99% | IX51: 6,362.00 | IY51: 1.99% | IZ51: 6,948.00 | JA51: 0.99% | JB51: 6,147.00 | JC51: 1.99% | JD51: 5,373.00 | JE51: 1.48% | JF51: 9,277.00 | JG51: 1.00% | JH51: 78497 | JI51: 5607 | JJ51: 7689 | JK51: 6823 | JL51: 5605 | JM51: 6684 | JN51: 6055 | JO51: 6409 | JP51: 6238 | JQ51: 6880 | JR51: 6027 | JS51: 5294 | JT51: 9185
A52: 潜江市 | B52: 客运量 （万人） | C52: 2.2826 | D52: =C52/R52-1 -> -27.05% | E52: 2.1525 | F52: -20.25% | G52: 2.2929 | H52: -11.91% | I52: 2.26 | J52: =I52/X52-1 -> -1.25% | K52: 2.0421 | L52: -19.14% | M52: 2.0576 | N52: -19.49% | O52: 13.09 | P52: -17.17% | R52: 3.13 | S52: =R52/AS52-1 -> -21.84% | T52: 2.70 | U52: 18.29% | V52: 2.603 | W52: 1.50% | X52: 2.2886 | Y52: =X52/AY52-1 -> -23.86% | Z52: 2.5255 | AA52: -26.36% | AB52: 2.5557 | AC52: -24.81% | AD52: 2.421 | AE52: =AD52/BE52-1 -> -11.48% | AF52: 2.683 | AG52: 2.02% | AH52: 2.4105 | AI52: -4.01% | AJ52: 2.7100 | AK52: =AJ52/BK52-1 -> -6.63% | AL52: 2.4835 | AM52: -22.29% | AN52: 2.3858 | AO52: -24.13% | AP52: 30.89 | AQ52: -13.71% | AS52: 4.00 | AT52: 125.95% | AU52: 2.2816 | AV52: =AU52/BV52-1 -> 2.94% | AW52: 2.5646 | AX52: 7.33% | AY52: 3.01 | AZ52: 6.34% | BA52: 3.43 | BB52: =BA52/CB52-1 -> 8.50% | BC52: 3.40 | BD52: 7.66% | BE52: 2.73 | BF52: -21.87% | BG52: 2.63 | BH52: =BG52/CH52-1 -> -22.02% | BI52: 2.51 | BJ52: -21.68% | BK52: 2.90 | BL52: -21.64% | BM52: 3.20 | BN52: -22.45% | BO52: 3.14 | BP52: -21.49% | BQ52: 35.80 | BR52: -4.35% | BT52: 1.77 | BU52: -11.95% | BV52: 2.22 | BW52: 4.93% | BX52: 2.39 | BY52: 22.89% | BZ52: 2.8265 | CA52: 59.30% | CB52: 3.1607 | CC52: 75.76% | CD52: 3.1571 | CE52: 68.96% | CF52: 3.5003 | CG52: 75.68% | CH52: 3.37 | CI52: 120.81% | CJ52: 3.21 | CK52: 130.86% | CL52: 3.70 | CM52: 216.33% | CN52: 4.12 | CO52: 197.00% | CP52: 4.01 | CQ52: 219.45% | CR52: 37.4318 | CS52: 85.02% | CT52: -2.81% | CV52: 2.01 | CW52: 2.11 | CX52: 1.94 | CY52: 1.77 | CZ52: 1.80 | DA52: 1.87 | DB52: 1.99 | DC52: 1.53 | DD52: 1.39 | DE52: 1.17 | DF52: 1.39 | DG52: 1.25 | DH52: 20.23 | DI52: -40.20% | DK52: 1.9768 | DL52: -57.04% | DM52: 2.0862 | DO52: 3.5771 | DP52: -12.33% | DQ52: 7.64 | DR52: 3.8622 | DS52: =(DR52-ER52)/ER52 -> -4.40% | DT52: 4.6016 | DU52: -7.04% | DV52: 4.3907 | DW52: -3.50% | DX52: 3.7282 | DY52: =(DX52-EX52)/EX52 -> -22.00% | DZ52: 1.3720 | EA52: -77.43% | EB52: 1.9414 | EC52: -56.47% | ED52: 2.1796 | EE52: =(ED52-FD52)/FD52 -> -65.78% | EF52: 2.1142 | EG52: -62.75% | EH52: 1.9995 | EI52: -25.00% | EJ52: 33.8295 | EK52: -77.93% | EL52: 105.6000 | EM52: -9.90% | EN52: 0.0000 | EO52: -100.00% | EP52: 4.0800 | EQ52: -96.74% | ER52: 4.0400 | ES52: -95.96% | ET52: 4.9500 | EU52: -95.01% | EV52: 4.5500 | EW52: -95.69% | EX52: 4.7800 | EY52: -95.43% | EZ52: 6.0800 | FA52: -94.03% | FB52: 4.4600 | FC52: -95.63% | FD52: 6.3690 | FE52: =(FD52-FU52)/FU52 -> -93.92% | FF52: 5.6750 | FG52: -93.90% | FH52: 2.6660 | FI52: -97.55% | FJ52: 153.2500 | FK52: -88.50% | FL52: 117 | FM52: 170 | FN52: 125 | FO52: 100 | FP52: 99 | FQ52: 106 | FR52: 104.6000 | FS52: 101.8000 | FT52: 102.0000 | FU52: 104.7000 | FV52: =(FU52-GW52)/GW52 -> -9.97% | FW52: 93.0000 | FX52: -9.97% | FY52: 109.0000 | FZ52: -9.92% | GA52: 1332.50 | GB52: -9.92% | GE52: 130 | GF52: =(GE52-HH52)/HH52 -> -9.72% | GG52: 189 | GH52: -9.57% | GI52: 139 | GJ52: -9.74% | GK52: 111 | GL52: -9.76% | GM52: 110 | GN52: -9.84% | GO52: 117.2 | GP52: =(GO52-HS52)/HS52 -> -9.85% | GQ52: 116 | GR52: -9.92% | GS52: 113 | GT52: -9.60% | GU52: 113 | GV52: =(GU52-HY52)/HY52 -> -9.80% | GW52: 116 | GX52: -9.84% | GY52: 103 | GZ52: -9.86% | HA52: 121 | HB52: -9.84% | HC52: 1479 | HD52: 1479 | HH52: 144 | HI52: =(HH52-IJ52)/IJ52 -> -9.72% | HJ52: 209.00 | HK52: -9.91% | HL52: 154.00 | HM52: -9.94% | HN52: 123.00 | HO52: -9.56% | HP52: 122.00 | HQ52: -9.63% | HS52: 130.00 | HT52: =(HS52-IT52)/IT52 -> -9.72% | HU52: 129.00 | HV52: -9.79% | HW52: 125.00 | HX52: -9.42% | HY52: 125.50 | HZ52: =(HY52-IZ52)/IZ52 -> -9.71% | IA52: 129.00 | IB52: -9.79% | IC52: 114.60 | ID52: -9.76% | IE52: 134.2 | IF52: -9.93% | IG52: 1639 | IJ52: 160 | IK52: -6.87% | IL52: 232 | IM52: -1.30% | IN52: 171 | IO52: -9.45% | IP52: 136.00 | IQ52: -9.08% | IR52: 135.00 | IS52: -9.61% | IT52: 144.00 | IU52: -9.22% | IV52: 143.00 | IW52: -9.60% | IX52: 138 | IY52: -9.75% | IZ52: 139 | JA52: -9.52% | JB52: 143 | JC52: -9.86% | JD52: 127 | JE52: -10.64% | JF52: 149 | JG52: -11.56% | JH52: 1987 | JI52: 171 | JJ52: 235 | JK52: 189 | JL52: 150 | JM52: 149 | JN52: 159 | JO52: 158 | JP52: 153 | JQ52: 154 | JR52: 159 | JS52: 142 | JT52: 168
B53: 旅客周转量 （万人公里） | C53: 237.4332 | D53: =C53/R53-1 -> -10.70% | E53: 176.7706 | F53: -10.09% | G53: 172.2912 | H53: 6.93% | I53: 179.4491 | J53: =I53/X53-1 -> 22.17% | K53: 154.2538 | L53: -6.52% | M53: 175.321 | N53: -2.77% | O53: 1095.52 | P53: -1.82% | R53: 265.88 | S53: =R53/AS53-1 -> 7.68% | T53: 196.61 | U53: 55.75% | V53: 161.124 | W53: 19.54% | X53: 146.8818 | Y53: =X53/AY53-1 -> -9.15% | Z53: 165.0182 | AA53: -12.15% | AB53: 180.318 | AC53: -11.64% | AD53: 189.287 | AE53: =AD53/BE53-1 -> -27.69% | AF53: 221.28 | AG53: -14.31% | AH53: 248.1032 | AI53: -0.72% | AJ53: 208.8209 | AK53: =AJ53/BK53-1 -> -5.38% | AL53: 208.7586 | AM53: -8.44% | AN53: 205.6995 | AO53: -9.40% | AP53: 2397.78 | AQ53: -4.36% | AS53: 246.92 | AT53: 190.18% | AU53: 126.232 | AV53: =AU53/BV53-1 -> 18.84% | AW53: 134.7843 | AX53: 8.57% | AY53: 161.68 | AZ53: 6.81% | BA53: 187.85 | BB53: =BA53/CB53-1 -> 8.17% | BC53: 204.07 | BD53: 18.79% | BE53: 261.76 | BF53: 22.07% | BG53: 258.23 | BH53: =BG53/CH53-1 -> 24.01% | BI53: 249.89 | BJ53: 25.66% | BK53: 220.68 | BL53: -5.23% | BM53: 228.00 | BN53: -9.60% | BO53: 227.05 | BP53: -9.60% | BQ53: 2507.15 | BR53: 15.53% | BT53: 85.09 | BU53: -12.44% | BV53: 106.22 | BW53: -7.03% | BX53: 124.14 | BY53: 15.25% | BZ53: 151.3744 | CA53: 57.88% | CB53: 173.6560 | CC53: 76.36% | CD53: 171.7957 | CE53: 63.70% | CF53: 214.4316 | CG53: 94.26% | CH53: 208.23 | CI53: 168.95% | CJ53: 198.87 | CK53: 173.99% | CL53: 232.87 | CM53: 273.36% | CN53: 252.23 | CO53: 229.10% | CP53: 251.17 | CQ53: 282.25% | CR53: 2170.0743 | CS53: 100.27% | CT53: -0.42% | CV53: 97.18 | CW53: 114.25 | CX53: 107.71 | CY53: 95.88 | CZ53: 98.47 | DA53: 104.95 | DB53: 110.39 | DC53: 77.42 | DD53: 72.58 | DE53: 62.37 | DF53: 76.64 | DG53: 65.71 | DH53: 1083.55 | DI53: -68.35% | DK53: 93.5929 | DL53: -84.34% | DM53: 113.7925 | DO53: 472.2256 | DP53: 150.58% | DQ53: 679.61 | DR53: 475.2118 | DS53: =(DR53-ER53)/ER53 -> 119.20% | DT53: 597.6871 | DU53: 183.26% | DV53: 637.1520 | DW53: 95.45% | DX53: 442.6371 | DY53: =(DX53-EX53)/EX53 -> 83.29% | DZ53: 87.5883 | EA53: -78.97% | EB53: 126.9316 | EC53: -62.99% | ED53: 131.9552 | EE53: =(ED53-FD53)/FD53 -> -77.58% | EF53: 128.7484 | EG53: -70.66% | EH53: 116.3915 | EI53: -66.65% | EJ53: 3423.9140 | EK53: -52.59% | EL53: 3902.0000 | EM53: -9.88% | EN53: 0.0000 | EO53: -100.00% | EP53: 188.4500 | EQ53: -96.14% | ER53: 216.7900 | ES53: -94.61% | ET53: 211.0000 | EU53: -95.60% | EV53: 326.0000 | EW53: -92.49% | EX53: 241.5000 | EY53: -94.72% | EZ53: 416.5000 | FA53: -90.68% | FB53: 343.0000 | FC53: -93.00% | FD53: 588.4300 | FE53: =(FD53-FU53)/FU53 -> -86.25% | FF53: 438.8300 | FG53: -88.28% | FH53: 348.9480 | FI53: -94.53% | FJ53: 7221.4480 | FK53: -87.27% | FL53: 4330 | FM53: 6021 | FN53: 4885 | FO53: 4021 | FP53: 4794 | FQ53: 4339 | FR53: 4,571.0000 | FS53: 4,471.0000 | FT53: 4,897.0000 | FU53: 4,280.0000 | FV53: =(FU53-GW53)/GW53 -> -9.95% | FW53: 3,743.0000 | FX53: -9.96% | FY53: 6,379.0000 | FZ53: -9.91% | GA53: 56731.00 | GB53: -9.91% | GE53: 4804 | GF53: =(GE53-HH53)/HH53 -> -9.70% | GG53: 6684 | GH53: -9.55% | GI53: 5419 | GJ53: -9.73% | GK53: 4463 | GL53: -9.75% | GM53: 5318 | GN53: -9.82% | GO53: 4820 | GP53: =(GO53-HS53)/HS53 -> -9.84% | GQ53: 5077 | GR53: -9.92% | GS53: 4962 | GT53: -9.58% | GU53: 5432 | GV53: =(GU53-HY53)/HY53 -> -9.80% | GW53: 4753 | GX53: -9.83% | GY53: 4157 | GZ53: -9.89% | HA53: 7081 | HB53: -9.84% | HC53: 62970 | HD53: 62970 | HH53: 5320 | HI53: =(HH53-IJ53)/IJ53 -> -9.93% | HJ53: 7390.00 | HK53: -9.91% | HL53: 6003.00 | HM53: -9.92% | HN53: 4945.00 | HO53: -9.66% | HP53: 5897.00 | HQ53: -9.69% | HS53: 5346.00 | HT53: =(HS53-IT53)/IT53 -> -9.70% | HU53: 5636.00 | HV53: -9.75% | HW53: 5488.00 | HX53: -9.42% | HY53: 6022.00 | HZ53: =(HY53-IZ53)/IZ53 -> -9.70% | IA53: 5271.00 | IB53: -9.79% | IC53: 4613.00 | ID53: -9.74% | IE53: 7,854.00 | IF53: -9.85% | IG53: 69785 | IJ53: 5906 | IK53: -2.18% | IL53: 8203 | IM53: -1.13% | IN53: 6664 | IO53: -9.10% | IP53: 5474.00 | IQ53: -9.32% | IR53: 6530.00 | IS53: -9.14% | IT53: 5920.00 | IU53: -9.12% | IV53: 6245.00 | IW53: -9.43% | IX53: 6,059.00 | IY53: -9.74% | IZ53: 6,669.00 | JA53: -9.82% | JB53: 5,843.00 | JC53: -10.07% | JD53: 5,111.00 | JE53: -10.42% | JF53: 8,712.00 | JG53: -11.58% | JH53: 84462 | JI53: 6038 | JJ53: 8297 | JK53: 7331 | JL53: 6036 | JM53: 7187 | JN53: 6514 | JO53: 6895 | JP53: 6713 | JQ53: 7395 | JR53: 6497 | JS53: 5705 | JT53: 9853
A54: 天门市 | B54: 客运量 （万人） | C54: 3.0068 | D54: =C54/R54-1 -> -50.23% | E54: 3.7154 | F54: -38.37% | G54: 3.4623 | H54: -44.36% | I54: 4.4253 | J54: =I54/X54-1 -> -31.56% | K54: 4.3403 | L54: -26.14% | M54: 4.3662 | N54: -19.51% | O54: 23.32 | P54: -35.34% | R54: 6.04 | S54: =R54/AS54-1 -> -65.51% | T54: 6.03 | U54: -69.78% | V54: 6.2222 | W54: -63.19% | X54: 6.4656 | Y54: =X54/AY54-1 -> -43.65% | Z54: 5.876 | AA54: -49.06% | AB54: 5.4243 | AC54: -45.72% | AD54: 5.367 | AE54: =AD54/BE54-1 -> -46.74% | AF54: 5.344 | AG54: -47.14% | AH54: 5.0093 | AI54: -44.67% | AJ54: 4.5789 | AK54: =AJ54/BK54-1 -> -48.97% | AL54: 4.2379 | AM54: -51.29% | AN54: 3.6481 | AO54: -31.96% | AP54: 64.24 | AQ54: -54.00% | AS54: 17.52 | AT54: 10.68% | AU54: 19.9483 | AV54: =AU54/BV54-1 -> 22.80% | AW54: 16.9053 | AX54: 2.15% | AY54: 11.47 | AZ54: -30.81% | BA54: 11.53 | BB54: =BA54/CB54-1 -> -34.88% | BC54: 9.99 | BD54: -49.22% | BE54: 10.08 | BF54: -52.15% | BG54: 10.11 | BH54: =BG54/CH54-1 -> -53.49% | BI54: 9.05 | BJ54: -58.39% | BK54: 8.97 | BL54: -52.64% | BM54: 8.70 | BN54: -53.33% | BO54: 5.36 | BP54: -70.43% | BQ54: 139.65 | BR54: -37.34% | BT54: 15.83 | BU54: -50.14% | BV54: 16.24 | BW54: -49.19% | BX54: 16.55 | BY54: -36.06% | BZ54: 16.5841 | CA54: -26.27% | CB54: 17.7122 | CC54: -29.18% | CD54: 19.6798 | CE54: -18.53% | CF54: 21.0585 | CG54: -10.56% | CH54: 21.74 | CI54: -3.76% | CJ54: 21.75 | CK54: -11.04% | CL54: 18.94 | CM54: -20.71% | CN54: 18.64 | CO54: -6.44% | CP54: 18.13 | CQ54: 11.36% | CR54: 222.8620 | CS54: -23.66% | CT54: -2.75% | CV54: 31.74 | CW54: 31.97 | CX54: 25.88 | CY54: 22.49 | CZ54: 25.01 | DA54: 24.16 | DB54: 23.54 | DC54: 22.59 | DD54: 24.45 | DE54: 23.89 | DF54: 19.93 | DG54: 16.28 | DH54: 291.94 | DI54: -31.48% | DK54: 40.2019 | DL54: 11.80% | DM54: 43.3684 | DO54: 40.1391 | DP54: 5634.16% | DQ54: 123.71 | DR54: 37.9314 | DS54: =(DR54-ER54)/ER54 -> 14.94% | DT54: 35.9593 | DU54: -12.29% | DV54: 30.3841 | DW54: -22.09% | DX54: 32.6982 | DY54: =(DX54-EX54)/EX54 -> -9.17% | DZ54: 33.8099 | EA54: -15.48% | EB54: 34.4339 | EC54: -11.71% | ED54: 35.5022 | EE54: =(ED54-FD54)/FD54 -> -11.62% | EF54: 31.2180 | EG54: -26.43% | EH54: 30.4375 | EI54: -27.55% | EJ54: 426.0839 | EK54: -22.15% | EL54: 194.0000 | EM54: -0.51% | EN54: 0.0000 | EO54: -100.00% | EP54: 0.7000 | EQ54: -99.65% | ER54: 33.0000 | ES54: -79.63% | ET54: 41.0000 | EU54: -74.69% | EV54: 39.0000 | EW54: -76.36% | EX54: 36.0000 | EY54: -77.64% | EZ54: 40.0000 | FA54: -74.68% | FB54: 39.0000 | FC54: -76.07% | FD54: 40.1699 | FE54: =(FD54-FU54)/FU54 -> -75.51% | FF54: 42.4303 | FG54: -70.74% | FH54: 42.0091 | FI54: -75.29% | FJ54: 547.3093 | FK54: -74.07% | FL54: 195 | FM54: 265 | FN54: 201 | FO54: 162 | FP54: 162 | FQ54: 165 | FR54: 161.0000 | FS54: 158.0000 | FT54: 163.0000 | FU54: 164.0000 | FV54: =(FU54-GW54)/GW54 -> -4.09% | FW54: 145.0000 | FX54: -6.45% | FY54: 170.0000 | FZ54: -6.59% | GA54: 2111.00 | GB54: -5.24% | GE54: 200 | GF54: =(GE54-HH54)/HH54 -> 0.25% | GG54: 273 | GH54: 0.37% | GI54: 216 | GJ54: 0.09% | GK54: 172 | GL54: 0.00% | GM54: 172 | GN54: 0.00% | GO54: 177 | GP54: =(GO54-HS54)/HS54 -> -2.21% | GQ54: 173 | GR54: -2.26% | GS54: 169 | GT54: -2.31% | GU54: 168 | GV54: =(GU54-HY54)/HY54 -> -2.33% | GW54: 171 | GX54: -3.93% | GY54: 155 | GZ54: -3.73% | HA54: 182 | HB54: -3.70% | HC54: 2228 | HD54: 2228 | HH54: 199 | HI54: =(HH54-IJ54)/IJ54 -> 2.05% | HJ54: 272.00 | HK54: 1.49% | HL54: 216.00 | HM54: 0.93% | HN54: 172.00 | HO54: 1.18% | HP54: 172.00 | HQ54: 0.58% | HS54: 181.00 | HT54: =(HS54-IT54)/IT54 -> 0.56% | HU54: 177.00 | HV54: 0.57% | HW54: 173.00 | HX54: 0.58% | HY54: 172.00 | HZ54: =(HY54-IZ54)/IZ54 -> 0.58% | IA54: 178.00 | IB54: 0.56% | IC54: 161.00 | ID54: 1.26% | IE54: 189.00 | IF54: 1.07% | IG54: 2262 | IJ54: 195 | IK54: 3.34% | IL54: 268 | IM54: 3.47% | IN54: 214 | IO54: 2.84% | IP54: 170.00 | IQ54: 3.03% | IR54: 171.00 | IS54: 3.74% | IT54: 180.00 | IU54: 2.95% | IV54: 176.00 | IW54: 0.92% | IX54: 172 | IY54: 2.00% | IZ54: 171 | JA54: 0.93% | JB54: 177 | JC54: 1.08% | JD54: 159 | JE54: 1.43% | JF54: 187 | JG54: 0.72% | JH54: 2190 | JI54: 189 | JJ54: 259 | JK54: 208 | JL54: 165 | JM54: 165 | JN54: 175 | JO54: 174 | JP54: 169 | JQ54: 169 | JR54: 175 | JS54: 157 | JT54: 186
B55: 旅客周转量 （万人公里） | C55: 524.6797 | D55: =C55/R55-1 -> -43.49% | E55: 1354.6626 | F55: 19.40% | G55: 1233.6733 | H55: 86.60% | I55: 2058.7247 | J55: =I55/X55-1 -> 163.04% | K55: 1725.1329 | L55: 189.99% | M55: 2213.7637 | N55: 343.52% | O55: 9110.64 | P55: 98.02% | R55: 928.41 | S55: =R55/AS55-1 -> -7.13% | T55: 1134.56 | U55: -4.09% | V55: 661.135 | W55: -31.04% | X55: 782.6673 | Y55: =X55/AY55-1 -> 0.71% | Z55: 594.8898 | AA55: -35.66% | AB55: 499.1363 | AC55: -32.78% | AD55: 977.6583 | AE55: =AD55/BE55-1 -> 45.72% | AF55: 992.5601 | AG55: 23.08% | AH55: 754.3291 | AI55: 1.62% | AJ55: 935.997 | AK55: =AJ55/BK55-1 -> 22.23% | AL55: 601.1448 | AM55: -18.46% | AN55: 420.0929 | AO55: 2.82% | AP55: 9282.58 | AQ55: -4.47% | AS55: 999.69 | AT55: 26.61% | AU55: 1182.9721 | AV55: =AU55/BV55-1 -> 45.08% | AW55: 958.7643 | AX55: 28.64% | AY55: 777.16 | AZ55: 4.12% | BA55: 924.63 | BB55: =BA55/CB55-1 -> 15.14% | BC55: 742.52 | BD55: -15.70% | BE55: 670.90 | BF55: -31.66% | BG55: 806.43 | BH55: =BG55/CH55-1 -> -19.94% | BI55: 742.28 | BJ55: -28.44% | BK55: 765.75 | BL55: -15.93% | BM55: 737.25 | BN55: -21.39% | BO55: 408.56 | BP55: -60.00% | BQ55: 9716.91 | BR55: -8.99% | BT55: 789.56 | BU55: -50.33% | BV55: 815.38 | BW55: -51.97% | BX55: 745.33 | BY55: -37.36% | BZ55: 746.3893 | CA55: -28.14% | CB55: 803.0515 | CC55: -27.23% | CD55: 880.8514 | CE55: -16.56% | CF55: 981.6525 | CG55: -4.74% | CH55: 1007.27 | CI55: 2.93% | CJ55: 1037.35 | CK55: -4.04% | CL55: 910.84 | CM55: -11.91% | CN55: 937.88 | CO55: 10.61% | CP55: 1021.43 | CQ55: 39.98% | CR55: 10676.9617 | CS55: -20.18% | CT55: 8.91% | CV55: 1589.55 | CW55: 1697.54 | CX55: 1189.86 | CY55: 1038.72 | CZ55: 1103.59 | DA55: 1055.72 | DB55: 1030.55 | DC55: 978.56 | DD55: 1081.00 | DE55: 1034.00 | DF55: 847.92 | DG55: 729.69 | DH55: 13376.70 | DI55: -33.69% | DK55: 1,916.73 | DL55: 6.60% | DM55: 1957.7134 | DO55: 1901.5511 | DP55: 435.65% | DQ55: 5776.00 | DR55: 1796.9656 | DS55: =(DR55-ER55)/ER55 -> 26.55% | DT55: 1797.9837 | DU55: -0.66% | DV55: 1367.7762 | DW55: -20.01% | DX55: 1497.0370 | DY55: =(DX55-EX55)/EX55 -> -9.27% | DZ55: 1682.8486 | EA55: -3.84% | EB55: 1688.1874 | EC55: -1.85% | ED55: 1722.4508 | EE55: =(ED55-FD55)/FD55 -> -3.95% | EF55: 1430.8218 | EG55: -25.31% | EH55: 1412.9588 | EI55: -27.04% | EJ55: 20173.0250 | EK55: -13.57% | EL55: 7280.0000 | EM55: -0.14% | EN55: 0.0000 | EO55: -100.00% | EP55: 355.0000 | EQ55: -95.64% | ER55: 1420.0000 | ES55: -79.13% | ET55: 1810.0000 | EU55: -77.29% | EV55: 1710.0000 | EW55: -75.98% | EX55: 1650.0000 | EY55: -77.21% | EZ55: 1750.0000 | FA55: -75.39% | FB55: 1720.0000 | FC55: -78.77% | FD55: 1793.2587 | FE55: =(FD55-FU55)/FU55 -> -75.02% | FF55: 1915.6807 | FG55: -69.13% | FH55: 1936.5365 | FI55: -75.64% | FJ55: 23340.4759 | FK55: -74.45% | FL55: 7290 | FM55: 10250 | FN55: 8150 | FO55: 6804 | FP55: 7970 | FQ55: 7120 | FR55: 7,240.0000 | FS55: 7,110.0000 | FT55: 8,100.0000 | FU55: 7,180.0000 | FV55: =(FU55-GW55)/GW55 -> -4.60% | FW55: 6,205.0000 | FX55: -6.69% | FY55: 7,950.0000 | FZ55: -25.35% | GA55: 91369.00 | GB55: -7.53% | GE55: 7461 | GF55: =(GE55-HH55)/HH55 -> 0.99% | GG55: 10495 | GH55: 0.40% | GI55: 8640 | GJ55: 0.01% | GK55: 7375 | GL55: 0.20% | GM55: 8523 | GN55: 0.19% | GO55: 7495 | GP55: =(GO55-HS55)/HS55 -> -3.66% | GQ55: 7895 | GR55: -3.06% | GS55: 7750 | GT55: -2.56% | GU55: 8350 | GV55: =(GU55-HY55)/HY55 -> -2.60% | GW55: 7526 | GX55: -3.94% | GY55: 6650 | GZ55: -3.69% | HA55: 10650 | HB55: -4.18% | HC55: 98810 | HD55: 98810 | HH55: 7388 | HI55: =(HH55-IJ55)/IJ55 -> 1.99% | HJ55: 10453.00 | HK55: 1.30% | HL55: 8639.00 | HM55: 0.99% | HN55: 7360.00 | HO55: 1.49% | HP55: 8507.00 | HQ55: 0.58% | HS55: 7780.00 | HT55: =(HS55-IT55)/IT55 -> 0.91% | HU55: 8144.00 | HV55: 0.57% | HW55: 7954.00 | HX55: 0.58% | HY55: 8573.00 | HZ55: =(HY55-IZ55)/IZ55 -> 0.59% | IA55: 7835.00 | IB55: 0.56% | IC55: 6905.00 | ID55: 1.25% | IE55: 11115.00 | IF55: 1.11% | IG55: 100653 | IJ55: 7244 | IK55: 3.00% | IL55: 10319 | IM55: 3.99% | IN55: 8554 | IO55: 3.00% | IP55: 7252.00 | IQ55: 2.99% | IR55: 8458.00 | IS55: 3.05% | IT55: 7710.00 | IU55: 3.01% | IV55: 8098.00 | IW55: 2.00% | IX55: 7,908.00 | IY55: 2.00% | IZ55: 8,523.00 | JA55: 1.30% | JB55: 7,791.00 | JC55: 1.50% | JD55: 6,820.00 | JE55: 1.64% | JF55: 10,993.00 | JG55: 0.82% | JH55: 97389 | JI55: 7033 | JJ55: 9923 | JK55: 8305 | JL55: 7041 | JM55: 8207 | JN55: 7485 | JO55: 7939 | JP55: 7753 | JQ55: 8414 | JR55: 7676 | JS55: 6710 | JT55: 10903
A56: 林区 | B56: 客运量 （万人） | C56: 5.8705 | D56: =C56/R56-1 -> -36.48% | E56: 15.4874 | F56: 102.94% | G56: 2.543 | H56: -23.61% | I56: 4.9911 | J56: =I56/X56-1 -> -42.53% | K56: 7.1112 | L56: -30.32% | M56: 3.146 | N56: -54.81% | O56: 39.15 | P56: -14.99% | R56: 9.24 | S56: =R56/AS56-1 -> 55.57% | T56: 7.63 | U56: -2.46% | V56: 3.3291 | W56: 34.12% | X56: 8.6843 | Y56: =X56/AY56-1 -> 60.24% | Z56: 10.2048 | AA56: 25.08% | AB56: 6.9615 | AC56: 6.56% | AD56: 20.731 | AE56: =AD56/BE56-1 -> 36.24% | AF56: 26.0203 | AG56: -16.26% | AH56: 6.3018 | AI56: 3.45% | AJ56: 6.5631 | AK56: =AJ56/BK56-1 -> -38.34% | AL56: 3.6566 | AM56: 28.77% | AN56: 2.5061 | AO56: -11.05% | AP56: 111.83 | AQ56: 6.47% | AS56: 5.94 | AT56: 101.79% | AU56: 7.824 | AV56: =AU56/BV56-1 -> 272.66% | AW56: 2.4822 | AX56: -12.61% | AY56: 5.42 | AZ56: -11.36% | BA56: 8.16 | BB56: =BA56/CB56-1 -> -4.72% | BC56: 6.53 | BD56: 8.47% | BE56: 15.22 | BF56: -11.24% | BG56: 31.07 | BH56: =BG56/CH56-1 -> 18.83% | BI56: 6.09 | BJ56: 6.44% | BK56: 10.64 | BL56: 9.34% | BM56: 2.84 | BN56: -52.26% | BO56: 2.82 | BP56: 44.25% | BQ56: 105.04 | BR56: 10.30% | BT56: 2.94 | BU56: 69.96% | BV56: 2.10 | BW56: 4.07% | BX56: 2.84 | BY56: 171.76% | BZ56: 6.1145 | CA56: 887.16% | CB56: 8.5630 | CC56: 486.27% | CD56: 6.0228 | CE56: 20.08% | CF56: 17.1432 | CG56: -46.33% | CH56: 26.15 | CI56: 10.81% | CJ56: 5.72 | CK56: 121.53% | CL56: 9.73 | CM56: 371.84% | CN56: 5.95 | CO56: 980.42% | CP56: 1.95 | CQ56: 263.50% | CR56: 95.2338 | CS56: 30.16% | CT56: -67.16% | CV56: 1.73 | CW56: 2.02 | CX56: 1.05 | CY56: 0.62 | CZ56: 1.46 | DA56: 5.02 | DB56: 31.94 | DC56: 23.60 | DD56: 2.58 | DE56: 2.06 | DF56: 0.55 | DG56: 0.54 | DH56: 73.17 | DI56: 12.80% | DK56: 1.9553 | DL56: -84.26% | DM56: 1.9000 | DO56: 2.6359 | DP56: 7652.65% | DQ56: 6.49 | DR56: 6.2200 | DS56: =(DR56-ER56)/ER56 -> 341.13% | DT56: 12.4200 | DU56: 340.43% | DV56: 7.0882 | DW56: 144.42% | DX56: 12.2885 | DY56: =(DX56-EX56)/EX56 -> 668.03% | DZ56: 2.9074 | EA56: -82.88% | EB56: 3.3063 | EC56: -76.37% | ED56: 10.4172 | EE56: =(ED56-FD56)/FD56 -> 7.28% | EF56: 1.9171 | EG56: -79.27% | EH56: 1.8085 | EI56: -56.93% | EJ56: 64.8644 | EK56: -42.03% | EL56: 49.0000 | EM56: 0.00% | EN56: 0.0000 | EO56: -100.00% | EP56: 0.0340 | EQ56: -99.94% | ER56: 1.4100 | ES56: -96.87% | ET56: 2.8200 | EU56: -93.73% | EV56: 2.9000 | EW56: -93.83% | EX56: 1.6000 | EY56: -96.52% | EZ56: 16.9800 | FA56: -62.27% | FB56: 13.9900 | FC56: -68.56% | FD56: 9.7100 | FE56: =(FD56-FU56)/FU56 -> -79.34% | FF56: 9.2500 | FG56: -77.98% | FH56: 4.1990 | FI56: -91.25% | FJ56: 111.8930 | FK56: -80.42% | FL56: 49 | FM56: 60 | FN56: 53 | FO56: 45 | FP56: 45 | FQ56: 47 | FR56: 46.0000 | FS56: 45.0000 | FT56: 44.5000 | FU56: 47.0000 | FV56: =(FU56-GW56)/GW56 -> 0.00% | FW56: 42.0000 | FX56: 0.00% | FY56: 48.0000 | FZ56: -2.04% | GA56: 571.50 | GB56: -1.80% | GE56: 49 | GF56: =(GE56-HH56)/HH56 -> 0.00% | GG56: 67 | GH56: -1.47% | GI56: 55 | GJ56: 0.00% | GK56: 45 | GL56: 0.00% | GM56: 45 | GN56: 0.00% | GO56: 47 | GP56: =(GO56-HS56)/HS56 -> 0.00% | GQ56: 46 | GR56: 0.00% | GS56: 45 | GT56: 0.00% | GU56: 45 | GV56: =(GU56-HY56)/HY56 -> 0.00% | GW56: 47 | GX56: 0.00% | GY56: 42 | GZ56: 0.00% | HA56: 49 | HB56: 0.00% | HC56: 582 | HD56: 582 | HH56: 49 | HI56: =(HH56-IJ56)/IJ56 -> 1.03% | HJ56: 68.00 | HK56: 1.49% | HL56: 55.00 | HM56: 0.00% | HN56: 45.00 | HO56: 2.27% | HP56: 45.00 | HQ56: 2.27% | HS56: 47.00 | HT56: =(HS56-IT56)/IT56 -> 2.17% | HU56: 46.00 | HV56: 0.00% | HW56: 45.00 | HX56: 0.00% | HY56: 45.00 | HZ56: =(HY56-IZ56)/IZ56 -> 0.00% | IA56: 47.00 | IB56: 0.00% | IC56: 42.00 | ID56: 2.44% | IE56: 49.00 | IF56: 0.00% | IG56: 583 | IJ56: 49 | IK56: 0.18% | IL56: 67 | IM56: 0.68% | IN56: 55 | IO56: 2.87% | IP56: 44.00 | IQ56: 2.73% | IR56: 44.00 | IS56: 2.23% | IT56: 46.00 | IU56: 2.14% | IV56: 46.00 | IW56: 2.14% | IX56: 45 | IY56: 3.05% | IZ56: 45 | JA56: 2.50% | JB56: 47 | JC56: 2.82% | JD56: 41 | JE56: 0.83% | JF56: 49 | JG56: 2.59% | JH56: 566 | JI56: 48 | JJ56: 67 | JK56: 53 | JL56: 43 | JM56: 43 | JN56: 45 | JO56: 45 | JP56: 44 | JQ56: 44 | JR56: 46 | JS56: 41 | JT56: 48
B57: 旅客周转量 （万人公里） | C57: 265.8931 | D57: =C57/R57-1 -> -33.37% | E57: 624.3892 | F57: 84.30% | G57: 137.2869 | H57: -15.44% | I57: 237.1374 | J57: =I57/X57-1 -> -16.43% | K57: 292.4533 | L57: -22.14% | M57: 196.8723 | N57: -29.59% | O57: 1754.03 | P57: -4.63% | R57: 399.04 | S57: =R57/AS57-1 -> -2.99% | T57: 338.79 | U57: -30.72% | V57: 162.3487 | W57: 7.86% | X57: 283.7641 | Y57: =X57/AY57-1 -> 21.82% | Z57: 375.6033 | AA57: 18.15% | AB57: 279.6082 | AC57: -2.29% | AD57: 625.9363 | AE57: =AD57/BE57-1 -> 28.90% | AF57: 795.8587 | AG57: 3.12% | AH57: 275.5023 | AI57: 9.07% | AJ57: 244.5013 | AK57: =AJ57/BK57-1 -> -34.51% | AL57: 179.5328 | AM57: 19.45% | AN57: 161.6252 | AO57: 8.61% | AP57: 4122.11 | AQ57: 1.27% | AS57: 411.36 | AT57: 150.90% | AU57: 489.0293 | AV57: =AU57/BV57-1 -> 235.20% | AW57: 150.514 | AX57: -3.46% | AY57: 232.94 | AZ57: -5.11% | BA57: 317.89 | BB57: =BA57/CB57-1 -> 4.36% | BC57: 286.15 | BD57: 20.10% | BE57: 485.59 | BF57: -14.03% | BG57: 771.77 | BH57: =BG57/CH57-1 -> -2.75% | BI57: 252.59 | BJ57: -0.36% | BK57: 373.35 | BL57: 1.53% | BM57: 150.30 | BN57: -45.90% | BO57: 148.81 | BP57: 23.14% | BQ57: 4070.31 | BR57: 12.05% | BT57: 163.96 | BU57: 27.68% | BV57: 145.89 | BW57: -6.72% | BX57: 155.91 | BY57: 83.97% | BZ57: 245.4764 | CA57: 438.28% | CB57: 304.6090 | CC57: 269.74% | CD57: 238.2630 | CE57: 3.62% | CF57: 564.8661 | CG57: -54.63% | CH57: 793.62 | CI57: 2.09% | CJ57: 253.50 | CK57: 69.40% | CL57: 367.74 | CM57: 262.34% | CN57: 277.81 | CO57: 535.57% | CP57: 120.85 | CQ57: 217.52% | CR57: 3632.4998 | CS57: 17.83% | CT57: -56.50% | CV57: 128.41 | CW57: 156.41 | CX57: 84.75 | CY57: 45.60 | CZ57: 82.39 | DA57: 229.94 | DB57: 1245.15 | DC57: 777.38 | DD57: 149.65 | DE57: 101.49 | DF57: 43.71 | DG57: 38.06 | DH57: 3082.93 | DI57: 5.48% | DK57: 167.7467 | DL57: -67.47% | DM57: 115.9400 | DO57: 162.6520 | DP57: 1806.82% | DQ57: 446.34 | DR57: 312.8700 | DS57: =(DR57-ER57)/ER57 -> 466.18% | DT57: 515.6400 | DU57: 489.30% | DV57: 300.7018 | DW57: 300.03% | DX57: 477.3823 | DY57: =(DX57-EX57)/EX57 -> 618.95% | DZ57: 105.3394 | EA57: -73.60% | EB57: 165.1512 | EC57: -55.41% | ED57: 360.7186 | EE57: =(ED57-FD57)/FD57 -> 34.55% | EF57: 114.1667 | EG57: -63.88% | EH57: 124.4725 | EI57: 19.77% | EJ57: 2922.7812 | EK57: -12.03% | EL57: 1572.0000 | EM57: -0.13% | EN57: 0.0000 | EO57: -100.00% | EP57: 8.5300 | EQ57: -99.54% | ER57: 55.2600 | ES57: -96.56% | ET57: 87.5000 | EU57: -95.32% | EV57: 75.1700 | EW57: -95.59% | EX57: 66.4000 | EY57: -96.27% | EZ57: 398.9700 | FA57: -77.20% | FB57: 370.3900 | FC57: -80.30% | FD57: 268.1000 | FE57: =(FD57-FU57)/FU57 -> -84.53% | FF57: 316.1000 | FG57: -79.14% | FH57: 103.9230 | FI57: -95.55% | FJ57: 3322.3430 | FK57: -84.77% | FL57: 1574 | FM57: 2220 | FN57: 1839 | FO57: 1605 | FP57: 1871 | FQ57: 1705 | FR57: 1,782.0000 | FS57: 1,750.0000 | FT57: 1,880.0000 | FU57: 1,733.0000 | FV57: =(FU57-GW57)/GW57 -> 0.12% | FW57: 1,515.0000 | FX57: 0.13% | FY57: 2,336.0000 | FZ57: -5.00% | GA57: 21810.00 | GB57: -0.46% | GE57: 1572 | GF57: =(GE57-HH57)/HH57 -> 0.06% | GG57: 2149 | GH57: -3.02% | GI57: 1875 | GJ57: 0.11% | GK57: 1605 | GL57: 0.06% | GM57: 1871 | GN57: 16.65% | GO57: 1705 | GP57: =(GO57-HS57)/HS57 -> 0.00% | GQ57: 1782 | GR57: 0.11% | GS57: 1750 | GT57: 0.11% | GU57: 1898 | GV57: =(GU57-HY57)/HY57 -> 0.00% | GW57: 1731 | GX57: 0.00% | GY57: 1513 | GZ57: 0.00% | HA57: 2459 | HB57: 0.00% | HC57: 21910 | HD57: 21910 | HH57: 1571 | HI57: =(HH57-IJ57)/IJ57 -> 1.03% | HJ57: 2216.00 | HK57: 1.00% | HL57: 1873.00 | HM57: 0.97% | HN57: 1604.00 | HO57: 1.01% | HP57: 1604.00 | HQ57: 1.01% | HS57: 1705.00 | HT57: =(HS57-IT57)/IT57 -> 1.01% | HU57: 1780.00 | HV57: 1.02% | HW57: 1748.00 | HX57: 0.98% | HY57: 1898.00 | HZ57: =(HY57-IZ57)/IZ57 -> 1.01% | IA57: 1731.00 | IB57: 0.99% | IC57: 1513.00 | ID57: 1.00% | IE57: 2459.00 | IF57: 0.99% | IG57: 21702 | IJ57: 1555 | IK57: 1.00% | IL57: 2194 | IM57: 1.00% | IN57: 1855 | IO57: 2.03% | IP57: 1588.00 | IQ57: 3.02% | IR57: 1588.00 | IS57: -11.62% | IT57: 1688.00 | IU57: 3.01% | IV57: 1762.00 | IW57: 1.38% | IX57: 1,731.00 | IY57: 1.99% | IZ57: 1,879.00 | JA57: 2.02% | JB57: 1,714.00 | JC57: 2.00% | JD57: 1,498.00 | JE57: 1.98% | JF57: 2,435.00 | JG57: 2.01% | JH57: 21320 | JI57: 1540 | JJ57: 2172 | JK57: 1818 | JL57: 1541 | JM57: 1797 | JN57: 1639 | JO57: 1738 | JP57: 1697 | JQ57: 1842 | JR57: 1680 | JS57: 1469 | JT57: 2387

Sheet 中口径明细
A1: 中口径客运量 | O1: =O5-([1]网约车!O5-[1]网约车!O7)-([1]出租!O5-[1]出租!O7)-([1]公交!O5-[1]公交!O7)-[1]班线包车!O4 -> 0 | AP1: =AP5-([1]网约车!AP5-[1]网约车!AP7)-([1]出租!AP5-[1]出租!AP7)-([1]公交!AP5-[1]公交!AP7)-[1]班线包车!AP4 -> 0
A2: 注：中口径客运量由公路班线、城际城乡公交、城际城乡出租、城际城乡网约车客运量四部分构成 | O2: =O99-[1]网约车!O6+[1]网约车!O8-[1]出租!O6+[1]出租!O8-[1]公交!O6+[1]公交!O8-[1]班线包车!O5 -> 0 | AP2: =AP99-[1]网约车!AP6+[1]网约车!AP8-[1]出租!AP6+[1]出租!AP8-[1]公交!AP6+[1]公交!AP8-[1]班线包车!AP5 -> 0
A3: 地区 名称 | B3: 指标 | C3: 2026年1月 | D3: 1月同比 | E3: 2026年2月 | F3: 2月同比 | G3: 2026年3月 | H3: 3月同比 | I3: 2026年4月 | J3: 4月同比 | K3: 2026年5月 | L3: 5月同比 | M3: 2026年6月 | N3: 6月同比 | O3: 累计 | P3: 累计同比 | R3: 2025年1月 | S3: 同比 | T3: 2025年2月 | U3: 同比 | V3: 2025年3月 | W3: 同比 | X3: 2025年4月 | Y3: 同比 | Z3: 2025年5月 | AA3: 同比 | AB3: 2025年6月 | AC3: 同比 | AD3: 2025年7月 | AE3: 同比 | AF3: 2025年8月 | AG3: 同比 | AH3: 2025年9月 | AI3: 同比 | AJ3: 2025年10月 | AK3: 同比 | AL3: 2025年11月 | AM3: 同比 | AN3: 2025年12月 | AO3: 同比 | AP3: 2025年累计 | AQ3: 累计同比 | AT3: 2024年1月 | AU3: 1月与去年同比 | AV3: 2024年2月 | AW3: 2月与去年同比 | AX3: 2024年3月 | AY3: 3月与去年同比 | AZ3: 2024年4月 | BA3: 4月与去年同比 | BB3: 2024年5月 | BC3: 5月与去年同比 | BD3: 2024年6月 | BE3: 6月与去年同比 | BF3: 2024年7月 | BG3: 7月与去年同比 | BH3: 2024年8月 | BI3: 8月与去年同比 | BJ3: 2024年9月 | BK3: 9月与去年同比 | BL3: 2024年10月 | BM3: 10月与去年同比 | BN3: 2024年11月 | BO3: 11月与去年同比 | BP3: 2024年12月 | BQ3: 12月与去年同比 | BR3: 累计 | BS3: 累计同比 | BU3: 2023年1月 | BV3: 2023年2月 | BW3: 2023年3月 | BX3: 2023年4月 | BY3: 2023年5月 | BZ3: 2023年6月 | CA3: 2023年7月 | CB3: 2023年8月 | CC3: 2023年9月 | CD3: 2023年10月 | CE3: 2023年11月 | CF3: 2023年12月 | CG3: 累计
AS4: =AS5-AS9-[1]公交!#REF!-[1]出租!#REF!-[1]班线包车!AR4 -> 
A5: 全省 | B5: 总客运量（万人次） | C5: =C6+C7+C8+C9 -> 3733.79 | D5: =C5/R5-1 -> 10.33% | E5: 3777.83 | F5: 8.95% | G5: 3874.44 | H5: 9.16% | I5: =I6+I7+I8+I9 -> 3959.25 | J5: =I5/X5-1 -> 5.92% | K5: 4115.87 | L5: 4.95% | M5: 4034.99 | N5: 7.84% | O5: =E5+C5+G5+I5+K5+M5 -> 23496.17 | P5: =O5/SUM(R5,T5,V5,X5,Z5,AB5)-1 -> 7.77% | R5: =R6+R7+R8+R9 -> 3384.05 | S5: =R5/AT5-1 -> 8.71% | T5: 3467.52 | U5: 16.52% | V5: 3549.24 | W5: 17.97% | X5: =X6+X7+X8+X9 -> 3737.93 | Y5: =X5/AZ5-1 -> 17.40% | Z5: 3921.63 | AA5: 20.15% | AB5: 3741.80 | AC5: 17.81% | AD5: =AD6+AD7+AD8+AD9 -> 3964.01 | AE5: =AD5/BF5-1 -> 22.49% | AF5: 4030.52 | AG5: 23.81% | AH5: 3878.99 | AI5: 21.49% | AJ5: =AJ6+AJ7+AJ8+AJ9 -> 4073.28 | AK5: =AJ5/BL5-1 -> 12.14% | AL5: 3878.07 | AM5: 12.71% | AN5: 3848.35 | AO5: 17.65% | AP5: =T5+R5+V5+X5+Z5+AB5+AD5+AF5+AH5+AJ5+AL5+AN5 -> 45475.39 | AQ5: =AP5/SUM(AT5,AV5,AX5,AZ5,BB5,BD5,BF5,BH5,BJ5,BL5,BN5,BP5)-1 -> 17.36% | AS5: =AT5+AV5+AX5+AZ5+BB5+BD5+BF5+BH5+BJ5+BL5+BN5 -> 35478.52 | AT5: =AT6+AT7+AT8+AT9 -> 3113.00 | AU5: =AT5/BU5-1 -> 15.68% | AV5: 2975.85 | AW5: =AV5/BV5-1 -> 0.07% | AX5: 3008.60 | AY5: =AX5/BW5-1 -> -6.34% | AZ5: =AZ6+AZ7+AZ8+AZ9 -> 3184.03 | BA5: =AZ5/BX5-1 -> -3.54% | BB5: 3263.96 | BC5: =BB5/BY5-1 -> -1.46% | BD5: 3176.06 | BE5: =BD5/BZ5-1 -> -1.96% | BF5: =BF6+BF7+BF8+BF9 -> 3236.12 | BG5: =BF5/CA5-1 -> -2.76% | BH5: 3255.33 | BI5: =BH5/CB5-1 -> -2.84% | BJ5: 3192.79 | BK5: =BJ5/CC5-1 -> -0.90% | BL5: =BL6+BL7+BL8+BL9 -> 3632.17 | BM5: =BL5/CD5-1 -> 9.71% | BN5: 3440.60 | BO5: =BN5/CE5-1 -> 7.48% | BP5: 3270.97 | BQ5: =BP5/CF5-1 -> 2.68% | BR5: =AT5+AV5+AX5+AZ5+BB5+BD5+BF5+BH5+BJ5+BL5+BN5+BP5 -> 38749.49 | BS5: =BR5/CG5-1 -> 1.10% | BU5: =BU6+BU7+BU8+BU9 -> 2690.96 | BV5: 2973.77 | BW5: 3212.26 | BX5: 3300.81 | BY5: 3312.28 | BZ5: 3239.63 | CA5: 3327.97 | CB5: 3350.32 | CC5: 3221.94 | CD5: 3310.74 | CE5: 3201.29 | CF5: 3185.67 | CG5: =BU5+BV5+BW5+BX5+BY5+BZ5+CA5+CB5+CC5+CD5+CE5+CF5 -> 38327.64
B6: 公路班线客运量（万人次） | C6: =C11+C16+C21+C26+C31+C36+C41+C46+C51+C56+C61+C66+C71+C76+C81+C86+C91 -> 1473.38 | D6: =C6/R6-1 -> -12.72% | E6: 1543.17 | F6: -10.27% | G6: 1575.67 | H6: -8.49% | I6: =I11+I16+I21+I26+I31+I36+I41+I46+I51+I56+I61+I66+I71+I76+I81+I86+I91 -> 1662.97 | J6: =I6/X6-1 -> -8.86% | K6: 1699.64 | L6: -6.19% | M6: 1618.51 | N6: -5.79% | O6: 9573.34 | P6: -8.69% | R6: =R11+R16+R21+R26+R31+R36+R41+R46+R51+R56+R61+R66+R71+R76+R81+R86+R91 -> 1688.14 | S6: =R6/AT6-1 -> 19.05% | T6: 1719.87 | U6: 17.06% | V6: 1721.89 | W6: 19.62% | X6: =X11+X16+X21+X26+X31+X36+X41+X46+X51+X56+X61+X66+X71+X76+X81+X86+X91 -> 1824.67 | Y6: =X6/AZ6-1 -> 17.71% | Z6: 1811.82 | AA6: 12.92% | AB6: 1718.04 | AC6: 12.89% | AD6: =AD11+AD16+AD21+AD26+AD31+AD36+AD41+AD46+AD51+AD56+AD61+AD66+AD71+AD76+AD81+AD86+AD91 -> 1781.89 | AE6: =AD6/BF6-1 -> 15.19% | AF6: 1784.78 | AG6: 10.85% | AH6: 1666.80 | AI6: 9.74% | AJ6: =AJ11+AJ16+AJ21+AJ26+AJ31+AJ36+AJ41+AJ46+AJ51+AJ56+AJ61+AJ66+AJ71+AJ76+AJ81+AJ86+AJ91 -> 1723.76 | AK6: =AJ6/BL6-1 -> -8.54% | AL6: 1638.52 | AM6: -6.55% | AN6: 1550.37 | AO6: -6.00% | AP6: 20630.55 | AQ6: 8.77% | AS6: 17317.11 | AT6: =AT11+AT16+AT21+AT26+AT31+AT36+AT41+AT46+AT51+AT56+AT61+AT66+AT71+AT76+AT81+AT86+AT91 -> 1418.01 | AU6: 0.06% | AV6: 1469.24 | AW6: -0.76% | AX6: 1439.51 | AY6: -7.01% | AZ6: =AZ11+AZ16+AZ21+AZ26+AZ31+AZ36+AZ41+AZ46+AZ51+AZ56+AZ61+AZ66+AZ71+AZ76+AZ81+AZ86+AZ91 -> 1550.11 | BA6: -3.70% | BB6: 1604.55 | BC6: -1.31% | BD6: 1521.81 | BE6: -4.84% | BF6: =BF11+BF16+BF21+BF26+BF31+BF36+BF41+BF46+BF51+BF56+BF61+BF66+BF71+BF76+BF81+BF86+BF91 -> 1546.96 | BG6: -7.98% | BH6: 1610.01 | BI6: -4.74% | BJ6: 1518.84 | BK6: -2.46% | BL6: =BL11+BL16+BL21+BL26+BL31+BL36+BL41+BL46+BL51+BL56+BL61+BL66+BL71+BL76+BL81+BL86+BL91 -> 1884.72 | BM6: 15.60% | BN6: 1753.34 | BO6: 16.33% | BP6: 1649.36 | BQ6: 17.26% | BR6: 18966.47 | BS6: 1.14% | BU6: 1417.17 | BV6: 1480.46 | BW6: 1548.04 | BX6: 1609.73 | BY6: 1625.80 | BZ6: 1599.29 | CA6: 1681.06 | CB6: 1690.12 | CC6: 1557.21 | CD6: 1630.38 | CE6: 1507.18 | CF6: 1406.62 | CG6: 18753.06
B7: 城际城乡公交客运量（万人次） | C7: =C12+C17+C22+C27+C32+C37+C42+C47+C52+C57+C62+C67+C72+C77+C82+C87+C92 -> 1391.19 | D7: =C7/R7-1 -> 21.63% | E7: 1389.65 | F7: 21.20% | G7: 1437.57 | H7: 15.72% | I7: =I12+I17+I22+I27+I32+I37+I42+I47+I52+I57+I62+I67+I72+I77+I82+I87+I92 -> 1462.08 | J7: =I7/X7-1 -> 13.45% | K7: 1529.42 | L7: 10.42% | M7: 1517.52 | N7: 10.13% | O7: 8727.43 | P7: 15.07% | R7: =R12+R17+R22+R27+R32+R37+R42+R47+R52+R57+R62+R67+R72+R77+R82+R87+R92 -> 1143.83 | S7: =R7/AT7-1 -> 4.90% | T7: 1146.53 | U7: 13.90% | V7: 1242.29 | W7: 18.58% | X7: =X12+X17+X22+X27+X32+X37+X42+X47+X52+X57+X62+X67+X72+X77+X82+X87+X92 -> 1288.71 | Y7: =X7/AZ7-1 -> 15.59% | Z7: 1385.12 | AA7: 24.21% | AB7: 1377.95 | AC7: 26.88% | AD7: =AD12+AD17+AD22+AD27+AD32+AD37+AD42+AD47+AD52+AD57+AD62+AD67+AD72+AD77+AD82+AD87+AD92 -> 1344.24 | AE7: =AD7/BF7-1 -> 22.63% | AF7: 1350.08 | AG7: 23.07% | AH7: 1339.74 | AI7: 22.36% | AJ7: =AJ12+AJ17+AJ22+AJ27+AJ32+AJ37+AJ42+AJ47+AJ52+AJ57+AJ62+AJ67+AJ72+AJ77+AJ82+AJ87+AJ92 -> 1426.42 | AK7: =AJ7/BL7-1 -> 23.28% | AL7: 1369.51 | AM7: 23.15% | AN7: 1358.09 | AO7: 23.95% | AP7: 15772.51 | AQ7: 20.28% | AS7: 12018.00 | AT7: =AT12+AT17+AT22+AT27+AT32+AT37+AT42+AT47+AT52+AT57+AT62+AT67+AT72+AT77+AT82+AT87+AT92 -> 1090.45 | AU7: 43.73% | AV7: 1006.65 | AW7: 3.87% | AX7: 1047.63 | AY7: -4.64% | AZ7: =AZ12+AZ17+AZ22+AZ27+AZ32+AZ37+AZ42+AZ47+AZ52+AZ57+AZ62+AZ67+AZ72+AZ77+AZ82+AZ87+AZ92 -> 1114.92 | BA7: -1.66% | BB7: 1115.14 | BC7: -0.30% | BD7: 1086.04 | BE7: 0.50% | BF7: =BF12+BF17+BF22+BF27+BF32+BF37+BF42+BF47+BF52+BF57+BF62+BF67+BF72+BF77+BF82+BF87+BF92 -> 1096.14 | BG7: 2.83% | BH7: 1097.01 | BI7: 1.69% | BJ7: 1094.95 | BK7: -0.57% | BL7: =BL12+BL17+BL22+BL27+BL32+BL37+BL42+BL47+BL52+BL57+BL62+BL67+BL72+BL77+BL82+BL87+BL92 -> 1157.02 | BM7: 5.19% | BN7: 1112.05 | BO7: -1.73% | BP7: 1095.69 | BQ7: -8.46% | BR7: 13113.69 | BS7: 2.18% | BU7: 758.66 | BV7: 969.14 | BW7: 1098.56 | BX7: 1133.70 | BY7: 1118.53 | BZ7: 1080.68 | CA7: 1065.99 | CB7: 1078.81 | CC7: 1101.28 | CD7: 1099.96 | CE7: 1131.67 | CF7: 1196.89 | CG7: 12833.87
B8: 城际城乡巡游出租客运量（万人次） | C8: =C13+C18+C23+C28+C33+C38+C43+C48+C53+C58+C63+C68+C73+C78+C83+C88+C93 -> 535.83 | D8: =C8/R8-1 -> 30.84% | E8: 550.52 | F8: 22.71% | G8: 513.97 | H8: 22.97% | I8: =I13+I18+I23+I28+I33+I38+I43+I48+I53+I58+I63+I68+I73+I78+I83+I88+I93 -> 498.81 | J8: =I8/X8-1 -> 16.06% | K8: 517.54 | L8: 4.74% | M8: 515.28 | N8: 17.41% | O8: 3131.95 | P8: 18.68% | R8: =R13+R18+R23+R28+R33+R38+R43+R48+R53+R58+R63+R68+R73+R78+R83+R88+R93 -> 409.54 | S8: =R8/AT8-1 -> -4.73% | T8: 448.64 | U8: 15.57% | V8: 417.98 | W8: 11.99% | X8: =X13+X18+X23+X28+X33+X38+X43+X48+X53+X58+X63+X68+X73+X78+X83+X88+X93 -> 429.77 | Y8: =X8/AZ8-1 -> 20.04% | Z8: 494.11 | AA8: 33.06% | AB8: 438.88 | AC8: 15.45% | AD8: =AD13+AD18+AD23+AD28+AD33+AD38+AD43+AD48+AD53+AD58+AD63+AD68+AD73+AD78+AD83+AD88+AD93 -> 566.86 | AE8: =AD8/BF8-1 -> 43.64% | AF8: 603.64 | AG8: 68.24% | AH8: 600.68 | AI8: 55.88% | AJ8: =AJ13+AJ18+AJ23+AJ28+AJ33+AJ38+AJ43+AJ48+AJ53+AJ58+AJ63+AJ68+AJ73+AJ78+AJ83+AJ88+AJ93 -> 608.80 | AK8: =AJ8/BL8-1 -> 53.97% | AL8: 572.57 | AM8: 51.43% | AN8: 596.03 | AO8: 76.27% | AP8: 6187.50 | AQ8: 35.95% | AS8: 4213.10 | AT8: =AT13+AT18+AT23+AT28+AT33+AT38+AT43+AT48+AT53+AT58+AT63+AT68+AT73+AT78+AT83+AT88+AT93 -> 429.87 | AU8: 4.90% | AV8: 388.19 | AW8: -4.10% | AX8: 373.23 | AY8: -14.13% | AZ8: =AZ13+AZ18+AZ23+AZ28+AZ33+AZ38+AZ43+AZ48+AZ53+AZ58+AZ63+AZ68+AZ73+AZ78+AZ83+AZ88+AZ93 -> 358.02 | BA8: -16.39% | BB8: 371.34 | BC8: -14.32% | BD8: 380.15 | BE8: -9.51% | BF8: =BF13+BF18+BF23+BF28+BF33+BF38+BF43+BF48+BF53+BF58+BF63+BF68+BF73+BF78+BF83+BF88+BF93 -> 394.64 | BG8: -8.39% | BH8: 358.79 | BI8: -16.67% | BJ8: 385.35 | BK8: -7.91% | BL8: =BL13+BL18+BL23+BL28+BL33+BL38+BL43+BL48+BL53+BL58+BL63+BL68+BL73+BL78+BL83+BL88+BL93 -> 395.40 | BM8: -8.54% | BN8: 378.12 | BO8: -8.10% | BP8: 338.14 | BQ8: -19.21% | BR8: 4551.24 | BS8: -10.29% | BU8: 409.80 | BV8: 404.79 | BW8: 434.66 | BX8: 428.22 | BY8: 433.39 | BZ8: 420.12 | CA8: 430.76 | CB8: 430.54 | CC8: 418.44 | CD8: 432.32 | CE8: 411.43 | CF8: 418.55 | CG8: 5073.02
